Workbook

Sheet BSC Master
B2: Document Owner | D2: E. Berghmans | F2: Subject | I2: Status Overview Actionlog
F3: SRA LH/RH | I3: Date: | J3: =TODAY() -> 2018-10-02
B4: Revision | D4: 1.1
J5: Status | K5: Count
J6: Ready | K6: =COUNTIF($M$21:$M$50,"=Ready") -> 0
B7: Revision date | D7: 2014-10-23 | J7: Late | K7: =COUNTIF($M$21:$M$50,"=Late") -> 0
J8: Pending | K8: =COUNTIF($M$21:$M$50,"=Pending") -> 1
B20: Nr. | C20: Type | D20: Station | E20: Probleem | F20: TAF | G20: Oorzaak | H20: Actie | I20: Resp. | J20: Date Assigned | K20: Target Completion Date | L20: Actual Completion Date | M20: Status | N20: Beheerder | O20: Prio
A21: 1 | C21: ALL | D21: 21 | E21: Uitval Pallethouse door diverse oorzaken | G21: Delen niet goed in kooi, nieuwe chauffeurs | H21: Diverse keren MH aangesproken, Camera geplaatst, maar HD weggehaald i.v.m. prioriteiten elders
G22: Kooien sluitbalk niet open
A31: 2 | B31: pfu | C31: ALL | D31: 10CT01 | E31: CT's veel pickproblemen op de gripper bij het picken van het deel uit de CT | F31: 80416535 | G31: Door extra gewicht klemmen en tooling F48, CT-Tafel niet meer is gefixeerde positie. Enige speling. | H31: Paal met opnamepen maken waar CT altijd in gefixeerde toestand op staat. Update 7-11-2017: nog geen vorderingen. Update 8-11-2017: Will Kroonen pakt thema op. Update 16-11-2017: verdere acties? Update 20-11-2017: thema nogmaals besproken met Will Kroonen. Update 22-11-2017: ordernr toegevoegd. Update: 7-12-2017: Engelbert as vrijdag 8-12-17 testen. | I31: Will Kroonen | J31: 2017-11-03 | K31: 2018-01-28 | M31: pending | N31: Will Kroonen
A41: 3
C45: Outer RH | D45: 67FX01 | E45: B029PP valt uit aan de laszijde. | G45: Constructie moet worden nagekeken en aangepast | H45: Will Kroonen heeft order aangemaakt 80496141 | I45: Will Krooenen | J45: 2018-09-10 | K45: 2018-09-24 | M45: Open
A51: 4
A61: 5

Sheet TA SRA LH
X1: =DATA!$C$15 -> SRA LH | AC1: TA Target | AE1: =DATA!$C$9 -> 0.89 | AP1: TA | AQ1: = | AR1: [ A ]
AC2: Cycle Time | AE2: =DATA!$C$10 -> 64 | AG2: =AE2/60 -> 1.066666667
AC3: Enter Data | AR3: [ T ] - [ BS ] - [ PS ]
A4: ID | B4: Shift Start Time | C4: Shift End Time | D4: Break Time | E4: Total Shift time [Hour] | F4: Available Production Time [Hour] | G4: Target [%] | H4: Cycle time [s] | I4: Target Ouput [56/H] | J4: Parts Target [56/H] | K4: Parts Target [100% Availability] | L4: Blocked / Starved [Hour] | M4: Loss Blocked/ Starved [Parts] | N4: Loss Blocked/ Starved [%] | O4: Planned Stop/ Early Finish [Hour] | P4: Loss Planned Stop/ Early Finish [Parts] | Q4: Loss Planned Stop/ Early Finish [%] | R4: Rekenkolom Benodigde tijd | S4: Produced Parts Actual | T4: Produced Parts Shift D1 | U4: Produced Parts Shift D2 | V4: Produced Parts Shift D3 | X4: Week | Y4: Date | Z4: Day | AA4: Shift | AB4: Shift | AC4: Blocked / Starved [Min] | AD4: Planned Stop / Early Finish [Min] | AE4: Parts during break | AF4: Produced Parts Total | AG4: Downtime Technical SAP[min] | AH4: Delta [Parts] | AI4: Availability (Total Time) [%] | AJ4: Technical Availabilty SRI LH [%] | AK4: Parts Target [100% Availability] | AL4: Parts Actual | AM4: Availability (Total Time) [%] | AN4: Loss Blocked/ Starved [Parts] | AO4: Loss Blocked/ Starved [%] | AP4: Loss Planned Stop/ Early Finish [Parts] | AQ4: Loss Planned Stop/ Early Finish [%] | AR4: Technical Availability Total LH [%] | AS4: Technical Availability Shift D1 [%] | AT4: Technical Availability Shift D2 [%] | AU4: Technical Availability Shift D3 [%] | AV4: Total Downtime [Parts] | AW4: Total Downtime [%] | AX4: Total Downtime [Min] | AY4: Geregistreerd SAP Technical Downtime [Min] | AZ4: Major Items Downtime
AK5: [T] | AL5: [A] | AN5: [BS] | AP5: [PS] | AS5: D1 | AT5: D2 | AU5: D3
A6: =X6&Z6&AA6 -> 1maDD | B6: =VLOOKUP($AA6,DATA!$B$3:$E$6,2,0) -> 06:30:00 | C6: =VLOOKUP($AA6,DATA!$B$3:$E$6,3,0) -> 14:30:00 | D6: =VLOOKUP($AA6,DATA!$B$3:$E$6,4,0) -> 0.03125 | E6: =(C6-B6+(B6>C6))-D6 -> 0.3020833333 | F6: =E6-O6-L6 -> 0.3020833333 | G6: =DATA!$C$9 -> 0.89 | H6: =DATA!$C$10 -> 64 | I6: 1 | J6: =F6*86400/H6*I6 -> 407.8125 | K6: =E6*86400/H6 -> 407.8125 | L6: =TIME(INT($AC6/60),INT(MOD($AC6,60)/1),0) -> 0 | M6: =IF($L6*86400/$H6=0,"",$L6*86400/$H6) ->  | N6: =IFERROR($M6/$K6,"") ->  | O6: =TIME(INT($AD6/60),INT(MOD($AD6,60)/1),0) -> 0 | P6: =IF($O6*86400/$H6=0,"",$O6*86400/$H6) ->  | Q6: =IFERROR($P6/$K6,"") ->  | R6: =AF6*AG$2 -> 0 | S6: =IF(AF6-AE6=0,"",AF6-AE6) ->  | T6: =IF(IF($AB123="D1",$S6,"")=0,"",IF($AB123="D1",$S6,"")) ->  | U6: =IF(IF($AB123="D2",$S6,"")=0,"",IF($AB123="D2",$S6,"")) ->  | V6: =IF(IF($AB123="D3",$S6,"")=0,"",IF($AB123="D3",$S6,"")) ->  | X6: =X16 -> 1 | Y6: 2018-01-01 | Z6: =TEXT(Y6,"ddd") -> ma | AA6: DD | AB6: =IFERROR(HLOOKUP(Y6,[1]DATA!$A$1:$NB$5,3,0),"") -> D1 | AG6: 0 | AK6: 3487.5 | AL6: 2325 | AM6: 0.6666666667 | AN6: 837.1875 | AO6: 0.2400537634 | AP6: 165.9375 | AQ6: 0.04758064516 | AR6: 0.9651574746 | AS6: 0.9626171202 | AU6: 0.967697829 | AV6: 159.375 | AW6: 0.04569892473 | AX6: 170 | AY6: 96
A7: 1maMD | B7: =VLOOKUP($AA7,DATA!$B$3:$E$6,2,0) -> 14:30:00 | C7: =VLOOKUP($AA7,DATA!$B$3:$E$6,3,0) -> 22:30:00 | D7: =VLOOKUP($AA7,DATA!$B$3:$E$6,4,0) -> 0.03125 | E7: =(C7-B7+(B7>C7))-D7 -> 0.3020833333 | F7: =E7-O7-L7 -> 0.3020833333 | G7: =DATA!$C$9 -> 0.89 | H7: =DATA!$C$10 -> 64 | I7: 1 | J7: =F7*86400/H7*I7 -> 407.8125 | K7: =E7*86400/H7 -> 407.8125 | L7: =TIME(INT($AC7/60),INT(MOD($AC7,60)/1),0) -> 0 | M7: =IF($L7*86400/$H7=0,"",$L7*86400/$H7) ->  | N7: =IFERROR($M7/$K7,"") ->  | O7: =TIME(INT(AD7/60),INT(MOD(AD7,60)/1),0) -> 0 | Q7: =IFERROR($P7/$K7,"") ->  | R7: =AF7*AG$2 -> 0 | S7: =IF(AF7-AE7=0,"",AF7-AE7) ->  | T7: =IF(IF($AB7="D1",$S7,"")=0,"",IF($AB7="D1",$S7,"")) ->  | U7: =IF(IF($AB7="D2",$S7,"")=0,"",IF($AB7="D2",$S7,"")) ->  | V7: =IF(IF($AB7="D3",$S7,"")=0,"",IF($AB7="D3",$S7,"")) ->  | X7: =X16 -> 1 | Z7: =TEXT(Y6,"ddd") -> ma | AA7: MD | AB7: =IFERROR(HLOOKUP(Y6,[1]DATA!$A$1:$NB$5,4,0),"") -> D3 | AG7: 0
A8: 1maND | B8: =VLOOKUP($AA8,DATA!$B$3:$E$6,2,0) -> 22:30:00 | C8: =VLOOKUP($AA8,DATA!$B$3:$E$6,3,0) -> 06:30:00 | D8: =VLOOKUP($AA8,DATA!$B$3:$E$6,4,0) -> 0.03125 | E8: 0.3020833333 | F8: 0.3020833333 | G8: =DATA!$C$9 -> 0.89 | H8: =DATA!$C$10 -> 64 | I8: 1 | J8: 407.8125 | K8: 407.8125 | L8: 0 | O8: 0 | R8: 0 | X8: =X16 -> 1 | Z8: =TEXT(Y6,"ddd") -> ma | AA8: ND | AB8: =IFERROR(HLOOKUP(Y6,[1]DATA!$A$1:$NB$5,5,0),"") -> D2 | AG8: 0
A9: 1diDD | B9: =VLOOKUP($AA9,DATA!$B$3:$E$6,2,0) -> 06:30:00 | C9: =VLOOKUP($AA9,DATA!$B$3:$E$6,3,0) -> 14:30:00 | D9: =VLOOKUP($AA9,DATA!$B$3:$E$6,4,0) -> 0.03125 | E9: 0.3020833333 | F9: 0.1701388889 | G9: =DATA!$C$9 -> 0.89 | H9: =DATA!$C$10 -> 64 | I9: 1 | J9: 229.6875 | K9: 407.8125 | L9: 0.05416666667 | M9: 73.125 | N9: 0.1793103448 | O9: 0.07777777778 | P9: 105 | Q9: 0.2574712644 | R9: 298.6666667 | S9: 259 | T9: 259 | X9: =X16 -> 1 | Y9: =Y6+1 -> 2018-01-02 | Z9: =TEXT(Y9,"ddd") -> di | AA9: DD | AB9: =IFERROR(HLOOKUP(Y9,[1]DATA!$A$1:$NB$5,3,0),"") -> D1 | AC9: 78 | AD9: 112 | AE9: 21 | AF9: 280 | AG9: 14 | AH9: 1.1875 | AI9: 0.5941218638 | AJ9: 0.9552238806
A10: 1diMD | B10: =VLOOKUP($AA10,DATA!$B$3:$E$6,2,0) -> 14:30:00 | C10: =VLOOKUP($AA10,DATA!$B$3:$E$6,3,0) -> 22:30:00 | D10: =VLOOKUP($AA10,DATA!$B$3:$E$6,4,0) -> 0.03125 | E10: 0.3020833333 | F10: 0.2597222222 | G10: =DATA!$C$9 -> 0.89 | H10: =DATA!$C$10 -> 64 | I10: 1 | J10: 350.625 | K10: 407.8125 | L10: 0.04236111111 | M10: 57.1875 | N10: 0.1402298851 | O10: 0 | R10: 358.4 | S10: 327 | V10: 327 | X10: =X16 -> 1 | Z10: =TEXT(Y9,"ddd") -> di | AA10: MD | AB10: =IFERROR(HLOOKUP(Y9,[1]DATA!$A$1:$NB$5,4,0),"") -> D3 | AC10: 61 | AE10: 9 | AF10: 336 | AG10: 19 | AH10: -51.75 | AI10: 0.7501075269 | AJ10: 0.9496555379
A11: 1diND | B11: =VLOOKUP($AA11,DATA!$B$3:$E$6,2,0) -> 22:30:00 | C11: =VLOOKUP($AA11,DATA!$B$3:$E$6,3,0) -> 06:30:00 | D11: =VLOOKUP($AA11,DATA!$B$3:$E$6,4,0) -> 0.03125 | E11: 0.3020833333 | F11: 0.3020833333 | G11: =DATA!$C$9 -> 0.89 | H11: =DATA!$C$10 -> 64 | I11: 1 | J11: 407.8125 | K11: 407.8125 | L11: 0 | O11: 0 | R11: 0 | X11: =X16 -> 1 | Z11: =TEXT(Y9,"ddd") -> di | AA11: ND | AB11: =IFERROR(HLOOKUP(Y9,[1]DATA!$A$1:$NB$5,5,0),"") -> D2 | AG11: 0
A12: 1woDD | B12: =VLOOKUP($AA12,DATA!$B$3:$E$6,2,0) -> 06:30:00 | C12: =VLOOKUP($AA12,DATA!$B$3:$E$6,3,0) -> 14:30:00 | D12: =VLOOKUP($AA12,DATA!$B$3:$E$6,4,0) -> 0.03125 | E12: 0.3020833333 | F12: 0.2527777778 | G12: =DATA!$C$9 -> 0.89 | H12: =DATA!$C$10 -> 64 | I12: 1 | J12: 341.25 | K12: 407.8125 | L12: 0.04930555556 | M12: 66.5625 | N12: 0.1632183908 | O12: 0 | R12: 370.1333333 | S12: 334 | T12: 334 | X12: =X16 -> 1 | Y12: =Y9+1 -> 2018-01-03 | Z12: =TEXT(Y12,"ddd") -> wo | AA12: DD | AB12: =IFERROR(HLOOKUP(Y12,[1]DATA!$A$1:$NB$5,3,0),"") -> D1 | AC12: 71 | AE12: 13 | AF12: 347 | AG12: 17 | AH12: -35.375 | AI12: 0.7661648746 | AJ12: 0.9560874806
A13: 1woMD | B13: =VLOOKUP($AA13,DATA!$B$3:$E$6,2,0) -> 14:30:00 | C13: =VLOOKUP($AA13,DATA!$B$3:$E$6,3,0) -> 22:30:00 | D13: =VLOOKUP($AA13,DATA!$B$3:$E$6,4,0) -> 0.03125 | E13: 0.3020833333 | F13: 0.2194444444 | G13: =DATA!$C$9 -> 0.89 | H13: =DATA!$C$10 -> 64 | I13: 1 | J13: 296.25 | K13: 407.8125 | L13: 0.08263888889 | M13: 111.5625 | N13: 0.2735632184 | O13: 0 | R13: 325.3333333 | S13: 291 | V13: 291 | X13: =X16 -> 1 | Z13: =TEXT(Y12,"ddd") -> wo | AA13: MD | AB13: =IFERROR(HLOOKUP(Y12,[1]DATA!$A$1:$NB$5,4,0),"") -> D3 | AC13: 119 | AE13: 14 | AF13: 305 | AG13: 6 | AH13: -33.375 | AI13: 0.6675268817 | AJ13: 0.9818913481
A14: 1woND | B14: =VLOOKUP($AA14,DATA!$B$3:$E$6,2,0) -> 22:30:00 | C14: =VLOOKUP($AA14,DATA!$B$3:$E$6,3,0) -> 06:30:00 | D14: =VLOOKUP($AA14,DATA!$B$3:$E$6,4,0) -> 0.03125 | E14: 0.3020833333 | F14: 0.3020833333 | G14: =DATA!$C$9 -> 0.89 | H14: =DATA!$C$10 -> 64 | I14: 1 | J14: 407.8125 | K14: 407.8125 | L14: 0 | O14: 0 | R14: 0 | X14: =X16 -> 1 | Z14: =TEXT(Y12,"ddd") -> wo | AA14: ND | AB14: =IFERROR(HLOOKUP(Y12,[1]DATA!$A$1:$NB$5,5,0),"") -> D2 | AG14: 0
A15: 1doDD | B15: =VLOOKUP($AA15,DATA!$B$3:$E$6,2,0) -> 06:30:00 | C15: =VLOOKUP($AA15,DATA!$B$3:$E$6,3,0) -> 14:30:00 | D15: =VLOOKUP($AA15,DATA!$B$3:$E$6,4,0) -> 0.03125 | E15: 0.3020833333 | F15: 0.1847222222 | G15: =DATA!$C$9 -> 0.89 | H15: =DATA!$C$10 -> 64 | I15: 1 | J15: 249.375 | K15: 407.8125 | L15: 0.1173611111 | M15: 158.4375 | N15: 0.3885057471 | O15: 0 | R15: 309.3333333 | S15: 263 | T15: 263 | X15: =X16 -> 1 | Y15: =Y12+1 -> 2018-01-04 | Z15: =TEXT(Y15,"ddd") -> do | AA15: DD | AB15: =IFERROR(HLOOKUP(Y15,[1]DATA!$A$1:$NB$5,3,0),"") -> D1 | AC15: 169 | AE15: 27 | AF15: 290 | AG15: 4 | AH15: -14.5 | AI15: 0.603297491 | AJ15: 0.9872340426
A16: 1doMD | B16: =VLOOKUP($AA16,DATA!$B$3:$E$6,2,0) -> 14:30:00 | C16: =VLOOKUP($AA16,DATA!$B$3:$E$6,3,0) -> 22:30:00 | D16: =VLOOKUP($AA16,DATA!$B$3:$E$6,4,0) -> 0.03125 | E16: 0.3020833333 | F16: 0.2263888889 | G16: =DATA!$C$9 -> 0.89 | H16: =DATA!$C$10 -> 64 | I16: 1 | J16: 305.625 | K16: 407.8125 | L16: 0.07569444444 | M16: 102.1875 | N16: 0.2505747126 | O16: 0 | R16: 343.4666667 | S16: 302 | V16: 302 | X16: =WEEKNUM($Y6) -> 1 | Z16: =TEXT(Y15,"ddd") -> do | AA16: MD | AB16: =IFERROR(HLOOKUP(Y15,[1]DATA!$A$1:$NB$5,4,0),"") -> D3 | AC16: 109 | AE16: 20 | AF16: 322 | AG16: 6 | AH16: -31.75 | AI16: 0.6927598566 | AJ16: 0.9828309805
A17: 1doND | B17: =VLOOKUP($AA17,DATA!$B$3:$E$6,2,0) -> 22:30:00 | C17: =VLOOKUP($AA17,DATA!$B$3:$E$6,3,0) -> 06:30:00 | D17: =VLOOKUP($AA17,DATA!$B$3:$E$6,4,0) -> 0.03125 | E17: 0.3020833333 | F17: 0.3020833333 | G17: =DATA!$C$9 -> 0.89 | H17: =DATA!$C$10 -> 64 | I17: 1 | J17: 407.8125 | K17: 407.8125 | L17: 0 | O17: 0 | R17: 0 | X17: =X16 -> 1 | Z17: =TEXT(Y15,"ddd") -> do | AA17: ND | AB17: =IFERROR(HLOOKUP(Y15,[1]DATA!$A$1:$NB$5,5,0),"") -> D2 | AG17: 0
A18: 1vrDD | B18: =VLOOKUP($AA18,DATA!$B$3:$E$6,2,0) -> 06:30:00 | C18: =VLOOKUP($AA18,DATA!$B$3:$E$6,3,0) -> 14:30:00 | D18: =VLOOKUP($AA18,DATA!$B$3:$E$6,4,0) -> 0.03125 | E18: 0.3020833333 | F18: 0.1840277778 | G18: =DATA!$C$9 -> 0.89 | H18: =DATA!$C$10 -> 64 | I18: 1 | J18: 248.4375 | K18: 407.8125 | L18: 0.09722222222 | M18: 131.25 | N18: 0.3218390805 | O18: 0.02083333333 | P18: 28.125 | Q18: 0.06896551724 | R18: 316.8 | S18: 279 | T18: 279 | X18: =X16 -> 1 | Y18: =Y15+1 -> 2018-01-05 | Z18: =TEXT(Y18,"ddd") -> vr | AA18: DD | AB18: =IFERROR(HLOOKUP(Y18,[1]DATA!$A$1:$NB$5,3,0),"") -> D1 | AC18: 140 | AD18: 30 | AE18: 18 | AF18: 297 | AG18: 16 | AH18: 2.4375 | AI18: 0.64 | AJ18: 0.9519230769
A19: 1vrMD | B19: =VLOOKUP($AA19,DATA!$B$3:$E$6,2,0) -> 14:30:00 | C19: =VLOOKUP($AA19,DATA!$B$3:$E$6,3,0) -> 22:30:00 | D19: =VLOOKUP($AA19,DATA!$B$3:$E$6,4,0) -> 0.03125 | E19: 0.3020833333 | F19: 0.1763888889 | G19: =DATA!$C$9 -> 0.89 | H19: =DATA!$C$10 -> 64 | I19: 1 | J19: 238.125 | K19: 407.8125 | L19: 0.1013888889 | M19: 136.875 | N19: 0.3356321839 | O19: 0.02430555556 | P19: 32.8125 | Q19: 0.08045977011 | R19: 307.2 | S19: 270 | V19: 270 | X19: =X16 -> 1 | Z19: =TEXT(Y18,"ddd") -> vr | AA19: MD | AB19: =IFERROR(HLOOKUP(Y18,[1]DATA!$A$1:$NB$5,4,0),"") -> D3 | AC19: 146 | AD19: 35 | AE19: 18 | AF19: 288 | AG19: 14 | AH19: 3.75 | AI19: 0.6193548387 | AJ19: 0.9564134496
A20: 1vrND | B20: =VLOOKUP($AA20,DATA!$B$3:$E$6,2,0) -> 22:30:00 | C20: =VLOOKUP($AA20,DATA!$B$3:$E$6,3,0) -> 06:30:00 | D20: =VLOOKUP($AA20,DATA!$B$3:$E$6,4,0) -> 0.03125 | E20: 0.3020833333 | F20: 0.3020833333 | G20: =DATA!$C$9 -> 0.89 | H20: =DATA!$C$10 -> 64 | I20: 1 | J20: 407.8125 | K20: 407.8125 | L20: 0 | O20: 0 | R20: 0 | X20: =X16 -> 1 | Z20: =TEXT(Y18,"ddd") -> vr | AA20: ND | AB20: =IFERROR(HLOOKUP(Y18,[1]DATA!$A$1:$NB$5,5,0),"") -> - | AG20: 0
A21: 1zaDD | B21: =VLOOKUP($AA21,DATA!$B$3:$E$6,2,0) -> 06:30:00 | C21: =VLOOKUP($AA21,DATA!$B$3:$E$6,3,0) -> 14:30:00 | D21: =VLOOKUP($AA21,DATA!$B$3:$E$6,4,0) -> 0.03125 | E21: 0.3020833333 | F21: 0.3020833333 | G21: =DATA!$C$9 -> 0.89 | H21: =DATA!$C$10 -> 64 | I21: 1 | J21: 407.8125 | K21: 407.8125 | L21: 0 | O21: 0 | R21: 0 | X21: =X16 -> 1 | Y21: =Y18+1 -> 2018-01-06 | Z21: =TEXT(Y21,"ddd") -> za | AA21: DD | AB21: =IFERROR(HLOOKUP(Y21,[1]DATA!$A$1:$NB$5,3,0),"") -> - | AG21: 0
A22: 1zaMD | B22: =VLOOKUP($AA22,DATA!$B$3:$E$6,2,0) -> 14:30:00 | C22: =VLOOKUP($AA22,DATA!$B$3:$E$6,3,0) -> 22:30:00 | D22: =VLOOKUP($AA22,DATA!$B$3:$E$6,4,0) -> 0.03125 | E22: 0.3020833333 | F22: 0.3020833333 | G22: =DATA!$C$9 -> 0.89 | H22: =DATA!$C$10 -> 64 | I22: 1 | J22: 407.8125 | K22: 407.8125 | L22: 0 | O22: 0 | R22: 0 | X22: =X16 -> 1 | Z22: =TEXT(Y21,"ddd") -> za | AA22: MD | AB22: =IFERROR(HLOOKUP(Y21,[1]DATA!$A$1:$NB$5,4,0),"") -> - | AG22: 0
A23: 1zaND | B23: =VLOOKUP($AA23,DATA!$B$3:$E$6,2,0) -> 22:30:00 | C23: =VLOOKUP($AA23,DATA!$B$3:$E$6,3,0) -> 06:30:00 | D23: =VLOOKUP($AA23,DATA!$B$3:$E$6,4,0) -> 0.03125 | E23: 0.3020833333 | F23: 0.3020833333 | G23: =DATA!$C$9 -> 0.89 | H23: =DATA!$C$10 -> 64 | I23: 1 | J23: 407.8125 | K23: 407.8125 | L23: 0 | O23: 0 | R23: 0 | X23: =X16 -> 1 | Z23: =TEXT(Y21,"ddd") -> za | AA23: ND | AB23: =IFERROR(HLOOKUP(Y21,[1]DATA!$A$1:$NB$5,5,0),"") -> - | AG23: 0
A24: 1zoDD | B24: =VLOOKUP($AA24,DATA!$B$3:$E$6,2,0) -> 06:30:00 | C24: =VLOOKUP($AA24,DATA!$B$3:$E$6,3,0) -> 14:30:00 | D24: =VLOOKUP($AA24,DATA!$B$3:$E$6,4,0) -> 0.03125 | E24: 0.3020833333 | F24: 0.3020833333 | G24: =DATA!$C$9 -> 0.89 | H24: =DATA!$C$10 -> 64 | I24: 1 | J24: 407.8125 | K24: 407.8125 | L24: 0 | O24: 0 | R24: 0 | X24: =X16 -> 1 | Y24: =Y21+1 -> 2018-01-07 | Z24: =TEXT(Y24,"ddd") -> zo | AA24: DD | AB24: =IFERROR(HLOOKUP(Y24,[1]DATA!$A$1:$NB$5,3,0),"") -> - | AG24: 0
A25: 1zoMD | B25: =VLOOKUP($AA25,DATA!$B$3:$E$6,2,0) -> 14:30:00 | C25: =VLOOKUP($AA25,DATA!$B$3:$E$6,3,0) -> 22:30:00 | D25: =VLOOKUP($AA25,DATA!$B$3:$E$6,4,0) -> 0.03125 | E25: 0.3020833333 | F25: 0.3020833333 | G25: =DATA!$C$9 -> 0.89 | H25: =DATA!$C$10 -> 64 | I25: 1 | J25: 407.8125 | K25: 407.8125 | L25: 0 | O25: 0 | R25: 0 | X25: =X16 -> 1 | Z25: =TEXT(Y24,"ddd") -> zo | AA25: MD | AB25: =IFERROR(HLOOKUP(Y24,[1]DATA!$A$1:$NB$5,4,0),"") -> - | AG25: 0
A26: 1zoZND | B26: =VLOOKUP($AA26,DATA!$B$3:$E$6,2,0) -> 00:00:00 | C26: =VLOOKUP($AA26,DATA!$B$3:$E$6,3,0) -> 00:00:00 | D26: =VLOOKUP($AA26,DATA!$B$3:$E$6,4,0) -> 0 | E26: 0 | F26: 0 | G26: =DATA!$C$9 -> 0.89 | H26: =DATA!$C$10 -> 64 | I26: 1 | J26: 0 | K26: 0 | L26: 0 | O26: 0 | R26: 0 | X26: =X16 -> 1 | Z26: =TEXT(Y24,"ddd") -> zo | AA26: ZND | AB26: =IFERROR(HLOOKUP(Y24,[1]DATA!$A$1:$NB$5,5,0),"") -> D1 | AG26: 0
A27: 2maDD | B27: =VLOOKUP($AA27,DATA!$B$3:$E$6,2,0) -> 06:30:00 | C27: =VLOOKUP($AA27,DATA!$B$3:$E$6,3,0) -> 14:30:00 | D27: =VLOOKUP($AA27,DATA!$B$3:$E$6,4,0) -> 0.03125 | E27: 0.3020833333 | F27: 0.09652777778 | G27: =DATA!$C$9 -> 0.89 | H27: =DATA!$C$10 -> 64 | I27: 1 | J27: =F27*86400/H27*I27 -> 130.3125 | K27: =E27*86400/H27 -> 407.8125 | L27: =TIME(INT($AC27/60),INT(MOD($AC27,60)/1),0) -> 0.1305555556 | M27: =IF($L27*86400/$H27=0,"",$L27*86400/$H27) -> 176.25 | N27: =IFERROR($M27/$K27,"") -> 0.432183908 | O27: =TIME(INT($AD27/60),INT(MOD($AD27,60)/1),0) -> 0.075 | P27: 101.25 | Q27: =IFERROR($P27/$K27,"") -> 0.2482758621 | R27: =AF27*AG$2 -> 182.4 | S27: =IF(AF27-AE27=0,"",AF27-AE27) -> 158 | T27: =IF(IF($AB27="D1",$S27,"")=0,"",IF($AB27="D1",$S27,"")) ->  | U27: =IF(IF($AB27="D2",$S27,"")=0,"",IF($AB27="D2",$S27,"")) ->  | V27: =IF(IF($AB27="D3",$S27,"")=0,"",IF($AB27="D3",$S27,"")) -> 158 | X27: =X37 -> 2 | Y27: =Y24+1 -> 2018-01-08 | Z27: =TEXT(Y27,"ddd") -> ma | AA27: DD | AB27: =IFERROR(HLOOKUP(Y27,[1]DATA!$A$1:$NB$5,3,0),"") -> D3 | AC27: 188 | AD27: 108 | AE27: 13 | AF27: 171 | AG27: 3 | AH27: -0.4375 | AI27: 0.362437276 | AJ27: 0.9838187702 | AK27: 4359.375 | AL27: 2955 | AM27: 0.6778494624 | AN27: 877.5 | AO27: 0.2012903226 | AP27: 129.375 | AQ27: 0.02967741935 | AR27: 0.9710373545 | AT27: 0.963639125 | AU27: 0.9784355839 | AV27: 397.5 | AW27: 0.0911827957 | AX27: 424 | AY27: 107
A28: 2maMD | B28: =VLOOKUP($AA28,DATA!$B$3:$E$6,2,0) -> 14:30:00 | C28: =VLOOKUP($AA28,DATA!$B$3:$E$6,3,0) -> 22:30:00 | D28: =VLOOKUP($AA28,DATA!$B$3:$E$6,4,0) -> 0.03125 | E28: =(C28-B28+(B28>C28))-D28 -> 0.3020833333 | F28: =E28-O28-L28 -> 0.2659722222 | G28: =DATA!$C$9 -> 0.89 | H28: =DATA!$C$10 -> 64 | I28: 1 | J28: =F28*86400/H28*I28 -> 359.0625 | K28: =E28*86400/H28 -> 407.8125 | L28: 0.03611111111 | M28: 48.75 | N28: 0.1195402299 | O28: =TIME(INT(AD28/60),INT(MOD(AD28,60)/1),0) -> 0 | R28: =AF28*AG$2 -> 355.2 | S28: =IF(AF28-AE28=0,"",AF28-AE28) -> 309 | U28: 309 | X28: =X37 -> 2 | Z28: =TEXT(Y27,"ddd") -> ma | AA28: MD | AB28: =IFERROR(HLOOKUP(Y27,[1]DATA!$A$1:$NB$5,4,0),"") -> D2 | AC28: 52 | AE28: 24 | AF28: 333 | AG28: 23 | AH28: -78.1875 | AI28: 0.7088172043 | AJ28: 0.9391856161
A29: 2maND | B29: =VLOOKUP($AA29,DATA!$B$3:$E$6,2,0) -> 22:30:00 | C29: =VLOOKUP($AA29,DATA!$B$3:$E$6,3,0) -> 06:30:00 | D29: =VLOOKUP($AA29,DATA!$B$3:$E$6,4,0) -> 0.03125 | E29: 0.3020833333 | F29: 0.3020833333 | G29: =DATA!$C$9 -> 0.89 | H29: =DATA!$C$10 -> 64 | I29: 1 | J29: 407.8125 | K29: 407.8125 | L29: 0 | O29: 0 | R29: 0 | X29: =X37 -> 2 | Z29: =TEXT(Y27,"ddd") -> ma | AA29: ND | AB29: =IFERROR(HLOOKUP(Y27,[1]DATA!$A$1:$NB$5,5,0),"") -> D1 | AG29: 0
A30: 2diDD | B30: =VLOOKUP($AA30,DATA!$B$3:$E$6,2,0) -> 06:30:00 | C30: =VLOOKUP($AA30,DATA!$B$3:$E$6,3,0) -> 14:30:00 | D30: =VLOOKUP($AA30,DATA!$B$3:$E$6,4,0) -> 0.03125 | E30: 0.3020833333 | F30: 0.2131944444 | G30: =DATA!$C$9 -> 0.89 | H30: =DATA!$C$10 -> 64 | I30: 1 | J30: 287.8125 | K30: 407.8125 | L30: 0.08888888889 | M30: 120 | N30: 0.2942528736 | O30: 0 | R30: 324.2666667 | S30: 277 | V30: 277 | X30: =X37 -> 2 | Y30: =Y27+1 -> 2018-01-09 | Z30: =TEXT(Y30,"ddd") -> di | AA30: DD | AB30: =IFERROR(HLOOKUP(Y30,[1]DATA!$A$1:$NB$5,3,0),"") -> D3 | AC30: 128 | AE30: 27 | AF30: 304 | AG30: 9 | AH30: -38.9375 | AI30: 0.6354121864 | AJ30: 0.9729945989
A31: 2diMD | B31: =VLOOKUP($AA31,DATA!$B$3:$E$6,2,0) -> 14:30:00 | C31: =VLOOKUP($AA31,DATA!$B$3:$E$6,3,0) -> 22:30:00 | D31: =VLOOKUP($AA31,DATA!$B$3:$E$6,4,0) -> 0.03125 | E31: 0.3020833333 | F31: 0.2104166667 | G31: =DATA!$C$9 -> 0.89 | H31: =DATA!$C$10 -> 64 | I31: 1 | J31: 284.0625 | K31: 407.8125 | L31: 0.09166666667 | M31: 123.75 | N31: 0.3034482759 | O31: 0 | R31: 343.4666667 | S31: 296 | U31: 296 | X31: =X37 -> 2 | Z31: =TEXT(Y30,"ddd") -> di | AA31: MD | AB31: =IFERROR(HLOOKUP(Y30,[1]DATA!$A$1:$NB$5,4,0),"") -> D2 | AC31: 132 | AE31: 26 | AF31: 322 | AG31: 7 | AH31: -16.1875 | AI31: 0.6789964158 | AJ31: 0.9800266312
A32: 2diND | B32: =VLOOKUP($AA32,DATA!$B$3:$E$6,2,0) -> 22:30:00 | C32: =VLOOKUP($AA32,DATA!$B$3:$E$6,3,0) -> 06:30:00 | D32: =VLOOKUP($AA32,DATA!$B$3:$E$6,4,0) -> 0.03125 | E32: 0.3020833333 | F32: 0.3020833333 | G32: =DATA!$C$9 -> 0.89 | H32: =DATA!$C$10 -> 64 | I32: 1 | J32: 407.8125 | K32: 407.8125 | L32: 0 | O32: 0 | R32: 0 | X32: =X37 -> 2 | Z32: =TEXT(Y30,"ddd") -> di | AA32: ND | AB32: =IFERROR(HLOOKUP(Y30,[1]DATA!$A$1:$NB$5,5,0),"") -> D1 | AG32: 0
A33: 2woDD | B33: =VLOOKUP($AA33,DATA!$B$3:$E$6,2,0) -> 06:30:00 | C33: =VLOOKUP($AA33,DATA!$B$3:$E$6,3,0) -> 14:30:00 | D33: =VLOOKUP($AA33,DATA!$B$3:$E$6,4,0) -> 0.03125 | E33: 0.3020833333 | F33: 0.2548611111 | G33: =DATA!$C$9 -> 0.89 | H33: =DATA!$C$10 -> 64 | I33: 1 | J33: 344.0625 | K33: 407.8125 | L33: 0.04722222222 | M33: 63.75 | N33: 0.1563218391 | O33: 0 | R33: 386.1333333 | S33: 335 | V33: 335 | X33: =X37 -> 2 | Y33: =Y30+1 -> 2018-01-10 | Z33: =TEXT(Y33,"ddd") -> wo | AA33: DD | AB33: =IFERROR(HLOOKUP(Y33,[1]DATA!$A$1:$NB$5,3,0),"") -> D3 | AC33: 68 | AE33: 27 | AF33: 362 | AG33: 18 | AH33: -37.1875 | AI33: 0.7684587814 | AJ33: 0.9554602441
A34: 2woMD | B34: =VLOOKUP($AA34,DATA!$B$3:$E$6,2,0) -> 14:30:00 | C34: =VLOOKUP($AA34,DATA!$B$3:$E$6,3,0) -> 22:30:00 | D34: =VLOOKUP($AA34,DATA!$B$3:$E$6,4,0) -> 0.03125 | E34: 0.3020833333 | F34: 0.2229166667 | G34: =DATA!$C$9 -> 0.89 | H34: =DATA!$C$10 -> 64 | I34: 1 | J34: 300.9375 | K34: 407.8125 | L34: 0.05833333333 | M34: 78.75 | N34: 0.1931034483 | O34: 0.02083333333 | P34: 28.125 | Q34: 0.06896551724 | R34: 357.3333333 | S34: 307 | U34: 307 | X34: =X37 -> 2 | Z34: =TEXT(Y33,"ddd") -> wo | AA34: MD | AB34: =IFERROR(HLOOKUP(Y33,[1]DATA!$A$1:$NB$5,4,0),"") -> D2 | AC34: 84 | AD34: 30 | AE34: 28 | AF34: 335 | AG34: 13 | AH34: -22.0625 | AI34: 0.7042293907 | AJ34: 0.9648964896
A35: 2woND | B35: =VLOOKUP($AA35,DATA!$B$3:$E$6,2,0) -> 22:30:00 | C35: =VLOOKUP($AA35,DATA!$B$3:$E$6,3,0) -> 06:30:00 | D35: =VLOOKUP($AA35,DATA!$B$3:$E$6,4,0) -> 0.03125 | E35: 0.3020833333 | F35: 0.3020833333 | G35: =DATA!$C$9 -> 0.89 | H35: =DATA!$C$10 -> 64 | I35: 1 | J35: 407.8125 | K35: 407.8125 | L35: 0 | O35: 0 | R35: 0 | X35: =X37 -> 2 | Z35: =TEXT(Y33,"ddd") -> wo | AA35: ND | AB35: =IFERROR(HLOOKUP(Y33,[1]DATA!$A$1:$NB$5,5,0),"") -> D1 | AG35: 0
A36: 2doDD | B36: =VLOOKUP($AA36,DATA!$B$3:$E$6,2,0) -> 06:30:00 | C36: =VLOOKUP($AA36,DATA!$B$3:$E$6,3,0) -> 14:30:00 | D36: =VLOOKUP($AA36,DATA!$B$3:$E$6,4,0) -> 0.03125 | E36: 0.3020833333 | F36: 0.25 | G36: =DATA!$C$9 -> 0.89 | H36: =DATA!$C$10 -> 64 | I36: 1 | J36: 337.5 | K36: 407.8125 | L36: 0.05208333333 | M36: 70.3125 | N36: 0.1724137931 | O36: 0 | R36: 341.3333333 | S36: 298 | V36: 298 | X36: =X37 -> 2 | Y36: =Y33+1 -> 2018-01-11 | Z36: =TEXT(Y36,"ddd") -> do | AA36: DD | AB36: =IFERROR(HLOOKUP(Y36,[1]DATA!$A$1:$NB$5,3,0),"") -> D3 | AC36: 75 | AE36: 22 | AF36: 320 | AG36: 7 | AH36: -67.625 | AI36: 0.6835842294 | AJ36: 0.9799043062
A37: 2doMD | B37: =VLOOKUP($AA37,DATA!$B$3:$E$6,2,0) -> 14:30:00 | C37: =VLOOKUP($AA37,DATA!$B$3:$E$6,3,0) -> 22:30:00 | D37: =VLOOKUP($AA37,DATA!$B$3:$E$6,4,0) -> 0.03125 | E37: 0.3020833333 | F37: 0.2868055556 | G37: =DATA!$C$9 -> 0.89 | H37: =DATA!$C$10 -> 64 | I37: 1 | J37: 387.1875 | K37: 407.8125 | L37: 0.01527777778 | M37: 20.625 | N37: 0.05057471264 | O37: 0 | R37: 409.6 | S37: 346 | U37: 346 | X37: =WEEKNUM($Y27) -> 2 | Z37: =TEXT(Y36,"ddd") -> do | AA37: MD | AB37: =IFERROR(HLOOKUP(Y36,[1]DATA!$A$1:$NB$5,4,0),"") -> D2 | AC37: 22 | AE37: 38 | AF37: 384 | AG37: 19 | AH37: -69.3125 | AI37: 0.7936917563 | AJ37: 0.955669622
A38: 2doND | B38: =VLOOKUP($AA38,DATA!$B$3:$E$6,2,0) -> 22:30:00 | C38: =VLOOKUP($AA38,DATA!$B$3:$E$6,3,0) -> 06:30:00 | D38: =VLOOKUP($AA38,DATA!$B$3:$E$6,4,0) -> 0.03125 | E38: 0.3020833333 | F38: 0.3020833333 | G38: =DATA!$C$9 -> 0.89 | H38: =DATA!$C$10 -> 64 | I38: 1 | J38: 407.8125 | K38: 407.8125 | L38: 0 | O38: 0 | R38: 0 | X38: =X37 -> 2 | Z38: =TEXT(Y36,"ddd") -> do | AA38: ND | AB38: =IFERROR(HLOOKUP(Y36,[1]DATA!$A$1:$NB$5,5,0),"") -> D1 | AG38: 0
A39: 2vrDD | B39: =VLOOKUP($AA39,DATA!$B$3:$E$6,2,0) -> 06:30:00 | C39: =VLOOKUP($AA39,DATA!$B$3:$E$6,3,0) -> 14:30:00 | D39: =VLOOKUP($AA39,DATA!$B$3:$E$6,4,0) -> 0.03125 | E39: 0.3020833333 | F39: 0.2534722222 | G39: =DATA!$C$9 -> 0.89 | H39: =DATA!$C$10 -> 64 | I39: 1 | J39: 342.1875 | K39: 407.8125 | L39: 0.04861111111 | M39: 65.625 | N39: 0.1609195402 | O39: 0 | R39: 349.8666667 | S39: 309 | V39: 309 | X39: =X37 -> 2 | Y39: =Y36+1 -> 2018-01-12 | Z39: =TEXT(Y39,"ddd") -> vr | AA39: DD | AB39: =IFERROR(HLOOKUP(Y39,[1]DATA!$A$1:$NB$5,3,0),"") -> D3 | AC39: 70 | AE39: 19 | AF39: 328 | AG39: 0 | AH39: -61.3125 | AI39: 0.7088172043 | AJ39: 1
A40: 2vrMD | B40: =VLOOKUP($AA40,DATA!$B$3:$E$6,2,0) -> 14:30:00 | C40: =VLOOKUP($AA40,DATA!$B$3:$E$6,3,0) -> 22:30:00 | D40: =VLOOKUP($AA40,DATA!$B$3:$E$6,4,0) -> 0.03125 | E40: 0.3020833333 | F40: 0.2208333333 | G40: =DATA!$C$9 -> 0.89 | H40: =DATA!$C$10 -> 64 | I40: 1 | J40: 298.125 | K40: 407.8125 | L40: 0.08125 | M40: 109.6875 | N40: 0.2689655172 | O40: 0 | R40: 362.6666667 | S40: 320 | U40: 320 | X40: =X37 -> 2 | Z40: =TEXT(Y39,"ddd") -> vr | AA40: MD | AB40: =IFERROR(HLOOKUP(Y39,[1]DATA!$A$1:$NB$5,4,0),"") -> D2 | AC40: 117 | AE40: 20 | AF40: 340 | AG40: 8 | AH40: -6.25 | AI40: 0.7340501792 | AJ40: 0.9784172662
A41: 2vrND | B41: =VLOOKUP($AA41,DATA!$B$3:$E$6,2,0) -> 22:30:00 | C41: =VLOOKUP($AA41,DATA!$B$3:$E$6,3,0) -> 06:30:00 | D41: =VLOOKUP($AA41,DATA!$B$3:$E$6,4,0) -> 0.03125 | E41: 0.3020833333 | F41: 0.3020833333 | G41: =DATA!$C$9 -> 0.89 | H41: =DATA!$C$10 -> 64 | I41: 1 | J41: 407.8125 | K41: 407.8125 | L41: 0 | O41: 0 | R41: 0 | X41: =X37 -> 2 | Z41: =TEXT(Y39,"ddd") -> vr | AA41: ND | AB41: =IFERROR(HLOOKUP(Y39,[1]DATA!$A$1:$NB$5,5,0),"") -> - | AG41: 0
A42: 2zaDD | B42: =VLOOKUP($AA42,DATA!$B$3:$E$6,2,0) -> 06:30:00 | C42: =VLOOKUP($AA42,DATA!$B$3:$E$6,3,0) -> 14:30:00 | D42: =VLOOKUP($AA42,DATA!$B$3:$E$6,4,0) -> 0.03125 | E42: 0.3020833333 | F42: 0.3020833333 | G42: =DATA!$C$9 -> 0.89 | H42: =DATA!$C$10 -> 64 | I42: 1 | J42: 407.8125 | K42: 407.8125 | L42: 0 | O42: 0 | R42: 0 | X42: =X37 -> 2 | Y42: =Y39+1 -> 2018-01-13 | Z42: =TEXT(Y42,"ddd") -> za | AA42: DD | AB42: =IFERROR(HLOOKUP(Y42,[1]DATA!$A$1:$NB$5,3,0),"") -> - | AG42: 0
A43: 2zaMD | B43: =VLOOKUP($AA43,DATA!$B$3:$E$6,2,0) -> 14:30:00 | C43: =VLOOKUP($AA43,DATA!$B$3:$E$6,3,0) -> 22:30:00 | D43: =VLOOKUP($AA43,DATA!$B$3:$E$6,4,0) -> 0.03125 | E43: 0.3020833333 | F43: 0.3020833333 | G43: =DATA!$C$9 -> 0.89 | H43: =DATA!$C$10 -> 64 | I43: 1 | J43: 407.8125 | K43: 407.8125 | L43: 0 | O43: 0 | R43: 0 | X43: =X37 -> 2 | Z43: =TEXT(Y42,"ddd") -> za | AA43: MD | AB43: =IFERROR(HLOOKUP(Y42,[1]DATA!$A$1:$NB$5,4,0),"") -> - | AG43: 0
A44: 2zaND | B44: =VLOOKUP($AA44,DATA!$B$3:$E$6,2,0) -> 22:30:00 | C44: =VLOOKUP($AA44,DATA!$B$3:$E$6,3,0) -> 06:30:00 | D44: =VLOOKUP($AA44,DATA!$B$3:$E$6,4,0) -> 0.03125 | E44: 0.3020833333 | F44: 0.3020833333 | G44: =DATA!$C$9 -> 0.89 | H44: =DATA!$C$10 -> 64 | I44: 1 | J44: 407.8125 | K44: 407.8125 | L44: 0 | O44: 0 | R44: 0 | X44: =X37 -> 2 | Z44: =TEXT(Y42,"ddd") -> za | AA44: ND | AB44: =IFERROR(HLOOKUP(Y42,[1]DATA!$A$1:$NB$5,5,0),"") -> - | AG44: 0
A45: 2zoDD | B45: =VLOOKUP($AA45,DATA!$B$3:$E$6,2,0) -> 06:30:00 | C45: =VLOOKUP($AA45,DATA!$B$3:$E$6,3,0) -> 14:30:00 | D45: =VLOOKUP($AA45,DATA!$B$3:$E$6,4,0) -> 0.03125 | E45: 0.3020833333 | F45: 0.3020833333 | G45: =DATA!$C$9 -> 0.89 | H45: =DATA!$C$10 -> 64 | I45: 1 | J45: 407.8125 | K45: 407.8125 | L45: 0 | O45: 0 | R45: 0 | X45: =X37 -> 2 | Y45: =Y42+1 -> 2018-01-14 | Z45: =TEXT(Y45,"ddd") -> zo | AA45: DD | AB45: =IFERROR(HLOOKUP(Y45,[1]DATA!$A$1:$NB$5,3,0),"") -> - | AG45: 0
A46: 2zoMD | B46: =VLOOKUP($AA46,DATA!$B$3:$E$6,2,0) -> 14:30:00 | C46: =VLOOKUP($AA46,DATA!$B$3:$E$6,3,0) -> 22:30:00 | D46: =VLOOKUP($AA46,DATA!$B$3:$E$6,4,0) -> 0.03125 | E46: 0.3020833333 | F46: 0.3020833333 | G46: =DATA!$C$9 -> 0.89 | H46: =DATA!$C$10 -> 64 | I46: 1 | J46: 407.8125 | K46: 407.8125 | L46: 0 | O46: 0 | R46: 0 | X46: =X37 -> 2 | Z46: =TEXT(Y45,"ddd") -> zo | AA46: MD | AB46: =IFERROR(HLOOKUP(Y45,[1]DATA!$A$1:$NB$5,4,0),"") -> - | AG46: 0
A47: 2zoZND | B47: =VLOOKUP($AA47,DATA!$B$3:$E$6,2,0) -> 00:00:00 | C47: =VLOOKUP($AA47,DATA!$B$3:$E$6,3,0) -> 00:00:00 | D47: =VLOOKUP($AA47,DATA!$B$3:$E$6,4,0) -> 0 | E47: 0 | F47: 0 | G47: =DATA!$C$9 -> 0.89 | H47: =DATA!$C$10 -> 64 | I47: 1 | J47: 0 | K47: 0 | L47: 0 | O47: 0 | R47: 0 | X47: =X37 -> 2 | Z47: =TEXT(Y45,"ddd") -> zo | AA47: ZND | AB47: =IFERROR(HLOOKUP(Y45,[1]DATA!$A$1:$NB$5,5,0),"") -> D3 | AG47: 0
A48: =X48&Z48&AA48 -> 3maDD | B48: =VLOOKUP($AA48,DATA!$B$3:$E$6,2,0) -> 06:30:00 | C48: =VLOOKUP($AA48,DATA!$B$3:$E$6,3,0) -> 14:30:00 | D48: =VLOOKUP($AA48,DATA!$B$3:$E$6,4,0) -> 0.03125 | E48: 0.3020833333 | F48: 0.2027777778 | G48: =DATA!$C$9 -> 0.89 | H48: =DATA!$C$10 -> 64 | I48: 1 | J48: 273.75 | K48: 407.8125 | L48: 0.09930555556 | M48: 134.0625 | N48: 0.3287356322 | O48: =TIME(INT($AD48/60),INT(MOD($AD48,60)/1),0) -> 0 | P48: =IF($O48*86400/$H48=0,"",$O48*86400/$H48) ->  | R48: 350.9333333 | S48: 307 | U48: 307 | X48: =X58 -> 3 | Y48: =Y45+1 -> 2018-01-15 | Z48: =TEXT(Y48,"ddd") -> ma | AA48: DD | AB48: =IFERROR(HLOOKUP(Y48,[1]DATA!$A$1:$NB$5,3,0),"") -> D2 | AC48: 143 | AE48: 22 | AF48: 329 | AG48: 18 | AH48: 5.125 | AI48: 0.7042293907 | AJ48: 0.9512106975 | AK48: 4359.375 | AL48: 3013 | AM48: 0.6911541219 | AN48: 945 | AO48: 0.2167741935 | AP48: 112.5 | AQ48: 0.02580645161 | AR48: 0.9579634635 | AS48: 0.9473329284 | AT48: 0.9685939985 | AV48: 288.875 | AW48: 0.06626523297 | AX48: 308.1333333 | AY48: 157
A49: 3maMD | B49: =VLOOKUP($AA49,DATA!$B$3:$E$6,2,0) -> 14:30:00 | C49: =VLOOKUP($AA49,DATA!$B$3:$E$6,3,0) -> 22:30:00 | D49: =VLOOKUP($AA49,DATA!$B$3:$E$6,4,0) -> 0.03125 | E49: 0.3020833333 | F49: 0.1944444444 | G49: =DATA!$C$9 -> 0.89 | H49: =DATA!$C$10 -> 64 | I49: 1 | J49: 262.5 | K49: 407.8125 | L49: 0.1076388889 | M49: 145.3125 | N49: 0.3563218391 | O49: =TIME(INT(AD49/60),INT(MOD(AD49,60)/1),0) -> 0 | R49: 330.6666667 | S49: 295 | T49: 295 | X49: =X58 -> 3 | Z49: =TEXT(Y48,"ddd") -> ma | AA49: MD | AB49: =IFERROR(HLOOKUP(Y48,[1]DATA!$A$1:$NB$5,4,0),"") -> D1 | AC49: 155 | AE49: 15 | AF49: 310 | AG49: 8 | AH49: 4.375 | AI49: 0.676702509 | AJ49: 0.9763779528
A50: 3maND | B50: =VLOOKUP($AA50,DATA!$B$3:$E$6,2,0) -> 22:30:00 | C50: =VLOOKUP($AA50,DATA!$B$3:$E$6,3,0) -> 06:30:00 | D50: =VLOOKUP($AA50,DATA!$B$3:$E$6,4,0) -> 0.03125 | E50: 0.3020833333 | F50: 0.3020833333 | G50: =DATA!$C$9 -> 0.89 | H50: =DATA!$C$10 -> 64 | I50: 1 | J50: 407.8125 | K50: 407.8125 | L50: 0 | O50: 0 | R50: 0 | X50: =X58 -> 3 | Z50: =TEXT(Y48,"ddd") -> ma | AA50: ND | AB50: =IFERROR(HLOOKUP(Y48,[1]DATA!$A$1:$NB$5,5,0),"") -> D3 | AG50: 0
A51: 3diDD | B51: =VLOOKUP($AA51,DATA!$B$3:$E$6,2,0) -> 06:30:00 | C51: =VLOOKUP($AA51,DATA!$B$3:$E$6,3,0) -> 14:30:00 | D51: =VLOOKUP($AA51,DATA!$B$3:$E$6,4,0) -> 0.03125 | E51: 0.3020833333 | F51: 0.2125 | G51: =DATA!$C$9 -> 0.89 | H51: =DATA!$C$10 -> 64 | I51: 1 | J51: 286.875 | K51: 407.8125 | L51: 0.08958333333 | M51: 120.9375 | N51: 0.2965517241 | O51: 0 | R51: 331.7333333 | S51: 300 | U51: 300 | X51: =X58 -> 3 | Y51: =Y48+1 -> 2018-01-16 | Z51: =TEXT(Y51,"ddd") -> di | AA51: DD | AB51: =IFERROR(HLOOKUP(Y51,[1]DATA!$A$1:$NB$5,3,0),"") -> D2 | AC51: 129 | AE51: 11 | AF51: 311 | AG51: 9 | AH51: -15 | AI51: 0.688172043 | AJ51: 0.9735863823
A52: 3diMD | B52: =VLOOKUP($AA52,DATA!$B$3:$E$6,2,0) -> 14:30:00 | C52: =VLOOKUP($AA52,DATA!$B$3:$E$6,3,0) -> 22:30:00 | D52: =VLOOKUP($AA52,DATA!$B$3:$E$6,4,0) -> 0.03125 | E52: 0.3020833333 | F52: 0.2284722222 | G52: =DATA!$C$9 -> 0.89 | H52: =DATA!$C$10 -> 64 | I52: 1 | J52: 308.4375 | K52: 407.8125 | L52: 0.07361111111 | M52: 99.375 | N52: 0.2436781609 | O52: 0 | R52: 405.3333333 | S52: 354 | T52: 354 | X52: =X58 -> 3 | Z52: =TEXT(Y51,"ddd") -> di | AA52: MD | AB52: =IFERROR(HLOOKUP(Y51,[1]DATA!$A$1:$NB$5,4,0),"") -> D1 | AC52: 106 | AE52: 26 | AF52: 380 | AG52: 25 | AH52: 17.4375 | AI52: 0.8120430108 | AJ52: 0.9419054996
A53: 3diND | B53: =VLOOKUP($AA53,DATA!$B$3:$E$6,2,0) -> 22:30:00 | C53: =VLOOKUP($AA53,DATA!$B$3:$E$6,3,0) -> 06:30:00 | D53: =VLOOKUP($AA53,DATA!$B$3:$E$6,4,0) -> 0.03125 | E53: 0.3020833333 | F53: 0.3020833333 | G53: =DATA!$C$9 -> 0.89 | H53: =DATA!$C$10 -> 64 | I53: 1 | J53: 407.8125 | K53: 407.8125 | L53: 0 | O53: 0 | R53: 0 | X53: =X58 -> 3 | Z53: =TEXT(Y51,"ddd") -> di | AA53: ND | AB53: =IFERROR(HLOOKUP(Y51,[1]DATA!$A$1:$NB$5,5,0),"") -> D3 | AG53: 0
A54: 3woDD | B54: =VLOOKUP($AA54,DATA!$B$3:$E$6,2,0) -> 06:30:00 | C54: =VLOOKUP($AA54,DATA!$B$3:$E$6,3,0) -> 14:30:00 | D54: =VLOOKUP($AA54,DATA!$B$3:$E$6,4,0) -> 0.03125 | E54: 0.3020833333 | F54: 0.1604166667 | G54: =DATA!$C$9 -> 0.89 | H54: =DATA!$C$10 -> 64 | I54: 1 | J54: 216.5625 | K54: 407.8125 | L54: 0.1416666667 | M54: 191.25 | N54: 0.4689655172 | O54: 0 | R54: 231.4666667 | S54: 206 | U54: 206 | X54: =X58 -> 3 | Y54: =Y51+1 -> 2018-01-17 | Z54: =TEXT(Y54,"ddd") -> wo | AA54: DD | AB54: =IFERROR(HLOOKUP(Y54,[1]DATA!$A$1:$NB$5,3,0),"") -> D2 | AC54: 204 | AE54: 11 | AF54: 217 | AG54: 3 | AH54: -38.6875 | AI54: 0.4725448029 | AJ54: 0.9872050043
A55: 3woMD | B55: =VLOOKUP($AA55,DATA!$B$3:$E$6,2,0) -> 14:30:00 | C55: =VLOOKUP($AA55,DATA!$B$3:$E$6,3,0) -> 22:30:00 | D55: =VLOOKUP($AA55,DATA!$B$3:$E$6,4,0) -> 0.03125 | E55: 0.3020833333 | F55: 0.2951388889 | G55: =DATA!$C$9 -> 0.89 | H55: =DATA!$C$10 -> 64 | I55: 1 | J55: 398.4375 | K55: 407.8125 | L55: 0.006944444444 | M55: 9.375 | N55: 0.02298850575 | O55: 0 | R55: 358.4 | S55: 321 | T55: 321 | X55: =X58 -> 3 | Z55: =TEXT(Y54,"ddd") -> wo | AA55: MD | AB55: =IFERROR(HLOOKUP(Y54,[1]DATA!$A$1:$NB$5,4,0),"") -> D1 | AC55: 10 | AE55: 15 | AF55: 336 | AG55: 50 | AH55: -105.5625 | AI55: 0.736344086 | AJ55: 0.8775710088
A56: 3woND | B56: =VLOOKUP($AA56,DATA!$B$3:$E$6,2,0) -> 22:30:00 | C56: =VLOOKUP($AA56,DATA!$B$3:$E$6,3,0) -> 06:30:00 | D56: =VLOOKUP($AA56,DATA!$B$3:$E$6,4,0) -> 0.03125 | E56: 0.3020833333 | F56: 0.3020833333 | G56: =DATA!$C$9 -> 0.89 | H56: =DATA!$C$10 -> 64 | I56: 1 | J56: 407.8125 | K56: 407.8125 | L56: 0 | O56: 0 | R56: 0 | X56: =X58 -> 3 | Z56: =TEXT(Y54,"ddd") -> wo | AA56: ND | AB56: =IFERROR(HLOOKUP(Y54,[1]DATA!$A$1:$NB$5,5,0),"") -> D3 | AG56: 0
A57: 3doDD | B57: =VLOOKUP($AA57,DATA!$B$3:$E$6,2,0) -> 06:30:00 | C57: =VLOOKUP($AA57,DATA!$B$3:$E$6,3,0) -> 14:30:00 | D57: =VLOOKUP($AA57,DATA!$B$3:$E$6,4,0) -> 0.03125 | E57: 0.3020833333 | F57: 0.1979166667 | G57: =DATA!$C$9 -> 0.89 | H57: =DATA!$C$10 -> 64 | I57: 1 | J57: 267.1875 | K57: 407.8125 | L57: 0.02083333333 | M57: 28.125 | N57: 0.06896551724 | O57: 0.08333333333 | P57: 112.5 | Q57: 0.275862069 | R57: 254.9333333 | S57: 233 | U57: 233 | X57: =X58 -> 3 | Y57: =Y54+1 -> 2018-01-18 | Z57: =TEXT(Y57,"ddd") -> do | AA57: DD | AB57: =IFERROR(HLOOKUP(Y57,[1]DATA!$A$1:$NB$5,3,0),"") -> D2 | AC57: 30 | AD57: 120 | AE57: 6 | AF57: 239 | AG57: 12 | AH57: -62.3125 | AI57: 0.5344802867 | AJ57: 0.955044955
A58: 3doMD | B58: =VLOOKUP($AA58,DATA!$B$3:$E$6,2,0) -> 14:30:00 | C58: =VLOOKUP($AA58,DATA!$B$3:$E$6,3,0) -> 22:30:00 | D58: =VLOOKUP($AA58,DATA!$B$3:$E$6,4,0) -> 0.03125 | E58: 0.3020833333 | F58: 0.2347222222 | G58: =DATA!$C$9 -> 0.89 | H58: =DATA!$C$10 -> 64 | I58: 1 | J58: 316.875 | K58: 407.8125 | L58: 0.06736111111 | M58: 90.9375 | N58: 0.2229885057 | O58: 0 | R58: 379.7333333 | S58: 340 | T58: 340 | X58: =WEEKNUM($Y48) -> 3 | Z58: =TEXT(Y57,"ddd") -> do | AA58: MD | AB58: =IFERROR(HLOOKUP(Y57,[1]DATA!$A$1:$NB$5,4,0),"") -> D1 | AC58: 97 | AE58: 16 | AF58: 356 | AG58: 9 | AH58: -5 | AI58: 0.7799283154 | AJ58: 0.976847882
A59: 3doND | B59: =VLOOKUP($AA59,DATA!$B$3:$E$6,2,0) -> 22:30:00 | C59: =VLOOKUP($AA59,DATA!$B$3:$E$6,3,0) -> 06:30:00 | D59: =VLOOKUP($AA59,DATA!$B$3:$E$6,4,0) -> 0.03125 | E59: 0.3020833333 | F59: 0.3020833333 | G59: =DATA!$C$9 -> 0.89 | H59: =DATA!$C$10 -> 64 | I59: 1 | J59: 407.8125 | K59: 407.8125 | L59: 0 | O59: 0 | R59: 0 | X59: =X58 -> 3 | Z59: =TEXT(Y57,"ddd") -> do | AA59: ND | AB59: =IFERROR(HLOOKUP(Y57,[1]DATA!$A$1:$NB$5,5,0),"") -> D3 | AG59: 0
A60: 3vrDD | B60: =VLOOKUP($AA60,DATA!$B$3:$E$6,2,0) -> 06:30:00 | C60: =VLOOKUP($AA60,DATA!$B$3:$E$6,3,0) -> 14:30:00 | D60: =VLOOKUP($AA60,DATA!$B$3:$E$6,4,0) -> 0.03125 | E60: 0.3020833333 | F60: 0.2458333333 | G60: =DATA!$C$9 -> 0.89 | H60: =DATA!$C$10 -> 64 | I60: 1 | J60: 331.875 | K60: 407.8125 | L60: 0.05625 | M60: 75.9375 | N60: 0.1862068966 | O60: 0 | R60: 405.3333333 | S60: 345 | U60: 345 | X60: =X58 -> 3 | Y60: =Y57+1 -> 2018-01-19 | Z60: =TEXT(Y60,"ddd") -> vr | AA60: DD | AB60: =IFERROR(HLOOKUP(Y60,[1]DATA!$A$1:$NB$5,3,0),"") -> D2 | AC60: 81 | AE60: 35 | AF60: 380 | AG60: 10 | AH60: -15 | AI60: 0.7913978495 | AJ60: 0.9759229535
A61: 3vrMD | B61: =VLOOKUP($AA61,DATA!$B$3:$E$6,2,0) -> 14:30:00 | C61: =VLOOKUP($AA61,DATA!$B$3:$E$6,3,0) -> 22:30:00 | D61: =VLOOKUP($AA61,DATA!$B$3:$E$6,4,0) -> 0.03125 | E61: 0.3020833333 | F61: 0.2652777778 | G61: =DATA!$C$9 -> 0.89 | H61: =DATA!$C$10 -> 64 | I61: 1 | J61: 358.125 | K61: 407.8125 | L61: 0.03680555556 | M61: 49.6875 | N61: 0.1218390805 | O61: 0 | R61: 347.7333333 | S61: 312 | T61: 312 | X61: =X58 -> 3 | Z61: =TEXT(Y60,"ddd") -> vr | AA61: MD | AB61: =IFERROR(HLOOKUP(Y60,[1]DATA!$A$1:$NB$5,4,0),"") -> D1 | AC61: 53 | AE61: 14 | AF61: 326 | AG61: 13 | AH61: -74.25 | AI61: 0.7156989247 | AJ61: 0.963962299
A62: 3vrND | B62: =VLOOKUP($AA62,DATA!$B$3:$E$6,2,0) -> 22:30:00 | C62: =VLOOKUP($AA62,DATA!$B$3:$E$6,3,0) -> 06:30:00 | D62: =VLOOKUP($AA62,DATA!$B$3:$E$6,4,0) -> 0.03125 | E62: 0.3020833333 | F62: 0.3020833333 | G62: =DATA!$C$9 -> 0.89 | H62: =DATA!$C$10 -> 64 | I62: 1 | J62: 407.8125 | K62: 407.8125 | L62: 0 | O62: 0 | R62: 0 | X62: =X58 -> 3 | Z62: =TEXT(Y60,"ddd") -> vr | AA62: ND | AB62: =IFERROR(HLOOKUP(Y60,[1]DATA!$A$1:$NB$5,5,0),"") -> - | AG62: 0
A63: 3zaDD | B63: =VLOOKUP($AA63,DATA!$B$3:$E$6,2,0) -> 06:30:00 | C63: =VLOOKUP($AA63,DATA!$B$3:$E$6,3,0) -> 14:30:00 | D63: =VLOOKUP($AA63,DATA!$B$3:$E$6,4,0) -> 0.03125 | E63: 0.3020833333 | F63: 0.3020833333 | G63: =DATA!$C$9 -> 0.89 | H63: =DATA!$C$10 -> 64 | I63: 1 | J63: 407.8125 | K63: 407.8125 | L63: 0 | O63: 0 | R63: 0 | X63: =X58 -> 3 | Y63: =Y60+1 -> 2018-01-20 | Z63: =TEXT(Y63,"ddd") -> za | AA63: DD | AB63: =IFERROR(HLOOKUP(Y63,[1]DATA!$A$1:$NB$5,3,0),"") -> - | AG63: 0
A64: 3zaMD | B64: =VLOOKUP($AA64,DATA!$B$3:$E$6,2,0) -> 14:30:00 | C64: =VLOOKUP($AA64,DATA!$B$3:$E$6,3,0) -> 22:30:00 | D64: =VLOOKUP($AA64,DATA!$B$3:$E$6,4,0) -> 0.03125 | E64: 0.3020833333 | F64: 0.3020833333 | G64: =DATA!$C$9 -> 0.89 | H64: =DATA!$C$10 -> 64 | I64: 1 | J64: 407.8125 | K64: 407.8125 | L64: 0 | O64: 0 | R64: 0 | X64: =X58 -> 3 | Z64: =TEXT(Y63,"ddd") -> za | AA64: MD | AB64: =IFERROR(HLOOKUP(Y63,[1]DATA!$A$1:$NB$5,4,0),"") -> - | AG64: 0
A65: 3zaND | B65: =VLOOKUP($AA65,DATA!$B$3:$E$6,2,0) -> 22:30:00 | C65: =VLOOKUP($AA65,DATA!$B$3:$E$6,3,0) -> 06:30:00 | D65: =VLOOKUP($AA65,DATA!$B$3:$E$6,4,0) -> 0.03125 | E65: 0.3020833333 | F65: 0.3020833333 | G65: =DATA!$C$9 -> 0.89 | H65: =DATA!$C$10 -> 64 | I65: 1 | J65: 407.8125 | K65: 407.8125 | L65: 0 | O65: 0 | R65: 0 | X65: =X58 -> 3 | Z65: =TEXT(Y63,"ddd") -> za | AA65: ND | AB65: =IFERROR(HLOOKUP(Y63,[1]DATA!$A$1:$NB$5,5,0),"") -> - | AG65: 0
A66: 3zoDD | B66: =VLOOKUP($AA66,DATA!$B$3:$E$6,2,0) -> 06:30:00 | C66: =VLOOKUP($AA66,DATA!$B$3:$E$6,3,0) -> 14:30:00 | D66: =VLOOKUP($AA66,DATA!$B$3:$E$6,4,0) -> 0.03125 | E66: 0.3020833333 | F66: 0.3020833333 | G66: =DATA!$C$9 -> 0.89 | H66: =DATA!$C$10 -> 64 | I66: 1 | J66: 407.8125 | K66: 407.8125 | L66: 0 | O66: 0 | R66: 0 | X66: =X58 -> 3 | Y66: =Y63+1 -> 2018-01-21 | Z66: =TEXT(Y66,"ddd") -> zo | AA66: DD | AB66: =IFERROR(HLOOKUP(Y66,[1]DATA!$A$1:$NB$5,3,0),"") -> - | AG66: 0
A67: 3zoMD | B67: =VLOOKUP($AA67,DATA!$B$3:$E$6,2,0) -> 14:30:00 | C67: =VLOOKUP($AA67,DATA!$B$3:$E$6,3,0) -> 22:30:00 | D67: =VLOOKUP($AA67,DATA!$B$3:$E$6,4,0) -> 0.03125 | E67: 0.3020833333 | F67: 0.3020833333 | G67: =DATA!$C$9 -> 0.89 | H67: =DATA!$C$10 -> 64 | I67: 1 | J67: 407.8125 | K67: 407.8125 | L67: 0 | O67: 0 | R67: 0 | X67: =X58 -> 3 | Z67: =TEXT(Y66,"ddd") -> zo | AA67: MD | AB67: =IFERROR(HLOOKUP(Y66,[1]DATA!$A$1:$NB$5,4,0),"") -> - | AG67: 0
A68: 3zoZND | B68: =VLOOKUP($AA68,DATA!$B$3:$E$6,2,0) -> 00:00:00 | C68: =VLOOKUP($AA68,DATA!$B$3:$E$6,3,0) -> 00:00:00 | D68: =VLOOKUP($AA68,DATA!$B$3:$E$6,4,0) -> 0 | E68: 0 | F68: 0 | G68: =DATA!$C$9 -> 0.89 | H68: =DATA!$C$10 -> 64 | I68: 1 | J68: 0 | K68: 0 | L68: 0 | O68: 0 | R68: 0 | X68: =X58 -> 3 | Z68: =TEXT(Y66,"ddd") -> zo | AA68: ZND | AB68: =IFERROR(HLOOKUP(Y66,[1]DATA!$A$1:$NB$5,5,0),"") -> D2 | AG68: 0
A69: 4maDD | B69: =VLOOKUP($AA69,DATA!$B$3:$E$6,2,0) -> 06:30:00 | C69: =VLOOKUP($AA69,DATA!$B$3:$E$6,3,0) -> 14:30:00 | D69: =VLOOKUP($AA69,DATA!$B$3:$E$6,4,0) -> 0.03125 | E69: 0.3020833333 | F69: 0.2583333333 | G69: =DATA!$C$9 -> 0.89 | H69: =DATA!$C$10 -> 64 | I69: 1 | J69: 348.75 | K69: 407.8125 | L69: 0.04375 | M69: 59.0625 | N69: 0.1448275862 | O69: =TIME(INT($AD69/60),INT(MOD($AD69,60)/1),0) -> 0 | R69: 385.0666667 | S69: 339 | T69: 339 | X69: =X79 -> 4 | Y69: =Y66+1 -> 2018-01-22 | Z69: =TEXT(Y69,"ddd") -> ma | AA69: DD | AB69: =IFERROR(HLOOKUP(Y69,[1]DATA!$A$1:$NB$5,3,0),"") -> D1 | AC69: 63 | AE69: 22 | AF69: 361 | AG69: 8 | AH69: -37.875 | AI69: 0.7776344086 | AJ69: 0.9796472185 | AK69: 4359.375 | AL69: 3154 | AM69: 0.7234982079 | AN69: 640.3125 | AO69: 0.1468817204 | AP69: 0 | AQ69: 0 | AR69: 0.9450738289 | AS69: 0.9247681808 | AU69: 0.965379477 | AV69: 565.0625 | AW69: 0.1296200717 | AX69: 602.7333333 | AY69: 217
A70: 4maMD | B70: =VLOOKUP($AA70,DATA!$B$3:$E$6,2,0) -> 14:30:00 | C70: =VLOOKUP($AA70,DATA!$B$3:$E$6,3,0) -> 22:30:00 | D70: =VLOOKUP($AA70,DATA!$B$3:$E$6,4,0) -> 0.03125 | E70: 0.3020833333 | F70: 0.2354166667 | G70: =DATA!$C$9 -> 0.89 | H70: =DATA!$C$10 -> 64 | I70: 1 | J70: =F70*86400/H70*I70 -> 317.8125 | K70: =E70*86400/H70 -> 407.8125 | L70: 0.06666666667 | M70: 90 | N70: 0.2206896552 | O70: =TIME(INT(AD70/60),INT(MOD(AD70,60)/1),0) -> 0 | R70: =AF70*AG$2 -> 373.3333333 | S70: =IF(AF70-AE70=0,"",AF70-AE70) -> 320 | V70: 320 | X70: =X79 -> 4 | Z70: =TEXT(Y69,"ddd") -> ma | AA70: MD | AB70: =IFERROR(HLOOKUP(Y69,[1]DATA!$A$1:$NB$5,4,0),"") -> D3 | AC70: 96 | AE70: 30 | AF70: 350 | AG70: 3 | AH70: -25.9375 | AI70: 0.7340501792 | AJ70: 0.9920283437
A71: 4maND | B71: =VLOOKUP($AA71,DATA!$B$3:$E$6,2,0) -> 22:30:00 | C71: =VLOOKUP($AA71,DATA!$B$3:$E$6,3,0) -> 06:30:00 | D71: =VLOOKUP($AA71,DATA!$B$3:$E$6,4,0) -> 0.03125 | E71: 0.3020833333 | F71: 0.3020833333 | G71: =DATA!$C$9 -> 0.89 | H71: =DATA!$C$10 -> 64 | I71: 1 | J71: 407.8125 | K71: 407.8125 | L71: =TIME(INT($AC71/60),INT(MOD($AC71,60)/1),0) -> 0 | M71: =IF($L71*86400/$H71=0,"",$L71*86400/$H71) ->  | N71: =IFERROR($M71/$K71,"") ->  | O71: 0 | Q71: =IFERROR($P71/$K71,"") ->  | R71: 0 | T71: =IF(IF($AB71="D1",$S71,"")=0,"",IF($AB71="D1",$S71,"")) ->  | U71: =IF(IF($AB71="D2",$S71,"")=0,"",IF($AB71="D2",$S71,"")) ->  | V71: =IF(IF($AB71="D3",$S71,"")=0,"",IF($AB71="D3",$S71,"")) ->  | X71: =X79 -> 4 | Z71: =TEXT(Y69,"ddd") -> ma | AA71: ND | AB71: =IFERROR(HLOOKUP(Y69,[1]DATA!$A$1:$NB$5,5,0),"") -> D2 | AG71: 0
A72: 4diDD | B72: =VLOOKUP($AA72,DATA!$B$3:$E$6,2,0) -> 06:30:00 | C72: =VLOOKUP($AA72,DATA!$B$3:$E$6,3,0) -> 14:30:00 | D72: =VLOOKUP($AA72,DATA!$B$3:$E$6,4,0) -> 0.03125 | E72: 0.3020833333 | F72: 0.3020833333 | G72: =DATA!$C$9 -> 0.89 | H72: =DATA!$C$10 -> 64 | I72: 1 | J72: 407.8125 | K72: 407.8125 | L72: 0 | O72: 0 | R72: 282.6666667 | S72: 261 | T72: 261 | X72: =X79 -> 4 | Y72: =Y69+1 -> 2018-01-23 | Z72: =TEXT(Y72,"ddd") -> di | AA72: DD | AB72: =IFERROR(HLOOKUP(Y72,[1]DATA!$A$1:$NB$5,3,0),"") -> D1 | AC72: 0 | AE72: 4 | AF72: 265 | AG72: 123 | AH72: -174.9375 | AI72: 0.5987096774 | AJ72: 0.6967953985
A73: 4diMD | B73: =VLOOKUP($AA73,DATA!$B$3:$E$6,2,0) -> 14:30:00 | C73: =VLOOKUP($AA73,DATA!$B$3:$E$6,3,0) -> 22:30:00 | D73: =VLOOKUP($AA73,DATA!$B$3:$E$6,4,0) -> 0.03125 | E73: 0.3020833333 | F73: 0.25 | G73: =DATA!$C$9 -> 0.89 | H73: =DATA!$C$10 -> 64 | I73: 1 | J73: 337.5 | K73: 407.8125 | L73: 0.05208333333 | M73: 70.3125 | N73: 0.1724137931 | O73: 0 | R73: 429.8666667 | S73: 365 | V73: 365 | X73: =X79 -> 4 | Z73: =TEXT(Y72,"ddd") -> di | AA73: MD | AB73: =IFERROR(HLOOKUP(Y72,[1]DATA!$A$1:$NB$5,4,0),"") -> D3 | AC73: 75 | AE73: 38 | AF73: 403 | AG73: 0 | AH73: -0.625 | AI73: 0.8372759857 | AJ73: 1
A74: 4diND | B74: =VLOOKUP($AA74,DATA!$B$3:$E$6,2,0) -> 22:30:00 | C74: =VLOOKUP($AA74,DATA!$B$3:$E$6,3,0) -> 06:30:00 | D74: =VLOOKUP($AA74,DATA!$B$3:$E$6,4,0) -> 0.03125 | E74: 0.3020833333 | F74: 0.3020833333 | G74: =DATA!$C$9 -> 0.89 | H74: =DATA!$C$10 -> 64 | I74: 1 | J74: 407.8125 | K74: 407.8125 | L74: 0 | O74: 0 | R74: 0 | X74: =X79 -> 4 | Z74: =TEXT(Y72,"ddd") -> di | AA74: ND | AB74: =IFERROR(HLOOKUP(Y72,[1]DATA!$A$1:$NB$5,5,0),"") -> D2 | AG74: 0
A75: 4woDD | B75: =VLOOKUP($AA75,DATA!$B$3:$E$6,2,0) -> 06:30:00 | C75: =VLOOKUP($AA75,DATA!$B$3:$E$6,3,0) -> 14:30:00 | D75: =VLOOKUP($AA75,DATA!$B$3:$E$6,4,0) -> 0.03125 | E75: 0.3020833333 | F75: 0.2458333333 | G75: =DATA!$C$9 -> 0.89 | H75: =DATA!$C$10 -> 64 | I75: 1 | J75: 331.875 | K75: 407.8125 | L75: 0.05625 | M75: 75.9375 | N75: 0.1862068966 | O75: 0 | R75: 365.8666667 | S75: 331 | T75: 331 | X75: =X79 -> 4 | Y75: =Y72+1 -> 2018-01-24 | Z75: =TEXT(Y75,"ddd") -> wo | AA75: DD | AB75: =IFERROR(HLOOKUP(Y75,[1]DATA!$A$1:$NB$5,3,0),"") -> D1 | AC75: 81 | AE75: 12 | AF75: 343 | AG75: 10 | AH75: -29 | AI75: 0.7592831541 | AJ75: 0.9733948209
A76: 4woMD | B76: =VLOOKUP($AA76,DATA!$B$3:$E$6,2,0) -> 14:30:00 | C76: =VLOOKUP($AA76,DATA!$B$3:$E$6,3,0) -> 22:30:00 | D76: =VLOOKUP($AA76,DATA!$B$3:$E$6,4,0) -> 0.03125 | E76: 0.3020833333 | F76: 0.2430555556 | G76: =DATA!$C$9 -> 0.89 | H76: =DATA!$C$10 -> 64 | I76: 1 | J76: 328.125 | K76: 407.8125 | L76: 0.05902777778 | M76: 79.6875 | N76: 0.1954022989 | O76: 0 | R76: 387.2 | S76: 333 | V76: 333 | X76: =X79 -> 4 | Z76: =TEXT(Y75,"ddd") -> wo | AA76: MD | AB76: =IFERROR(HLOOKUP(Y75,[1]DATA!$A$1:$NB$5,4,0),"") -> D3 | AC76: 85 | AE76: 30 | AF76: 363 | AG76: 18 | AH76: -23.25 | AI76: 0.7638709677 | AJ76: 0.9555774926
A77: 4woND | B77: =VLOOKUP($AA77,DATA!$B$3:$E$6,2,0) -> 22:30:00 | C77: =VLOOKUP($AA77,DATA!$B$3:$E$6,3,0) -> 06:30:00 | D77: =VLOOKUP($AA77,DATA!$B$3:$E$6,4,0) -> 0.03125 | E77: 0.3020833333 | F77: 0.3020833333 | G77: =DATA!$C$9 -> 0.89 | H77: =DATA!$C$10 -> 64 | I77: 1 | J77: 407.8125 | K77: 407.8125 | L77: 0 | O77: 0 | R77: 0 | X77: =X79 -> 4 | Z77: =TEXT(Y75,"ddd") -> wo | AA77: ND | AB77: =IFERROR(HLOOKUP(Y75,[1]DATA!$A$1:$NB$5,5,0),"") -> D2 | AG77: 0
A78: 4doDD | B78: =VLOOKUP($AA78,DATA!$B$3:$E$6,2,0) -> 06:30:00 | C78: =VLOOKUP($AA78,DATA!$B$3:$E$6,3,0) -> 14:30:00 | D78: =VLOOKUP($AA78,DATA!$B$3:$E$6,4,0) -> 0.03125 | E78: 0.3020833333 | F78: 0.2166666667 | G78: =DATA!$C$9 -> 0.89 | H78: =DATA!$C$10 -> 64 | I78: 1 | J78: 292.5 | K78: 407.8125 | L78: 0.08541666667 | M78: 115.3125 | N78: 0.2827586207 | O78: 0 | R78: 299.7333333 | S78: 271 | T78: 271 | X78: =X79 -> 4 | Y78: =Y75+1 -> 2018-01-25 | Z78: =TEXT(Y78,"ddd") -> do | AA78: DD | AB78: =IFERROR(HLOOKUP(Y78,[1]DATA!$A$1:$NB$5,3,0),"") -> D1 | AC78: 123 | AE78: 10 | AF78: 281 | AG78: 8 | AH78: -49.625 | AI78: 0.6216487455 | AJ78: 0.9740034662
A79: 4doMD | B79: =VLOOKUP($AA79,DATA!$B$3:$E$6,2,0) -> 14:30:00 | C79: =VLOOKUP($AA79,DATA!$B$3:$E$6,3,0) -> 22:30:00 | D79: =VLOOKUP($AA79,DATA!$B$3:$E$6,4,0) -> 0.03125 | E79: 0.3020833333 | F79: 0.2444444444 | G79: =DATA!$C$9 -> 0.89 | H79: =DATA!$C$10 -> 64 | I79: 1 | J79: 330 | K79: 407.8125 | L79: 0.05763888889 | M79: 77.8125 | N79: 0.1908045977 | O79: 0 | R79: 381.8666667 | S79: 337 | V79: 337 | X79: =WEEKNUM($Y69) -> 4 | Z79: =TEXT(Y78,"ddd") -> do | AA79: MD | AB79: =IFERROR(HLOOKUP(Y78,[1]DATA!$A$1:$NB$5,4,0),"") -> D3 | AC79: 83 | AE79: 21 | AF79: 358 | AG79: 30 | AH79: -21.125 | AI79: 0.773046595 | AJ79: 0.9271608935
A80: 4doND | B80: =VLOOKUP($AA80,DATA!$B$3:$E$6,2,0) -> 22:30:00 | C80: =VLOOKUP($AA80,DATA!$B$3:$E$6,3,0) -> 06:30:00 | D80: =VLOOKUP($AA80,DATA!$B$3:$E$6,4,0) -> 0.03125 | E80: 0.3020833333 | F80: 0.3020833333 | G80: =DATA!$C$9 -> 0.89 | H80: =DATA!$C$10 -> 64 | I80: 1 | J80: 407.8125 | K80: 407.8125 | L80: 0 | O80: 0 | R80: 0 | X80: =X79 -> 4 | Z80: =TEXT(Y78,"ddd") -> do | AA80: ND | AB80: =IFERROR(HLOOKUP(Y78,[1]DATA!$A$1:$NB$5,5,0),"") -> D2 | AG80: 0
A81: 4vrDD | B81: =VLOOKUP($AA81,DATA!$B$3:$E$6,2,0) -> 06:30:00 | C81: =VLOOKUP($AA81,DATA!$B$3:$E$6,3,0) -> 14:30:00 | D81: =VLOOKUP($AA81,DATA!$B$3:$E$6,4,0) -> 0.03125 | E81: 0.3020833333 | F81: 0.2756944444 | G81: =DATA!$C$9 -> 0.89 | H81: =DATA!$C$10 -> 64 | I81: 1 | J81: 372.1875 | K81: 407.8125 | L81: 0.02638888889 | M81: 35.625 | N81: 0.08735632184 | O81: 0 | R81: 338.1333333 | S81: 308 | T81: 308 | X81: =X79 -> 4 | Y81: =Y78+1 -> 2018-01-26 | Z81: =TEXT(Y81,"ddd") -> vr | AA81: DD | AB81: =IFERROR(HLOOKUP(Y81,[1]DATA!$A$1:$NB$5,3,0),"") -> D1 | AC81: 38 | AE81: 9 | AF81: 317 | AG81: 0 | AH81: -92.3125 | AI81: 0.7065232975 | AJ81: 1
A82: 4vrMD | B82: =VLOOKUP($AA82,DATA!$B$3:$E$6,2,0) -> 14:30:00 | C82: =VLOOKUP($AA82,DATA!$B$3:$E$6,3,0) -> 22:30:00 | D82: =VLOOKUP($AA82,DATA!$B$3:$E$6,4,0) -> 0.03125 | E82: 0.3020833333 | F82: 0.275 | G82: =DATA!$C$9 -> 0.89 | H82: =DATA!$C$10 -> 64 | I82: 1 | J82: 371.25 | K82: 407.8125 | L82: 0.02708333333 | M82: 36.5625 | N82: 0.08965517241 | O82: 0 | R82: 338.1333333 | S82: 289 | V82: 289 | X82: =X79 -> 4 | Z82: =TEXT(Y81,"ddd") -> vr | AA82: MD | AB82: =IFERROR(HLOOKUP(Y81,[1]DATA!$A$1:$NB$5,4,0),"") -> D3 | AC82: 39 | AE82: 28 | AF82: 317 | AG82: 17 | AH82: -110.375 | AI82: 0.6629390681 | AJ82: 0.9521306552
A83: 4vrND | B83: =VLOOKUP($AA83,DATA!$B$3:$E$6,2,0) -> 22:30:00 | C83: =VLOOKUP($AA83,DATA!$B$3:$E$6,3,0) -> 06:30:00 | D83: =VLOOKUP($AA83,DATA!$B$3:$E$6,4,0) -> 0.03125 | E83: 0.3020833333 | F83: 0.3020833333 | G83: =DATA!$C$9 -> 0.89 | H83: =DATA!$C$10 -> 64 | I83: 1 | J83: 407.8125 | K83: 407.8125 | L83: 0 | O83: 0 | R83: 0 | X83: =X79 -> 4 | Z83: =TEXT(Y81,"ddd") -> vr | AA83: ND | AB83: =IFERROR(HLOOKUP(Y81,[1]DATA!$A$1:$NB$5,5,0),"") -> - | AG83: 0
A84: 4zaDD | B84: =VLOOKUP($AA84,DATA!$B$3:$E$6,2,0) -> 06:30:00 | C84: =VLOOKUP($AA84,DATA!$B$3:$E$6,3,0) -> 14:30:00 | D84: =VLOOKUP($AA84,DATA!$B$3:$E$6,4,0) -> 0.03125 | E84: 0.3020833333 | F84: 0.3020833333 | G84: =DATA!$C$9 -> 0.89 | H84: =DATA!$C$10 -> 64 | I84: 1 | J84: 407.8125 | K84: 407.8125 | L84: 0 | O84: 0 | R84: 0 | X84: =X79 -> 4 | Y84: =Y81+1 -> 2018-01-27 | Z84: =TEXT(Y84,"ddd") -> za | AA84: DD | AB84: =IFERROR(HLOOKUP(Y84,[1]DATA!$A$1:$NB$5,3,0),"") -> - | AG84: 0
A85: 4zaMD | B85: =VLOOKUP($AA85,DATA!$B$3:$E$6,2,0) -> 14:30:00 | C85: =VLOOKUP($AA85,DATA!$B$3:$E$6,3,0) -> 22:30:00 | D85: =VLOOKUP($AA85,DATA!$B$3:$E$6,4,0) -> 0.03125 | E85: 0.3020833333 | F85: 0.3020833333 | G85: =DATA!$C$9 -> 0.89 | H85: =DATA!$C$10 -> 64 | I85: 1 | J85: 407.8125 | K85: 407.8125 | L85: 0 | O85: 0 | R85: 0 | X85: =X79 -> 4 | Z85: =TEXT(Y84,"ddd") -> za | AA85: MD | AB85: =IFERROR(HLOOKUP(Y84,[1]DATA!$A$1:$NB$5,4,0),"") -> - | AG85: 0
A86: 4zaND | B86: =VLOOKUP($AA86,DATA!$B$3:$E$6,2,0) -> 22:30:00 | C86: =VLOOKUP($AA86,DATA!$B$3:$E$6,3,0) -> 06:30:00 | D86: =VLOOKUP($AA86,DATA!$B$3:$E$6,4,0) -> 0.03125 | E86: 0.3020833333 | F86: 0.3020833333 | G86: =DATA!$C$9 -> 0.89 | H86: =DATA!$C$10 -> 64 | I86: 1 | J86: 407.8125 | K86: 407.8125 | L86: 0 | O86: 0 | R86: 0 | X86: =X79 -> 4 | Z86: =TEXT(Y84,"ddd") -> za | AA86: ND | AB86: =IFERROR(HLOOKUP(Y84,[1]DATA!$A$1:$NB$5,5,0),"") -> - | AG86: 0
A87: 4zoDD | B87: =VLOOKUP($AA87,DATA!$B$3:$E$6,2,0) -> 06:30:00 | C87: =VLOOKUP($AA87,DATA!$B$3:$E$6,3,0) -> 14:30:00 | D87: =VLOOKUP($AA87,DATA!$B$3:$E$6,4,0) -> 0.03125 | E87: 0.3020833333 | F87: 0.3020833333 | G87: =DATA!$C$9 -> 0.89 | H87: =DATA!$C$10 -> 64 | I87: 1 | J87: 407.8125 | K87: 407.8125 | L87: 0 | O87: 0 | R87: 0 | X87: =X79 -> 4 | Y87: =Y84+1 -> 2018-01-28 | Z87: =TEXT(Y87,"ddd") -> zo | AA87: DD | AB87: =IFERROR(HLOOKUP(Y87,[1]DATA!$A$1:$NB$5,3,0),"") -> - | AG87: 0
A88: 4zoMD | B88: =VLOOKUP($AA88,DATA!$B$3:$E$6,2,0) -> 14:30:00 | C88: =VLOOKUP($AA88,DATA!$B$3:$E$6,3,0) -> 22:30:00 | D88: =VLOOKUP($AA88,DATA!$B$3:$E$6,4,0) -> 0.03125 | E88: 0.3020833333 | F88: 0.3020833333 | G88: =DATA!$C$9 -> 0.89 | H88: =DATA!$C$10 -> 64 | I88: 1 | J88: 407.8125 | K88: 407.8125 | L88: 0 | O88: 0 | R88: 0 | X88: =X79 -> 4 | Z88: =TEXT(Y87,"ddd") -> zo | AA88: MD | AB88: =IFERROR(HLOOKUP(Y87,[1]DATA!$A$1:$NB$5,4,0),"") -> - | AG88: 0
A89: 4zoZND | B89: =VLOOKUP($AA89,DATA!$B$3:$E$6,2,0) -> 00:00:00 | C89: =VLOOKUP($AA89,DATA!$B$3:$E$6,3,0) -> 00:00:00 | D89: =VLOOKUP($AA89,DATA!$B$3:$E$6,4,0) -> 0 | E89: 0 | F89: 0 | G89: =DATA!$C$9 -> 0.89 | H89: =DATA!$C$10 -> 64 | I89: 1 | J89: 0 | K89: 0 | L89: 0 | O89: 0 | R89: 0 | X89: =X79 -> 4 | Z89: =TEXT(Y87,"ddd") -> zo | AA89: ZND | AB89: =IFERROR(HLOOKUP(Y87,[1]DATA!$A$1:$NB$5,5,0),"") -> D1 | AG89: 0
A90: 5maDD | B90: =VLOOKUP($AA90,DATA!$B$3:$E$6,2,0) -> 06:30:00 | C90: =VLOOKUP($AA90,DATA!$B$3:$E$6,3,0) -> 14:30:00 | D90: =VLOOKUP($AA90,DATA!$B$3:$E$6,4,0) -> 0.03125 | E90: 0.3020833333 | F90: 0.1951388889 | G90: =DATA!$C$9 -> 0.89 | H90: =DATA!$C$10 -> 64 | I90: 1 | J90: 263.4375 | K90: 407.8125 | L90: 0.1069444444 | M90: 144.375 | N90: 0.3540229885 | O90: =TIME(INT($AD90/60),INT(MOD($AD90,60)/1),0) -> 0 | R90: 281.6 | S90: 249 | V90: 249 | X90: =X100 -> 5 | Y90: =Y87+1 -> 2018-01-29 | Z90: =TEXT(Y90,"ddd") -> ma | AA90: DD | AB90: =IFERROR(HLOOKUP(Y90,[1]DATA!$A$1:$NB$5,3,0),"") -> D3 | AC90: 154 | AE90: 15 | AF90: 264 | AG90: 7 | AH90: -42.5625 | AI90: 0.5711827957 | AJ90: 0.9757449757 | AK90: 4359.375 | AL90: 2837 | AM90: 0.650781362 | AN90: 780 | AO90: 0.1789247312 | AP90: 304.6875 | AQ90: 0.06989247312 | AR90: 0.9693275049 | AT90: 0.9665477861 | AU90: 0.9721072237 | AV90: 437.6875 | AW90: 0.1004014337 | AX90: 466.8666667 | AY90: 104
A91: 5maMD | B91: =VLOOKUP($AA91,DATA!$B$3:$E$6,2,0) -> 14:30:00 | C91: =VLOOKUP($AA91,DATA!$B$3:$E$6,3,0) -> 22:30:00 | D91: =VLOOKUP($AA91,DATA!$B$3:$E$6,4,0) -> 0.03125 | E91: 0.3020833333 | F91: 0.2527777778 | G91: =DATA!$C$9 -> 0.89 | H91: =DATA!$C$10 -> 64 | I91: 1 | J91: 341.25 | K91: 407.8125 | L91: 0.04930555556 | M91: 66.5625 | N91: 0.1632183908 | O91: =TIME(INT(AD91/60),INT(MOD(AD91,60)/1),0) -> 0 | R91: 372.2666667 | S91: 333 | U91: 333 | X91: =X100 -> 5 | Z91: =TEXT(Y90,"ddd") -> ma | AA91: MD | AB91: =IFERROR(HLOOKUP(Y90,[1]DATA!$A$1:$NB$5,4,0),"") -> D2 | AC91: 71 | AE91: 16 | AF91: 349 | AG91: 23 | AH91: -36.375 | AI91: 0.7638709677 | AJ91: 0.9418114353
A92: 5maND | B92: =VLOOKUP($AA92,DATA!$B$3:$E$6,2,0) -> 22:30:00 | C92: =VLOOKUP($AA92,DATA!$B$3:$E$6,3,0) -> 06:30:00 | D92: =VLOOKUP($AA92,DATA!$B$3:$E$6,4,0) -> 0.03125 | E92: =(C92-B92+(B92>C92))-D92 -> 0.3020833333 | F92: =E92-O92-L92 -> 0.3020833333 | G92: =DATA!$C$9 -> 0.89 | H92: =DATA!$C$10 -> 64 | I92: 1 | J92: 407.8125 | K92: 407.8125 | L92: 0 | O92: 0 | R92: 0 | X92: =X100 -> 5 | Z92: =TEXT(Y90,"ddd") -> ma | AA92: ND | AB92: =IFERROR(HLOOKUP(Y90,[1]DATA!$A$1:$NB$5,5,0),"") -> D1 | AG92: 0
A93: 5diDD | B93: =VLOOKUP($AA93,DATA!$B$3:$E$6,2,0) -> 06:30:00 | C93: =VLOOKUP($AA93,DATA!$B$3:$E$6,3,0) -> 14:30:00 | D93: =VLOOKUP($AA93,DATA!$B$3:$E$6,4,0) -> 0.03125 | E93: 0.3020833333 | F93: 0.2527777778 | G93: =DATA!$C$9 -> 0.89 | H93: =DATA!$C$10 -> 64 | I93: 1 | J93: 341.25 | K93: 407.8125 | L93: 0.04930555556 | M93: 66.5625 | N93: 0.1632183908 | O93: 0 | R93: 386.1333333 | S93: 347 | V93: 347 | X93: =X100 -> 5 | Y93: =Y90+1 -> 2018-01-30 | Z93: =TEXT(Y93,"ddd") -> di | AA93: DD | AB93: =IFERROR(HLOOKUP(Y93,[1]DATA!$A$1:$NB$5,3,0),"") -> D3 | AC93: 71 | AE93: 15 | AF93: 362 | AG93: 7 | AH93: -22.375 | AI93: 0.7959856631 | AJ93: 0.9821943361
A94: 5diMD | B94: =VLOOKUP($AA94,DATA!$B$3:$E$6,2,0) -> 14:30:00 | C94: =VLOOKUP($AA94,DATA!$B$3:$E$6,3,0) -> 22:30:00 | D94: =VLOOKUP($AA94,DATA!$B$3:$E$6,4,0) -> 0.03125 | E94: 0.3020833333 | F94: 0.2465277778 | G94: =DATA!$C$9 -> 0.89 | H94: =DATA!$C$10 -> 64 | I94: 1 | J94: 332.8125 | K94: 407.8125 | L94: 0.05555555556 | M94: 75 | N94: 0.183908046 | O94: 0 | R94: 365.8666667 | S94: 263 | U94: 263 | X94: =X100 -> 5 | Z94: =TEXT(Y93,"ddd") -> di | AA94: MD | AB94: =IFERROR(HLOOKUP(Y93,[1]DATA!$A$1:$NB$5,4,0),"") -> D2 | AC94: 80 | AE94: 80 | AF94: 343 | AG94: 0 | AH94: -97.9375 | AI94: 0.603297491 | AJ94: 1
A95: 5diND | B95: =VLOOKUP($AA95,DATA!$B$3:$E$6,2,0) -> 22:30:00 | C95: =VLOOKUP($AA95,DATA!$B$3:$E$6,3,0) -> 06:30:00 | D95: =VLOOKUP($AA95,DATA!$B$3:$E$6,4,0) -> 0.03125 | E95: 0.3020833333 | F95: 0.3020833333 | G95: =DATA!$C$9 -> 0.89 | H95: =DATA!$C$10 -> 64 | I95: 1 | J95: 407.8125 | K95: 407.8125 | L95: 0 | O95: 0 | R95: 0 | X95: =X100 -> 5 | Z95: =TEXT(Y93,"ddd") -> di | AA95: ND | AB95: =IFERROR(HLOOKUP(Y93,[1]DATA!$A$1:$NB$5,5,0),"") -> D1 | AG95: 0
A96: 5woDD | B96: =VLOOKUP($AA96,DATA!$B$3:$E$6,2,0) -> 06:30:00 | C96: =VLOOKUP($AA96,DATA!$B$3:$E$6,3,0) -> 14:30:00 | D96: =VLOOKUP($AA96,DATA!$B$3:$E$6,4,0) -> 0.03125 | E96: 0.3020833333 | F96: 0.1486111111 | G96: =DATA!$C$9 -> 0.89 | H96: =DATA!$C$10 -> 64 | I96: 1 | J96: 200.625 | K96: 407.8125 | L96: 0.04930555556 | M96: 66.5625 | N96: 0.1632183908 | O96: 0.1041666667 | P96: 140.625 | Q96: 0.3448275862 | R96: 249.6 | S96: 222 | V96: 222 | X96: =X100 -> 5 | Y96: =Y93+1 -> 2018-01-31 | Z96: =TEXT(Y96,"ddd") -> wo | AA96: DD | AB96: =IFERROR(HLOOKUP(Y96,[1]DATA!$A$1:$NB$5,3,0),"") -> D3 | AC96: 71 | AD96: 150 | AE96: 12 | AF96: 234 | AG96: 14 | AH96: -6.75 | AI96: 0.5092473118 | AJ96: 0.9468892261
A97: 5woMD | B97: =VLOOKUP($AA97,DATA!$B$3:$E$6,2,0) -> 14:30:00 | C97: =VLOOKUP($AA97,DATA!$B$3:$E$6,3,0) -> 22:30:00 | D97: =VLOOKUP($AA97,DATA!$B$3:$E$6,4,0) -> 0.03125 | E97: 0.3020833333 | F97: 0.1583333333 | G97: =DATA!$C$9 -> 0.89 | H97: =DATA!$C$10 -> 64 | I97: 1 | J97: 213.75 | K97: 407.8125 | L97: 0.02222222222 | M97: 30 | N97: 0.07356321839 | O97: 0.1215277778 | P97: 164.0625 | Q97: 0.4022988506 | R97: 270.9333333 | S97: 240 | U97: 240 | X97: =X100 -> 5 | Z97: =TEXT(Y96,"ddd") -> wo | AA97: MD | AB97: =IFERROR(HLOOKUP(Y96,[1]DATA!$A$1:$NB$5,4,0),"") -> D2 | AC97: 32 | AD97: 175 | AE97: 14 | AF97: 254 | AG97: 11 | AH97: -1.875 | AI97: 0.5505376344 | AJ97: 0.9609836841
A98: 5woND | B98: =VLOOKUP($AA98,DATA!$B$3:$E$6,2,0) -> 22:30:00 | C98: =VLOOKUP($AA98,DATA!$B$3:$E$6,3,0) -> 06:30:00 | D98: =VLOOKUP($AA98,DATA!$B$3:$E$6,4,0) -> 0.03125 | E98: 0.3020833333 | F98: 0.3020833333 | G98: =DATA!$C$9 -> 0.89 | H98: =DATA!$C$10 -> 64 | I98: 1 | J98: 407.8125 | K98: 407.8125 | L98: 0 | O98: 0 | R98: 0 | X98: =X100 -> 5 | Z98: =TEXT(Y96,"ddd") -> wo | AA98: ND | AB98: =IFERROR(HLOOKUP(Y96,[1]DATA!$A$1:$NB$5,5,0),"") -> D1 | AG98: 0
A99: 5doDD | B99: =VLOOKUP($AA99,DATA!$B$3:$E$6,2,0) -> 06:30:00 | C99: =VLOOKUP($AA99,DATA!$B$3:$E$6,3,0) -> 14:30:00 | D99: =VLOOKUP($AA99,DATA!$B$3:$E$6,4,0) -> 0.03125 | E99: 0.3020833333 | F99: 0.2548611111 | G99: =DATA!$C$9 -> 0.89 | H99: =DATA!$C$10 -> 64 | I99: 1 | J99: 344.0625 | K99: 407.8125 | L99: 0.04722222222 | M99: 63.75 | N99: 0.1563218391 | O99: 0 | R99: 360.5333333 | S99: 326 | V99: 326 | X99: =X100 -> 5 | Y99: =Y96+1 -> 2018-02-01 | Z99: =TEXT(Y99,"ddd") -> do | AA99: DD | AB99: =IFERROR(HLOOKUP(Y99,[1]DATA!$A$1:$NB$5,3,0),"") -> D3 | AC99: 68 | AE99: 12 | AF99: 338 | AG99: 12 | AH99: -46.1875 | AI99: 0.7478136201 | AJ99: 0.9677881174
A100: 5doMD | B100: =VLOOKUP($AA100,DATA!$B$3:$E$6,2,0) -> 14:30:00 | C100: =VLOOKUP($AA100,DATA!$B$3:$E$6,3,0) -> 22:30:00 | D100: =VLOOKUP($AA100,DATA!$B$3:$E$6,4,0) -> 0.03125 | E100: 0.3020833333 | F100: 0.2597222222 | G100: =DATA!$C$9 -> 0.89 | H100: =DATA!$C$10 -> 64 | I100: 1 | J100: 350.625 | K100: 407.8125 | L100: 0.04236111111 | M100: 57.1875 | N100: 0.1402298851 | O100: 0 | R100: 361.6 | S100: 308 | U100: 308 | X100: =WEEKNUM($Y90) -> 5 | Z100: =TEXT(Y99,"ddd") -> do | AA100: MD | AB100: =IFERROR(HLOOKUP(Y99,[1]DATA!$A$1:$NB$5,4,0),"") -> D2 | AC100: 61 | AE100: 31 | AF100: 339 | AG100: 25 | AH100: -70.75 | AI100: 0.7065232975 | AJ100: 0.9353336782
A101: 5doND | B101: =VLOOKUP($AA101,DATA!$B$3:$E$6,2,0) -> 22:30:00 | C101: =VLOOKUP($AA101,DATA!$B$3:$E$6,3,0) -> 06:30:00 | D101: =VLOOKUP($AA101,DATA!$B$3:$E$6,4,0) -> 0.03125 | E101: 0.3020833333 | F101: 0.3020833333 | G101: =DATA!$C$9 -> 0.89 | H101: =DATA!$C$10 -> 64 | I101: 1 | J101: 407.8125 | K101: 407.8125 | L101: 0 | O101: 0 | R101: 0 | X101: =X100 -> 5 | Z101: =TEXT(Y99,"ddd") -> do | AA101: ND | AB101: =IFERROR(HLOOKUP(Y99,[1]DATA!$A$1:$NB$5,5,0),"") -> D1 | AG101: 0
A102: 5vrDD | B102: =VLOOKUP($AA102,DATA!$B$3:$E$6,2,0) -> 06:30:00 | C102: =VLOOKUP($AA102,DATA!$B$3:$E$6,3,0) -> 14:30:00 | D102: =VLOOKUP($AA102,DATA!$B$3:$E$6,4,0) -> 0.03125 | E102: 0.3020833333 | F102: 0.1923611111 | G102: =DATA!$C$9 -> 0.89 | H102: =DATA!$C$10 -> 64 | I102: 1 | J102: 259.6875 | K102: 407.8125 | L102: 0.1097222222 | M102: 148.125 | N102: 0.3632183908 | O102: 0 | R102: 245.3333333 | S102: 224 | V102: 224 | X102: =X100 -> 5 | Y102: =Y99+1 -> 2018-02-02 | Z102: =TEXT(Y102,"ddd") -> vr | AA102: DD | AB102: =IFERROR(HLOOKUP(Y102,[1]DATA!$A$1:$NB$5,3,0),"") -> D3 | AC102: 158 | AE102: 6 | AF102: 230 | AG102: 3 | AH102: -63.8125 | AI102: 0.5138351254 | AJ102: 0.9879194631
A103: 5vrMD | B103: =VLOOKUP($AA103,DATA!$B$3:$E$6,2,0) -> 14:30:00 | C103: =VLOOKUP($AA103,DATA!$B$3:$E$6,3,0) -> 22:30:00 | D103: =VLOOKUP($AA103,DATA!$B$3:$E$6,4,0) -> 0.03125 | E103: 0.3020833333 | F103: 0.25625 | G103: =DATA!$C$9 -> 0.89 | H103: =DATA!$C$10 -> 64 | I103: 1 | J103: 345.9375 | K103: 407.8125 | L103: 0.04583333333 | M103: 61.875 | N103: 0.1517241379 | O103: 0 | R103: 369.0666667 | S103: 325 | U103: 325 | X103: =X100 -> 5 | Z103: =TEXT(Y102,"ddd") -> vr | AA103: MD | AB103: =IFERROR(HLOOKUP(Y102,[1]DATA!$A$1:$NB$5,4,0),"") -> D2 | AC103: 66 | AE103: 21 | AF103: 346 | AG103: 2 | AH103: -49.0625 | AI103: 0.7455197133 | AJ103: 0.994610133
A104: 5vrND | B104: =VLOOKUP($AA104,DATA!$B$3:$E$6,2,0) -> 22:30:00 | C104: =VLOOKUP($AA104,DATA!$B$3:$E$6,3,0) -> 06:30:00 | D104: =VLOOKUP($AA104,DATA!$B$3:$E$6,4,0) -> 0.03125 | E104: 0.3020833333 | F104: 0.3020833333 | G104: =DATA!$C$9 -> 0.89 | H104: =DATA!$C$10 -> 64 | I104: 1 | J104: 407.8125 | K104: 407.8125 | L104: 0 | O104: 0 | R104: 0 | X104: =X100 -> 5 | Z104: =TEXT(Y102,"ddd") -> vr | AA104: ND | AB104: =IFERROR(HLOOKUP(Y102,[1]DATA!$A$1:$NB$5,5,0),"") -> - | AG104: 0
A105: 5zaDD | B105: =VLOOKUP($AA105,DATA!$B$3:$E$6,2,0) -> 06:30:00 | C105: =VLOOKUP($AA105,DATA!$B$3:$E$6,3,0) -> 14:30:00 | D105: =VLOOKUP($AA105,DATA!$B$3:$E$6,4,0) -> 0.03125 | E105: 0.3020833333 | F105: 0.3020833333 | G105: =DATA!$C$9 -> 0.89 | H105: =DATA!$C$10 -> 64 | I105: 1 | J105: 407.8125 | K105: 407.8125 | L105: 0 | O105: 0 | R105: 0 | X105: =X100 -> 5 | Y105: =Y102+1 -> 2018-02-03 | Z105: =TEXT(Y105,"ddd") -> za | AA105: DD | AB105: =IFERROR(HLOOKUP(Y105,[1]DATA!$A$1:$NB$5,3,0),"") -> - | AG105: 0
A106: 5zaMD | B106: =VLOOKUP($AA106,DATA!$B$3:$E$6,2,0) -> 14:30:00 | C106: =VLOOKUP($AA106,DATA!$B$3:$E$6,3,0) -> 22:30:00 | D106: =VLOOKUP($AA106,DATA!$B$3:$E$6,4,0) -> 0.03125 | E106: 0.3020833333 | F106: 0.3020833333 | G106: =DATA!$C$9 -> 0.89 | H106: =DATA!$C$10 -> 64 | I106: 1 | J106: 407.8125 | K106: 407.8125 | L106: 0 | O106: 0 | R106: 0 | X106: =X100 -> 5 | Z106: =TEXT(Y105,"ddd") -> za | AA106: MD | AB106: =IFERROR(HLOOKUP(Y105,[1]DATA!$A$1:$NB$5,4,0),"") -> - | AG106: 0
A107: 5zaND | B107: =VLOOKUP($AA107,DATA!$B$3:$E$6,2,0) -> 22:30:00 | C107: =VLOOKUP($AA107,DATA!$B$3:$E$6,3,0) -> 06:30:00 | D107: =VLOOKUP($AA107,DATA!$B$3:$E$6,4,0) -> 0.03125 | E107: 0.3020833333 | F107: 0.3020833333 | G107: =DATA!$C$9 -> 0.89 | H107: =DATA!$C$10 -> 64 | I107: 1 | J107: 407.8125 | K107: 407.8125 | L107: 0 | O107: 0 | R107: 0 | X107: =X100 -> 5 | Z107: =TEXT(Y105,"ddd") -> za | AA107: ND | AB107: =IFERROR(HLOOKUP(Y105,[1]DATA!$A$1:$NB$5,5,0),"") -> - | AG107: 0
A108: 5zoDD | B108: =VLOOKUP($AA108,DATA!$B$3:$E$6,2,0) -> 06:30:00 | C108: =VLOOKUP($AA108,DATA!$B$3:$E$6,3,0) -> 14:30:00 | D108: =VLOOKUP($AA108,DATA!$B$3:$E$6,4,0) -> 0.03125 | E108: 0.3020833333 | F108: 0.3020833333 | G108: =DATA!$C$9 -> 0.89 | H108: =DATA!$C$10 -> 64 | I108: 1 | J108: 407.8125 | K108: 407.8125 | L108: 0 | O108: 0 | R108: 0 | X108: =X100 -> 5 | Y108: =Y105+1 -> 2018-02-04 | Z108: =TEXT(Y108,"ddd") -> zo | AA108: DD | AB108: =IFERROR(HLOOKUP(Y108,[1]DATA!$A$1:$NB$5,3,0),"") -> - | AG108: 0
A109: 5zoMD | B109: =VLOOKUP($AA109,DATA!$B$3:$E$6,2,0) -> 14:30:00 | C109: =VLOOKUP($AA109,DATA!$B$3:$E$6,3,0) -> 22:30:00 | D109: =VLOOKUP($AA109,DATA!$B$3:$E$6,4,0) -> 0.03125 | E109: 0.3020833333 | F109: 0.3020833333 | G109: =DATA!$C$9 -> 0.89 | H109: =DATA!$C$10 -> 64 | I109: 1 | J109: 407.8125 | K109: 407.8125 | L109: 0 | O109: 0 | R109: 0 | X109: =X100 -> 5 | Z109: =TEXT(Y108,"ddd") -> zo | AA109: MD | AB109: =IFERROR(HLOOKUP(Y108,[1]DATA!$A$1:$NB$5,4,0),"") -> - | AG109: 0
A110: 5zoZND | B110: =VLOOKUP($AA110,DATA!$B$3:$E$6,2,0) -> 00:00:00 | C110: =VLOOKUP($AA110,DATA!$B$3:$E$6,3,0) -> 00:00:00 | D110: =VLOOKUP($AA110,DATA!$B$3:$E$6,4,0) -> 0 | E110: 0 | F110: 0 | G110: =DATA!$C$9 -> 0.89 | H110: =DATA!$C$10 -> 64 | I110: 1 | J110: 0 | K110: 0 | L110: 0 | O110: 0 | R110: 0 | X110: =X100 -> 5 | Z110: =TEXT(Y108,"ddd") -> zo | AA110: ZND | AB110: =IFERROR(HLOOKUP(Y108,[1]DATA!$A$1:$NB$5,5,0),"") -> D3 | AG110: 0
A111: 6maDD | B111: =VLOOKUP($AA111,DATA!$B$3:$E$6,2,0) -> 06:30:00 | C111: =VLOOKUP($AA111,DATA!$B$3:$E$6,3,0) -> 14:30:00 | D111: =VLOOKUP($AA111,DATA!$B$3:$E$6,4,0) -> 0.03125 | E111: 0.3020833333 | F111: 0.2263888889 | G111: =DATA!$C$9 -> 0.89 | H111: =DATA!$C$10 -> 64 | I111: 1 | J111: 305.625 | K111: 407.8125 | L111: 0.07569444444 | M111: 102.1875 | N111: 0.2505747126 | O111: =TIME(INT($AD111/60),INT(MOD($AD111,60)/1),0) -> 0 | R111: 311.4666667 | S111: 281 | U111: 281 | X111: =X121 -> 6 | Y111: =Y108+1 -> 2018-02-05 | Z111: =TEXT(Y111,"ddd") -> ma | AA111: DD | AB111: =IFERROR(HLOOKUP(Y111,[1]DATA!$A$1:$NB$5,3,0),"") -> D2 | AC111: 109 | AE111: 11 | AF111: 292 | AG111: 3 | AH111: -52.75 | AI111: 0.6445878136 | AJ111: 0.9904600382 | AK111: 4359.375 | AL111: 3199 | AM111: 0.7338207885 | AN111: 618.75 | AO111: 0.1419354839 | AP111: 0 | AQ111: 0 | AR111: 0.9681689807 | AS111: 0.9699545191 | AT111: 0.9663834424 | AV111: 541.625 | AW111: 0.1242437276 | AX111: 577.7333333 | AY111: 121
A112: =X112&Z112&AA112 -> 6maMD | B112: =VLOOKUP($AA112,DATA!$B$3:$E$6,2,0) -> 14:30:00 | C112: =VLOOKUP($AA112,DATA!$B$3:$E$6,3,0) -> 22:30:00 | D112: =VLOOKUP($AA112,DATA!$B$3:$E$6,4,0) -> 0.03125 | E112: 0.3020833333 | F112: 0.2555555556 | G112: =DATA!$C$9 -> 0.89 | H112: =DATA!$C$10 -> 64 | I112: 1 | J112: 345 | K112: 407.8125 | L112: 0.04652777778 | M112: 62.8125 | N112: 0.1540229885 | O112: =TIME(INT(AD112/60),INT(MOD(AD112,60)/1),0) -> 0 | P112: =IF($O112*86400/$H112=0,"",$O112*86400/$H112) ->  | R112: 359.4666667 | S112: 318 | T112: 318 | X112: =X121 -> 6 | Z112: =TEXT(Y111,"ddd") -> ma | AA112: MD | AB112: =IFERROR(HLOOKUP(Y111,[1]DATA!$A$1:$NB$5,4,0),"") -> D1 | AC112: 67 | AE112: 19 | AF112: 337 | AG112: 14 | AH112: -55.125 | AI112: 0.7294623656 | AJ112: 0.9625133881
A113: 6maND | B113: =VLOOKUP($AA113,DATA!$B$3:$E$6,2,0) -> 22:30:00 | C113: =VLOOKUP($AA113,DATA!$B$3:$E$6,3,0) -> 06:30:00 | D113: =VLOOKUP($AA113,DATA!$B$3:$E$6,4,0) -> 0.03125 | E113: 0.3020833333 | F113: 0.3020833333 | G113: =DATA!$C$9 -> 0.89 | H113: =DATA!$C$10 -> 64 | I113: 1 | J113: 407.8125 | K113: 407.8125 | L113: 0 | O113: 0 | R113: 0 | X113: =X121 -> 6 | Z113: =TEXT(Y111,"ddd") -> ma | AA113: ND | AB113: =IFERROR(HLOOKUP(Y111,[1]DATA!$A$1:$NB$5,5,0),"") -> D3 | AG113: 0
A114: 6diDD | B114: =VLOOKUP($AA114,DATA!$B$3:$E$6,2,0) -> 06:30:00 | C114: =VLOOKUP($AA114,DATA!$B$3:$E$6,3,0) -> 14:30:00 | D114: =VLOOKUP($AA114,DATA!$B$3:$E$6,4,0) -> 0.03125 | E114: 0.3020833333 | F114: 0.2555555556 | G114: =DATA!$C$9 -> 0.89 | H114: =DATA!$C$10 -> 64 | I114: 1 | J114: 345 | K114: 407.8125 | L114: 0.04652777778 | M114: 62.8125 | N114: 0.1540229885 | O114: 0 | R114: 341.3333333 | S114: 314 | U114: 314 | X114: =X121 -> 6 | Y114: =Y111+1 -> 2018-02-06 | Z114: =TEXT(Y114,"ddd") -> di | AA114: DD | AB114: =IFERROR(HLOOKUP(Y114,[1]DATA!$A$1:$NB$5,3,0),"") -> D2 | AC114: 67 | AE114: 6 | AF114: 320 | AG114: 18 | AH114: -59.125 | AI114: 0.7202867384 | AJ114: 0.9499072356
A115: 6diMD | B115: =VLOOKUP($AA115,DATA!$B$3:$E$6,2,0) -> 14:30:00 | C115: =VLOOKUP($AA115,DATA!$B$3:$E$6,3,0) -> 22:30:00 | D115: =VLOOKUP($AA115,DATA!$B$3:$E$6,4,0) -> 0.03125 | E115: 0.3020833333 | F115: 0.2597222222 | G115: =DATA!$C$9 -> 0.89 | H115: =DATA!$C$10 -> 64 | I115: 1 | J115: 350.625 | K115: 407.8125 | L115: 0.04236111111 | M115: 57.1875 | N115: 0.1402298851 | O115: 0 | R115: 294.4 | S115: 270 | T115: 270 | X115: =X121 -> 6 | Z115: =TEXT(Y114,"ddd") -> di | AA115: MD | AB115: =IFERROR(HLOOKUP(Y114,[1]DATA!$A$1:$NB$5,4,0),"") -> D1 | AC115: 61 | AE115: 6 | AF115: 276 | AG115: 5 | AH115: -108.75 | AI115: 0.6193548387 | AJ115: 0.9832999332
A116: 6diND | B116: =VLOOKUP($AA116,DATA!$B$3:$E$6,2,0) -> 22:30:00 | C116: =VLOOKUP($AA116,DATA!$B$3:$E$6,3,0) -> 06:30:00 | D116: =VLOOKUP($AA116,DATA!$B$3:$E$6,4,0) -> 0.03125 | E116: 0.3020833333 | F116: 0.3020833333 | G116: =DATA!$C$9 -> 0.89 | H116: =DATA!$C$10 -> 64 | I116: 1 | J116: 407.8125 | K116: 407.8125 | L116: 0 | O116: 0 | R116: 0 | X116: =X121 -> 6 | Z116: =TEXT(Y114,"ddd") -> di | AA116: ND | AB116: =IFERROR(HLOOKUP(Y114,[1]DATA!$A$1:$NB$5,5,0),"") -> D3 | AG116: 0
A117: 6woDD | B117: =VLOOKUP($AA117,DATA!$B$3:$E$6,2,0) -> 06:30:00 | C117: =VLOOKUP($AA117,DATA!$B$3:$E$6,3,0) -> 14:30:00 | D117: =VLOOKUP($AA117,DATA!$B$3:$E$6,4,0) -> 0.03125 | E117: 0.3020833333 | F117: 0.2652777778 | G117: =DATA!$C$9 -> 0.89 | H117: =DATA!$C$10 -> 64 | I117: 1 | J117: 358.125 | K117: 407.8125 | L117: 0.03680555556 | M117: 49.6875 | N117: 0.1218390805 | O117: 0 | R117: 410.6666667 | S117: 347 | U117: 347 | X117: =X121 -> 6 | Y117: =Y114+1 -> 2018-02-07 | Z117: =TEXT(Y117,"ddd") -> wo | AA117: DD | AB117: =IFERROR(HLOOKUP(Y117,[1]DATA!$A$1:$NB$5,3,0),"") -> D2 | AC117: 53 | AE117: 38 | AF117: 385 | AG117: 15 | AH117: -39.25 | AI117: 0.7959856631 | AJ117: 0.964761159
A118: 6woMD | B118: =VLOOKUP($AA118,DATA!$B$3:$E$6,2,0) -> 14:30:00 | C118: =VLOOKUP($AA118,DATA!$B$3:$E$6,3,0) -> 22:30:00 | D118: =VLOOKUP($AA118,DATA!$B$3:$E$6,4,0) -> 0.03125 | E118: 0.3020833333 | F118: 0.2375 | G118: =DATA!$C$9 -> 0.89 | H118: =DATA!$C$10 -> 64 | I118: 1 | J118: 320.625 | K118: 407.8125 | L118: 0.06458333333 | M118: 87.1875 | N118: 0.2137931034 | O118: 0 | R118: 325.3333333 | S118: 294 | T118: 294 | X118: =X121 -> 6 | Z118: =TEXT(Y117,"ddd") -> wo | AA118: MD | AB118: =IFERROR(HLOOKUP(Y117,[1]DATA!$A$1:$NB$5,4,0),"") -> D1 | AC118: 93 | AE118: 11 | AF118: 305 | AG118: 17 | AH118: -54.75 | AI118: 0.6744086022 | AJ118: 0.9503407984
A119: 6woND | B119: =VLOOKUP($AA119,DATA!$B$3:$E$6,2,0) -> 22:30:00 | C119: =VLOOKUP($AA119,DATA!$B$3:$E$6,3,0) -> 06:30:00 | D119: =VLOOKUP($AA119,DATA!$B$3:$E$6,4,0) -> 0.03125 | E119: 0.3020833333 | F119: 0.3020833333 | G119: =DATA!$C$9 -> 0.89 | H119: =DATA!$C$10 -> 64 | I119: 1 | J119: 407.8125 | K119: 407.8125 | L119: 0 | O119: 0 | R119: 0 | X119: =X121 -> 6 | Z119: =TEXT(Y117,"ddd") -> wo | AA119: ND | AB119: =IFERROR(HLOOKUP(Y117,[1]DATA!$A$1:$NB$5,5,0),"") -> D3 | AG119: 0
A120: 6doDD | B120: =VLOOKUP($AA120,DATA!$B$3:$E$6,2,0) -> 06:30:00 | C120: =VLOOKUP($AA120,DATA!$B$3:$E$6,3,0) -> 14:30:00 | D120: =VLOOKUP($AA120,DATA!$B$3:$E$6,4,0) -> 0.03125 | E120: 0.3020833333 | F120: 0.2576388889 | G120: =DATA!$C$9 -> 0.89 | H120: =DATA!$C$10 -> 64 | I120: 1 | J120: 347.8125 | K120: 407.8125 | L120: 0.04444444444 | M120: 60 | N120: 0.1471264368 | O120: 0 | R120: 374.4 | S120: 328 | U120: 328 | X120: =X121 -> 6 | Y120: =Y117+1 -> 2018-02-08 | Z120: =TEXT(Y120,"ddd") -> do | AA120: DD | AB120: =IFERROR(HLOOKUP(Y120,[1]DATA!$A$1:$NB$5,3,0),"") -> D2 | AC120: 64 | AE120: 23 | AF120: 351 | AG120: 11 | AH120: -47.9375 | AI120: 0.7524014337 | AJ120: 0.9714582252
A121: 6doMD | B121: =VLOOKUP($AA121,DATA!$B$3:$E$6,2,0) -> 14:30:00 | C121: =VLOOKUP($AA121,DATA!$B$3:$E$6,3,0) -> 22:30:00 | D121: =VLOOKUP($AA121,DATA!$B$3:$E$6,4,0) -> 0.03125 | E121: 0.3020833333 | F121: 0.2527777778 | G121: =DATA!$C$9 -> 0.89 | H121: =DATA!$C$10 -> 64 | I121: 1 | J121: 341.25 | K121: 407.8125 | L121: 0.04930555556 | M121: 66.5625 | N121: 0.1632183908 | O121: 0 | R121: 377.6 | S121: 339 | T121: 339 | X121: =WEEKNUM($Y111) -> 6 | Z121: =TEXT(Y120,"ddd") -> do | AA121: MD | AB121: =IFERROR(HLOOKUP(Y120,[1]DATA!$A$1:$NB$5,4,0),"") -> D1 | AC121: 71 | AE121: 15 | AF121: 354 | AG121: 14 | AH121: -30.375 | AI121: 0.7776344086 | AJ121: 0.9642492339
A122: 6doND | B122: =VLOOKUP($AA122,DATA!$B$3:$E$6,2,0) -> 22:30:00 | C122: =VLOOKUP($AA122,DATA!$B$3:$E$6,3,0) -> 06:30:00 | D122: =VLOOKUP($AA122,DATA!$B$3:$E$6,4,0) -> 0.03125 | E122: 0.3020833333 | F122: 0.3020833333 | G122: =DATA!$C$9 -> 0.89 | H122: =DATA!$C$10 -> 64 | I122: 1 | J122: 407.8125 | K122: 407.8125 | L122: 0 | O122: 0 | R122: 0 | X122: =X121 -> 6 | Z122: =TEXT(Y120,"ddd") -> do | AA122: ND | AB122: =IFERROR(HLOOKUP(Y120,[1]DATA!$A$1:$NB$5,5,0),"") -> D3 | AG122: 0
A123: 6vrDD | B123: =VLOOKUP($AA123,DATA!$B$3:$E$6,2,0) -> 06:30:00 | C123: =VLOOKUP($AA123,DATA!$B$3:$E$6,3,0) -> 14:30:00 | D123: =VLOOKUP($AA123,DATA!$B$3:$E$6,4,0) -> 0.03125 | E123: 0.3020833333 | F123: 0.3006944444 | G123: =DATA!$C$9 -> 0.89 | H123: =DATA!$C$10 -> 64 | I123: 1 | J123: 405.9375 | K123: 407.8125 | L123: 0.001388888889 | M123: 1.875 | N123: 0.004597701149 | O123: 0 | R123: 427.7333333 | S123: 374 | T123: =IF(IF(#REF!="D1",$S123,"")=0,"",IF(#REF!="D1",$S123,"")) ->  | U123: =IF(IF(#REF!="D2",$S123,"")=0,"",IF(#REF!="D2",$S123,"")) ->  | V123: =IF(IF(#REF!="D3",$S123,"")=0,"",IF(#REF!="D3",$S123,"")) ->  | X123: =X121 -> 6 | Y123: =Y120+1 -> 2018-02-09 | Z123: =TEXT(Y123,"ddd") -> vr | AA123: DD | AB123: =IFERROR(HLOOKUP(Y123,[1]DATA!$A$1:$NB$5,3,0),"") -> D2 | AC123: 2 | AE123: 27 | AF123: 401 | AG123: 20 | AH123: -60.0625 | AI123: 0.857921147 | AJ123: 0.9553305539
A124: 6vrMD | B124: =VLOOKUP($AA124,DATA!$B$3:$E$6,2,0) -> 14:30:00 | C124: =VLOOKUP($AA124,DATA!$B$3:$E$6,3,0) -> 22:30:00 | D124: =VLOOKUP($AA124,DATA!$B$3:$E$6,4,0) -> 0.03125 | E124: 0.3020833333 | F124: 0.2513888889 | G124: =DATA!$C$9 -> 0.89 | H124: =DATA!$C$10 -> 64 | I124: 1 | J124: 339.375 | K124: 407.8125 | L124: 0.05069444444 | M124: 68.4375 | N124: 0.167816092 | O124: 0 | R124: 372.2666667 | S124: 334 | T124: 334 | X124: =X121 -> 6 | Z124: =TEXT(Y123,"ddd") -> vr | AA124: MD | AB124: =IFERROR(HLOOKUP(Y123,[1]DATA!$A$1:$NB$5,4,0),"") -> D1 | AC124: 73 | AE124: 15 | AF124: 349 | AG124: 4 | AH124: -33.5 | AI124: 0.7661648746 | AJ124: 0.9893692417
A125: 6vrND | B125: =VLOOKUP($AA125,DATA!$B$3:$E$6,2,0) -> 22:30:00 | C125: =VLOOKUP($AA125,DATA!$B$3:$E$6,3,0) -> 06:30:00 | D125: =VLOOKUP($AA125,DATA!$B$3:$E$6,4,0) -> 0.03125 | E125: 0.3020833333 | F125: 0.3020833333 | G125: =DATA!$C$9 -> 0.89 | H125: =DATA!$C$10 -> 64 | I125: 1 | J125: 407.8125 | K125: 407.8125 | L125: 0 | O125: 0 | R125: 0 | X125: =X121 -> 6 | Z125: =TEXT(Y123,"ddd") -> vr | AA125: ND | AB125: =IFERROR(HLOOKUP(Y123,[1]DATA!$A$1:$NB$5,5,0),"") -> - | AG125: 0
A126: 6zaDD | B126: =VLOOKUP($AA126,DATA!$B$3:$E$6,2,0) -> 06:30:00 | C126: =VLOOKUP($AA126,DATA!$B$3:$E$6,3,0) -> 14:30:00 | D126: =VLOOKUP($AA126,DATA!$B$3:$E$6,4,0) -> 0.03125 | E126: 0.3020833333 | F126: 0.3020833333 | G126: =DATA!$C$9 -> 0.89 | H126: =DATA!$C$10 -> 64 | I126: 1 | J126: 407.8125 | K126: 407.8125 | L126: 0 | O126: 0 | R126: 0 | X126: =X121 -> 6 | Y126: =Y123+1 -> 2018-02-10 | Z126: =TEXT(Y126,"ddd") -> za | AA126: DD | AB126: =IFERROR(HLOOKUP(Y126,[1]DATA!$A$1:$NB$5,3,0),"") -> - | AG126: 0
A127: 6zaMD | B127: =VLOOKUP($AA127,DATA!$B$3:$E$6,2,0) -> 14:30:00 | C127: =VLOOKUP($AA127,DATA!$B$3:$E$6,3,0) -> 22:30:00 | D127: =VLOOKUP($AA127,DATA!$B$3:$E$6,4,0) -> 0.03125 | E127: 0.3020833333 | F127: 0.3020833333 | G127: =DATA!$C$9 -> 0.89 | H127: =DATA!$C$10 -> 64 | I127: 1 | J127: 407.8125 | K127: 407.8125 | L127: 0 | O127: 0 | R127: 0 | X127: =X121 -> 6 | Z127: =TEXT(Y126,"ddd") -> za | AA127: MD | AB127: =IFERROR(HLOOKUP(Y126,[1]DATA!$A$1:$NB$5,4,0),"") -> - | AG127: 0
A128: 6zaND | B128: =VLOOKUP($AA128,DATA!$B$3:$E$6,2,0) -> 22:30:00 | C128: =VLOOKUP($AA128,DATA!$B$3:$E$6,3,0) -> 06:30:00 | D128: =VLOOKUP($AA128,DATA!$B$3:$E$6,4,0) -> 0.03125 | E128: 0.3020833333 | F128: 0.3020833333 | G128: =DATA!$C$9 -> 0.89 | H128: =DATA!$C$10 -> 64 | I128: 1 | J128: 407.8125 | K128: 407.8125 | L128: 0 | O128: 0 | R128: 0 | X128: =X121 -> 6 | Z128: =TEXT(Y126,"ddd") -> za | AA128: ND | AB128: =IFERROR(HLOOKUP(Y126,[1]DATA!$A$1:$NB$5,5,0),"") -> - | AG128: 0
A129: 6zoDD | B129: =VLOOKUP($AA129,DATA!$B$3:$E$6,2,0) -> 06:30:00 | C129: =VLOOKUP($AA129,DATA!$B$3:$E$6,3,0) -> 14:30:00 | D129: =VLOOKUP($AA129,DATA!$B$3:$E$6,4,0) -> 0.03125 | E129: 0.3020833333 | F129: 0.3020833333 | G129: =DATA!$C$9 -> 0.89 | H129: =DATA!$C$10 -> 64 | I129: 1 | J129: 407.8125 | K129: 407.8125 | L129: 0 | O129: 0 | R129: 0 | X129: =X121 -> 6 | Y129: =Y126+1 -> 2018-02-11 | Z129: =TEXT(Y129,"ddd") -> zo | AA129: DD | AB129: =IFERROR(HLOOKUP(Y129,[1]DATA!$A$1:$NB$5,3,0),"") -> - | AG129: 0
A130: 6zoMD | B130: =VLOOKUP($AA130,DATA!$B$3:$E$6,2,0) -> 14:30:00 | C130: =VLOOKUP($AA130,DATA!$B$3:$E$6,3,0) -> 22:30:00 | D130: =VLOOKUP($AA130,DATA!$B$3:$E$6,4,0) -> 0.03125 | E130: 0.3020833333 | F130: 0.3020833333 | G130: =DATA!$C$9 -> 0.89 | H130: =DATA!$C$10 -> 64 | I130: 1 | J130: 407.8125 | K130: 407.8125 | L130: 0 | O130: 0 | R130: 0 | X130: =X121 -> 6 | Z130: =TEXT(Y129,"ddd") -> zo | AA130: MD | AB130: =IFERROR(HLOOKUP(Y129,[1]DATA!$A$1:$NB$5,4,0),"") -> - | AG130: 0
A131: 6zoZND | B131: =VLOOKUP($AA131,DATA!$B$3:$E$6,2,0) -> 00:00:00 | C131: =VLOOKUP($AA131,DATA!$B$3:$E$6,3,0) -> 00:00:00 | D131: =VLOOKUP($AA131,DATA!$B$3:$E$6,4,0) -> 0 | E131: 0 | F131: 0 | G131: =DATA!$C$9 -> 0.89 | H131: =DATA!$C$10 -> 64 | I131: 1 | J131: 0 | K131: 0 | L131: 0 | O131: 0 | R131: 0 | X131: =X121 -> 6 | Z131: =TEXT(Y129,"ddd") -> zo | AA131: ZND | AB131: =IFERROR(HLOOKUP(Y129,[1]DATA!$A$1:$NB$5,5,0),"") -> D2 | AG131: 0
A132: 7maDD | B132: =VLOOKUP($AA132,DATA!$B$3:$E$6,2,0) -> 06:30:00 | C132: =VLOOKUP($AA132,DATA!$B$3:$E$6,3,0) -> 14:30:00 | D132: =VLOOKUP($AA132,DATA!$B$3:$E$6,4,0) -> 0.03125 | E132: 0.3020833333 | F132: 0.3020833333 | G132: =DATA!$C$9 -> 0.89 | H132: =DATA!$C$10 -> 64 | I132: 1 | J132: 407.8125 | K132: 407.8125 | L132: 0 | O132: =TIME(INT($AD132/60),INT(MOD($AD132,60)/1),0) -> 0 | R132: 0 | X132: =X142 -> 7 | Y132: =Y129+1 -> 2018-02-12 | Z132: =TEXT(Y132,"ddd") -> ma | AA132: DD | AB132: =IFERROR(HLOOKUP(Y132,[1]DATA!$A$1:$NB$5,3,0),"") -> D1 | AG132: 0 | AK132: 3487.5 | AL132: 2437 | AM132: 0.698781362 | AN132: 421.875 | AO132: 0.1209677419 | AP132: 32.8125 | AQ132: 0.009408602151 | AR132: 0.9337869775 | AS132: 0.9489792737 | AU132: 0.9185946814 | AV132: 595.8125 | AW132: 0.1708422939 | AX132: 635.5333333 | AY132: 223
A133: 7maMD | B133: =VLOOKUP($AA133,DATA!$B$3:$E$6,2,0) -> 14:30:00 | C133: =VLOOKUP($AA133,DATA!$B$3:$E$6,3,0) -> 22:30:00 | D133: =VLOOKUP($AA133,DATA!$B$3:$E$6,4,0) -> 0.03125 | E133: 0.3020833333 | F133: 0.3020833333 | G133: =DATA!$C$9 -> 0.89 | H133: =DATA!$C$10 -> 64 | I133: 1 | J133: 407.8125 | K133: 407.8125 | L133: 0 | O133: =TIME(INT(AD133/60),INT(MOD(AD133,60)/1),0) -> 0 | R133: 0 | X133: =X142 -> 7 | Z133: =TEXT(Y132,"ddd") -> ma | AA133: MD | AB133: =IFERROR(HLOOKUP(Y132,[1]DATA!$A$1:$NB$5,4,0),"") -> D3 | AG133: 0
A134: 7maND | B134: =VLOOKUP($AA134,DATA!$B$3:$E$6,2,0) -> 22:30:00 | C134: =VLOOKUP($AA134,DATA!$B$3:$E$6,3,0) -> 06:30:00 | D134: =VLOOKUP($AA134,DATA!$B$3:$E$6,4,0) -> 0.03125 | E134: 0.3020833333 | F134: 0.3020833333 | G134: =DATA!$C$9 -> 0.89 | H134: =DATA!$C$10 -> 64 | I134: 1 | J134: =F134*86400/H134*I134 -> 407.8125 | K134: =E134*86400/H134 -> 407.8125 | L134: 0 | O134: 0 | R134: =AF134*AG$2 -> 0 | S134: =IF(AF134-AE134=0,"",AF134-AE134) ->  | X134: =X142 -> 7 | Z134: =TEXT(Y132,"ddd") -> ma | AA134: ND | AB134: =IFERROR(HLOOKUP(Y132,[1]DATA!$A$1:$NB$5,5,0),"") -> D2 | AG134: 0
A135: 7diDD | B135: =VLOOKUP($AA135,DATA!$B$3:$E$6,2,0) -> 06:30:00 | C135: =VLOOKUP($AA135,DATA!$B$3:$E$6,3,0) -> 14:30:00 | D135: =VLOOKUP($AA135,DATA!$B$3:$E$6,4,0) -> 0.03125 | E135: 0.3020833333 | F135: 0.2743055556 | G135: =DATA!$C$9 -> 0.89 | H135: =DATA!$C$10 -> 64 | I135: 1 | J135: 370.3125 | K135: 407.8125 | L135: =TIME(INT($AC135/60),INT(MOD($AC135,60)/1),0) -> 0.02777777778 | M135: =IF($L135*86400/$H135=0,"",$L135*86400/$H135) -> 37.5 | N135: =IFERROR($M135/$K135,"") -> 0.09195402299 | O135: 0 | Q135: =IFERROR($P135/$K135,"") ->  | R135: 340.2666667 | S135: 308 | T135: =IF(IF($AB135="D1",$S135,"")=0,"",IF($AB135="D1",$S135,"")) -> 308 | U135: =IF(IF($AB135="D2",$S135,"")=0,"",IF($AB135="D2",$S135,"")) ->  | V135: =IF(IF($AB135="D3",$S135,"")=0,"",IF($AB135="D3",$S135,"")) ->  | X135: =X142 -> 7 | Y135: =Y132+1 -> 2018-02-13 | Z135: =TEXT(Y135,"ddd") -> di | AA135: DD | AB135: =IFERROR(HLOOKUP(Y135,[1]DATA!$A$1:$NB$5,3,0),"") -> D1 | AC135: 40 | AE135: 11 | AF135: 319 | AG135: 57 | AH135: -90.4375 | AI135: 0.7065232975 | AJ135: 0.8565195503
A136: 7diMD | B136: =VLOOKUP($AA136,DATA!$B$3:$E$6,2,0) -> 14:30:00 | C136: =VLOOKUP($AA136,DATA!$B$3:$E$6,3,0) -> 22:30:00 | D136: =VLOOKUP($AA136,DATA!$B$3:$E$6,4,0) -> 0.03125 | E136: 0.3020833333 | F136: 0.2791666667 | G136: =DATA!$C$9 -> 0.89 | H136: =DATA!$C$10 -> 64 | I136: 1 | J136: 376.875 | K136: 407.8125 | L136: 0.02291666667 | M136: 30.9375 | N136: 0.07586206897 | O136: 0 | R136: 347.7333333 | S136: 311 | V136: 311 | X136: =X142 -> 7 | Z136: =TEXT(Y135,"ddd") -> di | AA136: MD | AB136: =IFERROR(HLOOKUP(Y135,[1]DATA!$A$1:$NB$5,4,0),"") -> D3 | AC136: 33 | AE136: 15 | AF136: 326 | AG136: 7 | AH136: -94 | AI136: 0.7134050179 | AJ136: 0.9802668671
A137: 7diND | B137: =VLOOKUP($AA137,DATA!$B$3:$E$6,2,0) -> 22:30:00 | C137: =VLOOKUP($AA137,DATA!$B$3:$E$6,3,0) -> 06:30:00 | D137: =VLOOKUP($AA137,DATA!$B$3:$E$6,4,0) -> 0.03125 | E137: 0.3020833333 | F137: 0.3020833333 | G137: =DATA!$C$9 -> 0.89 | H137: =DATA!$C$10 -> 64 | I137: 1 | J137: 407.8125 | K137: 407.8125 | L137: 0 | O137: 0 | R137: 0 | X137: =X142 -> 7 | Z137: =TEXT(Y135,"ddd") -> di | AA137: ND | AB137: =IFERROR(HLOOKUP(Y135,[1]DATA!$A$1:$NB$5,5,0),"") -> D2 | AG137: 0
A138: 7woDD | B138: =VLOOKUP($AA138,DATA!$B$3:$E$6,2,0) -> 06:30:00 | C138: =VLOOKUP($AA138,DATA!$B$3:$E$6,3,0) -> 14:30:00 | D138: =VLOOKUP($AA138,DATA!$B$3:$E$6,4,0) -> 0.03125 | E138: 0.3020833333 | F138: 0.2819444444 | G138: =DATA!$C$9 -> 0.89 | H138: =DATA!$C$10 -> 64 | I138: 1 | J138: 380.625 | K138: 407.8125 | L138: 0.02013888889 | M138: 27.1875 | N138: 0.06666666667 | O138: 0 | R138: 372.2666667 | S138: 338 | T138: 338 | X138: =X142 -> 7 | Y138: =Y135+1 -> 2018-02-14 | Z138: =TEXT(Y138,"ddd") -> wo | AA138: DD | AB138: =IFERROR(HLOOKUP(Y138,[1]DATA!$A$1:$NB$5,3,0),"") -> D1 | AC138: 29 | AE138: 11 | AF138: 349 | AG138: 10 | AH138: -70.75 | AI138: 0.7753405018 | AJ138: 0.9738402511
A139: 7woMD | B139: =VLOOKUP($AA139,DATA!$B$3:$E$6,2,0) -> 14:30:00 | C139: =VLOOKUP($AA139,DATA!$B$3:$E$6,3,0) -> 22:30:00 | D139: =VLOOKUP($AA139,DATA!$B$3:$E$6,4,0) -> 0.03125 | E139: 0.3020833333 | F139: 0.2270833333 | G139: =DATA!$C$9 -> 0.89 | H139: =DATA!$C$10 -> 64 | I139: 1 | J139: 306.5625 | K139: 407.8125 | L139: 0.075 | M139: 101.25 | N139: 0.2482758621 | O139: 0 | R139: 334.9333333 | S139: 292 | V139: 292 | X139: =X142 -> 7 | Z139: =TEXT(Y138,"ddd") -> wo | AA139: MD | AB139: =IFERROR(HLOOKUP(Y138,[1]DATA!$A$1:$NB$5,4,0),"") -> D3 | AC139: 108 | AE139: 22 | AF139: 314 | AG139: 9 | AH139: -42.6875 | AI139: 0.6698207885 | AJ139: 0.973832138
A140: 7woND | B140: =VLOOKUP($AA140,DATA!$B$3:$E$6,2,0) -> 22:30:00 | C140: =VLOOKUP($AA140,DATA!$B$3:$E$6,3,0) -> 06:30:00 | D140: =VLOOKUP($AA140,DATA!$B$3:$E$6,4,0) -> 0.03125 | E140: 0.3020833333 | F140: 0.3020833333 | G140: =DATA!$C$9 -> 0.89 | H140: =DATA!$C$10 -> 64 | I140: 1 | J140: 407.8125 | K140: 407.8125 | L140: 0 | O140: 0 | R140: 0 | X140: =X142 -> 7 | Z140: =TEXT(Y138,"ddd") -> wo | AA140: ND | AB140: =IFERROR(HLOOKUP(Y138,[1]DATA!$A$1:$NB$5,5,0),"") -> D2 | AG140: 0
A141: 7doDD | B141: =VLOOKUP($AA141,DATA!$B$3:$E$6,2,0) -> 06:30:00 | C141: =VLOOKUP($AA141,DATA!$B$3:$E$6,3,0) -> 14:30:00 | D141: =VLOOKUP($AA141,DATA!$B$3:$E$6,4,0) -> 0.03125 | E141: 0.3020833333 | F141: 0.2513888889 | G141: =DATA!$C$9 -> 0.89 | H141: =DATA!$C$10 -> 64 | I141: 1 | J141: 339.375 | K141: 407.8125 | L141: 0.05069444444 | M141: 68.4375 | N141: 0.167816092 | O141: 0 | R141: 357.3333333 | S141: 325 | T141: 325 | X141: =X142 -> 7 | Y141: =Y138+1 -> 2018-02-15 | Z141: =TEXT(Y141,"ddd") -> do | AA141: DD | AB141: =IFERROR(HLOOKUP(Y141,[1]DATA!$A$1:$NB$5,3,0),"") -> D1 | AC141: 73 | AE141: 10 | AF141: 335 | AG141: 9 | AH141: -42.5 | AI141: 0.7455197133 | AJ141: 0.9754322111
A142: 7doMD | B142: =VLOOKUP($AA142,DATA!$B$3:$E$6,2,0) -> 14:30:00 | C142: =VLOOKUP($AA142,DATA!$B$3:$E$6,3,0) -> 22:30:00 | D142: =VLOOKUP($AA142,DATA!$B$3:$E$6,4,0) -> 0.03125 | E142: 0.3020833333 | F142: 0.2354166667 | G142: =DATA!$C$9 -> 0.89 | H142: =DATA!$C$10 -> 64 | I142: 1 | J142: 317.8125 | K142: 407.8125 | L142: 0.06666666667 | M142: 90 | N142: 0.2206896552 | O142: 0 | R142: 349.8666667 | S142: 309 | V142: 309 | X142: =WEEKNUM($Y132) -> 7 | Z142: =TEXT(Y141,"ddd") -> do | AA142: MD | AB142: =IFERROR(HLOOKUP(Y141,[1]DATA!$A$1:$NB$5,4,0),"") -> D3 | AC142: 96 | AE142: 19 | AF142: 328 | AG142: 0 | AH142: -36.9375 | AI142: 0.7088172043 | AJ142: 1
A143: 7doND | B143: =VLOOKUP($AA143,DATA!$B$3:$E$6,2,0) -> 22:30:00 | C143: =VLOOKUP($AA143,DATA!$B$3:$E$6,3,0) -> 06:30:00 | D143: =VLOOKUP($AA143,DATA!$B$3:$E$6,4,0) -> 0.03125 | E143: 0.3020833333 | F143: 0.3020833333 | G143: =DATA!$C$9 -> 0.89 | H143: =DATA!$C$10 -> 64 | I143: 1 | J143: 407.8125 | K143: 407.8125 | L143: 0 | O143: 0 | R143: 0 | X143: =X142 -> 7 | Z143: =TEXT(Y141,"ddd") -> do | AA143: ND | AB143: =IFERROR(HLOOKUP(Y141,[1]DATA!$A$1:$NB$5,5,0),"") -> D2 | AG143: 0
A144: 7vrDD | B144: =VLOOKUP($AA144,DATA!$B$3:$E$6,2,0) -> 06:30:00 | C144: =VLOOKUP($AA144,DATA!$B$3:$E$6,3,0) -> 14:30:00 | D144: =VLOOKUP($AA144,DATA!$B$3:$E$6,4,0) -> 0.03125 | E144: 0.3020833333 | F144: 0.2284722222 | G144: =DATA!$C$9 -> 0.89 | H144: =DATA!$C$10 -> 64 | I144: 1 | J144: 308.4375 | K144: 407.8125 | L144: 0.04930555556 | M144: 66.5625 | N144: 0.1632183908 | O144: 0.02430555556 | P144: 32.8125 | Q144: 0.08045977011 | R144: 300.8 | S144: 268 | T144: 268 | X144: =X142 -> 7 | Y144: =Y141+1 -> 2018-02-16 | Z144: =TEXT(Y144,"ddd") -> vr | AA144: DD | AB144: =IFERROR(HLOOKUP(Y144,[1]DATA!$A$1:$NB$5,3,0),"") -> D1 | AC144: 71 | AD144: 35 | AE144: 14 | AF144: 282 | AG144: 3 | AH144: -68.5625 | AI144: 0.6147670251 | AJ144: 0.9901250823
A145: 7vrMD | B145: =VLOOKUP($AA145,DATA!$B$3:$E$6,2,0) -> 14:30:00 | C145: =VLOOKUP($AA145,DATA!$B$3:$E$6,3,0) -> 22:30:00 | D145: =VLOOKUP($AA145,DATA!$B$3:$E$6,4,0) -> 0.03125 | E145: 0.3020833333 | F145: 0.3020833333 | G145: =DATA!$C$9 -> 0.89 | H145: =DATA!$C$10 -> 64 | I145: 1 | J145: 407.8125 | K145: 407.8125 | L145: 0 | O145: 0 | R145: 329.6 | S145: 286 | V145: 286 | X145: =X142 -> 7 | Z145: =TEXT(Y144,"ddd") -> vr | AA145: MD | AB145: =IFERROR(HLOOKUP(Y144,[1]DATA!$A$1:$NB$5,4,0),"") -> D3 | AC145: 0 | AE145: 23 | AF145: 309 | AG145: 128 | AH145: -149.9375 | AI145: 0.6560573477 | AJ145: 0.7202797203
A146: 7vrND | B146: =VLOOKUP($AA146,DATA!$B$3:$E$6,2,0) -> 22:30:00 | C146: =VLOOKUP($AA146,DATA!$B$3:$E$6,3,0) -> 06:30:00 | D146: =VLOOKUP($AA146,DATA!$B$3:$E$6,4,0) -> 0.03125 | E146: 0.3020833333 | F146: 0.3020833333 | G146: =DATA!$C$9 -> 0.89 | H146: =DATA!$C$10 -> 64 | I146: 1 | J146: 407.8125 | K146: 407.8125 | L146: 0 | O146: 0 | R146: 0 | X146: =X142 -> 7 | Z146: =TEXT(Y144,"ddd") -> vr | AA146: ND | AB146: =IFERROR(HLOOKUP(Y144,[1]DATA!$A$1:$NB$5,5,0),"") -> - | AG146: 0
A147: 7zaDD | B147: =VLOOKUP($AA147,DATA!$B$3:$E$6,2,0) -> 06:30:00 | C147: =VLOOKUP($AA147,DATA!$B$3:$E$6,3,0) -> 14:30:00 | D147: =VLOOKUP($AA147,DATA!$B$3:$E$6,4,0) -> 0.03125 | E147: 0.3020833333 | F147: 0.3020833333 | G147: =DATA!$C$9 -> 0.89 | H147: =DATA!$C$10 -> 64 | I147: 1 | J147: 407.8125 | K147: 407.8125 | L147: 0 | O147: 0 | R147: 0 | X147: =X142 -> 7 | Y147: =Y144+1 -> 2018-02-17 | Z147: =TEXT(Y147,"ddd") -> za | AA147: DD | AB147: =IFERROR(HLOOKUP(Y147,[1]DATA!$A$1:$NB$5,3,0),"") -> - | AG147: 0
A148: 7zaMD | B148: =VLOOKUP($AA148,DATA!$B$3:$E$6,2,0) -> 14:30:00 | C148: =VLOOKUP($AA148,DATA!$B$3:$E$6,3,0) -> 22:30:00 | D148: =VLOOKUP($AA148,DATA!$B$3:$E$6,4,0) -> 0.03125 | E148: 0.3020833333 | F148: 0.3020833333 | G148: =DATA!$C$9 -> 0.89 | H148: =DATA!$C$10 -> 64 | I148: 1 | J148: 407.8125 | K148: 407.8125 | L148: 0 | O148: 0 | R148: 0 | X148: =X142 -> 7 | Z148: =TEXT(Y147,"ddd") -> za | AA148: MD | AB148: =IFERROR(HLOOKUP(Y147,[1]DATA!$A$1:$NB$5,4,0),"") -> - | AG148: 0
A149: 7zaND | B149: =VLOOKUP($AA149,DATA!$B$3:$E$6,2,0) -> 22:30:00 | C149: =VLOOKUP($AA149,DATA!$B$3:$E$6,3,0) -> 06:30:00 | D149: =VLOOKUP($AA149,DATA!$B$3:$E$6,4,0) -> 0.03125 | E149: 0.3020833333 | F149: 0.3020833333 | G149: =DATA!$C$9 -> 0.89 | H149: =DATA!$C$10 -> 64 | I149: 1 | J149: 407.8125 | K149: 407.8125 | L149: 0 | O149: 0 | R149: 0 | X149: =X142 -> 7 | Z149: =TEXT(Y147,"ddd") -> za | AA149: ND | AB149: =IFERROR(HLOOKUP(Y147,[1]DATA!$A$1:$NB$5,5,0),"") -> - | AG149: 0
A150: 7zoDD | B150: =VLOOKUP($AA150,DATA!$B$3:$E$6,2,0) -> 06:30:00 | C150: =VLOOKUP($AA150,DATA!$B$3:$E$6,3,0) -> 14:30:00 | D150: =VLOOKUP($AA150,DATA!$B$3:$E$6,4,0) -> 0.03125 | E150: 0.3020833333 | F150: 0.3020833333 | G150: =DATA!$C$9 -> 0.89 | H150: =DATA!$C$10 -> 64 | I150: 1 | J150: 407.8125 | K150: 407.8125 | L150: 0 | O150: 0 | R150: 0 | X150: =X142 -> 7 | Y150: =Y147+1 -> 2018-02-18 | Z150: =TEXT(Y150,"ddd") -> zo | AA150: DD | AB150: =IFERROR(HLOOKUP(Y150,[1]DATA!$A$1:$NB$5,3,0),"") -> - | AG150: 0
A151: 7zoMD | B151: =VLOOKUP($AA151,DATA!$B$3:$E$6,2,0) -> 14:30:00 | C151: =VLOOKUP($AA151,DATA!$B$3:$E$6,3,0) -> 22:30:00 | D151: =VLOOKUP($AA151,DATA!$B$3:$E$6,4,0) -> 0.03125 | E151: 0.3020833333 | F151: 0.3020833333 | G151: =DATA!$C$9 -> 0.89 | H151: =DATA!$C$10 -> 64 | I151: 1 | J151: 407.8125 | K151: 407.8125 | L151: 0 | O151: 0 | R151: 0 | X151: =X142 -> 7 | Z151: =TEXT(Y150,"ddd") -> zo | AA151: MD | AB151: =IFERROR(HLOOKUP(Y150,[1]DATA!$A$1:$NB$5,4,0),"") -> - | AG151: 0
A152: 7zoZND | B152: =VLOOKUP($AA152,DATA!$B$3:$E$6,2,0) -> 00:00:00 | C152: =VLOOKUP($AA152,DATA!$B$3:$E$6,3,0) -> 00:00:00 | D152: =VLOOKUP($AA152,DATA!$B$3:$E$6,4,0) -> 0 | E152: 0 | F152: 0 | G152: =DATA!$C$9 -> 0.89 | H152: =DATA!$C$10 -> 64 | I152: 1 | J152: 0 | K152: 0 | L152: 0 | O152: 0 | R152: 0 | X152: =X142 -> 7 | Z152: =TEXT(Y150,"ddd") -> zo | AA152: ZND | AB152: =IFERROR(HLOOKUP(Y150,[1]DATA!$A$1:$NB$5,5,0),"") -> D1 | AG152: 0
A153: 8maDD | B153: =VLOOKUP($AA153,DATA!$B$3:$E$6,2,0) -> 06:30:00 | C153: =VLOOKUP($AA153,DATA!$B$3:$E$6,3,0) -> 14:30:00 | D153: =VLOOKUP($AA153,DATA!$B$3:$E$6,4,0) -> 0.03125 | E153: 0.3020833333 | F153: 0.2597222222 | G153: =DATA!$C$9 -> 0.89 | H153: =DATA!$C$10 -> 64 | I153: 1 | J153: 350.625 | K153: 407.8125 | L153: 0.04236111111 | M153: 57.1875 | N153: 0.1402298851 | O153: =TIME(INT($AD153/60),INT(MOD($AD153,60)/1),0) -> 0 | R153: 374.4 | S153: 335 | V153: 335 | X153: =X163 -> 8 | Y153: =Y150+1 -> 2018-02-19 | Z153: =TEXT(Y153,"ddd") -> ma | AA153: DD | AB153: =IFERROR(HLOOKUP(Y153,[1]DATA!$A$1:$NB$5,3,0),"") -> D3 | AC153: 61 | AE153: 16 | AF153: 351 | AG153: 13 | AH153: -43.75 | AI153: 0.7684587814 | AJ153: 0.966442953 | AK153: 3923.4375 | AL153: 2882 | AM153: 0.7345599363 | AN153: 345.9375 | AO153: 0.08817204301 | AP153: 0 | AQ153: 0 | AR153: 0.9170088921 | AT153: 0.8840086672 | AU153: 0.9582591733 | AV153: 695.5 | AW153: 0.1772680207 | AX153: 741.8666667 | AY153: 324
A154: 8maMD | B154: =VLOOKUP($AA154,DATA!$B$3:$E$6,2,0) -> 14:30:00 | C154: =VLOOKUP($AA154,DATA!$B$3:$E$6,3,0) -> 22:30:00 | D154: =VLOOKUP($AA154,DATA!$B$3:$E$6,4,0) -> 0.03125 | E154: 0.3020833333 | F154: 0.2784722222 | G154: =DATA!$C$9 -> 0.89 | H154: =DATA!$C$10 -> 64 | I154: 1 | J154: 375.9375 | K154: 407.8125 | L154: 0.02361111111 | M154: 31.875 | N154: 0.07816091954 | O154: =TIME(INT(AD154/60),INT(MOD(AD154,60)/1),0) -> 0 | R154: 398.9333333 | S154: 351 | U154: 351 | X154: =X163 -> 8 | Z154: =TEXT(Y153,"ddd") -> ma | AA154: MD | AB154: =IFERROR(HLOOKUP(Y153,[1]DATA!$A$1:$NB$5,4,0),"") -> D2 | AC154: 34 | AE154: 23 | AF154: 374 | AG154: 19 | AH154: -53.0625 | AI154: 0.8051612903 | AJ154: 0.9545382039
A155: 8maND | B155: =VLOOKUP($AA155,DATA!$B$3:$E$6,2,0) -> 22:30:00 | C155: =VLOOKUP($AA155,DATA!$B$3:$E$6,3,0) -> 06:30:00 | D155: =VLOOKUP($AA155,DATA!$B$3:$E$6,4,0) -> 0.03125 | E155: 0.3020833333 | F155: 0.3020833333 | G155: =DATA!$C$9 -> 0.89 | H155: =DATA!$C$10 -> 64 | I155: 1 | J155: 407.8125 | K155: 407.8125 | L155: 0 | O155: 0 | R155: 0 | X155: =X163 -> 8 | Z155: =TEXT(Y153,"ddd") -> ma | AA155: ND | AB155: =IFERROR(HLOOKUP(Y153,[1]DATA!$A$1:$NB$5,5,0),"") -> D1 | AG155: 0
A156: 8diDD | B156: =VLOOKUP($AA156,DATA!$B$3:$E$6,2,0) -> 06:30:00 | C156: =VLOOKUP($AA156,DATA!$B$3:$E$6,3,0) -> 14:30:00 | D156: =VLOOKUP($AA156,DATA!$B$3:$E$6,4,0) -> 0.03125 | E156: =(C156-B156+(B156>C156))-D156 -> 0.3020833333 | F156: =E156-O156-L156 -> 0.2798611111 | G156: =DATA!$C$9 -> 0.89 | H156: =DATA!$C$10 -> 64 | I156: 1 | J156: 377.8125 | K156: 407.8125 | L156: 0.02222222222 | M156: 30 | N156: 0.07356321839 | O156: 0 | R156: 286.9333333 | S156: 265 | V156: 265 | X156: =X163 -> 8 | Y156: =Y153+1 -> 2018-02-20 | Z156: =TEXT(Y156,"ddd") -> di | AA156: DD | AB156: =IFERROR(HLOOKUP(Y156,[1]DATA!$A$1:$NB$5,3,0),"") -> D3 | AC156: 32 | AE156: 4 | AF156: 269 | AG156: 20 | AH156: -140.9375 | AI156: 0.6078853047 | AJ156: 0.9348392702
A157: 8diMD | B157: =VLOOKUP($AA157,DATA!$B$3:$E$6,2,0) -> 14:30:00 | C157: =VLOOKUP($AA157,DATA!$B$3:$E$6,3,0) -> 22:30:00 | D157: =VLOOKUP($AA157,DATA!$B$3:$E$6,4,0) -> 0.03125 | E157: 0.3020833333 | F157: 0.2715277778 | G157: =DATA!$C$9 -> 0.89 | H157: =DATA!$C$10 -> 64 | I157: 1 | J157: 366.5625 | K157: 407.8125 | L157: 0.03055555556 | M157: 41.25 | N157: 0.1011494253 | O157: 0 | R157: 382.9333333 | S157: 323 | U157: 323 | X157: =X163 -> 8 | Z157: =TEXT(Y156,"ddd") -> di | AA157: MD | AB157: =IFERROR(HLOOKUP(Y156,[1]DATA!$A$1:$NB$5,4,0),"") -> D2 | AC157: 44 | AE157: 36 | AF157: 359 | AG157: 41 | AH157: -71.6875 | AI157: 0.7409318996 | AJ157: 0.9032866803
A158: 8diND | B158: =VLOOKUP($AA158,DATA!$B$3:$E$6,2,0) -> 22:30:00 | C158: =VLOOKUP($AA158,DATA!$B$3:$E$6,3,0) -> 06:30:00 | D158: =VLOOKUP($AA158,DATA!$B$3:$E$6,4,0) -> 0.03125 | E158: 0.3020833333 | F158: 0.3020833333 | G158: =DATA!$C$9 -> 0.89 | H158: =DATA!$C$10 -> 64 | I158: 1 | J158: 407.8125 | K158: 407.8125 | L158: 0 | O158: 0 | R158: 0 | X158: =X163 -> 8 | Z158: =TEXT(Y156,"ddd") -> di | AA158: ND | AB158: =IFERROR(HLOOKUP(Y156,[1]DATA!$A$1:$NB$5,5,0),"") -> D1 | AG158: 0
A159: 8woDD | B159: =VLOOKUP($AA159,DATA!$B$3:$E$6,2,0) -> 06:30:00 | C159: =VLOOKUP($AA159,DATA!$B$3:$E$6,3,0) -> 14:30:00 | D159: =VLOOKUP($AA159,DATA!$B$3:$E$6,4,0) -> 0.03125 | E159: 0.3020833333 | F159: 0.2479166667 | G159: =DATA!$C$9 -> 0.89 | H159: =DATA!$C$10 -> 64 | I159: 1 | J159: 334.6875 | K159: 407.8125 | L159: 0.05416666667 | M159: 73.125 | N159: 0.1793103448 | O159: 0 | R159: 333.8666667 | S159: 298 | V159: 298 | X159: =X163 -> 8 | Y159: =Y156+1 -> 2018-02-21 | Z159: =TEXT(Y159,"ddd") -> wo | AA159: DD | AB159: =IFERROR(HLOOKUP(Y159,[1]DATA!$A$1:$NB$5,3,0),"") -> D3 | AC159: 78 | AE159: 15 | AF159: 313 | AG159: 10 | AH159: -64.8125 | AI159: 0.6835842294 | AJ159: 0.9709189608
A160: 8woMD | B160: =VLOOKUP($AA160,DATA!$B$3:$E$6,2,0) -> 14:30:00 | C160: =VLOOKUP($AA160,DATA!$B$3:$E$6,3,0) -> 22:30:00 | D160: =VLOOKUP($AA160,DATA!$B$3:$E$6,4,0) -> 0.03125 | E160: 0.3020833333 | F160: 0.2652777778 | G160: =DATA!$C$9 -> 0.89 | H160: =DATA!$C$10 -> 64 | I160: 1 | J160: 358.125 | K160: 407.8125 | L160: 0.03680555556 | M160: 49.6875 | N160: 0.1218390805 | O160: 0 | R160: 395.7333333 | S160: 338 | U160: 338 | X160: =X163 -> 8 | Z160: =TEXT(Y159,"ddd") -> wo | AA160: MD | AB160: =IFERROR(HLOOKUP(Y159,[1]DATA!$A$1:$NB$5,4,0),"") -> D2 | AC160: 53 | AE160: 33 | AF160: 371 | AG160: 18 | AH160: -48.25 | AI160: 0.7753405018 | AJ160: 0.9564937158
A161: 8woND | B161: =VLOOKUP($AA161,DATA!$B$3:$E$6,2,0) -> 22:30:00 | C161: =VLOOKUP($AA161,DATA!$B$3:$E$6,3,0) -> 06:30:00 | D161: =VLOOKUP($AA161,DATA!$B$3:$E$6,4,0) -> 0.03125 | E161: 0.3020833333 | F161: 0.3020833333 | G161: =DATA!$C$9 -> 0.89 | H161: =DATA!$C$10 -> 64 | I161: 1 | J161: 407.8125 | K161: 407.8125 | L161: 0 | O161: 0 | R161: 0 | X161: =X163 -> 8 | Z161: =TEXT(Y159,"ddd") -> wo | AA161: ND | AB161: =IFERROR(HLOOKUP(Y159,[1]DATA!$A$1:$NB$5,5,0),"") -> D1 | AG161: 0
A162: 8doDD | B162: =VLOOKUP($AA162,DATA!$B$3:$E$6,2,0) -> 06:30:00 | C162: =VLOOKUP($AA162,DATA!$B$3:$E$6,3,0) -> 14:30:00 | D162: =VLOOKUP($AA162,DATA!$B$3:$E$6,4,0) -> 0.03125 | E162: 0.3020833333 | F162: 0.2847222222 | G162: =DATA!$C$9 -> 0.89 | H162: =DATA!$C$10 -> 64 | I162: 1 | J162: 384.375 | K162: 407.8125 | L162: 0.01736111111 | M162: 23.4375 | N162: 0.05747126437 | O162: 0 | R162: 392.5333333 | S162: 344 | V162: 344 | X162: =X163 -> 8 | Y162: =Y159+1 -> 2018-02-22 | Z162: =TEXT(Y162,"ddd") -> do | AA162: DD | AB162: =IFERROR(HLOOKUP(Y162,[1]DATA!$A$1:$NB$5,3,0),"") -> D3 | AC162: 25 | AE162: 24 | AF162: 368 | AG162: 16 | AH162: -68.5 | AI162: 0.7891039427 | AJ162: 0.9608355091
A163: 8doMD | B163: =VLOOKUP($AA163,DATA!$B$3:$E$6,2,0) -> 14:30:00 | C163: =VLOOKUP($AA163,DATA!$B$3:$E$6,3,0) -> 22:30:00 | D163: =VLOOKUP($AA163,DATA!$B$3:$E$6,4,0) -> 0.03125 | E163: 0.3020833333 | F163: 0.2861111111 | G163: =DATA!$C$9 -> 0.89 | H163: =DATA!$C$10 -> 64 | I163: 1 | J163: 386.25 | K163: 407.8125 | L163: 0.01597222222 | M163: 21.5625 | N163: 0.05287356322 | O163: 0 | R163: 434.1333333 | S163: 376 | U163: 376 | X163: =WEEKNUM($Y153) -> 8 | Z163: =TEXT(Y162,"ddd") -> do | AA163: MD | AB163: =IFERROR(HLOOKUP(Y162,[1]DATA!$A$1:$NB$5,4,0),"") -> D2 | AC163: 23 | AE163: 31 | AF163: 407 | AG163: 5 | AH163: -38.375 | AI163: 0.8625089606 | AJ163: 0.9886139365
A164: 8doND | B164: =VLOOKUP($AA164,DATA!$B$3:$E$6,2,0) -> 22:30:00 | C164: =VLOOKUP($AA164,DATA!$B$3:$E$6,3,0) -> 06:30:00 | D164: =VLOOKUP($AA164,DATA!$B$3:$E$6,4,0) -> 0.03125 | E164: 0.3020833333 | F164: 0.3020833333 | G164: =DATA!$C$9 -> 0.89 | H164: =DATA!$C$10 -> 64 | I164: 1 | J164: 407.8125 | K164: 407.8125 | L164: 0 | O164: 0 | R164: 0 | X164: =X163 -> 8 | Z164: =TEXT(Y162,"ddd") -> do | AA164: ND | AB164: =IFERROR(HLOOKUP(Y162,[1]DATA!$A$1:$NB$5,5,0),"") -> D1 | AG164: 0
A165: 8vrDD | B165: =VLOOKUP($AA165,DATA!$B$3:$E$6,2,0) -> 06:30:00 | C165: =VLOOKUP($AA165,DATA!$B$3:$E$6,3,0) -> 14:30:00 | D165: =VLOOKUP($AA165,DATA!$B$3:$E$6,4,0) -> 0.03125 | E165: 0.3020833333 | F165: 0.3020833333 | G165: =DATA!$C$9 -> 0.89 | H165: =DATA!$C$10 -> 64 | I165: 1 | J165: 407.8125 | K165: 407.8125 | L165: 0 | O165: 0 | R165: 0 | X165: =X163 -> 8 | Y165: =Y162+1 -> 2018-02-23 | Z165: =TEXT(Y165,"ddd") -> vr | AA165: DD | AB165: =IFERROR(HLOOKUP(Y165,[1]DATA!$A$1:$NB$5,3,0),"") -> D3 | AC165: 0 | AE165: 0 | AF165: 0 | AG165: 0
A166: 8vrMD | B166: =VLOOKUP($AA166,DATA!$B$3:$E$6,2,0) -> 14:30:00 | C166: =VLOOKUP($AA166,DATA!$B$3:$E$6,3,0) -> 22:30:00 | D166: =VLOOKUP($AA166,DATA!$B$3:$E$6,4,0) -> 0.03125 | E166: 0.3020833333 | F166: 0.2888888889 | G166: =DATA!$C$9 -> 0.89 | H166: =DATA!$C$10 -> 64 | I166: 1 | J166: 390 | K166: 407.8125 | L166: 0.01319444444 | M166: 17.8125 | N166: 0.04367816092 | O166: 0 | R166: 293.3333333 | S166: 252 | U166: 252 | X166: =X163 -> 8 | Z166: =TEXT(Y165,"ddd") -> vr | AA166: MD | AB166: =IFERROR(HLOOKUP(Y165,[1]DATA!$A$1:$NB$5,4,0),"") -> D2 | AC166: 19 | AE166: 23 | AF166: 275 | AG166: 182 | AH166: -166.125 | AI166: 0.5780645161 | AJ166: 0.6171107994
A167: 8vrND | B167: =VLOOKUP($AA167,DATA!$B$3:$E$6,2,0) -> 22:30:00 | C167: =VLOOKUP($AA167,DATA!$B$3:$E$6,3,0) -> 06:30:00 | D167: =VLOOKUP($AA167,DATA!$B$3:$E$6,4,0) -> 0.03125 | E167: 0.3020833333 | F167: 0.3020833333 | G167: =DATA!$C$9 -> 0.89 | H167: =DATA!$C$10 -> 64 | I167: 1 | J167: 407.8125 | K167: 407.8125 | L167: 0 | O167: 0 | R167: 0 | X167: =X163 -> 8 | Z167: =TEXT(Y165,"ddd") -> vr | AA167: ND | AB167: =IFERROR(HLOOKUP(Y165,[1]DATA!$A$1:$NB$5,5,0),"") -> - | AG167: 0
A168: 8zaDD | B168: =VLOOKUP($AA168,DATA!$B$3:$E$6,2,0) -> 06:30:00 | C168: =VLOOKUP($AA168,DATA!$B$3:$E$6,3,0) -> 14:30:00 | D168: =VLOOKUP($AA168,DATA!$B$3:$E$6,4,0) -> 0.03125 | E168: 0.3020833333 | F168: 0.3020833333 | G168: =DATA!$C$9 -> 0.89 | H168: =DATA!$C$10 -> 64 | I168: 1 | J168: 407.8125 | K168: 407.8125 | L168: 0 | O168: 0 | R168: 0 | X168: =X163 -> 8 | Y168: =Y165+1 -> 2018-02-24 | Z168: =TEXT(Y168,"ddd") -> za | AA168: DD | AB168: =IFERROR(HLOOKUP(Y168,[1]DATA!$A$1:$NB$5,3,0),"") -> - | AG168: 0
A169: 8zaMD | B169: =VLOOKUP($AA169,DATA!$B$3:$E$6,2,0) -> 14:30:00 | C169: =VLOOKUP($AA169,DATA!$B$3:$E$6,3,0) -> 22:30:00 | D169: =VLOOKUP($AA169,DATA!$B$3:$E$6,4,0) -> 0.03125 | E169: 0.3020833333 | F169: 0.3020833333 | G169: =DATA!$C$9 -> 0.89 | H169: =DATA!$C$10 -> 64 | I169: 1 | J169: 407.8125 | K169: 407.8125 | L169: 0 | O169: 0 | R169: 0 | X169: =X163 -> 8 | Z169: =TEXT(Y168,"ddd") -> za | AA169: MD | AB169: =IFERROR(HLOOKUP(Y168,[1]DATA!$A$1:$NB$5,4,0),"") -> - | AG169: 0
A170: 8zaND | B170: =VLOOKUP($AA170,DATA!$B$3:$E$6,2,0) -> 22:30:00 | C170: =VLOOKUP($AA170,DATA!$B$3:$E$6,3,0) -> 06:30:00 | D170: =VLOOKUP($AA170,DATA!$B$3:$E$6,4,0) -> 0.03125 | E170: 0.3020833333 | F170: 0.3020833333 | G170: =DATA!$C$9 -> 0.89 | H170: =DATA!$C$10 -> 64 | I170: 1 | J170: 407.8125 | K170: 407.8125 | L170: 0 | O170: 0 | R170: 0 | X170: =X163 -> 8 | Z170: =TEXT(Y168,"ddd") -> za | AA170: ND | AB170: =IFERROR(HLOOKUP(Y168,[1]DATA!$A$1:$NB$5,5,0),"") -> - | AG170: 0
A171: 8zoDD | B171: =VLOOKUP($AA171,DATA!$B$3:$E$6,2,0) -> 06:30:00 | C171: =VLOOKUP($AA171,DATA!$B$3:$E$6,3,0) -> 14:30:00 | D171: =VLOOKUP($AA171,DATA!$B$3:$E$6,4,0) -> 0.03125 | E171: 0.3020833333 | F171: 0.3020833333 | G171: =DATA!$C$9 -> 0.89 | H171: =DATA!$C$10 -> 64 | I171: 1 | J171: 407.8125 | K171: 407.8125 | L171: 0 | O171: 0 | R171: 0 | X171: =X163 -> 8 | Y171: =Y168+1 -> 2018-02-25 | Z171: =TEXT(Y171,"ddd") -> zo | AA171: DD | AB171: =IFERROR(HLOOKUP(Y171,[1]DATA!$A$1:$NB$5,3,0),"") -> - | AG171: 0
A172: 8zoMD | B172: =VLOOKUP($AA172,DATA!$B$3:$E$6,2,0) -> 14:30:00 | C172: =VLOOKUP($AA172,DATA!$B$3:$E$6,3,0) -> 22:30:00 | D172: =VLOOKUP($AA172,DATA!$B$3:$E$6,4,0) -> 0.03125 | E172: 0.3020833333 | F172: 0.3020833333 | G172: =DATA!$C$9 -> 0.89 | H172: =DATA!$C$10 -> 64 | I172: 1 | J172: 407.8125 | K172: 407.8125 | L172: 0 | O172: 0 | R172: 0 | X172: =X163 -> 8 | Z172: =TEXT(Y171,"ddd") -> zo | AA172: MD | AB172: =IFERROR(HLOOKUP(Y171,[1]DATA!$A$1:$NB$5,4,0),"") -> - | AG172: 0
A173: 8zoZND | B173: =VLOOKUP($AA173,DATA!$B$3:$E$6,2,0) -> 00:00:00 | C173: =VLOOKUP($AA173,DATA!$B$3:$E$6,3,0) -> 00:00:00 | D173: =VLOOKUP($AA173,DATA!$B$3:$E$6,4,0) -> 0 | E173: 0 | F173: 0 | G173: =DATA!$C$9 -> 0.89 | H173: =DATA!$C$10 -> 64 | I173: 1 | J173: 0 | K173: 0 | L173: 0 | O173: 0 | R173: 0 | X173: =X163 -> 8 | Z173: =TEXT(Y171,"ddd") -> zo | AA173: ZND | AB173: =IFERROR(HLOOKUP(Y171,[1]DATA!$A$1:$NB$5,5,0),"") -> D3 | AG173: 0
A174: 9maDD | B174: =VLOOKUP($AA174,DATA!$B$3:$E$6,2,0) -> 06:30:00 | C174: =VLOOKUP($AA174,DATA!$B$3:$E$6,3,0) -> 14:30:00 | D174: =VLOOKUP($AA174,DATA!$B$3:$E$6,4,0) -> 0.03125 | E174: 0.3020833333 | F174: 0.2493055556 | G174: =DATA!$C$9 -> 0.89 | H174: =DATA!$C$10 -> 64 | I174: 1 | J174: 336.5625 | K174: 407.8125 | L174: 0.05277777778 | M174: 71.25 | N174: 0.1747126437 | O174: =TIME(INT($AD174/60),INT(MOD($AD174,60)/1),0) -> 0 | R174: 150.4 | S174: 125 | U174: 125 | X174: =X184 -> 9 | Y174: =Y171+1 -> 2018-02-26 | Z174: =TEXT(Y174,"ddd") -> ma | AA174: DD | AB174: =IFERROR(HLOOKUP(Y174,[1]DATA!$A$1:$NB$5,3,0),"") -> D2 | AC174: 76 | AE174: 16 | AF174: 141 | AG174: 0 | AH174: -239.6875 | AI174: 0.2867383513 | AJ174: 1 | AK174: 4359.375 | AL174: 3295 | AM174: 0.7558422939 | AN174: 478.125 | AO174: 0.1096774194 | AP174: 0 | AQ174: 0 | AR174: 0.9687685349 | AS174: 0.977079408 | AT174: 0.9604576618 | AV174: 586.25 | AW174: 0.1344802867 | AX174: 625.3333333 | AY174: 136
A175: 9maMD | B175: =VLOOKUP($AA175,DATA!$B$3:$E$6,2,0) -> 14:30:00 | C175: =VLOOKUP($AA175,DATA!$B$3:$E$6,3,0) -> 22:30:00 | D175: =VLOOKUP($AA175,DATA!$B$3:$E$6,4,0) -> 0.03125 | E175: 0.3020833333 | F175: 0.2680555556 | G175: =DATA!$C$9 -> 0.89 | H175: =DATA!$C$10 -> 64 | I175: 1 | J175: 361.875 | K175: 407.8125 | L175: 0.03402777778 | M175: 45.9375 | N175: 0.1126436782 | O175: =TIME(INT(AD175/60),INT(MOD(AD175,60)/1),0) -> 0 | R175: 350.9333333 | S175: 308 | T175: 308 | X175: =X184 -> 9 | Z175: =TEXT(Y174,"ddd") -> ma | AA175: MD | AB175: =IFERROR(HLOOKUP(Y174,[1]DATA!$A$1:$NB$5,4,0),"") -> D1 | AC175: 49 | AE175: 21 | AF175: 329 | AG175: 8 | AH175: -82 | AI175: 0.7065232975 | AJ175: 0.9777117385
A176: =X176&Z176&AA176 -> 9maND | B176: =VLOOKUP($AA176,DATA!$B$3:$E$6,2,0) -> 22:30:00 | C176: =VLOOKUP($AA176,DATA!$B$3:$E$6,3,0) -> 06:30:00 | D176: =VLOOKUP($AA176,DATA!$B$3:$E$6,4,0) -> 0.03125 | E176: 0.3020833333 | F176: 0.3020833333 | G176: =DATA!$C$9 -> 0.89 | H176: =DATA!$C$10 -> 64 | I176: 1 | J176: 407.8125 | K176: 407.8125 | L176: 0 | O176: 0 | P176: =IF($O176*86400/$H176=0,"",$O176*86400/$H176) ->  | R176: 0 | X176: =X184 -> 9 | Z176: =TEXT(Y174,"ddd") -> ma | AA176: ND | AB176: =IFERROR(HLOOKUP(Y174,[1]DATA!$A$1:$NB$5,5,0),"") -> D3 | AG176: 0
A177: 9diDD | B177: =VLOOKUP($AA177,DATA!$B$3:$E$6,2,0) -> 06:30:00 | C177: =VLOOKUP($AA177,DATA!$B$3:$E$6,3,0) -> 14:30:00 | D177: =VLOOKUP($AA177,DATA!$B$3:$E$6,4,0) -> 0.03125 | E177: 0.3020833333 | F177: 0.2979166667 | G177: =DATA!$C$9 -> 0.89 | H177: =DATA!$C$10 -> 64 | I177: 1 | J177: 402.1875 | K177: 407.8125 | L177: 0.004166666667 | M177: 5.625 | N177: 0.01379310345 | O177: 0 | R177: 471.4666667 | S177: 405 | U177: 405 | X177: =X184 -> 9 | Y177: =Y174+1 -> 2018-02-27 | Z177: =TEXT(Y177,"ddd") -> di | AA177: DD | AB177: =IFERROR(HLOOKUP(Y177,[1]DATA!$A$1:$NB$5,3,0),"") -> D2 | AC177: 6 | AE177: 37 | AF177: 442 | AG177: 16 | AH177: -25.3125 | AI177: 0.9290322581 | AJ177: 0.9671772429
A178: 9diMD | B178: =VLOOKUP($AA178,DATA!$B$3:$E$6,2,0) -> 14:30:00 | C178: =VLOOKUP($AA178,DATA!$B$3:$E$6,3,0) -> 22:30:00 | D178: =VLOOKUP($AA178,DATA!$B$3:$E$6,4,0) -> 0.03125 | E178: 0.3020833333 | F178: 0.2222222222 | G178: =DATA!$C$9 -> 0.89 | H178: =DATA!$C$10 -> 64 | I178: 1 | J178: 300 | K178: 407.8125 | L178: 0.07986111111 | M178: 107.8125 | N178: 0.2643678161 | O178: 0 | R178: 372.2666667 | S178: 317 | T178: 317 | X178: =X184 -> 9 | Z178: =TEXT(Y177,"ddd") -> di | AA178: MD | AB178: =IFERROR(HLOOKUP(Y177,[1]DATA!$A$1:$NB$5,4,0),"") -> D1 | AC178: 115 | AE178: 32 | AF178: 349 | AG178: 3 | AH178: -11.125 | AI178: 0.7271684588 | AJ178: 0.9920056848
A179: 9diND | B179: =VLOOKUP($AA179,DATA!$B$3:$E$6,2,0) -> 22:30:00 | C179: =VLOOKUP($AA179,DATA!$B$3:$E$6,3,0) -> 06:30:00 | D179: =VLOOKUP($AA179,DATA!$B$3:$E$6,4,0) -> 0.03125 | E179: 0.3020833333 | F179: 0.3020833333 | G179: =DATA!$C$9 -> 0.89 | H179: =DATA!$C$10 -> 64 | I179: 1 | J179: 407.8125 | K179: 407.8125 | L179: 0 | O179: 0 | R179: 0 | X179: =X184 -> 9 | Z179: =TEXT(Y177,"ddd") -> di | AA179: ND | AB179: =IFERROR(HLOOKUP(Y177,[1]DATA!$A$1:$NB$5,5,0),"") -> D3 | AG179: 0
A180: 9woDD | B180: =VLOOKUP($AA180,DATA!$B$3:$E$6,2,0) -> 06:30:00 | C180: =VLOOKUP($AA180,DATA!$B$3:$E$6,3,0) -> 14:30:00 | D180: =VLOOKUP($AA180,DATA!$B$3:$E$6,4,0) -> 0.03125 | E180: 0.3020833333 | F180: 0.2743055556 | G180: =DATA!$C$9 -> 0.89 | H180: =DATA!$C$10 -> 64 | I180: 1 | J180: 370.3125 | K180: 407.8125 | L180: 0.02777777778 | M180: 37.5 | N180: 0.09195402299 | O180: 0 | R180: 378.6666667 | S180: 339 | U180: 339 | X180: =X184 -> 9 | Y180: =Y177+1 -> 2018-02-28 | Z180: =TEXT(Y180,"ddd") -> wo | AA180: DD | AB180: =IFERROR(HLOOKUP(Y180,[1]DATA!$A$1:$NB$5,3,0),"") -> D2 | AC180: 40 | AE180: 16 | AF180: 355 | AG180: 8 | AH180: -59.4375 | AI180: 0.7776344086 | AJ180: 0.9793103448
A181: 9woMD | B181: =VLOOKUP($AA181,DATA!$B$3:$E$6,2,0) -> 14:30:00 | C181: =VLOOKUP($AA181,DATA!$B$3:$E$6,3,0) -> 22:30:00 | D181: =VLOOKUP($AA181,DATA!$B$3:$E$6,4,0) -> 0.03125 | E181: 0.3020833333 | F181: 0.2861111111 | G181: =DATA!$C$9 -> 0.89 | H181: =DATA!$C$10 -> 64 | I181: 1 | J181: 386.25 | K181: 407.8125 | L181: 0.01597222222 | M181: 21.5625 | N181: 0.05287356322 | O181: 0 | R181: 420.2666667 | S181: 364 | T181: 364 | X181: =X184 -> 9 | Z181: =TEXT(Y180,"ddd") -> wo | AA181: MD | AB181: =IFERROR(HLOOKUP(Y180,[1]DATA!$A$1:$NB$5,4,0),"") -> D1 | AC181: 23 | AE181: 30 | AF181: 394 | AG181: 26 | AH181: -50.375 | AI181: 0.8349820789 | AJ181: 0.9417388706
A182: 9woND | B182: =VLOOKUP($AA182,DATA!$B$3:$E$6,2,0) -> 22:30:00 | C182: =VLOOKUP($AA182,DATA!$B$3:$E$6,3,0) -> 06:30:00 | D182: =VLOOKUP($AA182,DATA!$B$3:$E$6,4,0) -> 0.03125 | E182: 0.3020833333 | F182: 0.3020833333 | G182: =DATA!$C$9 -> 0.89 | H182: =DATA!$C$10 -> 64 | I182: 1 | J182: 407.8125 | K182: 407.8125 | L182: 0 | O182: 0 | R182: 0 | X182: =X184 -> 9 | Z182: =TEXT(Y180,"ddd") -> wo | AA182: ND | AB182: =IFERROR(HLOOKUP(Y180,[1]DATA!$A$1:$NB$5,5,0),"") -> D3 | AG182: 0
A183: 9doDD | B183: =VLOOKUP($AA183,DATA!$B$3:$E$6,2,0) -> 06:30:00 | C183: =VLOOKUP($AA183,DATA!$B$3:$E$6,3,0) -> 14:30:00 | D183: =VLOOKUP($AA183,DATA!$B$3:$E$6,4,0) -> 0.03125 | E183: 0.3020833333 | F183: 0.2819444444 | G183: =DATA!$C$9 -> 0.89 | H183: =DATA!$C$10 -> 64 | I183: 1 | J183: 380.625 | K183: 407.8125 | L183: 0.02013888889 | M183: 27.1875 | N183: 0.06666666667 | O183: 0 | R183: 409.6 | S183: 349 | U183: 349 | X183: =X184 -> 9 | Y183: =Y180+1 -> 2018-03-01 | Z183: =TEXT(Y183,"ddd") -> do | AA183: DD | AB183: =IFERROR(HLOOKUP(Y183,[1]DATA!$A$1:$NB$5,3,0),"") -> D2 | AC183: 29 | AE183: 35 | AF183: 384 | AG183: 28 | AH183: -59.75 | AI183: 0.8005734767 | AJ183: 0.9360146252
A184: 9doMD | B184: =VLOOKUP($AA184,DATA!$B$3:$E$6,2,0) -> 14:30:00 | C184: =VLOOKUP($AA184,DATA!$B$3:$E$6,3,0) -> 22:30:00 | D184: =VLOOKUP($AA184,DATA!$B$3:$E$6,4,0) -> 0.03125 | E184: 0.3020833333 | F184: 0.2548611111 | G184: =DATA!$C$9 -> 0.89 | H184: =DATA!$C$10 -> 64 | I184: 1 | J184: 344.0625 | K184: 407.8125 | L184: 0.04722222222 | M184: 63.75 | N184: 0.1563218391 | O184: 0 | R184: 411.7333333 | S184: 360 | T184: 360 | X184: =WEEKNUM($Y174) -> 9 | Z184: =TEXT(Y183,"ddd") -> do | AA184: MD | AB184: =IFERROR(HLOOKUP(Y183,[1]DATA!$A$1:$NB$5,4,0),"") -> D1 | AC184: 68 | AE184: 26 | AF184: 386 | AG184: 8 | AH184: -12.1875 | AI184: 0.8258064516 | AJ184: 0.9809402795
A185: 9doND | B185: =VLOOKUP($AA185,DATA!$B$3:$E$6,2,0) -> 22:30:00 | C185: =VLOOKUP($AA185,DATA!$B$3:$E$6,3,0) -> 06:30:00 | D185: =VLOOKUP($AA185,DATA!$B$3:$E$6,4,0) -> 0.03125 | E185: 0.3020833333 | F185: 0.3020833333 | G185: =DATA!$C$9 -> 0.89 | H185: =DATA!$C$10 -> 64 | I185: 1 | J185: 407.8125 | K185: 407.8125 | L185: 0 | O185: 0 | R185: 0 | X185: =X184 -> 9 | Z185: =TEXT(Y183,"ddd") -> do | AA185: ND | AB185: =IFERROR(HLOOKUP(Y183,[1]DATA!$A$1:$NB$5,5,0),"") -> D3 | AG185: 0
A186: 9vrDD | B186: =VLOOKUP($AA186,DATA!$B$3:$E$6,2,0) -> 06:30:00 | C186: =VLOOKUP($AA186,DATA!$B$3:$E$6,3,0) -> 14:30:00 | D186: =VLOOKUP($AA186,DATA!$B$3:$E$6,4,0) -> 0.03125 | E186: 0.3020833333 | F186: 0.2694444444 | G186: =DATA!$C$9 -> 0.89 | H186: =DATA!$C$10 -> 64 | I186: 1 | J186: 363.75 | K186: 407.8125 | L186: 0.03263888889 | M186: 44.0625 | N186: 0.108045977 | O186: 0 | R186: 412.8 | S186: 357 | U186: 357 | X186: =X184 -> 9 | Y186: =Y183+1 -> 2018-03-02 | Z186: =TEXT(Y186,"ddd") -> vr | AA186: DD | AB186: =IFERROR(HLOOKUP(Y186,[1]DATA!$A$1:$NB$5,3,0),"") -> D2 | AC186: 47 | AE186: 30 | AF186: 387 | AG186: 36 | AH186: -34.875 | AI186: 0.8189247312 | AJ186: 0.9197860963
A187: 9vrMD | B187: =VLOOKUP($AA187,DATA!$B$3:$E$6,2,0) -> 14:30:00 | C187: =VLOOKUP($AA187,DATA!$B$3:$E$6,3,0) -> 22:30:00 | D187: =VLOOKUP($AA187,DATA!$B$3:$E$6,4,0) -> 0.03125 | E187: 0.3020833333 | F187: 0.2625 | G187: =DATA!$C$9 -> 0.89 | H187: =DATA!$C$10 -> 64 | I187: 1 | J187: 354.375 | K187: 407.8125 | L187: 0.03958333333 | M187: 53.4375 | N187: 0.1310344828 | O187: 0 | R187: 425.6 | S187: 371 | T187: 371 | X187: =X184 -> 9 | Z187: =TEXT(Y186,"ddd") -> vr | AA187: MD | AB187: =IFERROR(HLOOKUP(Y186,[1]DATA!$A$1:$NB$5,4,0),"") -> D1 | AC187: 57 | AE187: 28 | AF187: 399 | AG187: 3 | AH187: -11.5 | AI187: 0.8510394265 | AJ187: 0.9930004666
A188: 9vrND | B188: =VLOOKUP($AA188,DATA!$B$3:$E$6,2,0) -> 22:30:00 | C188: =VLOOKUP($AA188,DATA!$B$3:$E$6,3,0) -> 06:30:00 | D188: =VLOOKUP($AA188,DATA!$B$3:$E$6,4,0) -> 0.03125 | E188: 0.3020833333 | F188: 0.3020833333 | G188: =DATA!$C$9 -> 0.89 | H188: =DATA!$C$10 -> 64 | I188: 1 | J188: 407.8125 | K188: 407.8125 | L188: 0 | O188: 0 | R188: 0 | X188: =X184 -> 9 | Z188: =TEXT(Y186,"ddd") -> vr | AA188: ND | AB188: =IFERROR(HLOOKUP(Y186,[1]DATA!$A$1:$NB$5,5,0),"") -> - | AG188: 0
A189: 9zaDD | B189: =VLOOKUP($AA189,DATA!$B$3:$E$6,2,0) -> 06:30:00 | C189: =VLOOKUP($AA189,DATA!$B$3:$E$6,3,0) -> 14:30:00 | D189: =VLOOKUP($AA189,DATA!$B$3:$E$6,4,0) -> 0.03125 | E189: 0.3020833333 | F189: 0.3020833333 | G189: =DATA!$C$9 -> 0.89 | H189: =DATA!$C$10 -> 64 | I189: 1 | J189: 407.8125 | K189: 407.8125 | L189: 0 | O189: 0 | R189: 0 | X189: =X184 -> 9 | Y189: =Y186+1 -> 2018-03-03 | Z189: =TEXT(Y189,"ddd") -> za | AA189: DD | AB189: =IFERROR(HLOOKUP(Y189,[1]DATA!$A$1:$NB$5,3,0),"") -> - | AG189: 0
A190: 9zaMD | B190: =VLOOKUP($AA190,DATA!$B$3:$E$6,2,0) -> 14:30:00 | C190: =VLOOKUP($AA190,DATA!$B$3:$E$6,3,0) -> 22:30:00 | D190: =VLOOKUP($AA190,DATA!$B$3:$E$6,4,0) -> 0.03125 | E190: 0.3020833333 | F190: 0.3020833333 | G190: =DATA!$C$9 -> 0.89 | H190: =DATA!$C$10 -> 64 | I190: 1 | J190: 407.8125 | K190: 407.8125 | L190: 0 | O190: 0 | R190: 0 | X190: =X184 -> 9 | Z190: =TEXT(Y189,"ddd") -> za | AA190: MD | AB190: =IFERROR(HLOOKUP(Y189,[1]DATA!$A$1:$NB$5,4,0),"") -> - | AG190: 0
A191: 9zaND | B191: =VLOOKUP($AA191,DATA!$B$3:$E$6,2,0) -> 22:30:00 | C191: =VLOOKUP($AA191,DATA!$B$3:$E$6,3,0) -> 06:30:00 | D191: =VLOOKUP($AA191,DATA!$B$3:$E$6,4,0) -> 0.03125 | E191: 0.3020833333 | F191: 0.3020833333 | G191: =DATA!$C$9 -> 0.89 | H191: =DATA!$C$10 -> 64 | I191: 1 | J191: 407.8125 | K191: 407.8125 | L191: 0 | O191: 0 | R191: 0 | X191: =X184 -> 9 | Z191: =TEXT(Y189,"ddd") -> za | AA191: ND | AB191: =IFERROR(HLOOKUP(Y189,[1]DATA!$A$1:$NB$5,5,0),"") -> - | AG191: 0
A192: 9zoDD | B192: =VLOOKUP($AA192,DATA!$B$3:$E$6,2,0) -> 06:30:00 | C192: =VLOOKUP($AA192,DATA!$B$3:$E$6,3,0) -> 14:30:00 | D192: =VLOOKUP($AA192,DATA!$B$3:$E$6,4,0) -> 0.03125 | E192: 0.3020833333 | F192: 0.3020833333 | G192: =DATA!$C$9 -> 0.89 | H192: =DATA!$C$10 -> 64 | I192: 1 | J192: 407.8125 | K192: 407.8125 | L192: 0 | O192: 0 | R192: 0 | X192: =X184 -> 9 | Y192: =Y189+1 -> 2018-03-04 | Z192: =TEXT(Y192,"ddd") -> zo | AA192: DD | AB192: =IFERROR(HLOOKUP(Y192,[1]DATA!$A$1:$NB$5,3,0),"") -> - | AG192: 0
A193: 9zoMD | B193: =VLOOKUP($AA193,DATA!$B$3:$E$6,2,0) -> 14:30:00 | C193: =VLOOKUP($AA193,DATA!$B$3:$E$6,3,0) -> 22:30:00 | D193: =VLOOKUP($AA193,DATA!$B$3:$E$6,4,0) -> 0.03125 | E193: 0.3020833333 | F193: 0.3020833333 | G193: =DATA!$C$9 -> 0.89 | H193: =DATA!$C$10 -> 64 | I193: 1 | J193: 407.8125 | K193: 407.8125 | L193: 0 | O193: 0 | R193: 0 | X193: =X184 -> 9 | Z193: =TEXT(Y192,"ddd") -> zo | AA193: MD | AB193: =IFERROR(HLOOKUP(Y192,[1]DATA!$A$1:$NB$5,4,0),"") -> - | AG193: 0
A194: 9zoZND | B194: =VLOOKUP($AA194,DATA!$B$3:$E$6,2,0) -> 00:00:00 | C194: =VLOOKUP($AA194,DATA!$B$3:$E$6,3,0) -> 00:00:00 | D194: =VLOOKUP($AA194,DATA!$B$3:$E$6,4,0) -> 0 | E194: 0 | F194: 0 | G194: =DATA!$C$9 -> 0.89 | H194: =DATA!$C$10 -> 64 | I194: 1 | J194: 0 | K194: 0 | L194: 0 | O194: 0 | R194: 0 | X194: =X184 -> 9 | Z194: =TEXT(Y192,"ddd") -> zo | AA194: ZND | AB194: =IFERROR(HLOOKUP(Y192,[1]DATA!$A$1:$NB$5,5,0),"") -> D2 | AG194: 0
A195: 10maDD | B195: =VLOOKUP($AA195,DATA!$B$3:$E$6,2,0) -> 06:30:00 | C195: =VLOOKUP($AA195,DATA!$B$3:$E$6,3,0) -> 14:30:00 | D195: =VLOOKUP($AA195,DATA!$B$3:$E$6,4,0) -> 0.03125 | E195: 0.3020833333 | F195: 0.2173611111 | G195: =DATA!$C$9 -> 0.89 | H195: =DATA!$C$10 -> 64 | I195: 1 | J195: 293.4375 | K195: 407.8125 | L195: 0.08472222222 | M195: 114.375 | N195: 0.2804597701 | O195: =TIME(INT($AD195/60),INT(MOD($AD195,60)/1),0) -> 0 | R195: 343.4666667 | S195: 295 | T195: 295 | X195: =X205 -> 10 | Y195: =Y192+1 -> 2018-03-05 | Z195: =TEXT(Y195,"ddd") -> ma | AA195: DD | AB195: =IFERROR(HLOOKUP(Y195,[1]DATA!$A$1:$NB$5,3,0),"") -> D1 | AC195: 122 | AE195: 27 | AF195: 322 | AG195: 8 | AH195: -26.5625 | AI195: 0.676702509 | AJ195: 0.9772382398 | AK195: 4359.375 | AL195: 2942 | AM195: 0.6748673835 | AN195: 410.625 | AO195: 0.09419354839 | AP195: 0 | AQ195: 0 | AR195: 0.9585001525 | AS195: 0.9712614753 | AU195: 0.9457388298 | AV195: 1006.75 | AW195: 0.2309390681 | AX195: 1073.866667 | AY195: 153
A196: 10maMD | B196: =VLOOKUP($AA196,DATA!$B$3:$E$6,2,0) -> 14:30:00 | C196: =VLOOKUP($AA196,DATA!$B$3:$E$6,3,0) -> 22:30:00 | D196: =VLOOKUP($AA196,DATA!$B$3:$E$6,4,0) -> 0.03125 | E196: 0.3020833333 | F196: 0.25 | G196: =DATA!$C$9 -> 0.89 | H196: =DATA!$C$10 -> 64 | I196: 1 | J196: 337.5 | K196: 407.8125 | L196: 0.05208333333 | M196: 70.3125 | N196: 0.1724137931 | O196: =TIME(INT(AD196/60),INT(MOD(AD196,60)/1),0) -> 0 | R196: 323.2 | S196: 286 | V196: 286 | X196: =X205 -> 10 | Z196: =TEXT(Y195,"ddd") -> ma | AA196: MD | AB196: =IFERROR(HLOOKUP(Y195,[1]DATA!$A$1:$NB$5,4,0),"") -> D3 | AC196: 75 | AE196: 17 | AF196: 303 | AG196: 15 | AH196: -79.625 | AI196: 0.6560573477 | AJ196: 0.9556475458
A197: 10maND | B197: =VLOOKUP($AA197,DATA!$B$3:$E$6,2,0) -> 22:30:00 | C197: =VLOOKUP($AA197,DATA!$B$3:$E$6,3,0) -> 06:30:00 | D197: =VLOOKUP($AA197,DATA!$B$3:$E$6,4,0) -> 0.03125 | E197: 0.3020833333 | F197: 0.3020833333 | G197: =DATA!$C$9 -> 0.89 | H197: =DATA!$C$10 -> 64 | I197: 1 | J197: 407.8125 | K197: 407.8125 | L197: 0 | O197: 0 | R197: 0 | X197: =X205 -> 10 | Z197: =TEXT(Y195,"ddd") -> ma | AA197: ND | AB197: =IFERROR(HLOOKUP(Y195,[1]DATA!$A$1:$NB$5,5,0),"") -> D2 | AG197: 0
A198: 10diDD | B198: =VLOOKUP($AA198,DATA!$B$3:$E$6,2,0) -> 06:30:00 | C198: =VLOOKUP($AA198,DATA!$B$3:$E$6,3,0) -> 14:30:00 | D198: =VLOOKUP($AA198,DATA!$B$3:$E$6,4,0) -> 0.03125 | E198: 0.3020833333 | F198: 0.2833333333 | G198: =DATA!$C$9 -> 0.89 | H198: =DATA!$C$10 -> 64 | I198: 1 | J198: =F198*86400/H198*I198 -> 382.5 | K198: =E198*86400/H198 -> 407.8125 | L198: 0.01875 | M198: 25.3125 | N198: 0.06206896552 | O198: 0 | R198: =AF198*AG$2 -> 334.9333333 | S198: =IF(AF198-AE198=0,"",AF198-AE198) -> 291 | T198: 291 | X198: =X205 -> 10 | Y198: =Y195+1 -> 2018-03-06 | Z198: =TEXT(Y198,"ddd") -> di | AA198: DD | AB198: =IFERROR(HLOOKUP(Y198,[1]DATA!$A$1:$NB$5,3,0),"") -> D1 | AC198: 27 | AE198: 23 | AF198: 314 | AG198: 33 | AH198: -119.625 | AI198: 0.6675268817 | AJ198: 0.9103098387
A199: 10diMD | B199: =VLOOKUP($AA199,DATA!$B$3:$E$6,2,0) -> 14:30:00 | C199: =VLOOKUP($AA199,DATA!$B$3:$E$6,3,0) -> 22:30:00 | D199: =VLOOKUP($AA199,DATA!$B$3:$E$6,4,0) -> 0.03125 | E199: 0.3020833333 | F199: 0.2736111111 | G199: =DATA!$C$9 -> 0.89 | H199: =DATA!$C$10 -> 64 | I199: 1 | J199: 369.375 | K199: 407.8125 | L199: =TIME(INT($AC199/60),INT(MOD($AC199,60)/1),0) -> 0.02847222222 | M199: =IF($L199*86400/$H199=0,"",$L199*86400/$H199) -> 38.4375 | N199: =IFERROR($M199/$K199,"") -> 0.09425287356 | O199: 0 | Q199: =IFERROR($P199/$K199,"") ->  | R199: 337.0666667 | S199: 295 | T199: =IF(IF($AB199="D1",$S199,"")=0,"",IF($AB199="D1",$S199,"")) ->  | U199: =IF(IF($AB199="D2",$S199,"")=0,"",IF($AB199="D2",$S199,"")) ->  | V199: =IF(IF($AB199="D3",$S199,"")=0,"",IF($AB199="D3",$S199,"")) -> 295 | X199: =X205 -> 10 | Z199: =TEXT(Y198,"ddd") -> di | AA199: MD | AB199: =IFERROR(HLOOKUP(Y198,[1]DATA!$A$1:$NB$5,4,0),"") -> D3 | AC199: 41 | AE199: 21 | AF199: 316 | AG199: 32 | AH199: -102.5 | AI199: 0.676702509 | AJ199: 0.9132947977
A200: 10diND | B200: =VLOOKUP($AA200,DATA!$B$3:$E$6,2,0) -> 22:30:00 | C200: =VLOOKUP($AA200,DATA!$B$3:$E$6,3,0) -> 06:30:00 | D200: =VLOOKUP($AA200,DATA!$B$3:$E$6,4,0) -> 0.03125 | E200: 0.3020833333 | F200: 0.3020833333 | G200: =DATA!$C$9 -> 0.89 | H200: =DATA!$C$10 -> 64 | I200: 1 | J200: 407.8125 | K200: 407.8125 | L200: 0 | O200: 0 | R200: 0 | X200: =X205 -> 10 | Z200: =TEXT(Y198,"ddd") -> di | AA200: ND | AB200: =IFERROR(HLOOKUP(Y198,[1]DATA!$A$1:$NB$5,5,0),"") -> D2 | AG200: 0
... 918 more rows

Sheet TA SRA RH
X1: =DATA!$C$16 -> SRA RH | AC1: TA Target | AE1: =DATA!$C$9 -> 0.89 | AP1: TA | AQ1: = | AR1: [ A ]
AC2: Cycle Time | AE2: 64 | AG2: =AE2/60 -> 1.066666667
AC3: Enter Data | AR3: [ T ] - [ BS ] - [ PS ]
A4: ID | B4: Shift Start Time | C4: Shift End Time | D4: Break Time | E4: Total Shift time [Hour] | F4: Available Production Time [Hour] | G4: Target [%] | H4: Cycle time [s] | I4: Target Ouput [56/H] | J4: Parts Target [56/H] | K4: Parts Target [100% Availability] | L4: Blocked / Starved [Hour] | M4: Loss Blocked/ Starved [Parts] | N4: Loss Blocked/ Starved [%] | O4: Planned Stop/ Early Finish [Hour] | P4: Loss Planned Stop/ Early Finish [Parts] | Q4: Loss Planned Stop/ Early Finish [%] | R4: Rekenkolom Benodigde tijd | S4: Produced Parts Actual | T4: Produced Parts Shift D1 | U4: Produced Parts Shift D2 | V4: Produced Parts Shift D3 | X4: Week | Y4: Date | Z4: Day | AA4: Shift | AB4: Shift | AC4: Blocked / Starved [Min] | AD4: Planned Stop / Early Finish [Min] | AE4: Parts during break | AF4: Produced Parts Total | AG4: Downtime Technical SAP[min] | AH4: Delta [Parts] | AI4: Availability (Total Time) [%] | AJ4: Technical Availabilty SRI RH [%] | AK4: Parts Target [100% Availability] | AL4: Parts Actual | AM4: Availability (Total Time) [%] | AN4: Loss Blocked/ Starved [Parts] | AO4: Loss Blocked/ Starved [%] | AP4: Loss Planned Stop/ Early Finish [Parts] | AQ4: Loss Planned Stop/ Early Finish [%] | AR4: Technical Availability Total LH [%] | AS4: Technical Availability Shift D1 [%] | AT4: Technical Availability Shift D2 [%] | AU4: Technical Availability Shift D3 [%] | AV4: Total Downtime [Parts] | AW4: Total Downtime [%] | AX4: Total Downtime [Min] | AY4: Geregistreerd SAP Technical Downtime [Min] | AZ4: Major Items Downtime
AK5: [T] | AL5: [A] | AN5: [BS] | AP5: [PS] | AS5: D1 | AT5: D2 | AU5: D3
A6: =X6&Z6&AA6 -> 1maDD | B6: =VLOOKUP($AA6,DATA!$B$3:$E$6,2,0) -> 06:30:00 | C6: =VLOOKUP($AA6,DATA!$B$3:$E$6,3,0) -> 14:30:00 | D6: =VLOOKUP($AA6,DATA!$B$3:$E$6,4,0) -> 0.03125 | E6: =(C6-B6+(B6>C6))-D6 -> 0.3020833333 | F6: =E6-O6-L6 -> 0.3020833333 | G6: =DATA!$C$9 -> 0.89 | H6: =DATA!$C$10 -> 64 | I6: 1 | J6: =F6*86400/H6*I6 -> 407.8125 | K6: =E6*86400/H6 -> 407.8125 | L6: =TIME(INT($AC6/60),INT(MOD($AC6,60)/1),0) -> 0 | M6: =IF($L6*86400/$H6=0,"",$L6*86400/$H6) ->  | N6: =IFERROR($M6/$K6,"") ->  | O6: =TIME(INT($AD6/60),INT(MOD($AD6,60)/1),0) -> 0 | P6: =IF($O6*86400/$H6=0,"",$O6*86400/$H6) ->  | Q6: =IFERROR($P6/$K6,"") ->  | R6: =AF6*AG$2 -> 0 | S6: =IF(AF6-AE6=0,"",AF6-AE6) ->  | T6: =IF(IF($AB6="D1",$S6,"")=0,"",IF($AB6="D1",$S6,"")) ->  | U6: =IF(IF($AB6="D2",$S6,"")=0,"",IF($AB6="D2",$S6,"")) ->  | V6: =IF(IF($AB6="D3",$S6,"")=0,"",IF($AB6="D3",$S6,"")) ->  | X6: =X16 -> 1 | Y6: 2018-01-01 | Z6: =TEXT(Y6,"ddd") -> ma | AA6: DD | AB6: =IFERROR(HLOOKUP(Y6,[1]DATA!$A$1:$NB$5,3,0),"") -> D1 | AG6: 0 | AK6: 3487.5 | AL6: 2327 | AM6: 0.6672401434 | AN6: 741.5625 | AO6: 0.2126344086 | AP6: 215.625 | AQ6: 0.06182795699 | AR6: 0.9652986433 | AS6: 0.9659561491 | AU6: 0.9646411375 | AV6: 203.3125 | AW6: 0.05829749104 | AX6: 216.8666667 | AY6: 95
A7: 1maMD | B7: =VLOOKUP($AA7,DATA!$B$3:$E$6,2,0) -> 14:30:00 | C7: =VLOOKUP($AA7,DATA!$B$3:$E$6,3,0) -> 22:30:00 | D7: =VLOOKUP($AA7,DATA!$B$3:$E$6,4,0) -> 0.03125 | E7: =(C7-B7+(B7>C7))-D7 -> 0.3020833333 | F7: =E7-O7-L7 -> 0.3020833333 | G7: =DATA!$C$9 -> 0.89 | H7: =DATA!$C$10 -> 64 | I7: 1 | J7: =F7*86400/H7*I7 -> 407.8125 | K7: =E7*86400/H7 -> 407.8125 | L7: =TIME(INT($AC7/60),INT(MOD($AC7,60)/1),0) -> 0 | M7: =IF($L7*86400/$H7=0,"",$L7*86400/$H7) ->  | N7: =IFERROR($M7/$K7,"") ->  | O7: =TIME(INT(AD7/60),INT(MOD(AD7,60)/1),0) -> 0 | Q7: =IFERROR($P7/$K7,"") ->  | R7: =AF7*AG$2 -> 0 | S7: =IF(AF7-AE7=0,"",AF7-AE7) ->  | T7: =IF(IF($AB7="D1",$S7,"")=0,"",IF($AB7="D1",$S7,"")) ->  | U7: =IF(IF($AB7="D2",$S7,"")=0,"",IF($AB7="D2",$S7,"")) ->  | V7: =IF(IF($AB7="D3",$S7,"")=0,"",IF($AB7="D3",$S7,"")) ->  | X7: =X16 -> 1 | Z7: =TEXT(Y6,"ddd") -> ma | AA7: MD | AB7: =IFERROR(HLOOKUP(Y6,[1]DATA!$A$1:$NB$5,4,0),"") -> D3 | AG7: 0
A8: 1maND | B8: =VLOOKUP($AA8,DATA!$B$3:$E$6,2,0) -> 22:30:00 | C8: =VLOOKUP($AA8,DATA!$B$3:$E$6,3,0) -> 06:30:00 | D8: =VLOOKUP($AA8,DATA!$B$3:$E$6,4,0) -> 0.03125 | E8: 0.3020833333 | F8: 0.3020833333 | G8: =DATA!$C$9 -> 0.89 | H8: =DATA!$C$10 -> 64 | I8: 1 | J8: 407.8125 | K8: 407.8125 | L8: 0 | O8: 0 | R8: 0 | X8: =X16 -> 1 | Z8: =TEXT(Y6,"ddd") -> ma | AA8: ND | AB8: =IFERROR(HLOOKUP(Y6,[1]DATA!$A$1:$NB$5,5,0),"") -> D2 | AG8: 0
A9: 1diDD | B9: =VLOOKUP($AA9,DATA!$B$3:$E$6,2,0) -> 06:30:00 | C9: =VLOOKUP($AA9,DATA!$B$3:$E$6,3,0) -> 14:30:00 | D9: =VLOOKUP($AA9,DATA!$B$3:$E$6,4,0) -> 0.03125 | E9: 0.3020833333 | F9: 0.1736111111 | G9: =DATA!$C$9 -> 0.89 | H9: =DATA!$C$10 -> 64 | I9: 1 | J9: 234.375 | K9: 407.8125 | L9: 0.02083333333 | M9: 28.125 | N9: 0.06896551724 | O9: 0.1076388889 | P9: 145.3125 | Q9: 0.3563218391 | R9: 290.1333333 | S9: 263 | T9: 263 | X9: =X16 -> 1 | Y9: =Y6+1 -> 2018-01-02 | Z9: =TEXT(Y9,"ddd") -> di | AA9: DD | AB9: =IFERROR(HLOOKUP(Y9,[1]DATA!$A$1:$NB$5,3,0),"") -> D1 | AC9: 30 | AD9: 155 | AE9: 9 | AF9: 272 | AG9: 13 | AH9: 0.5 | AI9: 0.603297491 | AJ9: 0.957114581
A10: 1diMD | B10: =VLOOKUP($AA10,DATA!$B$3:$E$6,2,0) -> 14:30:00 | C10: =VLOOKUP($AA10,DATA!$B$3:$E$6,3,0) -> 22:30:00 | D10: =VLOOKUP($AA10,DATA!$B$3:$E$6,4,0) -> 0.03125 | E10: 0.3020833333 | F10: 0.2631944444 | G10: =DATA!$C$9 -> 0.89 | H10: =DATA!$C$10 -> 64 | I10: 1 | J10: 355.3125 | K10: 407.8125 | L10: 0.03888888889 | M10: 52.5 | N10: 0.1287356322 | O10: 0 | R10: 374.4 | S10: 336 | V10: 336 | X10: =X16 -> 1 | Z10: =TEXT(Y9,"ddd") -> di | AA10: MD | AB10: =IFERROR(HLOOKUP(Y9,[1]DATA!$A$1:$NB$5,4,0),"") -> D3 | AC10: 56 | AE10: 15 | AF10: 351 | AG10: 22 | AH10: -47.4375 | AI10: 0.7707526882 | AJ10: 0.9445005045
A11: 1diND | B11: =VLOOKUP($AA11,DATA!$B$3:$E$6,2,0) -> 22:30:00 | C11: =VLOOKUP($AA11,DATA!$B$3:$E$6,3,0) -> 06:30:00 | D11: =VLOOKUP($AA11,DATA!$B$3:$E$6,4,0) -> 0.03125 | E11: 0.3020833333 | F11: 0.3020833333 | G11: =DATA!$C$9 -> 0.89 | H11: =DATA!$C$10 -> 64 | I11: 1 | J11: 407.8125 | K11: 407.8125 | L11: 0 | O11: 0 | R11: 0 | X11: =X16 -> 1 | Z11: =TEXT(Y9,"ddd") -> di | AA11: ND | AB11: =IFERROR(HLOOKUP(Y9,[1]DATA!$A$1:$NB$5,5,0),"") -> D2 | AG11: 0
A12: 1woDD | B12: =VLOOKUP($AA12,DATA!$B$3:$E$6,2,0) -> 06:30:00 | C12: =VLOOKUP($AA12,DATA!$B$3:$E$6,3,0) -> 14:30:00 | D12: =VLOOKUP($AA12,DATA!$B$3:$E$6,4,0) -> 0.03125 | E12: 0.3020833333 | F12: 0.2451388889 | G12: =DATA!$C$9 -> 0.89 | H12: =DATA!$C$10 -> 64 | I12: 1 | J12: 330.9375 | K12: 407.8125 | L12: 0.05694444444 | M12: 76.875 | N12: 0.1885057471 | O12: 0 | R12: 370.1333333 | S12: 331 | T12: 331 | X12: =X16 -> 1 | Y12: =Y9+1 -> 2018-01-03 | Z12: =TEXT(Y12,"ddd") -> wo | AA12: DD | AB12: =IFERROR(HLOOKUP(Y12,[1]DATA!$A$1:$NB$5,3,0),"") -> D1 | AC12: 82 | AE12: 16 | AF12: 347 | AG12: 10 | AH12: -28.0625 | AI12: 0.7592831541 | AJ12: 0.9736934409
A13: 1woMD | B13: =VLOOKUP($AA13,DATA!$B$3:$E$6,2,0) -> 14:30:00 | C13: =VLOOKUP($AA13,DATA!$B$3:$E$6,3,0) -> 22:30:00 | D13: =VLOOKUP($AA13,DATA!$B$3:$E$6,4,0) -> 0.03125 | E13: 0.3020833333 | F13: 0.2243055556 | G13: =DATA!$C$9 -> 0.89 | H13: =DATA!$C$10 -> 64 | I13: 1 | J13: 302.8125 | K13: 407.8125 | L13: 0.07777777778 | M13: 105 | N13: 0.2574712644 | O13: 0 | R13: 321.0666667 | S13: 283 | V13: 283 | X13: =X16 -> 1 | Z13: =TEXT(Y12,"ddd") -> wo | AA13: MD | AB13: =IFERROR(HLOOKUP(Y12,[1]DATA!$A$1:$NB$5,4,0),"") -> D3 | AC13: 112 | AE13: 18 | AF13: 301 | AG13: 0 | AH13: -47.9375 | AI13: 0.6491756272 | AJ13: 1
A14: 1woND | B14: =VLOOKUP($AA14,DATA!$B$3:$E$6,2,0) -> 22:30:00 | C14: =VLOOKUP($AA14,DATA!$B$3:$E$6,3,0) -> 06:30:00 | D14: =VLOOKUP($AA14,DATA!$B$3:$E$6,4,0) -> 0.03125 | E14: 0.3020833333 | F14: 0.3020833333 | G14: =DATA!$C$9 -> 0.89 | H14: =DATA!$C$10 -> 64 | I14: 1 | J14: 407.8125 | K14: 407.8125 | L14: 0 | O14: 0 | R14: 0 | X14: =X16 -> 1 | Z14: =TEXT(Y12,"ddd") -> wo | AA14: ND | AB14: =IFERROR(HLOOKUP(Y12,[1]DATA!$A$1:$NB$5,5,0),"") -> D2 | AG14: 0
A15: 1doDD | B15: =VLOOKUP($AA15,DATA!$B$3:$E$6,2,0) -> 06:30:00 | C15: =VLOOKUP($AA15,DATA!$B$3:$E$6,3,0) -> 14:30:00 | D15: =VLOOKUP($AA15,DATA!$B$3:$E$6,4,0) -> 0.03125 | E15: 0.3020833333 | F15: 0.2027777778 | G15: =DATA!$C$9 -> 0.89 | H15: =DATA!$C$10 -> 64 | I15: 1 | J15: 273.75 | K15: 407.8125 | L15: 0.09930555556 | M15: 134.0625 | N15: 0.3287356322 | O15: 0 | R15: 313.6 | S15: 270 | T15: 270 | X15: =X16 -> 1 | Y15: =Y12+1 -> 2018-01-04 | Z15: =TEXT(Y15,"ddd") -> do | AA15: DD | AB15: =IFERROR(HLOOKUP(Y15,[1]DATA!$A$1:$NB$5,3,0),"") -> D1 | AC15: 143 | AE15: 24 | AF15: 294 | AG15: 13 | AH15: -31.875 | AI15: 0.6193548387 | AJ15: 0.9601959584
A16: 1doMD | B16: =VLOOKUP($AA16,DATA!$B$3:$E$6,2,0) -> 14:30:00 | C16: =VLOOKUP($AA16,DATA!$B$3:$E$6,3,0) -> 22:30:00 | D16: =VLOOKUP($AA16,DATA!$B$3:$E$6,4,0) -> 0.03125 | E16: 0.3020833333 | F16: 0.2131944444 | G16: =DATA!$C$9 -> 0.89 | H16: =DATA!$C$10 -> 64 | I16: 1 | J16: 287.8125 | K16: 407.8125 | L16: 0.08888888889 | M16: 120 | N16: 0.2942528736 | O16: 0 | R16: 336 | S16: 300 | V16: 300 | X16: =WEEKNUM($Y6) -> 1 | Z16: =TEXT(Y15,"ddd") -> do | AA16: MD | AB16: =IFERROR(HLOOKUP(Y15,[1]DATA!$A$1:$NB$5,4,0),"") -> D3 | AC16: 128 | AE16: 15 | AF16: 315 | AG16: 10 | AH16: -15.9375 | AI16: 0.688172043 | AJ16: 0.9710982659
A17: 1doND | B17: =VLOOKUP($AA17,DATA!$B$3:$E$6,2,0) -> 22:30:00 | C17: =VLOOKUP($AA17,DATA!$B$3:$E$6,3,0) -> 06:30:00 | D17: =VLOOKUP($AA17,DATA!$B$3:$E$6,4,0) -> 0.03125 | E17: 0.3020833333 | F17: 0.3020833333 | G17: =DATA!$C$9 -> 0.89 | H17: =DATA!$C$10 -> 64 | I17: 1 | J17: 407.8125 | K17: 407.8125 | L17: 0 | O17: 0 | R17: 0 | X17: =X16 -> 1 | Z17: =TEXT(Y15,"ddd") -> do | AA17: ND | AB17: =IFERROR(HLOOKUP(Y15,[1]DATA!$A$1:$NB$5,5,0),"") -> D2 | AG17: 0
A18: 1vrDD | B18: =VLOOKUP($AA18,DATA!$B$3:$E$6,2,0) -> 06:30:00 | C18: =VLOOKUP($AA18,DATA!$B$3:$E$6,3,0) -> 14:30:00 | D18: =VLOOKUP($AA18,DATA!$B$3:$E$6,4,0) -> 0.03125 | E18: 0.3020833333 | F18: 0.1916666667 | G18: =DATA!$C$9 -> 0.89 | H18: =DATA!$C$10 -> 64 | I18: 1 | J18: 258.75 | K18: 407.8125 | L18: 0.08958333333 | M18: 120.9375 | N18: 0.2965517241 | O18: 0.02083333333 | P18: 28.125 | Q18: 0.06896551724 | R18: 322.1333333 | S18: 283 | T18: 283 | X18: =X16 -> 1 | Y18: =Y15+1 -> 2018-01-05 | Z18: =TEXT(Y18,"ddd") -> vr | AA18: DD | AB18: =IFERROR(HLOOKUP(Y18,[1]DATA!$A$1:$NB$5,3,0),"") -> D1 | AC18: 129 | AD18: 30 | AE18: 19 | AF18: 302 | AG18: 9 | AH18: -3.875 | AI18: 0.6491756272 | AJ18: 0.9728206161
A19: 1vrMD | B19: =VLOOKUP($AA19,DATA!$B$3:$E$6,2,0) -> 14:30:00 | C19: =VLOOKUP($AA19,DATA!$B$3:$E$6,3,0) -> 22:30:00 | D19: =VLOOKUP($AA19,DATA!$B$3:$E$6,4,0) -> 0.03125 | E19: 0.3020833333 | F19: 0.19375 | G19: =DATA!$C$9 -> 0.89 | H19: =DATA!$C$10 -> 64 | I19: 1 | J19: 261.5625 | K19: 407.8125 | L19: 0.07708333333 | M19: 104.0625 | N19: 0.2551724138 | O19: 0.03125 | P19: 42.1875 | Q19: 0.1034482759 | R19: 297.6 | S19: 261 | V19: 261 | X19: =X16 -> 1 | Z19: =TEXT(Y18,"ddd") -> vr | AA19: MD | AB19: =IFERROR(HLOOKUP(Y18,[1]DATA!$A$1:$NB$5,4,0),"") -> D3 | AC19: 111 | AD19: 45 | AE19: 18 | AF19: 279 | AG19: 18 | AH19: -28.6875 | AI19: 0.5987096774 | AJ19: 0.9429657795
A20: 1vrND | B20: =VLOOKUP($AA20,DATA!$B$3:$E$6,2,0) -> 22:30:00 | C20: =VLOOKUP($AA20,DATA!$B$3:$E$6,3,0) -> 06:30:00 | D20: =VLOOKUP($AA20,DATA!$B$3:$E$6,4,0) -> 0.03125 | E20: 0.3020833333 | F20: 0.3020833333 | G20: =DATA!$C$9 -> 0.89 | H20: =DATA!$C$10 -> 64 | I20: 1 | J20: 407.8125 | K20: 407.8125 | L20: 0 | O20: 0 | R20: 0 | X20: =X16 -> 1 | Z20: =TEXT(Y18,"ddd") -> vr | AA20: ND | AB20: =IFERROR(HLOOKUP(Y18,[1]DATA!$A$1:$NB$5,5,0),"") -> - | AG20: 0
A21: 1zaDD | B21: =VLOOKUP($AA21,DATA!$B$3:$E$6,2,0) -> 06:30:00 | C21: =VLOOKUP($AA21,DATA!$B$3:$E$6,3,0) -> 14:30:00 | D21: =VLOOKUP($AA21,DATA!$B$3:$E$6,4,0) -> 0.03125 | E21: 0.3020833333 | F21: 0.3020833333 | G21: =DATA!$C$9 -> 0.89 | H21: =DATA!$C$10 -> 64 | I21: 1 | J21: 407.8125 | K21: 407.8125 | L21: 0 | O21: 0 | R21: 0 | X21: =X16 -> 1 | Y21: =Y18+1 -> 2018-01-06 | Z21: =TEXT(Y21,"ddd") -> za | AA21: DD | AB21: =IFERROR(HLOOKUP(Y21,[1]DATA!$A$1:$NB$5,3,0),"") -> - | AG21: 0
A22: 1zaMD | B22: =VLOOKUP($AA22,DATA!$B$3:$E$6,2,0) -> 14:30:00 | C22: =VLOOKUP($AA22,DATA!$B$3:$E$6,3,0) -> 22:30:00 | D22: =VLOOKUP($AA22,DATA!$B$3:$E$6,4,0) -> 0.03125 | E22: 0.3020833333 | F22: 0.3020833333 | G22: =DATA!$C$9 -> 0.89 | H22: =DATA!$C$10 -> 64 | I22: 1 | J22: 407.8125 | K22: 407.8125 | L22: 0 | O22: 0 | R22: 0 | X22: =X16 -> 1 | Z22: =TEXT(Y21,"ddd") -> za | AA22: MD | AB22: =IFERROR(HLOOKUP(Y21,[1]DATA!$A$1:$NB$5,4,0),"") -> - | AG22: 0
A23: 1zaND | B23: =VLOOKUP($AA23,DATA!$B$3:$E$6,2,0) -> 22:30:00 | C23: =VLOOKUP($AA23,DATA!$B$3:$E$6,3,0) -> 06:30:00 | D23: =VLOOKUP($AA23,DATA!$B$3:$E$6,4,0) -> 0.03125 | E23: 0.3020833333 | F23: 0.3020833333 | G23: =DATA!$C$9 -> 0.89 | H23: =DATA!$C$10 -> 64 | I23: 1 | J23: 407.8125 | K23: 407.8125 | L23: 0 | O23: 0 | R23: 0 | X23: =X16 -> 1 | Z23: =TEXT(Y21,"ddd") -> za | AA23: ND | AB23: =IFERROR(HLOOKUP(Y21,[1]DATA!$A$1:$NB$5,5,0),"") -> - | AG23: 0
A24: 1zoDD | B24: =VLOOKUP($AA24,DATA!$B$3:$E$6,2,0) -> 06:30:00 | C24: =VLOOKUP($AA24,DATA!$B$3:$E$6,3,0) -> 14:30:00 | D24: =VLOOKUP($AA24,DATA!$B$3:$E$6,4,0) -> 0.03125 | E24: 0.3020833333 | F24: 0.3020833333 | G24: =DATA!$C$9 -> 0.89 | H24: =DATA!$C$10 -> 64 | I24: 1 | J24: 407.8125 | K24: 407.8125 | L24: 0 | O24: 0 | R24: 0 | X24: =X16 -> 1 | Y24: =Y21+1 -> 2018-01-07 | Z24: =TEXT(Y24,"ddd") -> zo | AA24: DD | AB24: =IFERROR(HLOOKUP(Y24,[1]DATA!$A$1:$NB$5,3,0),"") -> - | AG24: 0
A25: 1zoMD | B25: =VLOOKUP($AA25,DATA!$B$3:$E$6,2,0) -> 14:30:00 | C25: =VLOOKUP($AA25,DATA!$B$3:$E$6,3,0) -> 22:30:00 | D25: =VLOOKUP($AA25,DATA!$B$3:$E$6,4,0) -> 0.03125 | E25: 0.3020833333 | F25: 0.3020833333 | G25: =DATA!$C$9 -> 0.89 | H25: =DATA!$C$10 -> 64 | I25: 1 | J25: 407.8125 | K25: 407.8125 | L25: 0 | O25: 0 | R25: 0 | X25: =X16 -> 1 | Z25: =TEXT(Y24,"ddd") -> zo | AA25: MD | AB25: =IFERROR(HLOOKUP(Y24,[1]DATA!$A$1:$NB$5,4,0),"") -> - | AG25: 0
A26: 1zoZND | B26: =VLOOKUP($AA26,DATA!$B$3:$E$6,2,0) -> 00:00:00 | C26: =VLOOKUP($AA26,DATA!$B$3:$E$6,3,0) -> 00:00:00 | D26: =VLOOKUP($AA26,DATA!$B$3:$E$6,4,0) -> 0 | E26: 0 | F26: 0 | G26: =DATA!$C$9 -> 0.89 | H26: =DATA!$C$10 -> 64 | I26: 1 | J26: 0 | K26: 0 | L26: 0 | O26: 0 | R26: 0 | X26: =X16 -> 1 | Z26: =TEXT(Y24,"ddd") -> zo | AA26: ZND | AB26: =IFERROR(HLOOKUP(Y24,[1]DATA!$A$1:$NB$5,5,0),"") -> D1 | AG26: 0
A27: 2maDD | B27: =VLOOKUP($AA27,DATA!$B$3:$E$6,2,0) -> 06:30:00 | C27: =VLOOKUP($AA27,DATA!$B$3:$E$6,3,0) -> 14:30:00 | D27: =VLOOKUP($AA27,DATA!$B$3:$E$6,4,0) -> 0.03125 | E27: 0.3020833333 | F27: 0.09930555556 | G27: =DATA!$C$9 -> 0.89 | H27: =DATA!$C$10 -> 64 | I27: 1 | J27: =F27*86400/H27*I27 -> 134.0625 | K27: =E27*86400/H27 -> 407.8125 | L27: =TIME(INT($AC27/60),INT(MOD($AC27,60)/1),0) -> 0.1840277778 | M27: =IF($L27*86400/$H27=0,"",$L27*86400/$H27) -> 248.4375 | N27: =IFERROR($M27/$K27,"") -> 0.6091954023 | O27: =TIME(INT($AD27/60),INT(MOD($AD27,60)/1),0) -> 0.01875 | P27: 25.3125 | Q27: =IFERROR($P27/$K27,"") -> 0.06206896552 | R27: =AF27*AG$2 -> 183.4666667 | S27: =IF(AF27-AE27=0,"",AF27-AE27) -> 162 | T27: =IF(IF($AB27="D1",$S27,"")=0,"",IF($AB27="D1",$S27,"")) ->  | U27: =IF(IF($AB27="D2",$S27,"")=0,"",IF($AB27="D2",$S27,"")) ->  | V27: =IF(IF($AB27="D3",$S27,"")=0,"",IF($AB27="D3",$S27,"")) -> 162 | X27: =X37 -> 2 | Y27: =Y24+1 -> 2018-01-08 | Z27: =TEXT(Y27,"ddd") -> ma | AA27: DD | AB27: =IFERROR(HLOOKUP(Y27,[1]DATA!$A$1:$NB$5,3,0),"") -> D3 | AC27: 265 | AD27: 27 | AE27: 10 | AF27: 172 | AG27: 4 | AH27: -0.1875 | AI27: 0.3716129032 | AJ27: 0.9786628734 | AK27: 4359.375 | AL27: 2987 | AM27: 0.6851899642 | AN27: 907.5 | AO27: 0.208172043 | AP27: 25.3125 | AQ27: 0.005806451613 | AR27: 0.9806948514 | AT27: 0.9855108928 | AU27: 0.97587881 | AV27: 439.5625 | AW27: 0.1008315412 | AX27: 468.8666667 | AY27: 68
A28: 2maMD | B28: =VLOOKUP($AA28,DATA!$B$3:$E$6,2,0) -> 14:30:00 | C28: =VLOOKUP($AA28,DATA!$B$3:$E$6,3,0) -> 22:30:00 | D28: =VLOOKUP($AA28,DATA!$B$3:$E$6,4,0) -> 0.03125 | E28: =(C28-B28+(B28>C28))-D28 -> 0.3020833333 | F28: =E28-O28-L28 -> 0.2520833333 | G28: =DATA!$C$9 -> 0.89 | H28: =DATA!$C$10 -> 64 | I28: 1 | J28: =F28*86400/H28*I28 -> 340.3125 | K28: =E28*86400/H28 -> 407.8125 | L28: 0.05 | M28: 67.5 | N28: 0.1655172414 | O28: =TIME(INT(AD28/60),INT(MOD(AD28,60)/1),0) -> 0 | R28: =AF28*AG$2 -> 355.2 | S28: =IF(AF28-AE28=0,"",AF28-AE28) -> 312 | U28: 312 | X28: =X37 -> 2 | Z28: =TEXT(Y27,"ddd") -> ma | AA28: MD | AB28: =IFERROR(HLOOKUP(Y27,[1]DATA!$A$1:$NB$5,4,0),"") -> D2 | AC28: 72 | AE28: 21 | AF28: 333 | AG28: 4 | AH28: -56.4375 | AI28: 0.7156989247 | AJ28: 0.9888641425
A29: 2maND | B29: =VLOOKUP($AA29,DATA!$B$3:$E$6,2,0) -> 22:30:00 | C29: =VLOOKUP($AA29,DATA!$B$3:$E$6,3,0) -> 06:30:00 | D29: =VLOOKUP($AA29,DATA!$B$3:$E$6,4,0) -> 0.03125 | E29: 0.3020833333 | F29: 0.3020833333 | G29: =DATA!$C$9 -> 0.89 | H29: =DATA!$C$10 -> 64 | I29: 1 | J29: 407.8125 | K29: 407.8125 | L29: 0 | O29: 0 | R29: 0 | X29: =X37 -> 2 | Z29: =TEXT(Y27,"ddd") -> ma | AA29: ND | AB29: =IFERROR(HLOOKUP(Y27,[1]DATA!$A$1:$NB$5,5,0),"") -> D1 | AG29: 0
A30: 2diDD | B30: =VLOOKUP($AA30,DATA!$B$3:$E$6,2,0) -> 06:30:00 | C30: =VLOOKUP($AA30,DATA!$B$3:$E$6,3,0) -> 14:30:00 | D30: =VLOOKUP($AA30,DATA!$B$3:$E$6,4,0) -> 0.03125 | E30: 0.3020833333 | F30: 0.2375 | G30: =DATA!$C$9 -> 0.89 | H30: =DATA!$C$10 -> 64 | I30: 1 | J30: 320.625 | K30: 407.8125 | L30: 0.06458333333 | M30: 87.1875 | N30: 0.2137931034 | O30: 0 | R30: 321.0666667 | S30: 275 | V30: 275 | X30: =X37 -> 2 | Y30: =Y27+1 -> 2018-01-09 | Z30: =TEXT(Y30,"ddd") -> di | AA30: DD | AB30: =IFERROR(HLOOKUP(Y30,[1]DATA!$A$1:$NB$5,3,0),"") -> D3 | AC30: 93 | AE30: 26 | AF30: 301 | AG30: 9 | AH30: -73.75 | AI30: 0.6308243728 | AJ30: 0.9727327813
A31: 2diMD | B31: =VLOOKUP($AA31,DATA!$B$3:$E$6,2,0) -> 14:30:00 | C31: =VLOOKUP($AA31,DATA!$B$3:$E$6,3,0) -> 22:30:00 | D31: =VLOOKUP($AA31,DATA!$B$3:$E$6,4,0) -> 0.03125 | E31: 0.3020833333 | F31: 0.2111111111 | G31: =DATA!$C$9 -> 0.89 | H31: =DATA!$C$10 -> 64 | I31: 1 | J31: 285 | K31: 407.8125 | L31: 0.09097222222 | M31: 122.8125 | N31: 0.3011494253 | O31: 0 | R31: 347.7333333 | S31: 303 | U31: 303 | X31: =X37 -> 2 | Z31: =TEXT(Y30,"ddd") -> di | AA31: MD | AB31: =IFERROR(HLOOKUP(Y30,[1]DATA!$A$1:$NB$5,4,0),"") -> D2 | AC31: 131 | AE31: 23 | AF31: 326 | AG31: 4 | AH31: -10.125 | AI31: 0.6950537634 | AJ31: 0.9886277483
A32: 2diND | B32: =VLOOKUP($AA32,DATA!$B$3:$E$6,2,0) -> 22:30:00 | C32: =VLOOKUP($AA32,DATA!$B$3:$E$6,3,0) -> 06:30:00 | D32: =VLOOKUP($AA32,DATA!$B$3:$E$6,4,0) -> 0.03125 | E32: 0.3020833333 | F32: 0.3020833333 | G32: =DATA!$C$9 -> 0.89 | H32: =DATA!$C$10 -> 64 | I32: 1 | J32: 407.8125 | K32: 407.8125 | L32: 0 | O32: 0 | R32: 0 | X32: =X37 -> 2 | Z32: =TEXT(Y30,"ddd") -> di | AA32: ND | AB32: =IFERROR(HLOOKUP(Y30,[1]DATA!$A$1:$NB$5,5,0),"") -> D1 | AG32: 0
A33: 2woDD | B33: =VLOOKUP($AA33,DATA!$B$3:$E$6,2,0) -> 06:30:00 | C33: =VLOOKUP($AA33,DATA!$B$3:$E$6,3,0) -> 14:30:00 | D33: =VLOOKUP($AA33,DATA!$B$3:$E$6,4,0) -> 0.03125 | E33: 0.3020833333 | F33: 0.2909722222 | G33: =DATA!$C$9 -> 0.89 | H33: =DATA!$C$10 -> 64 | I33: 1 | J33: 392.8125 | K33: 407.8125 | L33: 0.01111111111 | M33: 15 | N33: 0.0367816092 | O33: 0 | R33: 396.8 | S33: 352 | V33: 352 | X33: =X37 -> 2 | Y33: =Y30+1 -> 2018-01-10 | Z33: =TEXT(Y33,"ddd") -> wo | AA33: DD | AB33: =IFERROR(HLOOKUP(Y33,[1]DATA!$A$1:$NB$5,3,0),"") -> D3 | AC33: 16 | AE33: 20 | AF33: 372 | AG33: 19 | AH33: -68.9375 | AI33: 0.8074551971 | AJ33: 0.9543049543
A34: 2woMD | B34: =VLOOKUP($AA34,DATA!$B$3:$E$6,2,0) -> 14:30:00 | C34: =VLOOKUP($AA34,DATA!$B$3:$E$6,3,0) -> 22:30:00 | D34: =VLOOKUP($AA34,DATA!$B$3:$E$6,4,0) -> 0.03125 | E34: 0.3020833333 | F34: 0.2451388889 | G34: =DATA!$C$9 -> 0.89 | H34: =DATA!$C$10 -> 64 | I34: 1 | J34: 330.9375 | K34: 407.8125 | L34: 0.05694444444 | M34: 76.875 | N34: 0.1885057471 | O34: 0 | R34: 344.5333333 | S34: 297 | U34: 297 | X34: =X37 -> 2 | Z34: =TEXT(Y33,"ddd") -> wo | AA34: MD | AB34: =IFERROR(HLOOKUP(Y33,[1]DATA!$A$1:$NB$5,4,0),"") -> D2 | AC34: 82 | AE34: 26 | AF34: 323 | AG34: 13 | AH34: -62.0625 | AI34: 0.6812903226 | AJ34: 0.9636397539
A35: 2woND | B35: =VLOOKUP($AA35,DATA!$B$3:$E$6,2,0) -> 22:30:00 | C35: =VLOOKUP($AA35,DATA!$B$3:$E$6,3,0) -> 06:30:00 | D35: =VLOOKUP($AA35,DATA!$B$3:$E$6,4,0) -> 0.03125 | E35: 0.3020833333 | F35: 0.3020833333 | G35: =DATA!$C$9 -> 0.89 | H35: =DATA!$C$10 -> 64 | I35: 1 | J35: 407.8125 | K35: 407.8125 | L35: 0 | O35: 0 | R35: 0 | X35: =X37 -> 2 | Z35: =TEXT(Y33,"ddd") -> wo | AA35: ND | AB35: =IFERROR(HLOOKUP(Y33,[1]DATA!$A$1:$NB$5,5,0),"") -> D1 | AG35: 0
A36: 2doDD | B36: =VLOOKUP($AA36,DATA!$B$3:$E$6,2,0) -> 06:30:00 | C36: =VLOOKUP($AA36,DATA!$B$3:$E$6,3,0) -> 14:30:00 | D36: =VLOOKUP($AA36,DATA!$B$3:$E$6,4,0) -> 0.03125 | E36: 0.3020833333 | F36: 0.2791666667 | G36: =DATA!$C$9 -> 0.89 | H36: =DATA!$C$10 -> 64 | I36: 1 | J36: 376.875 | K36: 407.8125 | L36: 0.02291666667 | M36: 30.9375 | N36: 0.07586206897 | O36: 0 | R36: 370.1333333 | S36: 333 | V36: 333 | X36: =X37 -> 2 | Y36: =Y33+1 -> 2018-01-11 | Z36: =TEXT(Y36,"ddd") -> do | AA36: DD | AB36: =IFERROR(HLOOKUP(Y36,[1]DATA!$A$1:$NB$5,3,0),"") -> D3 | AC36: 33 | AE36: 14 | AF36: 347 | AG36: 10 | AH36: -72 | AI36: 0.7638709677 | AJ36: 0.9736934409
A37: 2doMD | B37: =VLOOKUP($AA37,DATA!$B$3:$E$6,2,0) -> 14:30:00 | C37: =VLOOKUP($AA37,DATA!$B$3:$E$6,3,0) -> 22:30:00 | D37: =VLOOKUP($AA37,DATA!$B$3:$E$6,4,0) -> 0.03125 | E37: 0.3020833333 | F37: 0.2673611111 | G37: =DATA!$C$9 -> 0.89 | H37: =DATA!$C$10 -> 64 | I37: 1 | J37: 360.9375 | K37: 407.8125 | L37: 0.03472222222 | M37: 46.875 | N37: 0.1149425287 | O37: 0 | R37: 384 | S37: 329 | U37: 329 | X37: =WEEKNUM($Y27) -> 2 | Z37: =TEXT(Y36,"ddd") -> do | AA37: MD | AB37: =IFERROR(HLOOKUP(Y36,[1]DATA!$A$1:$NB$5,4,0),"") -> D2 | AC37: 50 | AE37: 31 | AF37: 360 | AG37: 3 | AH37: -60.0625 | AI37: 0.7546953405 | AJ37: 0.992248062
A38: 2doND | B38: =VLOOKUP($AA38,DATA!$B$3:$E$6,2,0) -> 22:30:00 | C38: =VLOOKUP($AA38,DATA!$B$3:$E$6,3,0) -> 06:30:00 | D38: =VLOOKUP($AA38,DATA!$B$3:$E$6,4,0) -> 0.03125 | E38: 0.3020833333 | F38: 0.3020833333 | G38: =DATA!$C$9 -> 0.89 | H38: =DATA!$C$10 -> 64 | I38: 1 | J38: 407.8125 | K38: 407.8125 | L38: 0 | O38: 0 | R38: 0 | X38: =X37 -> 2 | Z38: =TEXT(Y36,"ddd") -> do | AA38: ND | AB38: =IFERROR(HLOOKUP(Y36,[1]DATA!$A$1:$NB$5,5,0),"") -> D1 | AG38: 0
A39: 2vrDD | B39: =VLOOKUP($AA39,DATA!$B$3:$E$6,2,0) -> 06:30:00 | C39: =VLOOKUP($AA39,DATA!$B$3:$E$6,3,0) -> 14:30:00 | D39: =VLOOKUP($AA39,DATA!$B$3:$E$6,4,0) -> 0.03125 | E39: 0.3020833333 | F39: 0.2409722222 | G39: =DATA!$C$9 -> 0.89 | H39: =DATA!$C$10 -> 64 | I39: 1 | J39: 325.3125 | K39: 407.8125 | L39: 0.06111111111 | M39: 82.5 | N39: 0.2022988506 | O39: 0 | R39: 372.2666667 | S39: 320 | V39: 320 | X39: =X37 -> 2 | Y39: =Y36+1 -> 2018-01-12 | Z39: =TEXT(Y39,"ddd") -> vr | AA39: DD | AB39: =IFERROR(HLOOKUP(Y39,[1]DATA!$A$1:$NB$5,3,0),"") -> D3 | AC39: 88 | AE39: 29 | AF39: 349 | AG39: 0 | AH39: -33.4375 | AI39: 0.7340501792 | AJ39: 1
A40: 2vrMD | B40: =VLOOKUP($AA40,DATA!$B$3:$E$6,2,0) -> 14:30:00 | C40: =VLOOKUP($AA40,DATA!$B$3:$E$6,3,0) -> 22:30:00 | D40: =VLOOKUP($AA40,DATA!$B$3:$E$6,4,0) -> 0.03125 | E40: 0.3020833333 | F40: 0.20625 | G40: =DATA!$C$9 -> 0.89 | H40: =DATA!$C$10 -> 64 | I40: 1 | J40: 278.4375 | K40: 407.8125 | L40: 0.09583333333 | M40: 129.375 | N40: 0.3172413793 | O40: 0 | R40: 341.3333333 | S40: 304 | U40: 304 | X40: =X37 -> 2 | Z40: =TEXT(Y39,"ddd") -> vr | AA40: MD | AB40: =IFERROR(HLOOKUP(Y39,[1]DATA!$A$1:$NB$5,4,0),"") -> D2 | AC40: 138 | AE40: 16 | AF40: 320 | AG40: 2 | AH40: -2.5625 | AI40: 0.6973476703 | AJ40: 0.9941747573
A41: 2vrND | B41: =VLOOKUP($AA41,DATA!$B$3:$E$6,2,0) -> 22:30:00 | C41: =VLOOKUP($AA41,DATA!$B$3:$E$6,3,0) -> 06:30:00 | D41: =VLOOKUP($AA41,DATA!$B$3:$E$6,4,0) -> 0.03125 | E41: 0.3020833333 | F41: 0.3020833333 | G41: =DATA!$C$9 -> 0.89 | H41: =DATA!$C$10 -> 64 | I41: 1 | J41: 407.8125 | K41: 407.8125 | L41: 0 | O41: 0 | R41: 0 | X41: =X37 -> 2 | Z41: =TEXT(Y39,"ddd") -> vr | AA41: ND | AB41: =IFERROR(HLOOKUP(Y39,[1]DATA!$A$1:$NB$5,5,0),"") -> - | AG41: 0
A42: 2zaDD | B42: =VLOOKUP($AA42,DATA!$B$3:$E$6,2,0) -> 06:30:00 | C42: =VLOOKUP($AA42,DATA!$B$3:$E$6,3,0) -> 14:30:00 | D42: =VLOOKUP($AA42,DATA!$B$3:$E$6,4,0) -> 0.03125 | E42: 0.3020833333 | F42: 0.3020833333 | G42: =DATA!$C$9 -> 0.89 | H42: =DATA!$C$10 -> 64 | I42: 1 | J42: 407.8125 | K42: 407.8125 | L42: 0 | O42: 0 | R42: 0 | X42: =X37 -> 2 | Y42: =Y39+1 -> 2018-01-13 | Z42: =TEXT(Y42,"ddd") -> za | AA42: DD | AB42: =IFERROR(HLOOKUP(Y42,[1]DATA!$A$1:$NB$5,3,0),"") -> - | AG42: 0
A43: 2zaMD | B43: =VLOOKUP($AA43,DATA!$B$3:$E$6,2,0) -> 14:30:00 | C43: =VLOOKUP($AA43,DATA!$B$3:$E$6,3,0) -> 22:30:00 | D43: =VLOOKUP($AA43,DATA!$B$3:$E$6,4,0) -> 0.03125 | E43: 0.3020833333 | F43: 0.3020833333 | G43: =DATA!$C$9 -> 0.89 | H43: =DATA!$C$10 -> 64 | I43: 1 | J43: 407.8125 | K43: 407.8125 | L43: 0 | O43: 0 | R43: 0 | X43: =X37 -> 2 | Z43: =TEXT(Y42,"ddd") -> za | AA43: MD | AB43: =IFERROR(HLOOKUP(Y42,[1]DATA!$A$1:$NB$5,4,0),"") -> - | AG43: 0
A44: 2zaND | B44: =VLOOKUP($AA44,DATA!$B$3:$E$6,2,0) -> 22:30:00 | C44: =VLOOKUP($AA44,DATA!$B$3:$E$6,3,0) -> 06:30:00 | D44: =VLOOKUP($AA44,DATA!$B$3:$E$6,4,0) -> 0.03125 | E44: 0.3020833333 | F44: 0.3020833333 | G44: =DATA!$C$9 -> 0.89 | H44: =DATA!$C$10 -> 64 | I44: 1 | J44: 407.8125 | K44: 407.8125 | L44: 0 | O44: 0 | R44: 0 | X44: =X37 -> 2 | Z44: =TEXT(Y42,"ddd") -> za | AA44: ND | AB44: =IFERROR(HLOOKUP(Y42,[1]DATA!$A$1:$NB$5,5,0),"") -> - | AG44: 0
A45: 2zoDD | B45: =VLOOKUP($AA45,DATA!$B$3:$E$6,2,0) -> 06:30:00 | C45: =VLOOKUP($AA45,DATA!$B$3:$E$6,3,0) -> 14:30:00 | D45: =VLOOKUP($AA45,DATA!$B$3:$E$6,4,0) -> 0.03125 | E45: 0.3020833333 | F45: 0.3020833333 | G45: =DATA!$C$9 -> 0.89 | H45: =DATA!$C$10 -> 64 | I45: 1 | J45: 407.8125 | K45: 407.8125 | L45: 0 | O45: 0 | R45: 0 | X45: =X37 -> 2 | Y45: =Y42+1 -> 2018-01-14 | Z45: =TEXT(Y45,"ddd") -> zo | AA45: DD | AB45: =IFERROR(HLOOKUP(Y45,[1]DATA!$A$1:$NB$5,3,0),"") -> - | AG45: 0
A46: 2zoMD | B46: =VLOOKUP($AA46,DATA!$B$3:$E$6,2,0) -> 14:30:00 | C46: =VLOOKUP($AA46,DATA!$B$3:$E$6,3,0) -> 22:30:00 | D46: =VLOOKUP($AA46,DATA!$B$3:$E$6,4,0) -> 0.03125 | E46: 0.3020833333 | F46: 0.3020833333 | G46: =DATA!$C$9 -> 0.89 | H46: =DATA!$C$10 -> 64 | I46: 1 | J46: 407.8125 | K46: 407.8125 | L46: 0 | O46: 0 | R46: 0 | X46: =X37 -> 2 | Z46: =TEXT(Y45,"ddd") -> zo | AA46: MD | AB46: =IFERROR(HLOOKUP(Y45,[1]DATA!$A$1:$NB$5,4,0),"") -> - | AG46: 0
A47: 2zoZND | B47: =VLOOKUP($AA47,DATA!$B$3:$E$6,2,0) -> 00:00:00 | C47: =VLOOKUP($AA47,DATA!$B$3:$E$6,3,0) -> 00:00:00 | D47: =VLOOKUP($AA47,DATA!$B$3:$E$6,4,0) -> 0 | E47: 0 | F47: 0 | G47: =DATA!$C$9 -> 0.89 | H47: =DATA!$C$10 -> 64 | I47: 1 | J47: 0 | K47: 0 | L47: 0 | O47: 0 | R47: 0 | X47: =X37 -> 2 | Z47: =TEXT(Y45,"ddd") -> zo | AA47: ZND | AB47: =IFERROR(HLOOKUP(Y45,[1]DATA!$A$1:$NB$5,5,0),"") -> D3 | AG47: 0
A48: =X48&Z48&AA48 -> 3maDD | B48: =VLOOKUP($AA48,DATA!$B$3:$E$6,2,0) -> 06:30:00 | C48: =VLOOKUP($AA48,DATA!$B$3:$E$6,3,0) -> 14:30:00 | D48: =VLOOKUP($AA48,DATA!$B$3:$E$6,4,0) -> 0.03125 | E48: 0.3020833333 | F48: 0.1951388889 | G48: =DATA!$C$9 -> 0.89 | H48: =DATA!$C$10 -> 64 | I48: 1 | J48: 263.4375 | K48: 407.8125 | L48: 0.1069444444 | M48: 144.375 | N48: 0.3540229885 | O48: =TIME(INT($AD48/60),INT(MOD($AD48,60)/1),0) -> 0 | P48: =IF($O48*86400/$H48=0,"",$O48*86400/$H48) ->  | R48: 347.7333333 | S48: 306 | U48: 306 | X48: =X58 -> 3 | Y48: =Y45+1 -> 2018-01-15 | Z48: =TEXT(Y48,"ddd") -> ma | AA48: DD | AB48: =IFERROR(HLOOKUP(Y48,[1]DATA!$A$1:$NB$5,3,0),"") -> D2 | AC48: 154 | AE48: 20 | AF48: 326 | AG48: 10 | AH48: 14.4375 | AI48: 0.7019354839 | AJ48: 0.9720462169 | AK48: 4359.375 | AL48: 2969 | AM48: 0.6810609319 | AN48: 748.125 | AO48: 0.1716129032 | AP48: 112.5 | AQ48: 0.02580645161 | AR48: 0.9723036207 | AS48: 0.974413165 | AT48: 0.9701940764 | AV48: 529.75 | AW48: 0.1215197133 | AX48: 565.0666667 | AY48: 93
A49: 3maMD | B49: =VLOOKUP($AA49,DATA!$B$3:$E$6,2,0) -> 14:30:00 | C49: =VLOOKUP($AA49,DATA!$B$3:$E$6,3,0) -> 22:30:00 | D49: =VLOOKUP($AA49,DATA!$B$3:$E$6,4,0) -> 0.03125 | E49: 0.3020833333 | F49: 0.2083333333 | G49: =DATA!$C$9 -> 0.89 | H49: =DATA!$C$10 -> 64 | I49: 1 | J49: 281.25 | K49: 407.8125 | L49: 0.09375 | M49: 126.5625 | N49: 0.3103448276 | O49: =TIME(INT(AD49/60),INT(MOD(AD49,60)/1),0) -> 0 | R49: 330.6666667 | S49: 302 | T49: 302 | X49: =X58 -> 3 | Z49: =TEXT(Y48,"ddd") -> ma | AA49: MD | AB49: =IFERROR(HLOOKUP(Y48,[1]DATA!$A$1:$NB$5,4,0),"") -> D1 | AC49: 135 | AE49: 8 | AF49: 310 | AG49: 0 | AH49: -7.375 | AI49: 0.6927598566 | AJ49: 1
A50: 3maND | B50: =VLOOKUP($AA50,DATA!$B$3:$E$6,2,0) -> 22:30:00 | C50: =VLOOKUP($AA50,DATA!$B$3:$E$6,3,0) -> 06:30:00 | D50: =VLOOKUP($AA50,DATA!$B$3:$E$6,4,0) -> 0.03125 | E50: 0.3020833333 | F50: 0.3020833333 | G50: =DATA!$C$9 -> 0.89 | H50: =DATA!$C$10 -> 64 | I50: 1 | J50: 407.8125 | K50: 407.8125 | L50: 0 | O50: 0 | R50: 0 | X50: =X58 -> 3 | Z50: =TEXT(Y48,"ddd") -> ma | AA50: ND | AB50: =IFERROR(HLOOKUP(Y48,[1]DATA!$A$1:$NB$5,5,0),"") -> D3 | AG50: 0
A51: 3diDD | B51: =VLOOKUP($AA51,DATA!$B$3:$E$6,2,0) -> 06:30:00 | C51: =VLOOKUP($AA51,DATA!$B$3:$E$6,3,0) -> 14:30:00 | D51: =VLOOKUP($AA51,DATA!$B$3:$E$6,4,0) -> 0.03125 | E51: 0.3020833333 | F51: 0.2493055556 | G51: =DATA!$C$9 -> 0.89 | H51: =DATA!$C$10 -> 64 | I51: 1 | J51: 336.5625 | K51: 407.8125 | L51: 0.05277777778 | M51: 71.25 | N51: 0.1747126437 | O51: 0 | R51: 331.7333333 | S51: 301 | U51: 301 | X51: =X58 -> 3 | Y51: =Y48+1 -> 2018-01-16 | Z51: =TEXT(Y51,"ddd") -> di | AA51: DD | AB51: =IFERROR(HLOOKUP(Y51,[1]DATA!$A$1:$NB$5,3,0),"") -> D2 | AC51: 76 | AE51: 10 | AF51: 311 | AG51: 3 | AH51: -63.6875 | AI51: 0.6904659498 | AJ51: 0.9910376419
A52: 3diMD | B52: =VLOOKUP($AA52,DATA!$B$3:$E$6,2,0) -> 14:30:00 | C52: =VLOOKUP($AA52,DATA!$B$3:$E$6,3,0) -> 22:30:00 | D52: =VLOOKUP($AA52,DATA!$B$3:$E$6,4,0) -> 0.03125 | E52: 0.3020833333 | F52: 0.2652777778 | G52: =DATA!$C$9 -> 0.89 | H52: =DATA!$C$10 -> 64 | I52: 1 | J52: 358.125 | K52: 407.8125 | L52: 0.03680555556 | M52: 49.6875 | N52: 0.1218390805 | O52: 0 | R52: 381.8666667 | S52: 320 | T52: 320 | X52: =X58 -> 3 | Z52: =TEXT(Y51,"ddd") -> di | AA52: MD | AB52: =IFERROR(HLOOKUP(Y51,[1]DATA!$A$1:$NB$5,4,0),"") -> D1 | AC52: 53 | AE52: 38 | AF52: 358 | AG52: 34 | AH52: -66.25 | AI52: 0.7340501792 | AJ52: 0.9182430266
A53: 3diND | B53: =VLOOKUP($AA53,DATA!$B$3:$E$6,2,0) -> 22:30:00 | C53: =VLOOKUP($AA53,DATA!$B$3:$E$6,3,0) -> 06:30:00 | D53: =VLOOKUP($AA53,DATA!$B$3:$E$6,4,0) -> 0.03125 | E53: 0.3020833333 | F53: 0.3020833333 | G53: =DATA!$C$9 -> 0.89 | H53: =DATA!$C$10 -> 64 | I53: 1 | J53: 407.8125 | K53: 407.8125 | L53: 0 | O53: 0 | R53: 0 | X53: =X58 -> 3 | Z53: =TEXT(Y51,"ddd") -> di | AA53: ND | AB53: =IFERROR(HLOOKUP(Y51,[1]DATA!$A$1:$NB$5,5,0),"") -> D3 | AG53: 0
A54: 3woDD | B54: =VLOOKUP($AA54,DATA!$B$3:$E$6,2,0) -> 06:30:00 | C54: =VLOOKUP($AA54,DATA!$B$3:$E$6,3,0) -> 14:30:00 | D54: =VLOOKUP($AA54,DATA!$B$3:$E$6,4,0) -> 0.03125 | E54: 0.3020833333 | F54: 0.2604166667 | G54: =DATA!$C$9 -> 0.89 | H54: =DATA!$C$10 -> 64 | I54: 1 | J54: 351.5625 | K54: 407.8125 | L54: 0.04166666667 | M54: 56.25 | N54: 0.1379310345 | O54: 0 | R54: 224 | S54: 205 | U54: 205 | X54: =X58 -> 3 | Y54: =Y51+1 -> 2018-01-17 | Z54: =TEXT(Y54,"ddd") -> wo | AA54: DD | AB54: =IFERROR(HLOOKUP(Y54,[1]DATA!$A$1:$NB$5,3,0),"") -> D2 | AC54: 60 | AE54: 5 | AF54: 210 | AG54: 20 | AH54: -174.6875 | AI54: 0.4702508961 | AJ54: 0.9180327869
A55: 3woMD | B55: =VLOOKUP($AA55,DATA!$B$3:$E$6,2,0) -> 14:30:00 | C55: =VLOOKUP($AA55,DATA!$B$3:$E$6,3,0) -> 22:30:00 | D55: =VLOOKUP($AA55,DATA!$B$3:$E$6,4,0) -> 0.03125 | E55: 0.3020833333 | F55: 0.2555555556 | G55: =DATA!$C$9 -> 0.89 | H55: =DATA!$C$10 -> 64 | I55: 1 | J55: 345 | K55: 407.8125 | L55: 0.04652777778 | M55: 62.8125 | N55: 0.1540229885 | O55: 0 | R55: 388.2666667 | S55: 339 | T55: 339 | X55: =X58 -> 3 | Z55: =TEXT(Y54,"ddd") -> wo | AA55: MD | AB55: =IFERROR(HLOOKUP(Y54,[1]DATA!$A$1:$NB$5,4,0),"") -> D1 | AC55: 67 | AE55: 25 | AF55: 364 | AG55: 5 | AH55: -34.125 | AI55: 0.7776344086 | AJ55: 0.9872859807
A56: 3woND | B56: =VLOOKUP($AA56,DATA!$B$3:$E$6,2,0) -> 22:30:00 | C56: =VLOOKUP($AA56,DATA!$B$3:$E$6,3,0) -> 06:30:00 | D56: =VLOOKUP($AA56,DATA!$B$3:$E$6,4,0) -> 0.03125 | E56: 0.3020833333 | F56: 0.3020833333 | G56: =DATA!$C$9 -> 0.89 | H56: =DATA!$C$10 -> 64 | I56: 1 | J56: 407.8125 | K56: 407.8125 | L56: 0 | O56: 0 | R56: 0 | X56: =X58 -> 3 | Z56: =TEXT(Y54,"ddd") -> wo | AA56: ND | AB56: =IFERROR(HLOOKUP(Y54,[1]DATA!$A$1:$NB$5,5,0),"") -> D3 | AG56: 0
A57: 3doDD | B57: =VLOOKUP($AA57,DATA!$B$3:$E$6,2,0) -> 06:30:00 | C57: =VLOOKUP($AA57,DATA!$B$3:$E$6,3,0) -> 14:30:00 | D57: =VLOOKUP($AA57,DATA!$B$3:$E$6,4,0) -> 0.03125 | E57: 0.3020833333 | F57: 0.1673611111 | G57: =DATA!$C$9 -> 0.89 | H57: =DATA!$C$10 -> 64 | I57: 1 | J57: 225.9375 | K57: 407.8125 | L57: 0.05138888889 | M57: 69.375 | N57: 0.1701149425 | O57: 0.08333333333 | P57: 112.5 | Q57: 0.275862069 | R57: 244.2666667 | S57: 220 | U57: 220 | X57: =X58 -> 3 | Y57: =Y54+1 -> 2018-01-18 | Z57: =TEXT(Y57,"ddd") -> do | AA57: DD | AB57: =IFERROR(HLOOKUP(Y57,[1]DATA!$A$1:$NB$5,3,0),"") -> D2 | AC57: 74 | AD57: 120 | AE57: 9 | AF57: 229 | AG57: 5 | AH57: -34.0625 | AI57: 0.5046594982 | AJ57: 0.9799411607
A58: 3doMD | B58: =VLOOKUP($AA58,DATA!$B$3:$E$6,2,0) -> 14:30:00 | C58: =VLOOKUP($AA58,DATA!$B$3:$E$6,3,0) -> 22:30:00 | D58: =VLOOKUP($AA58,DATA!$B$3:$E$6,4,0) -> 0.03125 | E58: 0.3020833333 | F58: 0.24375 | G58: =DATA!$C$9 -> 0.89 | H58: =DATA!$C$10 -> 64 | I58: 1 | J58: 329.0625 | K58: 407.8125 | L58: 0.05833333333 | M58: 78.75 | N58: 0.1931034483 | O58: 0 | R58: 382.9333333 | S58: 340 | T58: 340 | X58: =WEEKNUM($Y48) -> 3 | Z58: =TEXT(Y57,"ddd") -> do | AA58: MD | AB58: =IFERROR(HLOOKUP(Y57,[1]DATA!$A$1:$NB$5,4,0),"") -> D1 | AC58: 84 | AE58: 19 | AF58: 359 | AG58: 3 | AH58: -17.1875 | AI58: 0.7799283154 | AJ58: 0.9922266367
A59: 3doND | B59: =VLOOKUP($AA59,DATA!$B$3:$E$6,2,0) -> 22:30:00 | C59: =VLOOKUP($AA59,DATA!$B$3:$E$6,3,0) -> 06:30:00 | D59: =VLOOKUP($AA59,DATA!$B$3:$E$6,4,0) -> 0.03125 | E59: 0.3020833333 | F59: 0.3020833333 | G59: =DATA!$C$9 -> 0.89 | H59: =DATA!$C$10 -> 64 | I59: 1 | J59: 407.8125 | K59: 407.8125 | L59: 0 | O59: 0 | R59: 0 | X59: =X58 -> 3 | Z59: =TEXT(Y57,"ddd") -> do | AA59: ND | AB59: =IFERROR(HLOOKUP(Y57,[1]DATA!$A$1:$NB$5,5,0),"") -> D3 | AG59: 0
A60: 3vrDD | B60: =VLOOKUP($AA60,DATA!$B$3:$E$6,2,0) -> 06:30:00 | C60: =VLOOKUP($AA60,DATA!$B$3:$E$6,3,0) -> 14:30:00 | D60: =VLOOKUP($AA60,DATA!$B$3:$E$6,4,0) -> 0.03125 | E60: 0.3020833333 | F60: 0.2583333333 | G60: =DATA!$C$9 -> 0.89 | H60: =DATA!$C$10 -> 64 | I60: 1 | J60: 348.75 | K60: 407.8125 | L60: 0.04375 | M60: 59.0625 | N60: 0.1448275862 | O60: 0 | R60: 392.5333333 | S60: 332 | U60: 332 | X60: =X58 -> 3 | Y60: =Y57+1 -> 2018-01-19 | Z60: =TEXT(Y60,"ddd") -> vr | AA60: DD | AB60: =IFERROR(HLOOKUP(Y60,[1]DATA!$A$1:$NB$5,3,0),"") -> D2 | AC60: 63 | AE60: 36 | AF60: 368 | AG60: 4 | AH60: -44.875 | AI60: 0.7615770609 | AJ60: 0.9899125757
A61: 3vrMD | B61: =VLOOKUP($AA61,DATA!$B$3:$E$6,2,0) -> 14:30:00 | C61: =VLOOKUP($AA61,DATA!$B$3:$E$6,3,0) -> 22:30:00 | D61: =VLOOKUP($AA61,DATA!$B$3:$E$6,4,0) -> 0.03125 | E61: 0.3020833333 | F61: 0.2798611111 | G61: =DATA!$C$9 -> 0.89 | H61: =DATA!$C$10 -> 64 | I61: 1 | J61: 377.8125 | K61: 407.8125 | L61: 0.02222222222 | M61: 30 | N61: 0.07356321839 | O61: 0 | R61: 341.3333333 | S61: 304 | T61: 304 | X61: =X58 -> 3 | Z61: =TEXT(Y60,"ddd") -> vr | AA61: MD | AB61: =IFERROR(HLOOKUP(Y60,[1]DATA!$A$1:$NB$5,4,0),"") -> D1 | AC61: 32 | AE61: 16 | AF61: 320 | AG61: 9 | AH61: -101.9375 | AI61: 0.6973476703 | AJ61: 0.9743101808
A62: 3vrND | B62: =VLOOKUP($AA62,DATA!$B$3:$E$6,2,0) -> 22:30:00 | C62: =VLOOKUP($AA62,DATA!$B$3:$E$6,3,0) -> 06:30:00 | D62: =VLOOKUP($AA62,DATA!$B$3:$E$6,4,0) -> 0.03125 | E62: 0.3020833333 | F62: 0.3020833333 | G62: =DATA!$C$9 -> 0.89 | H62: =DATA!$C$10 -> 64 | I62: 1 | J62: 407.8125 | K62: 407.8125 | L62: 0 | O62: 0 | R62: 0 | X62: =X58 -> 3 | Z62: =TEXT(Y60,"ddd") -> vr | AA62: ND | AB62: =IFERROR(HLOOKUP(Y60,[1]DATA!$A$1:$NB$5,5,0),"") -> - | AG62: 0
A63: 3zaDD | B63: =VLOOKUP($AA63,DATA!$B$3:$E$6,2,0) -> 06:30:00 | C63: =VLOOKUP($AA63,DATA!$B$3:$E$6,3,0) -> 14:30:00 | D63: =VLOOKUP($AA63,DATA!$B$3:$E$6,4,0) -> 0.03125 | E63: 0.3020833333 | F63: 0.3020833333 | G63: =DATA!$C$9 -> 0.89 | H63: =DATA!$C$10 -> 64 | I63: 1 | J63: 407.8125 | K63: 407.8125 | L63: 0 | O63: 0 | R63: 0 | X63: =X58 -> 3 | Y63: =Y60+1 -> 2018-01-20 | Z63: =TEXT(Y63,"ddd") -> za | AA63: DD | AB63: =IFERROR(HLOOKUP(Y63,[1]DATA!$A$1:$NB$5,3,0),"") -> - | AG63: 0
A64: 3zaMD | B64: =VLOOKUP($AA64,DATA!$B$3:$E$6,2,0) -> 14:30:00 | C64: =VLOOKUP($AA64,DATA!$B$3:$E$6,3,0) -> 22:30:00 | D64: =VLOOKUP($AA64,DATA!$B$3:$E$6,4,0) -> 0.03125 | E64: 0.3020833333 | F64: 0.3020833333 | G64: =DATA!$C$9 -> 0.89 | H64: =DATA!$C$10 -> 64 | I64: 1 | J64: 407.8125 | K64: 407.8125 | L64: 0 | O64: 0 | R64: 0 | X64: =X58 -> 3 | Z64: =TEXT(Y63,"ddd") -> za | AA64: MD | AB64: =IFERROR(HLOOKUP(Y63,[1]DATA!$A$1:$NB$5,4,0),"") -> - | AG64: 0
A65: 3zaND | B65: =VLOOKUP($AA65,DATA!$B$3:$E$6,2,0) -> 22:30:00 | C65: =VLOOKUP($AA65,DATA!$B$3:$E$6,3,0) -> 06:30:00 | D65: =VLOOKUP($AA65,DATA!$B$3:$E$6,4,0) -> 0.03125 | E65: 0.3020833333 | F65: 0.3020833333 | G65: =DATA!$C$9 -> 0.89 | H65: =DATA!$C$10 -> 64 | I65: 1 | J65: 407.8125 | K65: 407.8125 | L65: 0 | O65: 0 | R65: 0 | X65: =X58 -> 3 | Z65: =TEXT(Y63,"ddd") -> za | AA65: ND | AB65: =IFERROR(HLOOKUP(Y63,[1]DATA!$A$1:$NB$5,5,0),"") -> - | AG65: 0
A66: 3zoDD | B66: =VLOOKUP($AA66,DATA!$B$3:$E$6,2,0) -> 06:30:00 | C66: =VLOOKUP($AA66,DATA!$B$3:$E$6,3,0) -> 14:30:00 | D66: =VLOOKUP($AA66,DATA!$B$3:$E$6,4,0) -> 0.03125 | E66: 0.3020833333 | F66: 0.3020833333 | G66: =DATA!$C$9 -> 0.89 | H66: =DATA!$C$10 -> 64 | I66: 1 | J66: 407.8125 | K66: 407.8125 | L66: 0 | O66: 0 | R66: 0 | X66: =X58 -> 3 | Y66: =Y63+1 -> 2018-01-21 | Z66: =TEXT(Y66,"ddd") -> zo | AA66: DD | AB66: =IFERROR(HLOOKUP(Y66,[1]DATA!$A$1:$NB$5,3,0),"") -> - | AG66: 0
A67: 3zoMD | B67: =VLOOKUP($AA67,DATA!$B$3:$E$6,2,0) -> 14:30:00 | C67: =VLOOKUP($AA67,DATA!$B$3:$E$6,3,0) -> 22:30:00 | D67: =VLOOKUP($AA67,DATA!$B$3:$E$6,4,0) -> 0.03125 | E67: 0.3020833333 | F67: 0.3020833333 | G67: =DATA!$C$9 -> 0.89 | H67: =DATA!$C$10 -> 64 | I67: 1 | J67: 407.8125 | K67: 407.8125 | L67: 0 | O67: 0 | R67: 0 | X67: =X58 -> 3 | Z67: =TEXT(Y66,"ddd") -> zo | AA67: MD | AB67: =IFERROR(HLOOKUP(Y66,[1]DATA!$A$1:$NB$5,4,0),"") -> - | AG67: 0
A68: 3zoZND | B68: =VLOOKUP($AA68,DATA!$B$3:$E$6,2,0) -> 00:00:00 | C68: =VLOOKUP($AA68,DATA!$B$3:$E$6,3,0) -> 00:00:00 | D68: =VLOOKUP($AA68,DATA!$B$3:$E$6,4,0) -> 0 | E68: 0 | F68: 0 | G68: =DATA!$C$9 -> 0.89 | H68: =DATA!$C$10 -> 64 | I68: 1 | J68: 0 | K68: 0 | L68: 0 | O68: 0 | R68: 0 | X68: =X58 -> 3 | Z68: =TEXT(Y66,"ddd") -> zo | AA68: ZND | AB68: =IFERROR(HLOOKUP(Y66,[1]DATA!$A$1:$NB$5,5,0),"") -> D2 | AG68: 0
A69: 4maDD | B69: =VLOOKUP($AA69,DATA!$B$3:$E$6,2,0) -> 06:30:00 | C69: =VLOOKUP($AA69,DATA!$B$3:$E$6,3,0) -> 14:30:00 | D69: =VLOOKUP($AA69,DATA!$B$3:$E$6,4,0) -> 0.03125 | E69: 0.3020833333 | F69: 0.2840277778 | G69: =DATA!$C$9 -> 0.89 | H69: =DATA!$C$10 -> 64 | I69: 1 | J69: 383.4375 | K69: 407.8125 | L69: 0.01805555556 | M69: 24.375 | N69: 0.05977011494 | O69: =TIME(INT($AD69/60),INT(MOD($AD69,60)/1),0) -> 0 | R69: 381.8666667 | S69: 336 | T69: 336 | X69: =X79 -> 4 | Y69: =Y66+1 -> 2018-01-22 | Z69: =TEXT(Y69,"ddd") -> ma | AA69: DD | AB69: =IFERROR(HLOOKUP(Y69,[1]DATA!$A$1:$NB$5,3,0),"") -> D1 | AC69: 26 | AE69: 22 | AF69: 358 | AG69: 13 | AH69: -75.5625 | AI69: 0.7707526882 | AJ69: 0.9670774945 | AK69: 4359.375 | AL69: 3121 | AM69: 0.7159283154 | AN69: 334.6875 | AO69: 0.07677419355 | AP69: 0 | AQ69: 0 | AR69: 0.9440073735 | AS69: 0.9723050109 | AU69: 0.9157097362 | AV69: 903.6875 | AW69: 0.207297491 | AX69: 963.9333333 | AY69: 235
A70: 4maMD | B70: =VLOOKUP($AA70,DATA!$B$3:$E$6,2,0) -> 14:30:00 | C70: =VLOOKUP($AA70,DATA!$B$3:$E$6,3,0) -> 22:30:00 | D70: =VLOOKUP($AA70,DATA!$B$3:$E$6,4,0) -> 0.03125 | E70: 0.3020833333 | F70: 0.2743055556 | G70: =DATA!$C$9 -> 0.89 | H70: =DATA!$C$10 -> 64 | I70: 1 | J70: 370.3125 | K70: 407.8125 | L70: 0.02777777778 | M70: 37.5 | N70: 0.09195402299 | O70: =TIME(INT(AD70/60),INT(MOD(AD70,60)/1),0) -> 0 | R70: 373.3333333 | S70: 317 | V70: 317 | X70: =X79 -> 4 | Z70: =TEXT(Y69,"ddd") -> ma | AA70: MD | AB70: =IFERROR(HLOOKUP(Y69,[1]DATA!$A$1:$NB$5,4,0),"") -> D3 | AC70: 40 | AE70: 33 | AF70: 350 | AG70: 50 | AH70: -81.4375 | AI70: 0.7271684588 | AJ70: 0.8818897638
A71: 4maND | B71: =VLOOKUP($AA71,DATA!$B$3:$E$6,2,0) -> 22:30:00 | C71: =VLOOKUP($AA71,DATA!$B$3:$E$6,3,0) -> 06:30:00 | D71: =VLOOKUP($AA71,DATA!$B$3:$E$6,4,0) -> 0.03125 | E71: 0.3020833333 | F71: 0.3020833333 | G71: =DATA!$C$9 -> 0.89 | H71: =DATA!$C$10 -> 64 | I71: 1 | J71: 407.8125 | K71: 407.8125 | L71: =TIME(INT($AC71/60),INT(MOD($AC71,60)/1),0) -> 0 | M71: =IF($L71*86400/$H71=0,"",$L71*86400/$H71) ->  | N71: =IFERROR($M71/$K71,"") ->  | O71: 0 | Q71: =IFERROR($P71/$K71,"") ->  | R71: 0 | T71: =IF(IF($AB71="D1",$S71,"")=0,"",IF($AB71="D1",$S71,"")) ->  | U71: =IF(IF($AB71="D2",$S71,"")=0,"",IF($AB71="D2",$S71,"")) ->  | V71: =IF(IF($AB71="D3",$S71,"")=0,"",IF($AB71="D3",$S71,"")) ->  | X71: =X79 -> 4 | Z71: =TEXT(Y69,"ddd") -> ma | AA71: ND | AB71: =IFERROR(HLOOKUP(Y69,[1]DATA!$A$1:$NB$5,5,0),"") -> D2 | AG71: 0
A72: 4diDD | B72: =VLOOKUP($AA72,DATA!$B$3:$E$6,2,0) -> 06:30:00 | C72: =VLOOKUP($AA72,DATA!$B$3:$E$6,3,0) -> 14:30:00 | D72: =VLOOKUP($AA72,DATA!$B$3:$E$6,4,0) -> 0.03125 | E72: 0.3020833333 | F72: 0.26875 | G72: =DATA!$C$9 -> 0.89 | H72: =DATA!$C$10 -> 64 | I72: 1 | J72: 362.8125 | K72: 407.8125 | L72: 0.03333333333 | M72: 45 | N72: 0.1103448276 | O72: 0 | R72: 301.8666667 | S72: 272 | T72: 272 | X72: =X79 -> 4 | Y72: =Y69+1 -> 2018-01-23 | Z72: =TEXT(Y72,"ddd") -> di | AA72: DD | AB72: =IFERROR(HLOOKUP(Y72,[1]DATA!$A$1:$NB$5,3,0),"") -> D1 | AC72: 48 | AE72: 11 | AF72: 283 | AG72: 13 | AH72: -118.9375 | AI72: 0.6239426523 | AJ72: 0.9587126826
A73: 4diMD | B73: =VLOOKUP($AA73,DATA!$B$3:$E$6,2,0) -> 14:30:00 | C73: =VLOOKUP($AA73,DATA!$B$3:$E$6,3,0) -> 22:30:00 | D73: =VLOOKUP($AA73,DATA!$B$3:$E$6,4,0) -> 0.03125 | E73: 0.3020833333 | F73: 0.2993055556 | G73: =DATA!$C$9 -> 0.89 | H73: =DATA!$C$10 -> 64 | I73: 1 | J73: 404.0625 | K73: 407.8125 | L73: 0.002777777778 | M73: 3.75 | N73: 0.009195402299 | O73: 0 | R73: 379.7333333 | S73: 327 | V73: 327 | X73: =X79 -> 4 | Z73: =TEXT(Y72,"ddd") -> di | AA73: MD | AB73: =IFERROR(HLOOKUP(Y72,[1]DATA!$A$1:$NB$5,4,0),"") -> D3 | AC73: 4 | AE73: 29 | AF73: 356 | AG73: 76 | AH73: -105.1875 | AI73: 0.7501075269 | AJ73: 0.8332358104
A74: 4diND | B74: =VLOOKUP($AA74,DATA!$B$3:$E$6,2,0) -> 22:30:00 | C74: =VLOOKUP($AA74,DATA!$B$3:$E$6,3,0) -> 06:30:00 | D74: =VLOOKUP($AA74,DATA!$B$3:$E$6,4,0) -> 0.03125 | E74: 0.3020833333 | F74: 0.3020833333 | G74: =DATA!$C$9 -> 0.89 | H74: =DATA!$C$10 -> 64 | I74: 1 | J74: 407.8125 | K74: 407.8125 | L74: 0 | O74: 0 | R74: 0 | X74: =X79 -> 4 | Z74: =TEXT(Y72,"ddd") -> di | AA74: ND | AB74: =IFERROR(HLOOKUP(Y72,[1]DATA!$A$1:$NB$5,5,0),"") -> D2 | AG74: 0
A75: 4woDD | B75: =VLOOKUP($AA75,DATA!$B$3:$E$6,2,0) -> 06:30:00 | C75: =VLOOKUP($AA75,DATA!$B$3:$E$6,3,0) -> 14:30:00 | D75: =VLOOKUP($AA75,DATA!$B$3:$E$6,4,0) -> 0.03125 | E75: 0.3020833333 | F75: 0.2631944444 | G75: =DATA!$C$9 -> 0.89 | H75: =DATA!$C$10 -> 64 | I75: 1 | J75: 355.3125 | K75: 407.8125 | L75: 0.03888888889 | M75: 52.5 | N75: 0.1287356322 | O75: 0 | R75: 356.2666667 | S75: 318 | T75: 318 | X75: =X79 -> 4 | Y75: =Y72+1 -> 2018-01-24 | Z75: =TEXT(Y75,"ddd") -> wo | AA75: DD | AB75: =IFERROR(HLOOKUP(Y75,[1]DATA!$A$1:$NB$5,3,0),"") -> D1 | AC75: 56 | AE75: 16 | AF75: 334 | AG75: 8 | AH75: -65.4375 | AI75: 0.7294623656 | AJ75: 0.9780380673
A76: 4woMD | B76: =VLOOKUP($AA76,DATA!$B$3:$E$6,2,0) -> 14:30:00 | C76: =VLOOKUP($AA76,DATA!$B$3:$E$6,3,0) -> 22:30:00 | D76: =VLOOKUP($AA76,DATA!$B$3:$E$6,4,0) -> 0.03125 | E76: 0.3020833333 | F76: 0.3020833333 | G76: =DATA!$C$9 -> 0.89 | H76: =DATA!$C$10 -> 64 | I76: 1 | J76: 407.8125 | K76: 407.8125 | L76: 0 | O76: 0 | R76: 398.9333333 | S76: 343 | V76: 343 | X76: =X79 -> 4 | Z76: =TEXT(Y75,"ddd") -> wo | AA76: MD | AB76: =IFERROR(HLOOKUP(Y75,[1]DATA!$A$1:$NB$5,4,0),"") -> D3 | AC76: 0 | AE76: 31 | AF76: 374 | AG76: 56 | AH76: -92.9375 | AI76: 0.7868100358 | AJ76: 0.876905041
A77: 4woND | B77: =VLOOKUP($AA77,DATA!$B$3:$E$6,2,0) -> 22:30:00 | C77: =VLOOKUP($AA77,DATA!$B$3:$E$6,3,0) -> 06:30:00 | D77: =VLOOKUP($AA77,DATA!$B$3:$E$6,4,0) -> 0.03125 | E77: 0.3020833333 | F77: 0.3020833333 | G77: =DATA!$C$9 -> 0.89 | H77: =DATA!$C$10 -> 64 | I77: 1 | J77: 407.8125 | K77: 407.8125 | L77: 0 | O77: 0 | R77: 0 | X77: =X79 -> 4 | Z77: =TEXT(Y75,"ddd") -> wo | AA77: ND | AB77: =IFERROR(HLOOKUP(Y75,[1]DATA!$A$1:$NB$5,5,0),"") -> D2 | AG77: 0
A78: 4doDD | B78: =VLOOKUP($AA78,DATA!$B$3:$E$6,2,0) -> 06:30:00 | C78: =VLOOKUP($AA78,DATA!$B$3:$E$6,3,0) -> 14:30:00 | D78: =VLOOKUP($AA78,DATA!$B$3:$E$6,4,0) -> 0.03125 | E78: 0.3020833333 | F78: 0.2395833333 | G78: =DATA!$C$9 -> 0.89 | H78: =DATA!$C$10 -> 64 | I78: 1 | J78: 323.4375 | K78: 407.8125 | L78: 0.0625 | M78: 84.375 | N78: 0.2068965517 | O78: 0 | R78: 307.2 | S78: 278 | T78: 278 | X78: =X79 -> 4 | Y78: =Y75+1 -> 2018-01-25 | Z78: =TEXT(Y78,"ddd") -> do | AA78: DD | AB78: =IFERROR(HLOOKUP(Y78,[1]DATA!$A$1:$NB$5,3,0),"") -> D1 | AC78: 90 | AE78: 10 | AF78: 288 | AG78: 9 | AH78: -73.5625 | AI78: 0.6377060932 | AJ78: 0.9715370019
A79: 4doMD | B79: =VLOOKUP($AA79,DATA!$B$3:$E$6,2,0) -> 14:30:00 | C79: =VLOOKUP($AA79,DATA!$B$3:$E$6,3,0) -> 22:30:00 | D79: =VLOOKUP($AA79,DATA!$B$3:$E$6,4,0) -> 0.03125 | E79: 0.3020833333 | F79: 0.2770833333 | G79: =DATA!$C$9 -> 0.89 | H79: =DATA!$C$10 -> 64 | I79: 1 | J79: 374.0625 | K79: 407.8125 | L79: 0.025 | M79: 33.75 | N79: 0.08275862069 | O79: 0 | R79: 365.8666667 | S79: 330 | V79: 330 | X79: =WEEKNUM($Y69) -> 4 | Z79: =TEXT(Y78,"ddd") -> do | AA79: MD | AB79: =IFERROR(HLOOKUP(Y78,[1]DATA!$A$1:$NB$5,4,0),"") -> D3 | AC79: 36 | AE79: 13 | AF79: 343 | AG79: 5 | AH79: -72.1875 | AI79: 0.7569892473 | AJ79: 0.9865180658
A80: 4doND | B80: =VLOOKUP($AA80,DATA!$B$3:$E$6,2,0) -> 22:30:00 | C80: =VLOOKUP($AA80,DATA!$B$3:$E$6,3,0) -> 06:30:00 | D80: =VLOOKUP($AA80,DATA!$B$3:$E$6,4,0) -> 0.03125 | E80: 0.3020833333 | F80: 0.3020833333 | G80: =DATA!$C$9 -> 0.89 | H80: =DATA!$C$10 -> 64 | I80: 1 | J80: 407.8125 | K80: 407.8125 | L80: 0 | O80: 0 | R80: 0 | X80: =X79 -> 4 | Z80: =TEXT(Y78,"ddd") -> do | AA80: ND | AB80: =IFERROR(HLOOKUP(Y78,[1]DATA!$A$1:$NB$5,5,0),"") -> D2 | AG80: 0
A81: 4vrDD | B81: =VLOOKUP($AA81,DATA!$B$3:$E$6,2,0) -> 06:30:00 | C81: =VLOOKUP($AA81,DATA!$B$3:$E$6,3,0) -> 14:30:00 | D81: =VLOOKUP($AA81,DATA!$B$3:$E$6,4,0) -> 0.03125 | E81: 0.3020833333 | F81: 0.2875 | G81: =DATA!$C$9 -> 0.89 | H81: =DATA!$C$10 -> 64 | I81: 1 | J81: 388.125 | K81: 407.8125 | L81: 0.01458333333 | M81: 19.6875 | N81: 0.04827586207 | O81: 0 | R81: 356.2666667 | S81: 325 | T81: 325 | X81: =X79 -> 4 | Y81: =Y78+1 -> 2018-01-26 | Z81: =TEXT(Y81,"ddd") -> vr | AA81: DD | AB81: =IFERROR(HLOOKUP(Y81,[1]DATA!$A$1:$NB$5,3,0),"") -> D1 | AC81: 21 | AE81: 9 | AF81: 334 | AG81: 5 | AH81: -91.25 | AI81: 0.7455197133 | AJ81: 0.9861598081
A82: 4vrMD | B82: =VLOOKUP($AA82,DATA!$B$3:$E$6,2,0) -> 14:30:00 | C82: =VLOOKUP($AA82,DATA!$B$3:$E$6,3,0) -> 22:30:00 | D82: =VLOOKUP($AA82,DATA!$B$3:$E$6,4,0) -> 0.03125 | E82: 0.3020833333 | F82: 0.2770833333 | G82: =DATA!$C$9 -> 0.89 | H82: =DATA!$C$10 -> 64 | I82: 1 | J82: 374.0625 | K82: 407.8125 | L82: 0.025 | M82: 33.75 | N82: 0.08275862069 | O82: 0 | R82: 317.8666667 | S82: 275 | V82: 275 | X82: =X79 -> 4 | Z82: =TEXT(Y81,"ddd") -> vr | AA82: MD | AB82: =IFERROR(HLOOKUP(Y81,[1]DATA!$A$1:$NB$5,4,0),"") -> D3 | AC82: 36 | AE82: 23 | AF82: 298 | AG82: 0 | AH82: -127.1875 | AI82: 0.6308243728 | AJ82: 1
A83: 4vrND | B83: =VLOOKUP($AA83,DATA!$B$3:$E$6,2,0) -> 22:30:00 | C83: =VLOOKUP($AA83,DATA!$B$3:$E$6,3,0) -> 06:30:00 | D83: =VLOOKUP($AA83,DATA!$B$3:$E$6,4,0) -> 0.03125 | E83: 0.3020833333 | F83: 0.3020833333 | G83: =DATA!$C$9 -> 0.89 | H83: =DATA!$C$10 -> 64 | I83: 1 | J83: 407.8125 | K83: 407.8125 | L83: 0 | O83: 0 | R83: 0 | X83: =X79 -> 4 | Z83: =TEXT(Y81,"ddd") -> vr | AA83: ND | AB83: =IFERROR(HLOOKUP(Y81,[1]DATA!$A$1:$NB$5,5,0),"") -> - | AG83: 0
A84: 4zaDD | B84: =VLOOKUP($AA84,DATA!$B$3:$E$6,2,0) -> 06:30:00 | C84: =VLOOKUP($AA84,DATA!$B$3:$E$6,3,0) -> 14:30:00 | D84: =VLOOKUP($AA84,DATA!$B$3:$E$6,4,0) -> 0.03125 | E84: 0.3020833333 | F84: 0.3020833333 | G84: =DATA!$C$9 -> 0.89 | H84: =DATA!$C$10 -> 64 | I84: 1 | J84: 407.8125 | K84: 407.8125 | L84: 0 | O84: 0 | R84: 0 | X84: =X79 -> 4 | Y84: =Y81+1 -> 2018-01-27 | Z84: =TEXT(Y84,"ddd") -> za | AA84: DD | AB84: =IFERROR(HLOOKUP(Y84,[1]DATA!$A$1:$NB$5,3,0),"") -> - | AG84: 0
A85: 4zaMD | B85: =VLOOKUP($AA85,DATA!$B$3:$E$6,2,0) -> 14:30:00 | C85: =VLOOKUP($AA85,DATA!$B$3:$E$6,3,0) -> 22:30:00 | D85: =VLOOKUP($AA85,DATA!$B$3:$E$6,4,0) -> 0.03125 | E85: 0.3020833333 | F85: 0.3020833333 | G85: =DATA!$C$9 -> 0.89 | H85: =DATA!$C$10 -> 64 | I85: 1 | J85: 407.8125 | K85: 407.8125 | L85: 0 | O85: 0 | R85: 0 | X85: =X79 -> 4 | Z85: =TEXT(Y84,"ddd") -> za | AA85: MD | AB85: =IFERROR(HLOOKUP(Y84,[1]DATA!$A$1:$NB$5,4,0),"") -> - | AG85: 0
A86: 4zaND | B86: =VLOOKUP($AA86,DATA!$B$3:$E$6,2,0) -> 22:30:00 | C86: =VLOOKUP($AA86,DATA!$B$3:$E$6,3,0) -> 06:30:00 | D86: =VLOOKUP($AA86,DATA!$B$3:$E$6,4,0) -> 0.03125 | E86: 0.3020833333 | F86: 0.3020833333 | G86: =DATA!$C$9 -> 0.89 | H86: =DATA!$C$10 -> 64 | I86: 1 | J86: 407.8125 | K86: 407.8125 | L86: 0 | O86: 0 | R86: 0 | X86: =X79 -> 4 | Z86: =TEXT(Y84,"ddd") -> za | AA86: ND | AB86: =IFERROR(HLOOKUP(Y84,[1]DATA!$A$1:$NB$5,5,0),"") -> - | AG86: 0
A87: 4zoDD | B87: =VLOOKUP($AA87,DATA!$B$3:$E$6,2,0) -> 06:30:00 | C87: =VLOOKUP($AA87,DATA!$B$3:$E$6,3,0) -> 14:30:00 | D87: =VLOOKUP($AA87,DATA!$B$3:$E$6,4,0) -> 0.03125 | E87: 0.3020833333 | F87: 0.3020833333 | G87: =DATA!$C$9 -> 0.89 | H87: =DATA!$C$10 -> 64 | I87: 1 | J87: 407.8125 | K87: 407.8125 | L87: 0 | O87: 0 | R87: 0 | X87: =X79 -> 4 | Y87: =Y84+1 -> 2018-01-28 | Z87: =TEXT(Y87,"ddd") -> zo | AA87: DD | AB87: =IFERROR(HLOOKUP(Y87,[1]DATA!$A$1:$NB$5,3,0),"") -> - | AG87: 0
A88: 4zoMD | B88: =VLOOKUP($AA88,DATA!$B$3:$E$6,2,0) -> 14:30:00 | C88: =VLOOKUP($AA88,DATA!$B$3:$E$6,3,0) -> 22:30:00 | D88: =VLOOKUP($AA88,DATA!$B$3:$E$6,4,0) -> 0.03125 | E88: 0.3020833333 | F88: 0.3020833333 | G88: =DATA!$C$9 -> 0.89 | H88: =DATA!$C$10 -> 64 | I88: 1 | J88: 407.8125 | K88: 407.8125 | L88: 0 | O88: 0 | R88: 0 | X88: =X79 -> 4 | Z88: =TEXT(Y87,"ddd") -> zo | AA88: MD | AB88: =IFERROR(HLOOKUP(Y87,[1]DATA!$A$1:$NB$5,4,0),"") -> - | AG88: 0
A89: 4zoZND | B89: =VLOOKUP($AA89,DATA!$B$3:$E$6,2,0) -> 00:00:00 | C89: =VLOOKUP($AA89,DATA!$B$3:$E$6,3,0) -> 00:00:00 | D89: =VLOOKUP($AA89,DATA!$B$3:$E$6,4,0) -> 0 | E89: 0 | F89: 0 | G89: =DATA!$C$9 -> 0.89 | H89: =DATA!$C$10 -> 64 | I89: 1 | J89: 0 | K89: 0 | L89: 0 | O89: 0 | R89: 0 | X89: =X79 -> 4 | Z89: =TEXT(Y87,"ddd") -> zo | AA89: ZND | AB89: =IFERROR(HLOOKUP(Y87,[1]DATA!$A$1:$NB$5,5,0),"") -> D1 | AG89: 0
A90: 5maDD | B90: =VLOOKUP($AA90,DATA!$B$3:$E$6,2,0) -> 06:30:00 | C90: =VLOOKUP($AA90,DATA!$B$3:$E$6,3,0) -> 14:30:00 | D90: =VLOOKUP($AA90,DATA!$B$3:$E$6,4,0) -> 0.03125 | E90: 0.3020833333 | F90: 0.2368055556 | G90: =DATA!$C$9 -> 0.89 | H90: =DATA!$C$10 -> 64 | I90: 1 | J90: 319.6875 | K90: 407.8125 | L90: 0.06527777778 | M90: 88.125 | N90: 0.216091954 | O90: =TIME(INT($AD90/60),INT(MOD($AD90,60)/1),0) -> 0 | R90: 280.5333333 | S90: 243 | V90: 243 | X90: =X100 -> 5 | Y90: =Y87+1 -> 2018-01-29 | Z90: =TEXT(Y90,"ddd") -> ma | AA90: DD | AB90: =IFERROR(HLOOKUP(Y90,[1]DATA!$A$1:$NB$5,3,0),"") -> D3 | AC90: 94 | AE90: 20 | AF90: 263 | AG90: 15 | AH90: -104.8125 | AI90: 0.5574193548 | AJ90: 0.9492443041 | AK90: 4359.375 | AL90: 2906 | AM90: 0.666609319 | AN90: 643.125 | AO90: 0.1475268817 | AP90: 295.3125 | AQ90: 0.06774193548 | AR90: 0.9691499179 | AT90: 0.9589705518 | AU90: 0.979329284 | AV90: 514.9375 | AW90: 0.1181218638 | AX90: 549.2666667 | AY90: 110
A91: 5maMD | B91: =VLOOKUP($AA91,DATA!$B$3:$E$6,2,0) -> 14:30:00 | C91: =VLOOKUP($AA91,DATA!$B$3:$E$6,3,0) -> 22:30:00 | D91: =VLOOKUP($AA91,DATA!$B$3:$E$6,4,0) -> 0.03125 | E91: 0.3020833333 | F91: 0.2826388889 | G91: =DATA!$C$9 -> 0.89 | H91: =DATA!$C$10 -> 64 | I91: 1 | J91: 381.5625 | K91: 407.8125 | L91: 0.01944444444 | M91: 26.25 | N91: 0.06436781609 | O91: =TIME(INT(AD91/60),INT(MOD(AD91,60)/1),0) -> 0 | R91: 371.2 | S91: 337 | U91: 337 | X91: =X100 -> 5 | Z91: =TEXT(Y90,"ddd") -> ma | AA91: MD | AB91: =IFERROR(HLOOKUP(Y90,[1]DATA!$A$1:$NB$5,4,0),"") -> D2 | AC91: 28 | AE91: 11 | AF91: 348 | AG91: 4 | AH91: -72.6875 | AI91: 0.773046595 | AJ91: 0.9893390192
A92: 5maND | B92: =VLOOKUP($AA92,DATA!$B$3:$E$6,2,0) -> 22:30:00 | C92: =VLOOKUP($AA92,DATA!$B$3:$E$6,3,0) -> 06:30:00 | D92: =VLOOKUP($AA92,DATA!$B$3:$E$6,4,0) -> 0.03125 | E92: =(C92-B92+(B92>C92))-D92 -> 0.3020833333 | F92: =E92-O92-L92 -> 0.3020833333 | G92: =DATA!$C$9 -> 0.89 | H92: =DATA!$C$10 -> 64 | I92: 1 | J92: =F92*86400/H92*I92 -> 407.8125 | K92: =E92*86400/H92 -> 407.8125 | L92: 0 | O92: 0 | R92: =AF92*AG$2 -> 0 | S92: =IF(AF92-AE92=0,"",AF92-AE92) ->  | X92: =X100 -> 5 | Z92: =TEXT(Y90,"ddd") -> ma | AA92: ND | AB92: =IFERROR(HLOOKUP(Y90,[1]DATA!$A$1:$NB$5,5,0),"") -> D1 | AG92: 0
A93: 5diDD | B93: =VLOOKUP($AA93,DATA!$B$3:$E$6,2,0) -> 06:30:00 | C93: =VLOOKUP($AA93,DATA!$B$3:$E$6,3,0) -> 14:30:00 | D93: =VLOOKUP($AA93,DATA!$B$3:$E$6,4,0) -> 0.03125 | E93: 0.3020833333 | F93: 0.2680555556 | G93: =DATA!$C$9 -> 0.89 | H93: =DATA!$C$10 -> 64 | I93: 1 | J93: 361.875 | K93: 407.8125 | L93: 0.03402777778 | M93: 45.9375 | N93: 0.1126436782 | O93: 0 | R93: 388.2666667 | S93: 348 | V93: 348 | X93: =X100 -> 5 | Y93: =Y90+1 -> 2018-01-30 | Z93: =TEXT(Y93,"ddd") -> di | AA93: DD | AB93: =IFERROR(HLOOKUP(Y93,[1]DATA!$A$1:$NB$5,3,0),"") -> D3 | AC93: 49 | AE93: 16 | AF93: 364 | AG93: 4 | AH93: -42 | AI93: 0.7982795699 | AJ93: 0.9898028552
A94: 5diMD | B94: =VLOOKUP($AA94,DATA!$B$3:$E$6,2,0) -> 14:30:00 | C94: =VLOOKUP($AA94,DATA!$B$3:$E$6,3,0) -> 22:30:00 | D94: =VLOOKUP($AA94,DATA!$B$3:$E$6,4,0) -> 0.03125 | E94: 0.3020833333 | F94: 0.2659722222 | G94: =DATA!$C$9 -> 0.89 | H94: =DATA!$C$10 -> 64 | I94: 1 | J94: 359.0625 | K94: 407.8125 | L94: 0.03611111111 | M94: 48.75 | N94: 0.1195402299 | O94: 0 | R94: 373.3333333 | S94: 324 | U94: 324 | X94: =X100 -> 5 | Z94: =TEXT(Y93,"ddd") -> di | AA94: MD | AB94: =IFERROR(HLOOKUP(Y93,[1]DATA!$A$1:$NB$5,4,0),"") -> D2 | AC94: 52 | AE94: 26 | AF94: 350 | AG94: 12 | AH94: -63.1875 | AI94: 0.7432258065 | AJ94: 0.9688581315
A95: 5diND | B95: =VLOOKUP($AA95,DATA!$B$3:$E$6,2,0) -> 22:30:00 | C95: =VLOOKUP($AA95,DATA!$B$3:$E$6,3,0) -> 06:30:00 | D95: =VLOOKUP($AA95,DATA!$B$3:$E$6,4,0) -> 0.03125 | E95: 0.3020833333 | F95: 0.3020833333 | G95: =DATA!$C$9 -> 0.89 | H95: =DATA!$C$10 -> 64 | I95: 1 | J95: 407.8125 | K95: 407.8125 | L95: 0 | O95: 0 | R95: 0 | X95: =X100 -> 5 | Z95: =TEXT(Y93,"ddd") -> di | AA95: ND | AB95: =IFERROR(HLOOKUP(Y93,[1]DATA!$A$1:$NB$5,5,0),"") -> D1 | AG95: 0
A96: 5woDD | B96: =VLOOKUP($AA96,DATA!$B$3:$E$6,2,0) -> 06:30:00 | C96: =VLOOKUP($AA96,DATA!$B$3:$E$6,3,0) -> 14:30:00 | D96: =VLOOKUP($AA96,DATA!$B$3:$E$6,4,0) -> 0.03125 | E96: 0.3020833333 | F96: 0.125 | G96: =DATA!$C$9 -> 0.89 | H96: =DATA!$C$10 -> 64 | I96: 1 | J96: 168.75 | K96: 407.8125 | L96: 0.09375 | M96: 126.5625 | N96: 0.3103448276 | O96: 0.08333333333 | P96: 112.5 | Q96: 0.275862069 | R96: 234.6666667 | S96: 208 | V96: 208 | X96: =X100 -> 5 | Y96: =Y93+1 -> 2018-01-31 | Z96: =TEXT(Y96,"ddd") -> wo | AA96: DD | AB96: =IFERROR(HLOOKUP(Y96,[1]DATA!$A$1:$NB$5,3,0),"") -> D3 | AC96: 135 | AD96: 120 | AE96: 12 | AF96: 220 | AG96: 3 | AH96: 11.125 | AI96: 0.4771326165 | AJ96: 0.9873772791
A97: 5woMD | B97: =VLOOKUP($AA97,DATA!$B$3:$E$6,2,0) -> 14:30:00 | C97: =VLOOKUP($AA97,DATA!$B$3:$E$6,3,0) -> 22:30:00 | D97: =VLOOKUP($AA97,DATA!$B$3:$E$6,4,0) -> 0.03125 | E97: 0.3020833333 | F97: 0.1631944444 | G97: =DATA!$C$9 -> 0.89 | H97: =DATA!$C$10 -> 64 | I97: 1 | J97: 220.3125 | K97: 407.8125 | L97: 0.003472222222 | M97: 4.6875 | N97: 0.01149425287 | O97: 0.1354166667 | P97: 182.8125 | Q97: 0.4482758621 | R97: 280.5333333 | S97: 248 | U97: 248 | X97: =X100 -> 5 | Z97: =TEXT(Y96,"ddd") -> wo | AA97: MD | AB97: =IFERROR(HLOOKUP(Y96,[1]DATA!$A$1:$NB$5,4,0),"") -> D2 | AC97: 5 | AD97: 195 | AE97: 15 | AF97: 263 | AG97: 11 | AH97: -0.4375 | AI97: 0.5688888889 | AJ97: 0.9622684656
A98: 5woND | B98: =VLOOKUP($AA98,DATA!$B$3:$E$6,2,0) -> 22:30:00 | C98: =VLOOKUP($AA98,DATA!$B$3:$E$6,3,0) -> 06:30:00 | D98: =VLOOKUP($AA98,DATA!$B$3:$E$6,4,0) -> 0.03125 | E98: 0.3020833333 | F98: 0.3020833333 | G98: =DATA!$C$9 -> 0.89 | H98: =DATA!$C$10 -> 64 | I98: 1 | J98: 407.8125 | K98: 407.8125 | L98: 0 | O98: 0 | R98: 0 | X98: =X100 -> 5 | Z98: =TEXT(Y96,"ddd") -> wo | AA98: ND | AB98: =IFERROR(HLOOKUP(Y96,[1]DATA!$A$1:$NB$5,5,0),"") -> D1 | AG98: 0
A99: 5doDD | B99: =VLOOKUP($AA99,DATA!$B$3:$E$6,2,0) -> 06:30:00 | C99: =VLOOKUP($AA99,DATA!$B$3:$E$6,3,0) -> 14:30:00 | D99: =VLOOKUP($AA99,DATA!$B$3:$E$6,4,0) -> 0.03125 | E99: 0.3020833333 | F99: 0.2597222222 | G99: =DATA!$C$9 -> 0.89 | H99: =DATA!$C$10 -> 64 | I99: 1 | J99: 350.625 | K99: 407.8125 | L99: 0.04236111111 | M99: 57.1875 | N99: 0.1402298851 | O99: 0 | R99: 358.4 | S99: 329 | V99: 329 | X99: =X100 -> 5 | Y99: =Y96+1 -> 2018-02-01 | Z99: =TEXT(Y99,"ddd") -> do | AA99: DD | AB99: =IFERROR(HLOOKUP(Y99,[1]DATA!$A$1:$NB$5,3,0),"") -> D3 | AC99: 61 | AE99: 7 | AF99: 336 | AG99: 11 | AH99: -49.75 | AI99: 0.7546953405 | AJ99: 0.9702219816
A100: 5doMD | B100: =VLOOKUP($AA100,DATA!$B$3:$E$6,2,0) -> 14:30:00 | C100: =VLOOKUP($AA100,DATA!$B$3:$E$6,3,0) -> 22:30:00 | D100: =VLOOKUP($AA100,DATA!$B$3:$E$6,4,0) -> 0.03125 | E100: 0.3020833333 | F100: 0.2701388889 | G100: =DATA!$C$9 -> 0.89 | H100: =DATA!$C$10 -> 64 | I100: 1 | J100: 364.6875 | K100: 407.8125 | L100: 0.03194444444 | M100: 43.125 | N100: 0.1057471264 | O100: 0 | R100: 377.6 | S100: 336 | U100: 336 | X100: =WEEKNUM($Y90) -> 5 | Z100: =TEXT(Y99,"ddd") -> do | AA100: MD | AB100: =IFERROR(HLOOKUP(Y99,[1]DATA!$A$1:$NB$5,4,0),"") -> D2 | AC100: 46 | AE100: 18 | AF100: 354 | AG100: 13 | AH100: -56.8125 | AI100: 0.7707526882 | AJ100: 0.9667178699
A101: 5doND | B101: =VLOOKUP($AA101,DATA!$B$3:$E$6,2,0) -> 22:30:00 | C101: =VLOOKUP($AA101,DATA!$B$3:$E$6,3,0) -> 06:30:00 | D101: =VLOOKUP($AA101,DATA!$B$3:$E$6,4,0) -> 0.03125 | E101: 0.3020833333 | F101: 0.3020833333 | G101: =DATA!$C$9 -> 0.89 | H101: =DATA!$C$10 -> 64 | I101: 1 | J101: 407.8125 | K101: 407.8125 | L101: 0 | O101: 0 | R101: 0 | X101: =X100 -> 5 | Z101: =TEXT(Y99,"ddd") -> do | AA101: ND | AB101: =IFERROR(HLOOKUP(Y99,[1]DATA!$A$1:$NB$5,5,0),"") -> D1 | AG101: 0
A102: 5vrDD | B102: =VLOOKUP($AA102,DATA!$B$3:$E$6,2,0) -> 06:30:00 | C102: =VLOOKUP($AA102,DATA!$B$3:$E$6,3,0) -> 14:30:00 | D102: =VLOOKUP($AA102,DATA!$B$3:$E$6,4,0) -> 0.03125 | E102: 0.3020833333 | F102: 0.1784722222 | G102: =DATA!$C$9 -> 0.89 | H102: =DATA!$C$10 -> 64 | I102: 1 | J102: 240.9375 | K102: 407.8125 | L102: 0.1236111111 | M102: 166.875 | N102: 0.4091954023 | O102: 0 | R102: 242.1333333 | S102: 216 | V102: 216 | X102: =X100 -> 5 | Y102: =Y99+1 -> 2018-02-02 | Z102: =TEXT(Y102,"ddd") -> vr | AA102: DD | AB102: =IFERROR(HLOOKUP(Y102,[1]DATA!$A$1:$NB$5,3,0),"") -> D3 | AC102: 178 | AE102: 11 | AF102: 227 | AG102: 0 | AH102: -53.0625 | AI102: 0.495483871 | AJ102: 1
A103: 5vrMD | B103: =VLOOKUP($AA103,DATA!$B$3:$E$6,2,0) -> 14:30:00 | C103: =VLOOKUP($AA103,DATA!$B$3:$E$6,3,0) -> 22:30:00 | D103: =VLOOKUP($AA103,DATA!$B$3:$E$6,4,0) -> 0.03125 | E103: 0.3020833333 | F103: 0.2756944444 | G103: =DATA!$C$9 -> 0.89 | H103: =DATA!$C$10 -> 64 | I103: 1 | J103: 372.1875 | K103: 407.8125 | L103: 0.02638888889 | M103: 35.625 | N103: 0.08735632184 | O103: 0 | R103: 363.7333333 | S103: 317 | U103: 317 | X103: =X100 -> 5 | Z103: =TEXT(Y102,"ddd") -> vr | AA103: MD | AB103: =IFERROR(HLOOKUP(Y102,[1]DATA!$A$1:$NB$5,4,0),"") -> D2 | AC103: 38 | AE103: 24 | AF103: 341 | AG103: 37 | AH103: -83.3125 | AI103: 0.7271684588 | AJ103: 0.907669273
A104: 5vrND | B104: =VLOOKUP($AA104,DATA!$B$3:$E$6,2,0) -> 22:30:00 | C104: =VLOOKUP($AA104,DATA!$B$3:$E$6,3,0) -> 06:30:00 | D104: =VLOOKUP($AA104,DATA!$B$3:$E$6,4,0) -> 0.03125 | E104: 0.3020833333 | F104: 0.3020833333 | G104: =DATA!$C$9 -> 0.89 | H104: =DATA!$C$10 -> 64 | I104: 1 | J104: 407.8125 | K104: 407.8125 | L104: 0 | O104: 0 | R104: 0 | X104: =X100 -> 5 | Z104: =TEXT(Y102,"ddd") -> vr | AA104: ND | AB104: =IFERROR(HLOOKUP(Y102,[1]DATA!$A$1:$NB$5,5,0),"") -> - | AG104: 0
A105: 5zaDD | B105: =VLOOKUP($AA105,DATA!$B$3:$E$6,2,0) -> 06:30:00 | C105: =VLOOKUP($AA105,DATA!$B$3:$E$6,3,0) -> 14:30:00 | D105: =VLOOKUP($AA105,DATA!$B$3:$E$6,4,0) -> 0.03125 | E105: 0.3020833333 | F105: 0.3020833333 | G105: =DATA!$C$9 -> 0.89 | H105: =DATA!$C$10 -> 64 | I105: 1 | J105: 407.8125 | K105: 407.8125 | L105: 0 | O105: 0 | R105: 0 | X105: =X100 -> 5 | Y105: =Y102+1 -> 2018-02-03 | Z105: =TEXT(Y105,"ddd") -> za | AA105: DD | AB105: =IFERROR(HLOOKUP(Y105,[1]DATA!$A$1:$NB$5,3,0),"") -> - | AG105: 0
A106: 5zaMD | B106: =VLOOKUP($AA106,DATA!$B$3:$E$6,2,0) -> 14:30:00 | C106: =VLOOKUP($AA106,DATA!$B$3:$E$6,3,0) -> 22:30:00 | D106: =VLOOKUP($AA106,DATA!$B$3:$E$6,4,0) -> 0.03125 | E106: 0.3020833333 | F106: 0.3020833333 | G106: =DATA!$C$9 -> 0.89 | H106: =DATA!$C$10 -> 64 | I106: 1 | J106: 407.8125 | K106: 407.8125 | L106: 0 | O106: 0 | R106: 0 | X106: =X100 -> 5 | Z106: =TEXT(Y105,"ddd") -> za | AA106: MD | AB106: =IFERROR(HLOOKUP(Y105,[1]DATA!$A$1:$NB$5,4,0),"") -> - | AG106: 0
A107: 5zaND | B107: =VLOOKUP($AA107,DATA!$B$3:$E$6,2,0) -> 22:30:00 | C107: =VLOOKUP($AA107,DATA!$B$3:$E$6,3,0) -> 06:30:00 | D107: =VLOOKUP($AA107,DATA!$B$3:$E$6,4,0) -> 0.03125 | E107: 0.3020833333 | F107: 0.3020833333 | G107: =DATA!$C$9 -> 0.89 | H107: =DATA!$C$10 -> 64 | I107: 1 | J107: 407.8125 | K107: 407.8125 | L107: 0 | O107: 0 | R107: 0 | X107: =X100 -> 5 | Z107: =TEXT(Y105,"ddd") -> za | AA107: ND | AB107: =IFERROR(HLOOKUP(Y105,[1]DATA!$A$1:$NB$5,5,0),"") -> - | AG107: 0
A108: 5zoDD | B108: =VLOOKUP($AA108,DATA!$B$3:$E$6,2,0) -> 06:30:00 | C108: =VLOOKUP($AA108,DATA!$B$3:$E$6,3,0) -> 14:30:00 | D108: =VLOOKUP($AA108,DATA!$B$3:$E$6,4,0) -> 0.03125 | E108: 0.3020833333 | F108: 0.3020833333 | G108: =DATA!$C$9 -> 0.89 | H108: =DATA!$C$10 -> 64 | I108: 1 | J108: 407.8125 | K108: 407.8125 | L108: 0 | O108: 0 | R108: 0 | X108: =X100 -> 5 | Y108: =Y105+1 -> 2018-02-04 | Z108: =TEXT(Y108,"ddd") -> zo | AA108: DD | AB108: =IFERROR(HLOOKUP(Y108,[1]DATA!$A$1:$NB$5,3,0),"") -> - | AG108: 0
A109: 5zoMD | B109: =VLOOKUP($AA109,DATA!$B$3:$E$6,2,0) -> 14:30:00 | C109: =VLOOKUP($AA109,DATA!$B$3:$E$6,3,0) -> 22:30:00 | D109: =VLOOKUP($AA109,DATA!$B$3:$E$6,4,0) -> 0.03125 | E109: 0.3020833333 | F109: 0.3020833333 | G109: =DATA!$C$9 -> 0.89 | H109: =DATA!$C$10 -> 64 | I109: 1 | J109: 407.8125 | K109: 407.8125 | L109: 0 | O109: 0 | R109: 0 | X109: =X100 -> 5 | Z109: =TEXT(Y108,"ddd") -> zo | AA109: MD | AB109: =IFERROR(HLOOKUP(Y108,[1]DATA!$A$1:$NB$5,4,0),"") -> - | AG109: 0
A110: 5zoZND | B110: =VLOOKUP($AA110,DATA!$B$3:$E$6,2,0) -> 00:00:00 | C110: =VLOOKUP($AA110,DATA!$B$3:$E$6,3,0) -> 00:00:00 | D110: =VLOOKUP($AA110,DATA!$B$3:$E$6,4,0) -> 0 | E110: 0 | F110: 0 | G110: =DATA!$C$9 -> 0.89 | H110: =DATA!$C$10 -> 64 | I110: 1 | J110: 0 | K110: 0 | L110: 0 | O110: 0 | R110: 0 | X110: =X100 -> 5 | Z110: =TEXT(Y108,"ddd") -> zo | AA110: ZND | AB110: =IFERROR(HLOOKUP(Y108,[1]DATA!$A$1:$NB$5,5,0),"") -> D3 | AG110: 0
A111: 6maDD | B111: =VLOOKUP($AA111,DATA!$B$3:$E$6,2,0) -> 06:30:00 | C111: =VLOOKUP($AA111,DATA!$B$3:$E$6,3,0) -> 14:30:00 | D111: =VLOOKUP($AA111,DATA!$B$3:$E$6,4,0) -> 0.03125 | E111: 0.3020833333 | F111: 0.2416666667 | G111: =DATA!$C$9 -> 0.89 | H111: =DATA!$C$10 -> 64 | I111: 1 | J111: 326.25 | K111: 407.8125 | L111: 0.06041666667 | M111: 81.5625 | N111: 0.2 | O111: =TIME(INT($AD111/60),INT(MOD($AD111,60)/1),0) -> 0 | R111: 314.6666667 | S111: 282 | U111: 282 | X111: =X121 -> 6 | Y111: =Y108+1 -> 2018-02-05 | Z111: =TEXT(Y111,"ddd") -> ma | AA111: DD | AB111: =IFERROR(HLOOKUP(Y111,[1]DATA!$A$1:$NB$5,3,0),"") -> D2 | AC111: 87 | AE111: 13 | AF111: 295 | AG111: 7 | AH111: -72.375 | AI111: 0.6468817204 | AJ111: 0.978238342 | AK111: 4359.375 | AL111: 3203 | AM111: 0.7347383513 | AN111: 423.75 | AO111: 0.09720430108 | AP111: 0 | AQ111: 0 | AR111: 0.9585203715 | AS111: 0.9427933613 | AT111: 0.9742473817 | AV111: 732.625 | AW111: 0.1680573477 | AX111: 781.4666667 | AY111: 161
A112: =X112&Z112&AA112 -> 6maMD | B112: =VLOOKUP($AA112,DATA!$B$3:$E$6,2,0) -> 14:30:00 | C112: =VLOOKUP($AA112,DATA!$B$3:$E$6,3,0) -> 22:30:00 | D112: =VLOOKUP($AA112,DATA!$B$3:$E$6,4,0) -> 0.03125 | E112: 0.3020833333 | F112: 0.2597222222 | G112: =DATA!$C$9 -> 0.89 | H112: =DATA!$C$10 -> 64 | I112: 1 | J112: 350.625 | K112: 407.8125 | L112: 0.04236111111 | M112: 57.1875 | N112: 0.1402298851 | O112: =TIME(INT(AD112/60),INT(MOD(AD112,60)/1),0) -> 0 | P112: =IF($O112*86400/$H112=0,"",$O112*86400/$H112) ->  | R112: 357.3333333 | S112: 318 | T112: 318 | X112: =X121 -> 6 | Z112: =TEXT(Y111,"ddd") -> ma | AA112: MD | AB112: =IFERROR(HLOOKUP(Y111,[1]DATA!$A$1:$NB$5,4,0),"") -> D1 | AC112: 61 | AE112: 17 | AF112: 335 | AG112: 18 | AH112: -60.75 | AI112: 0.7294623656 | AJ112: 0.9520426288
A113: 6maND | B113: =VLOOKUP($AA113,DATA!$B$3:$E$6,2,0) -> 22:30:00 | C113: =VLOOKUP($AA113,DATA!$B$3:$E$6,3,0) -> 06:30:00 | D113: =VLOOKUP($AA113,DATA!$B$3:$E$6,4,0) -> 0.03125 | E113: 0.3020833333 | F113: 0.3020833333 | G113: =DATA!$C$9 -> 0.89 | H113: =DATA!$C$10 -> 64 | I113: 1 | J113: 407.8125 | K113: 407.8125 | L113: 0 | O113: 0 | R113: 0 | X113: =X121 -> 6 | Z113: =TEXT(Y111,"ddd") -> ma | AA113: ND | AB113: =IFERROR(HLOOKUP(Y111,[1]DATA!$A$1:$NB$5,5,0),"") -> D3 | AG113: 0
A114: 6diDD | B114: =VLOOKUP($AA114,DATA!$B$3:$E$6,2,0) -> 06:30:00 | C114: =VLOOKUP($AA114,DATA!$B$3:$E$6,3,0) -> 14:30:00 | D114: =VLOOKUP($AA114,DATA!$B$3:$E$6,4,0) -> 0.03125 | E114: 0.3020833333 | F114: 0.2618055556 | G114: =DATA!$C$9 -> 0.89 | H114: =DATA!$C$10 -> 64 | I114: 1 | J114: 353.4375 | K114: 407.8125 | L114: 0.04027777778 | M114: 54.375 | N114: 0.1333333333 | O114: 0 | R114: 343.4666667 | S114: 315 | U114: 315 | X114: =X121 -> 6 | Y114: =Y111+1 -> 2018-02-06 | Z114: =TEXT(Y114,"ddd") -> di | AA114: DD | AB114: =IFERROR(HLOOKUP(Y114,[1]DATA!$A$1:$NB$5,3,0),"") -> D2 | AC114: 58 | AE114: 7 | AF114: 322 | AG114: 7 | AH114: -66.5625 | AI114: 0.7225806452 | AJ114: 0.9800266312
A115: 6diMD | B115: =VLOOKUP($AA115,DATA!$B$3:$E$6,2,0) -> 14:30:00 | C115: =VLOOKUP($AA115,DATA!$B$3:$E$6,3,0) -> 22:30:00 | D115: =VLOOKUP($AA115,DATA!$B$3:$E$6,4,0) -> 0.03125 | E115: 0.3020833333 | F115: 0.2701388889 | G115: =DATA!$C$9 -> 0.89 | H115: =DATA!$C$10 -> 64 | I115: 1 | J115: 364.6875 | K115: 407.8125 | L115: 0.03194444444 | M115: 43.125 | N115: 0.1057471264 | O115: 0 | R115: 293.3333333 | S115: 267 | T115: 267 | X115: =X121 -> 6 | Z115: =TEXT(Y114,"ddd") -> di | AA115: MD | AB115: =IFERROR(HLOOKUP(Y114,[1]DATA!$A$1:$NB$5,4,0),"") -> D1 | AC115: 46 | AE115: 8 | AF115: 275 | AG115: 0 | AH115: -125.8125 | AI115: 0.6124731183 | AJ115: 1
A116: 6diND | B116: =VLOOKUP($AA116,DATA!$B$3:$E$6,2,0) -> 22:30:00 | C116: =VLOOKUP($AA116,DATA!$B$3:$E$6,3,0) -> 06:30:00 | D116: =VLOOKUP($AA116,DATA!$B$3:$E$6,4,0) -> 0.03125 | E116: 0.3020833333 | F116: 0.3020833333 | G116: =DATA!$C$9 -> 0.89 | H116: =DATA!$C$10 -> 64 | I116: 1 | J116: 407.8125 | K116: 407.8125 | L116: 0 | O116: 0 | R116: 0 | X116: =X121 -> 6 | Z116: =TEXT(Y114,"ddd") -> di | AA116: ND | AB116: =IFERROR(HLOOKUP(Y114,[1]DATA!$A$1:$NB$5,5,0),"") -> D3 | AG116: 0
A117: 6woDD | B117: =VLOOKUP($AA117,DATA!$B$3:$E$6,2,0) -> 06:30:00 | C117: =VLOOKUP($AA117,DATA!$B$3:$E$6,3,0) -> 14:30:00 | D117: =VLOOKUP($AA117,DATA!$B$3:$E$6,4,0) -> 0.03125 | E117: 0.3020833333 | F117: 0.275 | G117: =DATA!$C$9 -> 0.89 | H117: =DATA!$C$10 -> 64 | I117: 1 | J117: 371.25 | K117: 407.8125 | L117: 0.02708333333 | M117: 36.5625 | N117: 0.08965517241 | O117: 0 | R117: 404.2666667 | S117: 343 | U117: 343 | X117: =X121 -> 6 | Y117: =Y114+1 -> 2018-02-07 | Z117: =TEXT(Y117,"ddd") -> wo | AA117: DD | AB117: =IFERROR(HLOOKUP(Y117,[1]DATA!$A$1:$NB$5,3,0),"") -> D2 | AC117: 39 | AE117: 36 | AF117: 379 | AG117: 18 | AH117: -56.375 | AI117: 0.7868100358 | AJ117: 0.9573729081
A118: 6woMD | B118: =VLOOKUP($AA118,DATA!$B$3:$E$6,2,0) -> 14:30:00 | C118: =VLOOKUP($AA118,DATA!$B$3:$E$6,3,0) -> 22:30:00 | D118: =VLOOKUP($AA118,DATA!$B$3:$E$6,4,0) -> 0.03125 | E118: 0.3020833333 | F118: 0.2659722222 | G118: =DATA!$C$9 -> 0.89 | H118: =DATA!$C$10 -> 64 | I118: 1 | J118: 359.0625 | K118: 407.8125 | L118: 0.03611111111 | M118: 48.75 | N118: 0.1195402299 | O118: 0 | R118: 336 | S118: 306 | T118: 306 | X118: =X121 -> 6 | Z118: =TEXT(Y117,"ddd") -> wo | AA118: MD | AB118: =IFERROR(HLOOKUP(Y117,[1]DATA!$A$1:$NB$5,4,0),"") -> D1 | AC118: 52 | AE118: 9 | AF118: 315 | AG118: 45 | AH118: -81.1875 | AI118: 0.7019354839 | AJ118: 0.8818897638
A119: 6woND | B119: =VLOOKUP($AA119,DATA!$B$3:$E$6,2,0) -> 22:30:00 | C119: =VLOOKUP($AA119,DATA!$B$3:$E$6,3,0) -> 06:30:00 | D119: =VLOOKUP($AA119,DATA!$B$3:$E$6,4,0) -> 0.03125 | E119: 0.3020833333 | F119: 0.3020833333 | G119: =DATA!$C$9 -> 0.89 | H119: =DATA!$C$10 -> 64 | I119: 1 | J119: 407.8125 | K119: 407.8125 | L119: 0 | O119: 0 | R119: 0 | X119: =X121 -> 6 | Z119: =TEXT(Y117,"ddd") -> wo | AA119: ND | AB119: =IFERROR(HLOOKUP(Y117,[1]DATA!$A$1:$NB$5,5,0),"") -> D3 | AG119: 0
A120: 6doDD | B120: =VLOOKUP($AA120,DATA!$B$3:$E$6,2,0) -> 06:30:00 | C120: =VLOOKUP($AA120,DATA!$B$3:$E$6,3,0) -> 14:30:00 | D120: =VLOOKUP($AA120,DATA!$B$3:$E$6,4,0) -> 0.03125 | E120: 0.3020833333 | F120: 0.2805555556 | G120: =DATA!$C$9 -> 0.89 | H120: =DATA!$C$10 -> 64 | I120: 1 | J120: 378.75 | K120: 407.8125 | L120: 0.02152777778 | M120: 29.0625 | N120: 0.07126436782 | O120: 0 | R120: 391.4666667 | S120: 348 | U120: 348 | X120: =X121 -> 6 | Y120: =Y117+1 -> 2018-02-08 | Z120: =TEXT(Y120,"ddd") -> do | AA120: DD | AB120: =IFERROR(HLOOKUP(Y120,[1]DATA!$A$1:$NB$5,3,0),"") -> D2 | AC120: 31 | AE120: 19 | AF120: 367 | AG120: 7 | AH120: -58.875 | AI120: 0.7982795699 | AJ120: 0.9824326585
A121: 6doMD | B121: =VLOOKUP($AA121,DATA!$B$3:$E$6,2,0) -> 14:30:00 | C121: =VLOOKUP($AA121,DATA!$B$3:$E$6,3,0) -> 22:30:00 | D121: =VLOOKUP($AA121,DATA!$B$3:$E$6,4,0) -> 0.03125 | E121: 0.3020833333 | F121: 0.2756944444 | G121: =DATA!$C$9 -> 0.89 | H121: =DATA!$C$10 -> 64 | I121: 1 | J121: 372.1875 | K121: 407.8125 | L121: 0.02638888889 | M121: 35.625 | N121: 0.08735632184 | O121: 0 | R121: 352 | S121: 315 | T121: 315 | X121: =WEEKNUM($Y111) -> 6 | Z121: =TEXT(Y120,"ddd") -> do | AA121: MD | AB121: =IFERROR(HLOOKUP(Y120,[1]DATA!$A$1:$NB$5,4,0),"") -> D1 | AC121: 38 | AE121: 15 | AF121: 330 | AG121: 42 | AH121: -85.3125 | AI121: 0.7225806452 | AJ121: 0.8934010152
A122: 6doND | B122: =VLOOKUP($AA122,DATA!$B$3:$E$6,2,0) -> 22:30:00 | C122: =VLOOKUP($AA122,DATA!$B$3:$E$6,3,0) -> 06:30:00 | D122: =VLOOKUP($AA122,DATA!$B$3:$E$6,4,0) -> 0.03125 | E122: 0.3020833333 | F122: 0.3020833333 | G122: =DATA!$C$9 -> 0.89 | H122: =DATA!$C$10 -> 64 | I122: 1 | J122: 407.8125 | K122: 407.8125 | L122: 0 | O122: 0 | R122: 0 | X122: =X121 -> 6 | Z122: =TEXT(Y120,"ddd") -> do | AA122: ND | AB122: =IFERROR(HLOOKUP(Y120,[1]DATA!$A$1:$NB$5,5,0),"") -> D3 | AG122: 0
A123: 6vrDD | B123: =VLOOKUP($AA123,DATA!$B$3:$E$6,2,0) -> 06:30:00 | C123: =VLOOKUP($AA123,DATA!$B$3:$E$6,3,0) -> 14:30:00 | D123: =VLOOKUP($AA123,DATA!$B$3:$E$6,4,0) -> 0.03125 | E123: 0.3020833333 | F123: 0.2986111111 | G123: =DATA!$C$9 -> 0.89 | H123: =DATA!$C$10 -> 64 | I123: 1 | J123: 403.125 | K123: 407.8125 | L123: 0.003472222222 | M123: 4.6875 | N123: 0.01149425287 | O123: 0 | R123: 435.2 | S123: 374 | U123: 374 | X123: =X121 -> 6 | Y123: =Y120+1 -> 2018-02-09 | Z123: =TEXT(Y123,"ddd") -> vr | AA123: DD | AB123: =IFERROR(HLOOKUP(Y123,[1]DATA!$A$1:$NB$5,3,0),"") -> D2 | AC123: 5 | AE123: 34 | AF123: 408 | AG123: 12 | AH123: -57.25 | AI123: 0.857921147 | AJ123: 0.9731663685
A124: 6vrMD | B124: =VLOOKUP($AA124,DATA!$B$3:$E$6,2,0) -> 14:30:00 | C124: =VLOOKUP($AA124,DATA!$B$3:$E$6,3,0) -> 22:30:00 | D124: =VLOOKUP($AA124,DATA!$B$3:$E$6,4,0) -> 0.03125 | E124: 0.3020833333 | F124: 0.2777777778 | G124: =DATA!$C$9 -> 0.89 | H124: =DATA!$C$10 -> 64 | I124: 1 | J124: 375 | K124: 407.8125 | L124: 0.02430555556 | M124: 32.8125 | N124: 0.08045977011 | O124: 0 | R124: 369.0666667 | S124: 335 | T124: 335 | X124: =X121 -> 6 | Z124: =TEXT(Y123,"ddd") -> vr | AA124: MD | AB124: =IFERROR(HLOOKUP(Y123,[1]DATA!$A$1:$NB$5,4,0),"") -> D1 | AC124: 35 | AE124: 11 | AF124: 346 | AG124: 5 | AH124: -68.125 | AI124: 0.7684587814 | AJ124: 0.9866333987
A125: 6vrND | B125: =VLOOKUP($AA125,DATA!$B$3:$E$6,2,0) -> 22:30:00 | C125: =VLOOKUP($AA125,DATA!$B$3:$E$6,3,0) -> 06:30:00 | D125: =VLOOKUP($AA125,DATA!$B$3:$E$6,4,0) -> 0.03125 | E125: 0.3020833333 | F125: 0.3020833333 | G125: =DATA!$C$9 -> 0.89 | H125: =DATA!$C$10 -> 64 | I125: 1 | J125: 407.8125 | K125: 407.8125 | L125: 0 | O125: 0 | R125: 0 | X125: =X121 -> 6 | Z125: =TEXT(Y123,"ddd") -> vr | AA125: ND | AB125: =IFERROR(HLOOKUP(Y123,[1]DATA!$A$1:$NB$5,5,0),"") -> - | AG125: 0
A126: 6zaDD | B126: =VLOOKUP($AA126,DATA!$B$3:$E$6,2,0) -> 06:30:00 | C126: =VLOOKUP($AA126,DATA!$B$3:$E$6,3,0) -> 14:30:00 | D126: =VLOOKUP($AA126,DATA!$B$3:$E$6,4,0) -> 0.03125 | E126: 0.3020833333 | F126: 0.3020833333 | G126: =DATA!$C$9 -> 0.89 | H126: =DATA!$C$10 -> 64 | I126: 1 | J126: 407.8125 | K126: 407.8125 | L126: 0 | O126: 0 | R126: 0 | X126: =X121 -> 6 | Y126: =Y123+1 -> 2018-02-10 | Z126: =TEXT(Y126,"ddd") -> za | AA126: DD | AB126: =IFERROR(HLOOKUP(Y126,[1]DATA!$A$1:$NB$5,3,0),"") -> - | AG126: 0
A127: 6zaMD | B127: =VLOOKUP($AA127,DATA!$B$3:$E$6,2,0) -> 14:30:00 | C127: =VLOOKUP($AA127,DATA!$B$3:$E$6,3,0) -> 22:30:00 | D127: =VLOOKUP($AA127,DATA!$B$3:$E$6,4,0) -> 0.03125 | E127: 0.3020833333 | F127: 0.3020833333 | G127: =DATA!$C$9 -> 0.89 | H127: =DATA!$C$10 -> 64 | I127: 1 | J127: 407.8125 | K127: 407.8125 | L127: 0 | O127: 0 | R127: 0 | X127: =X121 -> 6 | Z127: =TEXT(Y126,"ddd") -> za | AA127: MD | AB127: =IFERROR(HLOOKUP(Y126,[1]DATA!$A$1:$NB$5,4,0),"") -> - | AG127: 0
A128: 6zaND | B128: =VLOOKUP($AA128,DATA!$B$3:$E$6,2,0) -> 22:30:00 | C128: =VLOOKUP($AA128,DATA!$B$3:$E$6,3,0) -> 06:30:00 | D128: =VLOOKUP($AA128,DATA!$B$3:$E$6,4,0) -> 0.03125 | E128: 0.3020833333 | F128: 0.3020833333 | G128: =DATA!$C$9 -> 0.89 | H128: =DATA!$C$10 -> 64 | I128: 1 | J128: 407.8125 | K128: 407.8125 | L128: 0 | O128: 0 | R128: 0 | X128: =X121 -> 6 | Z128: =TEXT(Y126,"ddd") -> za | AA128: ND | AB128: =IFERROR(HLOOKUP(Y126,[1]DATA!$A$1:$NB$5,5,0),"") -> - | AG128: 0
A129: 6zoDD | B129: =VLOOKUP($AA129,DATA!$B$3:$E$6,2,0) -> 06:30:00 | C129: =VLOOKUP($AA129,DATA!$B$3:$E$6,3,0) -> 14:30:00 | D129: =VLOOKUP($AA129,DATA!$B$3:$E$6,4,0) -> 0.03125 | E129: 0.3020833333 | F129: 0.3020833333 | G129: =DATA!$C$9 -> 0.89 | H129: =DATA!$C$10 -> 64 | I129: 1 | J129: 407.8125 | K129: 407.8125 | L129: 0 | O129: 0 | R129: 0 | X129: =X121 -> 6 | Y129: =Y126+1 -> 2018-02-11 | Z129: =TEXT(Y129,"ddd") -> zo | AA129: DD | AB129: =IFERROR(HLOOKUP(Y129,[1]DATA!$A$1:$NB$5,3,0),"") -> - | AG129: 0
A130: 6zoMD | B130: =VLOOKUP($AA130,DATA!$B$3:$E$6,2,0) -> 14:30:00 | C130: =VLOOKUP($AA130,DATA!$B$3:$E$6,3,0) -> 22:30:00 | D130: =VLOOKUP($AA130,DATA!$B$3:$E$6,4,0) -> 0.03125 | E130: 0.3020833333 | F130: 0.3020833333 | G130: =DATA!$C$9 -> 0.89 | H130: =DATA!$C$10 -> 64 | I130: 1 | J130: 407.8125 | K130: 407.8125 | L130: 0 | O130: 0 | R130: 0 | X130: =X121 -> 6 | Z130: =TEXT(Y129,"ddd") -> zo | AA130: MD | AB130: =IFERROR(HLOOKUP(Y129,[1]DATA!$A$1:$NB$5,4,0),"") -> - | AG130: 0
A131: 6zoZND | B131: =VLOOKUP($AA131,DATA!$B$3:$E$6,2,0) -> 00:00:00 | C131: =VLOOKUP($AA131,DATA!$B$3:$E$6,3,0) -> 00:00:00 | D131: =VLOOKUP($AA131,DATA!$B$3:$E$6,4,0) -> 0 | E131: 0 | F131: 0 | G131: =DATA!$C$9 -> 0.89 | H131: =DATA!$C$10 -> 64 | I131: 1 | J131: 0 | K131: 0 | L131: 0 | O131: 0 | R131: 0 | X131: =X121 -> 6 | Z131: =TEXT(Y129,"ddd") -> zo | AA131: ZND | AB131: =IFERROR(HLOOKUP(Y129,[1]DATA!$A$1:$NB$5,5,0),"") -> D2 | AG131: 0
A132: 7maDD | B132: =VLOOKUP($AA132,DATA!$B$3:$E$6,2,0) -> 06:30:00 | C132: =VLOOKUP($AA132,DATA!$B$3:$E$6,3,0) -> 14:30:00 | D132: =VLOOKUP($AA132,DATA!$B$3:$E$6,4,0) -> 0.03125 | E132: 0.3020833333 | F132: 0.3020833333 | G132: =DATA!$C$9 -> 0.89 | H132: =DATA!$C$10 -> 64 | I132: 1 | J132: 407.8125 | K132: 407.8125 | L132: 0 | O132: =TIME(INT($AD132/60),INT(MOD($AD132,60)/1),0) -> 0 | R132: 0 | X132: =X142 -> 7 | Y132: =Y129+1 -> 2018-02-12 | Z132: =TEXT(Y132,"ddd") -> ma | AA132: DD | AB132: =IFERROR(HLOOKUP(Y132,[1]DATA!$A$1:$NB$5,3,0),"") -> D1 | AG132: 0 | AK132: 3487.5 | AL132: 2476 | AM132: 0.7099641577 | AN132: 380.625 | AO132: 0.1091397849 | AP132: 32.8125 | AQ132: 0.009408602151 | AR132: 0.9818044105 | AS132: 0.9813031184 | AU132: 0.9823057026 | AV132: 598.0625 | AW132: 0.1714874552 | AX132: 637.9333333 | AY132: 51
A133: 7maMD | B133: =VLOOKUP($AA133,DATA!$B$3:$E$6,2,0) -> 14:30:00 | C133: =VLOOKUP($AA133,DATA!$B$3:$E$6,3,0) -> 22:30:00 | D133: =VLOOKUP($AA133,DATA!$B$3:$E$6,4,0) -> 0.03125 | E133: 0.3020833333 | F133: 0.3020833333 | G133: =DATA!$C$9 -> 0.89 | H133: =DATA!$C$10 -> 64 | I133: 1 | J133: 407.8125 | K133: 407.8125 | L133: 0 | O133: =TIME(INT(AD133/60),INT(MOD(AD133,60)/1),0) -> 0 | R133: 0 | X133: =X142 -> 7 | Z133: =TEXT(Y132,"ddd") -> ma | AA133: MD | AB133: =IFERROR(HLOOKUP(Y132,[1]DATA!$A$1:$NB$5,4,0),"") -> D3 | AG133: 0
A134: 7maND | B134: =VLOOKUP($AA134,DATA!$B$3:$E$6,2,0) -> 22:30:00 | C134: =VLOOKUP($AA134,DATA!$B$3:$E$6,3,0) -> 06:30:00 | D134: =VLOOKUP($AA134,DATA!$B$3:$E$6,4,0) -> 0.03125 | E134: 0.3020833333 | F134: 0.3020833333 | G134: =DATA!$C$9 -> 0.89 | H134: =DATA!$C$10 -> 64 | I134: 1 | J134: 407.8125 | K134: 407.8125 | L134: 0 | O134: 0 | R134: 0 | X134: =X142 -> 7 | Z134: =TEXT(Y132,"ddd") -> ma | AA134: ND | AB134: =IFERROR(HLOOKUP(Y132,[1]DATA!$A$1:$NB$5,5,0),"") -> D2 | AG134: 0
A135: 7diDD | B135: =VLOOKUP($AA135,DATA!$B$3:$E$6,2,0) -> 06:30:00 | C135: =VLOOKUP($AA135,DATA!$B$3:$E$6,3,0) -> 14:30:00 | D135: =VLOOKUP($AA135,DATA!$B$3:$E$6,4,0) -> 0.03125 | E135: 0.3020833333 | F135: 0.2673611111 | G135: =DATA!$C$9 -> 0.89 | H135: =DATA!$C$10 -> 64 | I135: 1 | J135: 360.9375 | K135: 407.8125 | L135: =TIME(INT($AC135/60),INT(MOD($AC135,60)/1),0) -> 0.03472222222 | M135: =IF($L135*86400/$H135=0,"",$L135*86400/$H135) -> 46.875 | N135: =IFERROR($M135/$K135,"") -> 0.1149425287 | O135: 0 | Q135: =IFERROR($P135/$K135,"") ->  | R135: 366.9333333 | S135: 330 | T135: =IF(IF($AB135="D1",$S135,"")=0,"",IF($AB135="D1",$S135,"")) -> 330 | U135: =IF(IF($AB135="D2",$S135,"")=0,"",IF($AB135="D2",$S135,"")) ->  | V135: =IF(IF($AB135="D3",$S135,"")=0,"",IF($AB135="D3",$S135,"")) ->  | X135: =X142 -> 7 | Y135: =Y132+1 -> 2018-02-13 | Z135: =TEXT(Y135,"ddd") -> di | AA135: DD | AB135: =IFERROR(HLOOKUP(Y135,[1]DATA!$A$1:$NB$5,3,0),"") -> D1 | AC135: 50 | AE135: 14 | AF135: 344 | AG135: 9 | AH135: -59.0625 | AI135: 0.7569892473 | AJ135: 0.976059585
A136: 7diMD | B136: =VLOOKUP($AA136,DATA!$B$3:$E$6,2,0) -> 14:30:00 | C136: =VLOOKUP($AA136,DATA!$B$3:$E$6,3,0) -> 22:30:00 | D136: =VLOOKUP($AA136,DATA!$B$3:$E$6,4,0) -> 0.03125 | E136: 0.3020833333 | F136: 0.28125 | G136: =DATA!$C$9 -> 0.89 | H136: =DATA!$C$10 -> 64 | I136: 1 | J136: 379.6875 | K136: 407.8125 | L136: 0.02083333333 | M136: 28.125 | N136: 0.06896551724 | O136: 0 | R136: 326.4 | S136: 296 | V136: 296 | X136: =X142 -> 7 | Z136: =TEXT(Y135,"ddd") -> di | AA136: MD | AB136: =IFERROR(HLOOKUP(Y135,[1]DATA!$A$1:$NB$5,4,0),"") -> D3 | AC136: 30 | AE136: 10 | AF136: 306 | AG136: 3 | AH136: -111.8125 | AI136: 0.6789964158 | AJ136: 0.9908925319
A137: 7diND | B137: =VLOOKUP($AA137,DATA!$B$3:$E$6,2,0) -> 22:30:00 | C137: =VLOOKUP($AA137,DATA!$B$3:$E$6,3,0) -> 06:30:00 | D137: =VLOOKUP($AA137,DATA!$B$3:$E$6,4,0) -> 0.03125 | E137: 0.3020833333 | F137: 0.3020833333 | G137: =DATA!$C$9 -> 0.89 | H137: =DATA!$C$10 -> 64 | I137: 1 | J137: 407.8125 | K137: 407.8125 | L137: 0 | O137: 0 | R137: 0 | X137: =X142 -> 7 | Z137: =TEXT(Y135,"ddd") -> di | AA137: ND | AB137: =IFERROR(HLOOKUP(Y135,[1]DATA!$A$1:$NB$5,5,0),"") -> D2 | AG137: 0
A138: 7woDD | B138: =VLOOKUP($AA138,DATA!$B$3:$E$6,2,0) -> 06:30:00 | C138: =VLOOKUP($AA138,DATA!$B$3:$E$6,3,0) -> 14:30:00 | D138: =VLOOKUP($AA138,DATA!$B$3:$E$6,4,0) -> 0.03125 | E138: 0.3020833333 | F138: 0.2916666667 | G138: =DATA!$C$9 -> 0.89 | H138: =DATA!$C$10 -> 64 | I138: 1 | J138: 393.75 | K138: 407.8125 | L138: 0.01041666667 | M138: 14.0625 | N138: 0.03448275862 | O138: 0 | R138: 365.8666667 | S138: 334 | T138: 334 | X138: =X142 -> 7 | Y138: =Y135+1 -> 2018-02-14 | Z138: =TEXT(Y138,"ddd") -> wo | AA138: DD | AB138: =IFERROR(HLOOKUP(Y138,[1]DATA!$A$1:$NB$5,3,0),"") -> D1 | AC138: 15 | AE138: 9 | AF138: 343 | AG138: 3 | AH138: -87.875 | AI138: 0.7661648746 | AJ138: 0.9918669799
A139: 7woMD | B139: =VLOOKUP($AA139,DATA!$B$3:$E$6,2,0) -> 14:30:00 | C139: =VLOOKUP($AA139,DATA!$B$3:$E$6,3,0) -> 22:30:00 | D139: =VLOOKUP($AA139,DATA!$B$3:$E$6,4,0) -> 0.03125 | E139: 0.3020833333 | F139: 0.2340277778 | G139: =DATA!$C$9 -> 0.89 | H139: =DATA!$C$10 -> 64 | I139: 1 | J139: 315.9375 | K139: 407.8125 | L139: 0.06805555556 | M139: 91.875 | N139: 0.2252873563 | O139: 0 | R139: 343.4666667 | S139: 310 | V139: 310 | X139: =X142 -> 7 | Z139: =TEXT(Y138,"ddd") -> wo | AA139: MD | AB139: =IFERROR(HLOOKUP(Y138,[1]DATA!$A$1:$NB$5,4,0),"") -> D3 | AC139: 98 | AE139: 12 | AF139: 322 | AG139: 6 | AH139: -34.0625 | AI139: 0.7111111111 | AJ139: 0.9828309805
A140: 7woND | B140: =VLOOKUP($AA140,DATA!$B$3:$E$6,2,0) -> 22:30:00 | C140: =VLOOKUP($AA140,DATA!$B$3:$E$6,3,0) -> 06:30:00 | D140: =VLOOKUP($AA140,DATA!$B$3:$E$6,4,0) -> 0.03125 | E140: 0.3020833333 | F140: 0.3020833333 | G140: =DATA!$C$9 -> 0.89 | H140: =DATA!$C$10 -> 64 | I140: 1 | J140: 407.8125 | K140: 407.8125 | L140: 0 | O140: 0 | R140: 0 | X140: =X142 -> 7 | Z140: =TEXT(Y138,"ddd") -> wo | AA140: ND | AB140: =IFERROR(HLOOKUP(Y138,[1]DATA!$A$1:$NB$5,5,0),"") -> D2 | AG140: 0
A141: 7doDD | B141: =VLOOKUP($AA141,DATA!$B$3:$E$6,2,0) -> 06:30:00 | C141: =VLOOKUP($AA141,DATA!$B$3:$E$6,3,0) -> 14:30:00 | D141: =VLOOKUP($AA141,DATA!$B$3:$E$6,4,0) -> 0.03125 | E141: 0.3020833333 | F141: 0.2486111111 | G141: =DATA!$C$9 -> 0.89 | H141: =DATA!$C$10 -> 64 | I141: 1 | J141: 335.625 | K141: 407.8125 | L141: 0.05347222222 | M141: 72.1875 | N141: 0.1770114943 | O141: 0 | R141: 347.7333333 | S141: 315 | T141: 315 | X141: =X142 -> 7 | Y141: =Y138+1 -> 2018-02-15 | Z141: =TEXT(Y141,"ddd") -> do | AA141: DD | AB141: =IFERROR(HLOOKUP(Y141,[1]DATA!$A$1:$NB$5,3,0),"") -> D1 | AC141: 77 | AE141: 11 | AF141: 326 | AG141: 7 | AH141: -48.75 | AI141: 0.7225806452 | AJ141: 0.9802668671
A142: 7doMD | B142: =VLOOKUP($AA142,DATA!$B$3:$E$6,2,0) -> 14:30:00 | C142: =VLOOKUP($AA142,DATA!$B$3:$E$6,3,0) -> 22:30:00 | D142: =VLOOKUP($AA142,DATA!$B$3:$E$6,4,0) -> 0.03125 | E142: 0.3020833333 | F142: 0.2631944444 | G142: =DATA!$C$9 -> 0.89 | H142: =DATA!$C$10 -> 64 | I142: 1 | J142: 355.3125 | K142: 407.8125 | L142: 0.03888888889 | M142: 52.5 | N142: 0.1287356322 | O142: 0 | R142: 364.8 | S142: 322 | V142: 322 | X142: =WEEKNUM($Y132) -> 7 | Z142: =TEXT(Y141,"ddd") -> do | AA142: MD | AB142: =IFERROR(HLOOKUP(Y141,[1]DATA!$A$1:$NB$5,4,0),"") -> D3 | AC142: 56 | AE142: 20 | AF142: 342 | AG142: 8 | AH142: -61.4375 | AI142: 0.7386379928 | AJ142: 0.9785407725
A143: 7doND | B143: =VLOOKUP($AA143,DATA!$B$3:$E$6,2,0) -> 22:30:00 | C143: =VLOOKUP($AA143,DATA!$B$3:$E$6,3,0) -> 06:30:00 | D143: =VLOOKUP($AA143,DATA!$B$3:$E$6,4,0) -> 0.03125 | E143: 0.3020833333 | F143: 0.3020833333 | G143: =DATA!$C$9 -> 0.89 | H143: =DATA!$C$10 -> 64 | I143: 1 | J143: 407.8125 | K143: 407.8125 | L143: 0 | O143: 0 | R143: 0 | X143: =X142 -> 7 | Z143: =TEXT(Y141,"ddd") -> do | AA143: ND | AB143: =IFERROR(HLOOKUP(Y141,[1]DATA!$A$1:$NB$5,5,0),"") -> D2 | AG143: 0
A144: 7vrDD | B144: =VLOOKUP($AA144,DATA!$B$3:$E$6,2,0) -> 06:30:00 | C144: =VLOOKUP($AA144,DATA!$B$3:$E$6,3,0) -> 14:30:00 | D144: =VLOOKUP($AA144,DATA!$B$3:$E$6,4,0) -> 0.03125 | E144: 0.3020833333 | F144: 0.2347222222 | G144: =DATA!$C$9 -> 0.89 | H144: =DATA!$C$10 -> 64 | I144: 1 | J144: 316.875 | K144: 407.8125 | L144: 0.04305555556 | M144: 58.125 | N144: 0.1425287356 | O144: 0.02430555556 | P144: 32.8125 | Q144: 0.08045977011 | R144: 297.6 | S144: 265 | T144: 265 | X144: =X142 -> 7 | Y144: =Y141+1 -> 2018-02-16 | Z144: =TEXT(Y144,"ddd") -> vr | AA144: DD | AB144: =IFERROR(HLOOKUP(Y144,[1]DATA!$A$1:$NB$5,3,0),"") -> D1 | AC144: 62 | AD144: 35 | AE144: 14 | AF144: 279 | AG144: 7 | AH144: -80 | AI144: 0.6078853047 | AJ144: 0.9770190414
A145: 7vrMD | B145: =VLOOKUP($AA145,DATA!$B$3:$E$6,2,0) -> 14:30:00 | C145: =VLOOKUP($AA145,DATA!$B$3:$E$6,3,0) -> 22:30:00 | D145: =VLOOKUP($AA145,DATA!$B$3:$E$6,4,0) -> 0.03125 | E145: 0.3020833333 | F145: 0.2895833333 | G145: =DATA!$C$9 -> 0.89 | H145: =DATA!$C$10 -> 64 | I145: 1 | J145: 390.9375 | K145: 407.8125 | L145: 0.0125 | M145: 16.875 | N145: 0.04137931034 | O145: 0 | R145: 339.2 | S145: 304 | V145: 304 | X145: =X142 -> 7 | Z145: =TEXT(Y144,"ddd") -> vr | AA145: MD | AB145: =IFERROR(HLOOKUP(Y144,[1]DATA!$A$1:$NB$5,4,0),"") -> D3 | AC145: 18 | AE145: 14 | AF145: 318 | AG145: 8 | AH145: -115.0625 | AI145: 0.6973476703 | AJ145: 0.9769585253
A146: 7vrND | B146: =VLOOKUP($AA146,DATA!$B$3:$E$6,2,0) -> 22:30:00 | C146: =VLOOKUP($AA146,DATA!$B$3:$E$6,3,0) -> 06:30:00 | D146: =VLOOKUP($AA146,DATA!$B$3:$E$6,4,0) -> 0.03125 | E146: 0.3020833333 | F146: 0.3020833333 | G146: =DATA!$C$9 -> 0.89 | H146: =DATA!$C$10 -> 64 | I146: 1 | J146: 407.8125 | K146: 407.8125 | L146: 0 | O146: 0 | R146: 0 | X146: =X142 -> 7 | Z146: =TEXT(Y144,"ddd") -> vr | AA146: ND | AB146: =IFERROR(HLOOKUP(Y144,[1]DATA!$A$1:$NB$5,5,0),"") -> - | AG146: 0
A147: 7zaDD | B147: =VLOOKUP($AA147,DATA!$B$3:$E$6,2,0) -> 06:30:00 | C147: =VLOOKUP($AA147,DATA!$B$3:$E$6,3,0) -> 14:30:00 | D147: =VLOOKUP($AA147,DATA!$B$3:$E$6,4,0) -> 0.03125 | E147: 0.3020833333 | F147: 0.3020833333 | G147: =DATA!$C$9 -> 0.89 | H147: =DATA!$C$10 -> 64 | I147: 1 | J147: 407.8125 | K147: 407.8125 | L147: 0 | O147: 0 | R147: 0 | X147: =X142 -> 7 | Y147: =Y144+1 -> 2018-02-17 | Z147: =TEXT(Y147,"ddd") -> za | AA147: DD | AB147: =IFERROR(HLOOKUP(Y147,[1]DATA!$A$1:$NB$5,3,0),"") -> - | AG147: 0
A148: 7zaMD | B148: =VLOOKUP($AA148,DATA!$B$3:$E$6,2,0) -> 14:30:00 | C148: =VLOOKUP($AA148,DATA!$B$3:$E$6,3,0) -> 22:30:00 | D148: =VLOOKUP($AA148,DATA!$B$3:$E$6,4,0) -> 0.03125 | E148: 0.3020833333 | F148: 0.3020833333 | G148: =DATA!$C$9 -> 0.89 | H148: =DATA!$C$10 -> 64 | I148: 1 | J148: 407.8125 | K148: 407.8125 | L148: 0 | O148: 0 | R148: 0 | X148: =X142 -> 7 | Z148: =TEXT(Y147,"ddd") -> za | AA148: MD | AB148: =IFERROR(HLOOKUP(Y147,[1]DATA!$A$1:$NB$5,4,0),"") -> - | AG148: 0
A149: 7zaND | B149: =VLOOKUP($AA149,DATA!$B$3:$E$6,2,0) -> 22:30:00 | C149: =VLOOKUP($AA149,DATA!$B$3:$E$6,3,0) -> 06:30:00 | D149: =VLOOKUP($AA149,DATA!$B$3:$E$6,4,0) -> 0.03125 | E149: 0.3020833333 | F149: 0.3020833333 | G149: =DATA!$C$9 -> 0.89 | H149: =DATA!$C$10 -> 64 | I149: 1 | J149: 407.8125 | K149: 407.8125 | L149: 0 | O149: 0 | R149: 0 | X149: =X142 -> 7 | Z149: =TEXT(Y147,"ddd") -> za | AA149: ND | AB149: =IFERROR(HLOOKUP(Y147,[1]DATA!$A$1:$NB$5,5,0),"") -> - | AG149: 0
A150: 7zoDD | B150: =VLOOKUP($AA150,DATA!$B$3:$E$6,2,0) -> 06:30:00 | C150: =VLOOKUP($AA150,DATA!$B$3:$E$6,3,0) -> 14:30:00 | D150: =VLOOKUP($AA150,DATA!$B$3:$E$6,4,0) -> 0.03125 | E150: 0.3020833333 | F150: 0.3020833333 | G150: =DATA!$C$9 -> 0.89 | H150: =DATA!$C$10 -> 64 | I150: 1 | J150: 407.8125 | K150: 407.8125 | L150: 0 | O150: 0 | R150: 0 | X150: =X142 -> 7 | Y150: =Y147+1 -> 2018-02-18 | Z150: =TEXT(Y150,"ddd") -> zo | AA150: DD | AB150: =IFERROR(HLOOKUP(Y150,[1]DATA!$A$1:$NB$5,3,0),"") -> - | AG150: 0
A151: 7zoMD | B151: =VLOOKUP($AA151,DATA!$B$3:$E$6,2,0) -> 14:30:00 | C151: =VLOOKUP($AA151,DATA!$B$3:$E$6,3,0) -> 22:30:00 | D151: =VLOOKUP($AA151,DATA!$B$3:$E$6,4,0) -> 0.03125 | E151: 0.3020833333 | F151: 0.3020833333 | G151: =DATA!$C$9 -> 0.89 | H151: =DATA!$C$10 -> 64 | I151: 1 | J151: 407.8125 | K151: 407.8125 | L151: 0 | O151: 0 | R151: 0 | X151: =X142 -> 7 | Z151: =TEXT(Y150,"ddd") -> zo | AA151: MD | AB151: =IFERROR(HLOOKUP(Y150,[1]DATA!$A$1:$NB$5,4,0),"") -> - | AG151: 0
A152: 7zoZND | B152: =VLOOKUP($AA152,DATA!$B$3:$E$6,2,0) -> 00:00:00 | C152: =VLOOKUP($AA152,DATA!$B$3:$E$6,3,0) -> 00:00:00 | D152: =VLOOKUP($AA152,DATA!$B$3:$E$6,4,0) -> 0 | E152: 0 | F152: 0 | G152: =DATA!$C$9 -> 0.89 | H152: =DATA!$C$10 -> 64 | I152: 1 | J152: 0 | K152: 0 | L152: 0 | O152: 0 | R152: 0 | X152: =X142 -> 7 | Z152: =TEXT(Y150,"ddd") -> zo | AA152: ZND | AB152: =IFERROR(HLOOKUP(Y150,[1]DATA!$A$1:$NB$5,5,0),"") -> D1 | AG152: 0
A153: 8maDD | B153: =VLOOKUP($AA153,DATA!$B$3:$E$6,2,0) -> 06:30:00 | C153: =VLOOKUP($AA153,DATA!$B$3:$E$6,3,0) -> 14:30:00 | D153: =VLOOKUP($AA153,DATA!$B$3:$E$6,4,0) -> 0.03125 | E153: 0.3020833333 | F153: 0.2840277778 | G153: =DATA!$C$9 -> 0.89 | H153: =DATA!$C$10 -> 64 | I153: 1 | J153: 383.4375 | K153: 407.8125 | L153: 0.01805555556 | M153: 24.375 | N153: 0.05977011494 | O153: =TIME(INT($AD153/60),INT(MOD($AD153,60)/1),0) -> 0 | R153: 366.9333333 | S153: 331 | V153: 331 | X153: =X163 -> 8 | Y153: =Y150+1 -> 2018-02-19 | Z153: =TEXT(Y153,"ddd") -> ma | AA153: DD | AB153: =IFERROR(HLOOKUP(Y153,[1]DATA!$A$1:$NB$5,3,0),"") -> D3 | AC153: 26 | AE153: 13 | AF153: 344 | AG153: 25 | AH153: -80.5625 | AI153: 0.7592831541 | AJ153: 0.9362136418 | AK153: 3923.4375 | AL153: 2776 | AM153: 0.7075428116 | AN153: 345.9375 | AO153: 0.08817204301 | AP153: 0 | AQ153: 0 | AR153: 0.942647806 | AT153: 0.9517331431 | AU153: 0.9312911348 | AV153: 801.5 | AW153: 0.2042851454 | AX153: 854.9333333 | AY153: 171
A154: 8maMD | B154: =VLOOKUP($AA154,DATA!$B$3:$E$6,2,0) -> 14:30:00 | C154: =VLOOKUP($AA154,DATA!$B$3:$E$6,3,0) -> 22:30:00 | D154: =VLOOKUP($AA154,DATA!$B$3:$E$6,4,0) -> 0.03125 | E154: 0.3020833333 | F154: 0.29375 | G154: =DATA!$C$9 -> 0.89 | H154: =DATA!$C$10 -> 64 | I154: 1 | J154: 396.5625 | K154: 407.8125 | L154: 0.008333333333 | M154: 11.25 | N154: 0.0275862069 | O154: =TIME(INT(AD154/60),INT(MOD(AD154,60)/1),0) -> 0 | R154: 402.1333333 | S154: 364 | U154: 364 | X154: =X163 -> 8 | Z154: =TEXT(Y153,"ddd") -> ma | AA154: MD | AB154: =IFERROR(HLOOKUP(Y153,[1]DATA!$A$1:$NB$5,4,0),"") -> D2 | AC154: 12 | AE154: 13 | AF154: 377 | AG154: 9 | AH154: -60.6875 | AI154: 0.8349820789 | AJ154: 0.9781092914
A155: 8maND | B155: =VLOOKUP($AA155,DATA!$B$3:$E$6,2,0) -> 22:30:00 | C155: =VLOOKUP($AA155,DATA!$B$3:$E$6,3,0) -> 06:30:00 | D155: =VLOOKUP($AA155,DATA!$B$3:$E$6,4,0) -> 0.03125 | E155: 0.3020833333 | F155: 0.3020833333 | G155: =DATA!$C$9 -> 0.89 | H155: =DATA!$C$10 -> 64 | I155: 1 | J155: 407.8125 | K155: 407.8125 | L155: 0 | O155: 0 | R155: 0 | X155: =X163 -> 8 | Z155: =TEXT(Y153,"ddd") -> ma | AA155: ND | AB155: =IFERROR(HLOOKUP(Y153,[1]DATA!$A$1:$NB$5,5,0),"") -> D1 | AG155: 0
A156: 8diDD | B156: =VLOOKUP($AA156,DATA!$B$3:$E$6,2,0) -> 06:30:00 | C156: =VLOOKUP($AA156,DATA!$B$3:$E$6,3,0) -> 14:30:00 | D156: =VLOOKUP($AA156,DATA!$B$3:$E$6,4,0) -> 0.03125 | E156: =(C156-B156+(B156>C156))-D156 -> 0.3020833333 | F156: =E156-O156-L156 -> 0.2173611111 | G156: =DATA!$C$9 -> 0.89 | H156: =DATA!$C$10 -> 64 | I156: 1 | J156: =F156*86400/H156*I156 -> 293.4375 | K156: =E156*86400/H156 -> 407.8125 | L156: 0.08472222222 | M156: 114.375 | N156: 0.2804597701 | O156: 0 | R156: =AF156*AG$2 -> 262.4 | S156: =IF(AF156-AE156=0,"",AF156-AE156) -> 239 | V156: 239 | X156: =X163 -> 8 | Y156: =Y153+1 -> 2018-02-20 | Z156: =TEXT(Y156,"ddd") -> di | AA156: DD | AB156: =IFERROR(HLOOKUP(Y156,[1]DATA!$A$1:$NB$5,3,0),"") -> D3 | AC156: 122 | AE156: 7 | AF156: 246 | AG156: 6 | AH156: -82.5625 | AI156: 0.5482437276 | AJ156: 0.9776453055
A157: 8diMD | B157: =VLOOKUP($AA157,DATA!$B$3:$E$6,2,0) -> 14:30:00 | C157: =VLOOKUP($AA157,DATA!$B$3:$E$6,3,0) -> 22:30:00 | D157: =VLOOKUP($AA157,DATA!$B$3:$E$6,4,0) -> 0.03125 | E157: 0.3020833333 | F157: 0.2833333333 | G157: =DATA!$C$9 -> 0.89 | H157: =DATA!$C$10 -> 64 | I157: 1 | J157: 382.5 | K157: 407.8125 | L157: 0.01875 | M157: 25.3125 | N157: 0.06206896552 | O157: 0 | R157: 409.6 | S157: 352 | U157: 352 | X157: =X163 -> 8 | Z157: =TEXT(Y156,"ddd") -> di | AA157: MD | AB157: =IFERROR(HLOOKUP(Y156,[1]DATA!$A$1:$NB$5,4,0),"") -> D2 | AC157: 27 | AE157: 32 | AF157: 384 | AG157: 17 | AH157: -58.625 | AI157: 0.8074551971 | AJ157: 0.9601500234
A158: 8diND | B158: =VLOOKUP($AA158,DATA!$B$3:$E$6,2,0) -> 22:30:00 | C158: =VLOOKUP($AA158,DATA!$B$3:$E$6,3,0) -> 06:30:00 | D158: =VLOOKUP($AA158,DATA!$B$3:$E$6,4,0) -> 0.03125 | E158: 0.3020833333 | F158: 0.3020833333 | G158: =DATA!$C$9 -> 0.89 | H158: =DATA!$C$10 -> 64 | I158: 1 | J158: 407.8125 | K158: 407.8125 | L158: 0 | O158: 0 | R158: 0 | X158: =X163 -> 8 | Z158: =TEXT(Y156,"ddd") -> di | AA158: ND | AB158: =IFERROR(HLOOKUP(Y156,[1]DATA!$A$1:$NB$5,5,0),"") -> D1 | AG158: 0
A159: 8woDD | B159: =VLOOKUP($AA159,DATA!$B$3:$E$6,2,0) -> 06:30:00 | C159: =VLOOKUP($AA159,DATA!$B$3:$E$6,3,0) -> 14:30:00 | D159: =VLOOKUP($AA159,DATA!$B$3:$E$6,4,0) -> 0.03125 | E159: 0.3020833333 | F159: 0.2576388889 | G159: =DATA!$C$9 -> 0.89 | H159: =DATA!$C$10 -> 64 | I159: 1 | J159: 347.8125 | K159: 407.8125 | L159: 0.04444444444 | M159: 60 | N159: 0.1471264368 | O159: 0 | R159: 332.8 | S159: 296 | V159: 296 | X159: =X163 -> 8 | Y159: =Y156+1 -> 2018-02-21 | Z159: =TEXT(Y159,"ddd") -> wo | AA159: DD | AB159: =IFERROR(HLOOKUP(Y159,[1]DATA!$A$1:$NB$5,3,0),"") -> D3 | AC159: 64 | AE159: 16 | AF159: 312 | AG159: 64 | AH159: -79.9375 | AI159: 0.6789964158 | AJ159: 0.8387096774
A160: 8woMD | B160: =VLOOKUP($AA160,DATA!$B$3:$E$6,2,0) -> 14:30:00 | C160: =VLOOKUP($AA160,DATA!$B$3:$E$6,3,0) -> 22:30:00 | D160: =VLOOKUP($AA160,DATA!$B$3:$E$6,4,0) -> 0.03125 | E160: 0.3020833333 | F160: 0.2666666667 | G160: =DATA!$C$9 -> 0.89 | H160: =DATA!$C$10 -> 64 | I160: 1 | J160: 360 | K160: 407.8125 | L160: 0.03541666667 | M160: 47.8125 | N160: 0.1172413793 | O160: 0 | R160: 401.0666667 | S160: 360 | U160: 360 | X160: =X163 -> 8 | Z160: =TEXT(Y159,"ddd") -> wo | AA160: MD | AB160: =IFERROR(HLOOKUP(Y159,[1]DATA!$A$1:$NB$5,4,0),"") -> D2 | AC160: 51 | AE160: 16 | AF160: 376 | AG160: 4 | AH160: -28.125 | AI160: 0.8258064516 | AJ160: 0.9901250823
A161: 8woND | B161: =VLOOKUP($AA161,DATA!$B$3:$E$6,2,0) -> 22:30:00 | C161: =VLOOKUP($AA161,DATA!$B$3:$E$6,3,0) -> 06:30:00 | D161: =VLOOKUP($AA161,DATA!$B$3:$E$6,4,0) -> 0.03125 | E161: 0.3020833333 | F161: 0.3020833333 | G161: =DATA!$C$9 -> 0.89 | H161: =DATA!$C$10 -> 64 | I161: 1 | J161: 407.8125 | K161: 407.8125 | L161: 0 | O161: 0 | R161: 0 | X161: =X163 -> 8 | Z161: =TEXT(Y159,"ddd") -> wo | AA161: ND | AB161: =IFERROR(HLOOKUP(Y159,[1]DATA!$A$1:$NB$5,5,0),"") -> D1 | AG161: 0
A162: 8doDD | B162: =VLOOKUP($AA162,DATA!$B$3:$E$6,2,0) -> 06:30:00 | C162: =VLOOKUP($AA162,DATA!$B$3:$E$6,3,0) -> 14:30:00 | D162: =VLOOKUP($AA162,DATA!$B$3:$E$6,4,0) -> 0.03125 | E162: 0.3020833333 | F162: 0.2805555556 | G162: =DATA!$C$9 -> 0.89 | H162: =DATA!$C$10 -> 64 | I162: 1 | J162: 378.75 | K162: 407.8125 | L162: 0.02152777778 | M162: 29.0625 | N162: 0.07126436782 | O162: 0 | R162: 390.4 | S162: 357 | V162: 357 | X162: =X163 -> 8 | Y162: =Y159+1 -> 2018-02-22 | Z162: =TEXT(Y162,"ddd") -> do | AA162: DD | AB162: =IFERROR(HLOOKUP(Y162,[1]DATA!$A$1:$NB$5,3,0),"") -> D3 | AC162: 31 | AE162: 9 | AF162: 366 | AG162: 11 | AH162: -49.875 | AI162: 0.8189247312 | AJ162: 0.9725959143
A163: 8doMD | B163: =VLOOKUP($AA163,DATA!$B$3:$E$6,2,0) -> 14:30:00 | C163: =VLOOKUP($AA163,DATA!$B$3:$E$6,3,0) -> 22:30:00 | D163: =VLOOKUP($AA163,DATA!$B$3:$E$6,4,0) -> 0.03125 | E163: 0.3020833333 | F163: 0.2979166667 | G163: =DATA!$C$9 -> 0.89 | H163: =DATA!$C$10 -> 64 | I163: 1 | J163: 402.1875 | K163: 407.8125 | L163: 0.004166666667 | M163: 5.625 | N163: 0.01379310345 | O163: 0 | R163: 451.2 | S163: 386 | U163: 386 | X163: =WEEKNUM($Y153) -> 8 | Z163: =TEXT(Y162,"ddd") -> do | AA163: MD | AB163: =IFERROR(HLOOKUP(Y162,[1]DATA!$A$1:$NB$5,4,0),"") -> D2 | AC163: 6 | AE163: 37 | AF163: 423 | AG163: 19 | AH163: -44.3125 | AI163: 0.8854480287 | AJ163: 0.9595916631
A164: 8doND | B164: =VLOOKUP($AA164,DATA!$B$3:$E$6,2,0) -> 22:30:00 | C164: =VLOOKUP($AA164,DATA!$B$3:$E$6,3,0) -> 06:30:00 | D164: =VLOOKUP($AA164,DATA!$B$3:$E$6,4,0) -> 0.03125 | E164: 0.3020833333 | F164: 0.3020833333 | G164: =DATA!$C$9 -> 0.89 | H164: =DATA!$C$10 -> 64 | I164: 1 | J164: 407.8125 | K164: 407.8125 | L164: 0 | O164: 0 | R164: 0 | X164: =X163 -> 8 | Z164: =TEXT(Y162,"ddd") -> do | AA164: ND | AB164: =IFERROR(HLOOKUP(Y162,[1]DATA!$A$1:$NB$5,5,0),"") -> D1 | AG164: 0
A165: 8vrDD | B165: =VLOOKUP($AA165,DATA!$B$3:$E$6,2,0) -> 06:30:00 | C165: =VLOOKUP($AA165,DATA!$B$3:$E$6,3,0) -> 14:30:00 | D165: =VLOOKUP($AA165,DATA!$B$3:$E$6,4,0) -> 0.03125 | E165: 0.3020833333 | F165: 0.3020833333 | G165: =DATA!$C$9 -> 0.89 | H165: =DATA!$C$10 -> 64 | I165: 1 | J165: 407.8125 | K165: 407.8125 | L165: 0 | O165: 0 | R165: 0 | X165: =X163 -> 8 | Y165: =Y162+1 -> 2018-02-23 | Z165: =TEXT(Y165,"ddd") -> vr | AA165: DD | AB165: =IFERROR(HLOOKUP(Y165,[1]DATA!$A$1:$NB$5,3,0),"") -> D3 | AC165: 0 | AE165: 0 | AF165: 0 | AG165: 0
A166: 8vrMD | B166: =VLOOKUP($AA166,DATA!$B$3:$E$6,2,0) -> 14:30:00 | C166: =VLOOKUP($AA166,DATA!$B$3:$E$6,3,0) -> 22:30:00 | D166: =VLOOKUP($AA166,DATA!$B$3:$E$6,4,0) -> 0.03125 | E166: 0.3020833333 | F166: 0.28125 | G166: =DATA!$C$9 -> 0.89 | H166: =DATA!$C$10 -> 64 | I166: 1 | J166: 379.6875 | K166: 407.8125 | L166: 0.02083333333 | M166: 28.125 | N166: 0.06896551724 | O166: 0 | R166: 107.7333333 | S166: 91 | U166: 91 | X166: =X163 -> 8 | Z166: =TEXT(Y165,"ddd") -> vr | AA166: MD | AB166: =IFERROR(HLOOKUP(Y165,[1]DATA!$A$1:$NB$5,4,0),"") -> D2 | AC166: 30 | AE166: 10 | AF166: 101 | AG166: 16 | AH166: -316.8125 | AI166: 0.2087455197 | AJ166: 0.8706896552
A167: 8vrND | B167: =VLOOKUP($AA167,DATA!$B$3:$E$6,2,0) -> 22:30:00 | C167: =VLOOKUP($AA167,DATA!$B$3:$E$6,3,0) -> 06:30:00 | D167: =VLOOKUP($AA167,DATA!$B$3:$E$6,4,0) -> 0.03125 | E167: 0.3020833333 | F167: 0.3020833333 | G167: =DATA!$C$9 -> 0.89 | H167: =DATA!$C$10 -> 64 | I167: 1 | J167: 407.8125 | K167: 407.8125 | L167: 0 | O167: 0 | R167: 0 | X167: =X163 -> 8 | Z167: =TEXT(Y165,"ddd") -> vr | AA167: ND | AB167: =IFERROR(HLOOKUP(Y165,[1]DATA!$A$1:$NB$5,5,0),"") -> - | AG167: 0
A168: 8zaDD | B168: =VLOOKUP($AA168,DATA!$B$3:$E$6,2,0) -> 06:30:00 | C168: =VLOOKUP($AA168,DATA!$B$3:$E$6,3,0) -> 14:30:00 | D168: =VLOOKUP($AA168,DATA!$B$3:$E$6,4,0) -> 0.03125 | E168: 0.3020833333 | F168: 0.3020833333 | G168: =DATA!$C$9 -> 0.89 | H168: =DATA!$C$10 -> 64 | I168: 1 | J168: 407.8125 | K168: 407.8125 | L168: 0 | O168: 0 | R168: 0 | X168: =X163 -> 8 | Y168: =Y165+1 -> 2018-02-24 | Z168: =TEXT(Y168,"ddd") -> za | AA168: DD | AB168: =IFERROR(HLOOKUP(Y168,[1]DATA!$A$1:$NB$5,3,0),"") -> - | AG168: 0
A169: 8zaMD | B169: =VLOOKUP($AA169,DATA!$B$3:$E$6,2,0) -> 14:30:00 | C169: =VLOOKUP($AA169,DATA!$B$3:$E$6,3,0) -> 22:30:00 | D169: =VLOOKUP($AA169,DATA!$B$3:$E$6,4,0) -> 0.03125 | E169: 0.3020833333 | F169: 0.3020833333 | G169: =DATA!$C$9 -> 0.89 | H169: =DATA!$C$10 -> 64 | I169: 1 | J169: 407.8125 | K169: 407.8125 | L169: 0 | O169: 0 | R169: 0 | X169: =X163 -> 8 | Z169: =TEXT(Y168,"ddd") -> za | AA169: MD | AB169: =IFERROR(HLOOKUP(Y168,[1]DATA!$A$1:$NB$5,4,0),"") -> - | AG169: 0
A170: 8zaND | B170: =VLOOKUP($AA170,DATA!$B$3:$E$6,2,0) -> 22:30:00 | C170: =VLOOKUP($AA170,DATA!$B$3:$E$6,3,0) -> 06:30:00 | D170: =VLOOKUP($AA170,DATA!$B$3:$E$6,4,0) -> 0.03125 | E170: 0.3020833333 | F170: 0.3020833333 | G170: =DATA!$C$9 -> 0.89 | H170: =DATA!$C$10 -> 64 | I170: 1 | J170: 407.8125 | K170: 407.8125 | L170: 0 | O170: 0 | R170: 0 | X170: =X163 -> 8 | Z170: =TEXT(Y168,"ddd") -> za | AA170: ND | AB170: =IFERROR(HLOOKUP(Y168,[1]DATA!$A$1:$NB$5,5,0),"") -> - | AG170: 0
A171: 8zoDD | B171: =VLOOKUP($AA171,DATA!$B$3:$E$6,2,0) -> 06:30:00 | C171: =VLOOKUP($AA171,DATA!$B$3:$E$6,3,0) -> 14:30:00 | D171: =VLOOKUP($AA171,DATA!$B$3:$E$6,4,0) -> 0.03125 | E171: 0.3020833333 | F171: 0.3020833333 | G171: =DATA!$C$9 -> 0.89 | H171: =DATA!$C$10 -> 64 | I171: 1 | J171: 407.8125 | K171: 407.8125 | L171: 0 | O171: 0 | R171: 0 | X171: =X163 -> 8 | Y171: =Y168+1 -> 2018-02-25 | Z171: =TEXT(Y171,"ddd") -> zo | AA171: DD | AB171: =IFERROR(HLOOKUP(Y171,[1]DATA!$A$1:$NB$5,3,0),"") -> - | AG171: 0
A172: 8zoMD | B172: =VLOOKUP($AA172,DATA!$B$3:$E$6,2,0) -> 14:30:00 | C172: =VLOOKUP($AA172,DATA!$B$3:$E$6,3,0) -> 22:30:00 | D172: =VLOOKUP($AA172,DATA!$B$3:$E$6,4,0) -> 0.03125 | E172: 0.3020833333 | F172: 0.3020833333 | G172: =DATA!$C$9 -> 0.89 | H172: =DATA!$C$10 -> 64 | I172: 1 | J172: 407.8125 | K172: 407.8125 | L172: 0 | O172: 0 | R172: 0 | X172: =X163 -> 8 | Z172: =TEXT(Y171,"ddd") -> zo | AA172: MD | AB172: =IFERROR(HLOOKUP(Y171,[1]DATA!$A$1:$NB$5,4,0),"") -> - | AG172: 0
A173: 8zoZND | B173: =VLOOKUP($AA173,DATA!$B$3:$E$6,2,0) -> 00:00:00 | C173: =VLOOKUP($AA173,DATA!$B$3:$E$6,3,0) -> 00:00:00 | D173: =VLOOKUP($AA173,DATA!$B$3:$E$6,4,0) -> 0 | E173: 0 | F173: 0 | G173: =DATA!$C$9 -> 0.89 | H173: =DATA!$C$10 -> 64 | I173: 1 | J173: 0 | K173: 0 | L173: 0 | O173: 0 | R173: 0 | X173: =X163 -> 8 | Z173: =TEXT(Y171,"ddd") -> zo | AA173: ZND | AB173: =IFERROR(HLOOKUP(Y171,[1]DATA!$A$1:$NB$5,5,0),"") -> D3 | AG173: 0
A174: 9maDD | B174: =VLOOKUP($AA174,DATA!$B$3:$E$6,2,0) -> 06:30:00 | C174: =VLOOKUP($AA174,DATA!$B$3:$E$6,3,0) -> 14:30:00 | D174: =VLOOKUP($AA174,DATA!$B$3:$E$6,4,0) -> 0.03125 | E174: 0.3020833333 | F174: 0.2486111111 | G174: =DATA!$C$9 -> 0.89 | H174: =DATA!$C$10 -> 64 | I174: 1 | J174: 335.625 | K174: 407.8125 | L174: 0.05347222222 | M174: 72.1875 | N174: 0.1770114943 | O174: =TIME(INT($AD174/60),INT(MOD($AD174,60)/1),0) -> 0 | R174: 160 | S174: 133 | U174: 133 | X174: =X184 -> 9 | Y174: =Y171+1 -> 2018-02-26 | Z174: =TEXT(Y174,"ddd") -> ma | AA174: DD | AB174: =IFERROR(HLOOKUP(Y174,[1]DATA!$A$1:$NB$5,3,0),"") -> D2 | AC174: 77 | AE174: 17 | AF174: 150 | AG174: 0 | AH174: -230.75 | AI174: 0.3050896057 | AJ174: 1 | AK174: 4359.375 | AL174: 3233 | AM174: 0.7416200717 | AN174: 360 | AO174: 0.08258064516 | AP174: 0 | AQ174: 0 | AR174: 0.9528656409 | AS174: 0.9376353884 | AT174: 0.9680958934 | AV174: 766.375 | AW174: 0.1757992832 | AX174: 817.4666667 | AY174: 206
A175: 9maMD | B175: =VLOOKUP($AA175,DATA!$B$3:$E$6,2,0) -> 14:30:00 | C175: =VLOOKUP($AA175,DATA!$B$3:$E$6,3,0) -> 22:30:00 | D175: =VLOOKUP($AA175,DATA!$B$3:$E$6,4,0) -> 0.03125 | E175: 0.3020833333 | F175: 0.2680555556 | G175: =DATA!$C$9 -> 0.89 | H175: =DATA!$C$10 -> 64 | I175: 1 | J175: 361.875 | K175: 407.8125 | L175: 0.03402777778 | M175: 45.9375 | N175: 0.1126436782 | O175: =TIME(INT(AD175/60),INT(MOD(AD175,60)/1),0) -> 0 | R175: 359.4666667 | S175: 316 | T175: 316 | X175: =X184 -> 9 | Z175: =TEXT(Y174,"ddd") -> ma | AA175: MD | AB175: =IFERROR(HLOOKUP(Y174,[1]DATA!$A$1:$NB$5,4,0),"") -> D1 | AC175: 49 | AE175: 21 | AF175: 337 | AG175: 9 | AH175: -74 | AI175: 0.724874552 | AJ175: 0.9755744527
A176: =X176&Z176&AA176 -> 9maND | B176: =VLOOKUP($AA176,DATA!$B$3:$E$6,2,0) -> 22:30:00 | C176: =VLOOKUP($AA176,DATA!$B$3:$E$6,3,0) -> 06:30:00 | D176: =VLOOKUP($AA176,DATA!$B$3:$E$6,4,0) -> 0.03125 | E176: 0.3020833333 | F176: 0.3020833333 | G176: =DATA!$C$9 -> 0.89 | H176: =DATA!$C$10 -> 64 | I176: 1 | J176: 407.8125 | K176: 407.8125 | L176: 0 | O176: 0 | P176: =IF($O176*86400/$H176=0,"",$O176*86400/$H176) ->  | R176: 0 | X176: =X184 -> 9 | Z176: =TEXT(Y174,"ddd") -> ma | AA176: ND | AB176: =IFERROR(HLOOKUP(Y174,[1]DATA!$A$1:$NB$5,5,0),"") -> D3 | AG176: 0
A177: 9diDD | B177: =VLOOKUP($AA177,DATA!$B$3:$E$6,2,0) -> 06:30:00 | C177: =VLOOKUP($AA177,DATA!$B$3:$E$6,3,0) -> 14:30:00 | D177: =VLOOKUP($AA177,DATA!$B$3:$E$6,4,0) -> 0.03125 | E177: 0.3020833333 | F177: 0.2916666667 | G177: =DATA!$C$9 -> 0.89 | H177: =DATA!$C$10 -> 64 | I177: 1 | J177: 393.75 | K177: 407.8125 | L177: 0.01041666667 | M177: 14.0625 | N177: 0.03448275862 | O177: 0 | R177: 449.0666667 | S177: 389 | U177: 389 | X177: =X184 -> 9 | Y177: =Y174+1 -> 2018-02-27 | Z177: =TEXT(Y177,"ddd") -> di | AA177: DD | AB177: =IFERROR(HLOOKUP(Y177,[1]DATA!$A$1:$NB$5,3,0),"") -> D2 | AC177: 15 | AE177: 32 | AF177: 421 | AG177: 20 | AH177: -32.875 | AI177: 0.8923297491 | AJ177: 0.9573621376
A178: 9diMD | B178: =VLOOKUP($AA178,DATA!$B$3:$E$6,2,0) -> 14:30:00 | C178: =VLOOKUP($AA178,DATA!$B$3:$E$6,3,0) -> 22:30:00 | D178: =VLOOKUP($AA178,DATA!$B$3:$E$6,4,0) -> 0.03125 | E178: 0.3020833333 | F178: 0.2909722222 | G178: =DATA!$C$9 -> 0.89 | H178: =DATA!$C$10 -> 64 | I178: 1 | J178: 392.8125 | K178: 407.8125 | L178: 0.01111111111 | M178: 15 | N178: 0.0367816092 | O178: 0 | R178: 361.6 | S178: 308 | T178: 308 | X178: =X184 -> 9 | Z178: =TEXT(Y177,"ddd") -> di | AA178: MD | AB178: =IFERROR(HLOOKUP(Y177,[1]DATA!$A$1:$NB$5,4,0),"") -> D1 | AC178: 16 | AE178: 31 | AF178: 339 | AG178: 89 | AH178: -112.9375 | AI178: 0.7065232975 | AJ178: 0.8024855748
A179: 9diND | B179: =VLOOKUP($AA179,DATA!$B$3:$E$6,2,0) -> 22:30:00 | C179: =VLOOKUP($AA179,DATA!$B$3:$E$6,3,0) -> 06:30:00 | D179: =VLOOKUP($AA179,DATA!$B$3:$E$6,4,0) -> 0.03125 | E179: 0.3020833333 | F179: 0.3020833333 | G179: =DATA!$C$9 -> 0.89 | H179: =DATA!$C$10 -> 64 | I179: 1 | J179: 407.8125 | K179: 407.8125 | L179: 0 | O179: 0 | R179: 0 | X179: =X184 -> 9 | Z179: =TEXT(Y177,"ddd") -> di | AA179: ND | AB179: =IFERROR(HLOOKUP(Y177,[1]DATA!$A$1:$NB$5,5,0),"") -> D3 | AG179: 0
A180: 9woDD | B180: =VLOOKUP($AA180,DATA!$B$3:$E$6,2,0) -> 06:30:00 | C180: =VLOOKUP($AA180,DATA!$B$3:$E$6,3,0) -> 14:30:00 | D180: =VLOOKUP($AA180,DATA!$B$3:$E$6,4,0) -> 0.03125 | E180: 0.3020833333 | F180: 0.2826388889 | G180: =DATA!$C$9 -> 0.89 | H180: =DATA!$C$10 -> 64 | I180: 1 | J180: 381.5625 | K180: 407.8125 | L180: 0.01944444444 | M180: 26.25 | N180: 0.06436781609 | O180: 0 | R180: 392.5333333 | S180: 338 | U180: 338 | X180: =X184 -> 9 | Y180: =Y177+1 -> 2018-02-28 | Z180: =TEXT(Y180,"ddd") -> wo | AA180: DD | AB180: =IFERROR(HLOOKUP(Y180,[1]DATA!$A$1:$NB$5,3,0),"") -> D2 | AC180: 28 | AE180: 30 | AF180: 368 | AG180: 4 | AH180: -71.6875 | AI180: 0.7753405018 | AJ180: 0.9899125757
A181: 9woMD | B181: =VLOOKUP($AA181,DATA!$B$3:$E$6,2,0) -> 14:30:00 | C181: =VLOOKUP($AA181,DATA!$B$3:$E$6,3,0) -> 22:30:00 | D181: =VLOOKUP($AA181,DATA!$B$3:$E$6,4,0) -> 0.03125 | E181: 0.3020833333 | F181: 0.2777777778 | G181: =DATA!$C$9 -> 0.89 | H181: =DATA!$C$10 -> 64 | I181: 1 | J181: 375 | K181: 407.8125 | L181: 0.02430555556 | M181: 32.8125 | N181: 0.08045977011 | O181: 0 | R181: 421.3333333 | S181: 359 | T181: 359 | X181: =X184 -> 9 | Z181: =TEXT(Y180,"ddd") -> wo | AA181: MD | AB181: =IFERROR(HLOOKUP(Y180,[1]DATA!$A$1:$NB$5,4,0),"") -> D1 | AC181: 35 | AE181: 36 | AF181: 395 | AG181: 9 | AH181: -44.125 | AI181: 0.8235125448 | AJ181: 0.9790859799
A182: 9woND | B182: =VLOOKUP($AA182,DATA!$B$3:$E$6,2,0) -> 22:30:00 | C182: =VLOOKUP($AA182,DATA!$B$3:$E$6,3,0) -> 06:30:00 | D182: =VLOOKUP($AA182,DATA!$B$3:$E$6,4,0) -> 0.03125 | E182: 0.3020833333 | F182: 0.3020833333 | G182: =DATA!$C$9 -> 0.89 | H182: =DATA!$C$10 -> 64 | I182: 1 | J182: 407.8125 | K182: 407.8125 | L182: 0 | O182: 0 | R182: 0 | X182: =X184 -> 9 | Z182: =TEXT(Y180,"ddd") -> wo | AA182: ND | AB182: =IFERROR(HLOOKUP(Y180,[1]DATA!$A$1:$NB$5,5,0),"") -> D3 | AG182: 0
A183: 9doDD | B183: =VLOOKUP($AA183,DATA!$B$3:$E$6,2,0) -> 06:30:00 | C183: =VLOOKUP($AA183,DATA!$B$3:$E$6,3,0) -> 14:30:00 | D183: =VLOOKUP($AA183,DATA!$B$3:$E$6,4,0) -> 0.03125 | E183: 0.3020833333 | F183: 0.2576388889 | G183: =DATA!$C$9 -> 0.89 | H183: =DATA!$C$10 -> 64 | I183: 1 | J183: 347.8125 | K183: 407.8125 | L183: 0.04444444444 | M183: 60 | N183: 0.1471264368 | O183: 0 | R183: 378.6666667 | S183: 321 | U183: 321 | X183: =X184 -> 9 | Y183: =Y180+1 -> 2018-03-01 | Z183: =TEXT(Y183,"ddd") -> do | AA183: DD | AB183: =IFERROR(HLOOKUP(Y183,[1]DATA!$A$1:$NB$5,3,0),"") -> D2 | AC183: 64 | AE183: 34 | AF183: 355 | AG183: 17 | AH183: -54.9375 | AI183: 0.736344086 | AJ183: 0.9570345409
A184: 9doMD | B184: =VLOOKUP($AA184,DATA!$B$3:$E$6,2,0) -> 14:30:00 | C184: =VLOOKUP($AA184,DATA!$B$3:$E$6,3,0) -> 22:30:00 | D184: =VLOOKUP($AA184,DATA!$B$3:$E$6,4,0) -> 0.03125 | E184: 0.3020833333 | F184: 0.2520833333 | G184: =DATA!$C$9 -> 0.89 | H184: =DATA!$C$10 -> 64 | I184: 1 | J184: 340.3125 | K184: 407.8125 | L184: 0.05 | M184: 67.5 | N184: 0.1655172414 | O184: 0 | R184: 412.8 | S184: 345 | T184: 345 | X184: =WEEKNUM($Y174) -> 9 | Z184: =TEXT(Y183,"ddd") -> do | AA184: MD | AB184: =IFERROR(HLOOKUP(Y183,[1]DATA!$A$1:$NB$5,4,0),"") -> D1 | AC184: 72 | AE184: 42 | AF184: 387 | AG184: 10 | AH184: -23.4375 | AI184: 0.7913978495 | AJ184: 0.9763481552
A185: 9doND | B185: =VLOOKUP($AA185,DATA!$B$3:$E$6,2,0) -> 22:30:00 | C185: =VLOOKUP($AA185,DATA!$B$3:$E$6,3,0) -> 06:30:00 | D185: =VLOOKUP($AA185,DATA!$B$3:$E$6,4,0) -> 0.03125 | E185: 0.3020833333 | F185: 0.3020833333 | G185: =DATA!$C$9 -> 0.89 | H185: =DATA!$C$10 -> 64 | I185: 1 | J185: 407.8125 | K185: 407.8125 | L185: 0 | O185: 0 | R185: 0 | X185: =X184 -> 9 | Z185: =TEXT(Y183,"ddd") -> do | AA185: ND | AB185: =IFERROR(HLOOKUP(Y183,[1]DATA!$A$1:$NB$5,5,0),"") -> D3 | AG185: 0
A186: 9vrDD | B186: =VLOOKUP($AA186,DATA!$B$3:$E$6,2,0) -> 06:30:00 | C186: =VLOOKUP($AA186,DATA!$B$3:$E$6,3,0) -> 14:30:00 | D186: =VLOOKUP($AA186,DATA!$B$3:$E$6,4,0) -> 0.03125 | E186: 0.3020833333 | F186: 0.2909722222 | G186: =DATA!$C$9 -> 0.89 | H186: =DATA!$C$10 -> 64 | I186: 1 | J186: 392.8125 | K186: 407.8125 | L186: 0.01111111111 | M186: 15 | N186: 0.0367816092 | O186: 0 | R186: 410.6666667 | S186: 358 | U186: 358 | X186: =X184 -> 9 | Y186: =Y183+1 -> 2018-03-02 | Z186: =TEXT(Y186,"ddd") -> vr | AA186: DD | AB186: =IFERROR(HLOOKUP(Y186,[1]DATA!$A$1:$NB$5,3,0),"") -> D2 | AC186: 16 | AE186: 27 | AF186: 385 | AG186: 28 | AH186: -62.9375 | AI186: 0.821218638 | AJ186: 0.9361702128
A187: 9vrMD | B187: =VLOOKUP($AA187,DATA!$B$3:$E$6,2,0) -> 14:30:00 | C187: =VLOOKUP($AA187,DATA!$B$3:$E$6,3,0) -> 22:30:00 | D187: =VLOOKUP($AA187,DATA!$B$3:$E$6,4,0) -> 0.03125 | E187: 0.3020833333 | F187: 0.29375 | G187: =DATA!$C$9 -> 0.89 | H187: =DATA!$C$10 -> 64 | I187: 1 | J187: 396.5625 | K187: 407.8125 | L187: 0.008333333333 | M187: 11.25 | N187: 0.0275862069 | O187: 0 | R187: 421.3333333 | S187: 366 | T187: 366 | X187: =X184 -> 9 | Z187: =TEXT(Y186,"ddd") -> vr | AA187: MD | AB187: =IFERROR(HLOOKUP(Y186,[1]DATA!$A$1:$NB$5,4,0),"") -> D1 | AC187: 12 | AE187: 29 | AF187: 395 | AG187: 20 | AH187: -58.6875 | AI187: 0.8395698925 | AJ187: 0.9546827795
A188: 9vrND | B188: =VLOOKUP($AA188,DATA!$B$3:$E$6,2,0) -> 22:30:00 | C188: =VLOOKUP($AA188,DATA!$B$3:$E$6,3,0) -> 06:30:00 | D188: =VLOOKUP($AA188,DATA!$B$3:$E$6,4,0) -> 0.03125 | E188: 0.3020833333 | F188: 0.3020833333 | G188: =DATA!$C$9 -> 0.89 | H188: =DATA!$C$10 -> 64 | I188: 1 | J188: 407.8125 | K188: 407.8125 | L188: 0 | O188: 0 | R188: 0 | X188: =X184 -> 9 | Z188: =TEXT(Y186,"ddd") -> vr | AA188: ND | AB188: =IFERROR(HLOOKUP(Y186,[1]DATA!$A$1:$NB$5,5,0),"") -> - | AG188: 0
A189: 9zaDD | B189: =VLOOKUP($AA189,DATA!$B$3:$E$6,2,0) -> 06:30:00 | C189: =VLOOKUP($AA189,DATA!$B$3:$E$6,3,0) -> 14:30:00 | D189: =VLOOKUP($AA189,DATA!$B$3:$E$6,4,0) -> 0.03125 | E189: 0.3020833333 | F189: 0.3020833333 | G189: =DATA!$C$9 -> 0.89 | H189: =DATA!$C$10 -> 64 | I189: 1 | J189: 407.8125 | K189: 407.8125 | L189: 0 | O189: 0 | R189: 0 | X189: =X184 -> 9 | Y189: =Y186+1 -> 2018-03-03 | Z189: =TEXT(Y189,"ddd") -> za | AA189: DD | AB189: =IFERROR(HLOOKUP(Y189,[1]DATA!$A$1:$NB$5,3,0),"") -> - | AG189: 0
A190: 9zaMD | B190: =VLOOKUP($AA190,DATA!$B$3:$E$6,2,0) -> 14:30:00 | C190: =VLOOKUP($AA190,DATA!$B$3:$E$6,3,0) -> 22:30:00 | D190: =VLOOKUP($AA190,DATA!$B$3:$E$6,4,0) -> 0.03125 | E190: 0.3020833333 | F190: 0.3020833333 | G190: =DATA!$C$9 -> 0.89 | H190: =DATA!$C$10 -> 64 | I190: 1 | J190: 407.8125 | K190: 407.8125 | L190: 0 | O190: 0 | R190: 0 | X190: =X184 -> 9 | Z190: =TEXT(Y189,"ddd") -> za | AA190: MD | AB190: =IFERROR(HLOOKUP(Y189,[1]DATA!$A$1:$NB$5,4,0),"") -> - | AG190: 0
A191: 9zaND | B191: =VLOOKUP($AA191,DATA!$B$3:$E$6,2,0) -> 22:30:00 | C191: =VLOOKUP($AA191,DATA!$B$3:$E$6,3,0) -> 06:30:00 | D191: =VLOOKUP($AA191,DATA!$B$3:$E$6,4,0) -> 0.03125 | E191: 0.3020833333 | F191: 0.3020833333 | G191: =DATA!$C$9 -> 0.89 | H191: =DATA!$C$10 -> 64 | I191: 1 | J191: 407.8125 | K191: 407.8125 | L191: 0 | O191: 0 | R191: 0 | X191: =X184 -> 9 | Z191: =TEXT(Y189,"ddd") -> za | AA191: ND | AB191: =IFERROR(HLOOKUP(Y189,[1]DATA!$A$1:$NB$5,5,0),"") -> - | AG191: 0
A192: 9zoDD | B192: =VLOOKUP($AA192,DATA!$B$3:$E$6,2,0) -> 06:30:00 | C192: =VLOOKUP($AA192,DATA!$B$3:$E$6,3,0) -> 14:30:00 | D192: =VLOOKUP($AA192,DATA!$B$3:$E$6,4,0) -> 0.03125 | E192: 0.3020833333 | F192: 0.3020833333 | G192: =DATA!$C$9 -> 0.89 | H192: =DATA!$C$10 -> 64 | I192: 1 | J192: 407.8125 | K192: 407.8125 | L192: 0 | O192: 0 | R192: 0 | X192: =X184 -> 9 | Y192: =Y189+1 -> 2018-03-04 | Z192: =TEXT(Y192,"ddd") -> zo | AA192: DD | AB192: =IFERROR(HLOOKUP(Y192,[1]DATA!$A$1:$NB$5,3,0),"") -> - | AG192: 0
A193: 9zoMD | B193: =VLOOKUP($AA193,DATA!$B$3:$E$6,2,0) -> 14:30:00 | C193: =VLOOKUP($AA193,DATA!$B$3:$E$6,3,0) -> 22:30:00 | D193: =VLOOKUP($AA193,DATA!$B$3:$E$6,4,0) -> 0.03125 | E193: 0.3020833333 | F193: 0.3020833333 | G193: =DATA!$C$9 -> 0.89 | H193: =DATA!$C$10 -> 64 | I193: 1 | J193: 407.8125 | K193: 407.8125 | L193: 0 | O193: 0 | R193: 0 | X193: =X184 -> 9 | Z193: =TEXT(Y192,"ddd") -> zo | AA193: MD | AB193: =IFERROR(HLOOKUP(Y192,[1]DATA!$A$1:$NB$5,4,0),"") -> - | AG193: 0
A194: 9zoZND | B194: =VLOOKUP($AA194,DATA!$B$3:$E$6,2,0) -> 00:00:00 | C194: =VLOOKUP($AA194,DATA!$B$3:$E$6,3,0) -> 00:00:00 | D194: =VLOOKUP($AA194,DATA!$B$3:$E$6,4,0) -> 0 | E194: 0 | F194: 0 | G194: =DATA!$C$9 -> 0.89 | H194: =DATA!$C$10 -> 64 | I194: 1 | J194: 0 | K194: 0 | L194: 0 | O194: 0 | R194: 0 | X194: =X184 -> 9 | Z194: =TEXT(Y192,"ddd") -> zo | AA194: ZND | AB194: =IFERROR(HLOOKUP(Y192,[1]DATA!$A$1:$NB$5,5,0),"") -> D2 | AG194: 0
A195: 10maDD | B195: =VLOOKUP($AA195,DATA!$B$3:$E$6,2,0) -> 06:30:00 | C195: =VLOOKUP($AA195,DATA!$B$3:$E$6,3,0) -> 14:30:00 | D195: =VLOOKUP($AA195,DATA!$B$3:$E$6,4,0) -> 0.03125 | E195: 0.3020833333 | F195: 0.2409722222 | G195: =DATA!$C$9 -> 0.89 | H195: =DATA!$C$10 -> 64 | I195: 1 | J195: 325.3125 | K195: 407.8125 | L195: 0.06111111111 | M195: 82.5 | N195: 0.2022988506 | O195: =TIME(INT($AD195/60),INT(MOD($AD195,60)/1),0) -> 0 | R195: 346.6666667 | S195: 302 | T195: 302 | X195: =X205 -> 10 | Y195: =Y192+1 -> 2018-03-05 | Z195: =TEXT(Y195,"ddd") -> ma | AA195: DD | AB195: =IFERROR(HLOOKUP(Y195,[1]DATA!$A$1:$NB$5,3,0),"") -> D1 | AC195: 88 | AE195: 23 | AF195: 325 | AG195: 2 | AH195: -51.4375 | AI195: 0.6927598566 | AJ195: 0.9942638623 | AK195: 4359.375 | AL195: 2959 | AM195: 0.6787670251 | AN195: 521.25 | AO195: 0.1195698925 | AP195: 0 | AQ195: 0 | AR195: 0.9634107368 | AS195: 0.9701437074 | AU195: 0.9566777661 | AV195: 879.125 | AW195: 0.2016630824 | AX195: 937.7333333 | AY195: 127
A196: 10maMD | B196: =VLOOKUP($AA196,DATA!$B$3:$E$6,2,0) -> 14:30:00 | C196: =VLOOKUP($AA196,DATA!$B$3:$E$6,3,0) -> 22:30:00 | D196: =VLOOKUP($AA196,DATA!$B$3:$E$6,4,0) -> 0.03125 | E196: 0.3020833333 | F196: 0.2416666667 | G196: =DATA!$C$9 -> 0.89 | H196: =DATA!$C$10 -> 64 | I196: 1 | J196: 326.25 | K196: 407.8125 | L196: 0.06041666667 | M196: 81.5625 | N196: 0.2 | O196: =TIME(INT(AD196/60),INT(MOD(AD196,60)/1),0) -> 0 | R196: 323.2 | S196: 288 | V196: 288 | X196: =X205 -> 10 | Z196: =TEXT(Y195,"ddd") -> ma | AA196: MD | AB196: =IFERROR(HLOOKUP(Y195,[1]DATA!$A$1:$NB$5,4,0),"") -> D3 | AC196: 87 | AE196: 15 | AF196: 303 | AG196: 10 | AH196: -66.375 | AI196: 0.6606451613 | AJ196: 0.9699879952
A197: 10maND | B197: =VLOOKUP($AA197,DATA!$B$3:$E$6,2,0) -> 22:30:00 | C197: =VLOOKUP($AA197,DATA!$B$3:$E$6,3,0) -> 06:30:00 | D197: =VLOOKUP($AA197,DATA!$B$3:$E$6,4,0) -> 0.03125 | E197: 0.3020833333 | F197: 0.3020833333 | G197: =DATA!$C$9 -> 0.89 | H197: =DATA!$C$10 -> 64 | I197: 1 | J197: 407.8125 | K197: 407.8125 | L197: 0 | O197: 0 | R197: 0 | X197: =X205 -> 10 | Z197: =TEXT(Y195,"ddd") -> ma | AA197: ND | AB197: =IFERROR(HLOOKUP(Y195,[1]DATA!$A$1:$NB$5,5,0),"") -> D2 | AG197: 0
A198: 10diDD | B198: =VLOOKUP($AA198,DATA!$B$3:$E$6,2,0) -> 06:30:00 | C198: =VLOOKUP($AA198,DATA!$B$3:$E$6,3,0) -> 14:30:00 | D198: =VLOOKUP($AA198,DATA!$B$3:$E$6,4,0) -> 0.03125 | E198: 0.3020833333 | F198: 0.2861111111 | G198: =DATA!$C$9 -> 0.89 | H198: =DATA!$C$10 -> 64 | I198: 1 | J198: 386.25 | K198: 407.8125 | L198: 0.01597222222 | M198: 21.5625 | N198: 0.05287356322 | O198: 0 | R198: 344.5333333 | S198: 309 | T198: 309 | X198: =X205 -> 10 | Y198: =Y195+1 -> 2018-03-06 | Z198: =TEXT(Y198,"ddd") -> di | AA198: DD | AB198: =IFERROR(HLOOKUP(Y198,[1]DATA!$A$1:$NB$5,3,0),"") -> D1 | AC198: 23 | AE198: 14 | AF198: 323 | AG198: 2 | AH198: -105.375 | AI198: 0.7088172043 | AJ198: 0.9942285494
A199: 10diMD | B199: =VLOOKUP($AA199,DATA!$B$3:$E$6,2,0) -> 14:30:00 | C199: =VLOOKUP($AA199,DATA!$B$3:$E$6,3,0) -> 22:30:00 | D199: =VLOOKUP($AA199,DATA!$B$3:$E$6,4,0) -> 0.03125 | E199: 0.3020833333 | F199: 0.2479166667 | G199: =DATA!$C$9 -> 0.89 | H199: =DATA!$C$10 -> 64 | I199: 1 | J199: 334.6875 | K199: 407.8125 | L199: =TIME(INT($AC199/60),INT(MOD($AC199,60)/1),0) -> 0.05416666667 | M199: =IF($L199*86400/$H199=0,"",$L199*86400/$H199) -> 73.125 | N199: =IFERROR($M199/$K199,"") -> 0.1793103448 | O199: 0 | Q199: =IFERROR($P199/$K199,"") ->  | R199: 315.7333333 | S199: 280 | T199: =IF(IF($AB199="D1",$S199,"")=0,"",IF($AB199="D1",$S199,"")) ->  | U199: =IF(IF($AB199="D2",$S199,"")=0,"",IF($AB199="D2",$S199,"")) ->  | V199: =IF(IF($AB199="D3",$S199,"")=0,"",IF($AB199="D3",$S199,"")) -> 280 | X199: =X205 -> 10 | Z199: =TEXT(Y198,"ddd") -> di | AA199: MD | AB199: =IFERROR(HLOOKUP(Y198,[1]DATA!$A$1:$NB$5,4,0),"") -> D3 | AC199: 78 | AE199: 16 | AF199: 296 | AG199: 31 | AH199: -82.8125 | AI199: 0.6422939068 | AJ199: 0.9105941165
A200: 10diND | B200: =VLOOKUP($AA200,DATA!$B$3:$E$6,2,0) -> 22:30:00 | C200: =VLOOKUP($AA200,DATA!$B$3:$E$6,3,0) -> 06:30:00 | D200: =VLOOKUP($AA200,DATA!$B$3:$E$6,4,0) -> 0.03125 | E200: 0.3020833333 | F200: 0.3020833333 | G200: =DATA!$C$9 -> 0.89 | H200: =DATA!$C$10 -> 64 | I200: 1 | J200: 407.8125 | K200: 407.8125 | L200: 0 | O200: 0 | R200: 0 | X200: =X205 -> 10 | Z200: =TEXT(Y198,"ddd") -> di | AA200: ND | AB200: =IFERROR(HLOOKUP(Y198,[1]DATA!$A$1:$NB$5,5,0),"") -> D2 | AG200: 0
... 918 more rows

Sheet Grafieken
P3: 0.89
P4: 0.89
P5: 0.89
P6: 0.89
P7: 0.89
P8: 0.89
P9: 0.89 | AB9: Week
P10: 0.89 | AB10: 39
P11: 0.89
P12: 0.89
P13: 0.89
P14: 0.89
P15: 0.89
P16: 0.89
P17: 0.89
P18: 0.89
P19: 0.89
P20: 0.89

Sheet Data voor grafieken (hidden)
A1: =Grafieken!AB10 -> 39 | B1: 0
B2: Week | E2: Parts Target [TA 100%] | F2: Parts Actual | G2: Availability (Total Time) [%] | H2: Loss due to Blocked/ Starved [Theoretical] | I2: Loss Blocked/ Starved [%] | J2: Loss due to Planned Stop/ Early Finish | K2: Loss Planned Stop/ Early Finish [%] | L2: Technical Availability Total [%] | M2: Technical Availability Shift D1 [%] | N2: Technical Availability Shift D2 [%] | O2: Technical Availability Shift D3 [%] | P2: Downtime [Parts] | Q2: Total Downtime [%] | R2: Target TA [%]
A3: 2017 | B3: =B4-1 -> 33 | E3: =VLOOKUP($B3,'TA SRA LH'!$X$6:$AY$1118,14,FALSE) -> 6117.1875 | F3: =VLOOKUP($B3,'TA SRA LH'!$X$6:$AY$1118,15,FALSE) -> 4056 | G3: =VLOOKUP($B3,'TA SRA LH'!$X$6:$AY$1118,16,FALSE) -> 0.6630498084 | H3: =VLOOKUP($B3,'TA SRA LH'!$X$6:$AY$1118,17,FALSE) -> 1385.625 | I3: =VLOOKUP($B3,'TA SRA LH'!$X$6:$AY$1118,18,FALSE) -> 0.22651341 | J3: =VLOOKUP($B3,'TA SRA LH'!$X$6:$AY$1118,19,FALSE) -> 0 | K3: =VLOOKUP($B3,'TA SRA LH'!$X$6:$AY$1118,20,FALSE) -> 0 | L3: =VLOOKUP($B3,'TA SRA LH'!$X$6:$AY$1118,21,FALSE) -> 0.9297964591 | M3: =VLOOKUP($B3,'TA SRA LH'!$X$6:$AY$1118,22,FALSE) -> 0.8944966689 | N3: =VLOOKUP($B3,'TA SRA LH'!$X$6:$AY$1118,23,FALSE) -> 0.9421866908 | O3: =VLOOKUP($B3,'TA SRA LH'!$X$6:$AY$1118,24,FALSE) -> 0.9553358495 | P3: =VLOOKUP($B3,'TA SRA LH'!$X$6:$AY$1118,25,FALSE) -> 675.5625 | Q3: =VLOOKUP($B3,'TA SRA LH'!$X$6:$AY$1118,26,FALSE) -> 0.1104367816 | R3: =DATA!$C$9 -> 0.89 | S3: SRI LH
B4: 34 | E4: =VLOOKUP($B4,'TA SRA LH'!$X$6:$AY$1118,14,FALSE) -> 6117.1875 | F4: =VLOOKUP($B4,'TA SRA LH'!$X$6:$AY$1118,15,FALSE) -> 4369 | G4: =VLOOKUP($B4,'TA SRA LH'!$X$6:$AY$1118,16,FALSE) -> 0.7142171137 | H4: =VLOOKUP($B4,'TA SRA LH'!$X$6:$AY$1118,17,FALSE) -> 340.3125 | I4: =VLOOKUP($B4,'TA SRA LH'!$X$6:$AY$1118,18,FALSE) -> 0.05563218391 | J4: =VLOOKUP($B4,'TA SRA LH'!$X$6:$AY$1118,19,FALSE) -> 0 | K4: =VLOOKUP($B4,'TA SRA LH'!$X$6:$AY$1118,20,FALSE) -> 0 | L4: =VLOOKUP($B4,'TA SRA LH'!$X$6:$AY$1118,21,FALSE) -> 0.9545711688 | M4: =VLOOKUP($B4,'TA SRA LH'!$X$6:$AY$1118,22,FALSE) -> 0.9464765773 | N4: =VLOOKUP($B4,'TA SRA LH'!$X$6:$AY$1118,23,FALSE) -> 0.9824686846 | O4: =VLOOKUP($B4,'TA SRA LH'!$X$6:$AY$1118,24,FALSE) -> 0.9347682446 | P4: =VLOOKUP($B4,'TA SRA LH'!$X$6:$AY$1118,25,FALSE) -> 1407.875 | Q4: =VLOOKUP($B4,'TA SRA LH'!$X$6:$AY$1118,26,FALSE) -> 0.2301507024 | R4: =DATA!$C$9 -> 0.89
B5: 35 | E5: =VLOOKUP($B5,'TA SRA LH'!$X$6:$AY$1118,14,FALSE) -> 5709.375 | F5: =VLOOKUP($B5,'TA SRA LH'!$X$6:$AY$1118,15,FALSE) -> 4253 | G5: =VLOOKUP($B5,'TA SRA LH'!$X$6:$AY$1118,16,FALSE) -> 0.7449151615 | H5: =VLOOKUP($B5,'TA SRA LH'!$X$6:$AY$1118,17,FALSE) -> 226.875 | I5: =VLOOKUP($B5,'TA SRA LH'!$X$6:$AY$1118,18,FALSE) -> 0.03973727422 | J5: =VLOOKUP($B5,'TA SRA LH'!$X$6:$AY$1118,19,FALSE) -> 0 | K5: =VLOOKUP($B5,'TA SRA LH'!$X$6:$AY$1118,20,FALSE) -> 0 | L5: =VLOOKUP($B5,'TA SRA LH'!$X$6:$AY$1118,21,FALSE) -> 0.9453529712 | M5: =VLOOKUP($B5,'TA SRA LH'!$X$6:$AY$1118,22,FALSE) -> 0.9624036205 | N5: =VLOOKUP($B5,'TA SRA LH'!$X$6:$AY$1118,23,FALSE) -> 0.945246951 | O5: =VLOOKUP($B5,'TA SRA LH'!$X$6:$AY$1118,24,FALSE) -> 0.9318184721 | P5: =VLOOKUP($B5,'TA SRA LH'!$X$6:$AY$1118,25,FALSE) -> 1229.5 | Q5: =VLOOKUP($B5,'TA SRA LH'!$X$6:$AY$1118,26,FALSE) -> 0.2153475643 | R5: =DATA!$C$9 -> 0.89
B6: =B7-1 -> 36 | E6: =VLOOKUP($B6,'TA SRA LH'!$X$6:$AY$1118,14,FALSE) -> 6117.1875 | F6: =VLOOKUP($B6,'TA SRA LH'!$X$6:$AY$1118,15,FALSE) -> 4098 | G6: =VLOOKUP($B6,'TA SRA LH'!$X$6:$AY$1118,16,FALSE) -> 0.6699157088 | H6: =VLOOKUP($B6,'TA SRA LH'!$X$6:$AY$1118,17,FALSE) -> 300 | I6: =VLOOKUP($B6,'TA SRA LH'!$X$6:$AY$1118,18,FALSE) -> 0.04904214559 | J6: =VLOOKUP($B6,'TA SRA LH'!$X$6:$AY$1118,19,FALSE) -> 0 | K6: =VLOOKUP($B6,'TA SRA LH'!$X$6:$AY$1118,20,FALSE) -> 0 | L6: =VLOOKUP($B6,'TA SRA LH'!$X$6:$AY$1118,21,FALSE) -> 0.9368507668 | M6: =VLOOKUP($B6,'TA SRA LH'!$X$6:$AY$1118,22,FALSE) -> 0.9069468755 | N6: =VLOOKUP($B6,'TA SRA LH'!$X$6:$AY$1118,23,FALSE) -> 0.9128004683 | O6: =VLOOKUP($B6,'TA SRA LH'!$X$6:$AY$1118,24,FALSE) -> 0.9908049567 | P6: =VLOOKUP($B6,'TA SRA LH'!$X$6:$AY$1118,25,FALSE) -> 1719.1875 | Q6: =VLOOKUP($B6,'TA SRA LH'!$X$6:$AY$1118,26,FALSE) -> 0.2810421456 | R6: =DATA!$C$9 -> 0.89
B7: =B8-1 -> 37 | E7: =VLOOKUP($B7,'TA SRA LH'!$X$6:$AY$1118,14,FALSE) -> 6117.1875 | F7: =VLOOKUP($B7,'TA SRA LH'!$X$6:$AY$1118,15,FALSE) -> 4499 | G7: =VLOOKUP($B7,'TA SRA LH'!$X$6:$AY$1118,16,FALSE) -> 0.7354687101 | H7: =VLOOKUP($B7,'TA SRA LH'!$X$6:$AY$1118,17,FALSE) -> 251.25 | I7: =VLOOKUP($B7,'TA SRA LH'!$X$6:$AY$1118,18,FALSE) -> 0.04107279693 | J7: =VLOOKUP($B7,'TA SRA LH'!$X$6:$AY$1118,19,FALSE) -> 0 | K7: =VLOOKUP($B7,'TA SRA LH'!$X$6:$AY$1118,20,FALSE) -> 0 | L7: =VLOOKUP($B7,'TA SRA LH'!$X$6:$AY$1118,21,FALSE) -> 0.9700787304 | M7: =VLOOKUP($B7,'TA SRA LH'!$X$6:$AY$1118,22,FALSE) -> 0.9651822551 | N7: =VLOOKUP($B7,'TA SRA LH'!$X$6:$AY$1118,23,FALSE) -> 0.964880411 | O7: =VLOOKUP($B7,'TA SRA LH'!$X$6:$AY$1118,24,FALSE) -> 0.9801735251 | P7: =VLOOKUP($B7,'TA SRA LH'!$X$6:$AY$1118,25,FALSE) -> 1366.9375 | Q7: =VLOOKUP($B7,'TA SRA LH'!$X$6:$AY$1118,26,FALSE) -> 0.223458493 | R7: =DATA!$C$9 -> 0.89
B8: 38 | E8: =VLOOKUP($B8,'TA SRA LH'!$X$6:$AY$1118,14,FALSE) -> 6117.1875 | F8: =VLOOKUP($B8,'TA SRA LH'!$X$6:$AY$1118,15,FALSE) -> 4156 | G8: =VLOOKUP($B8,'TA SRA LH'!$X$6:$AY$1118,16,FALSE) -> 0.6793971903 | H8: =VLOOKUP($B8,'TA SRA LH'!$X$6:$AY$1118,17,FALSE) -> 338.4375 | I8: =VLOOKUP($B8,'TA SRA LH'!$X$6:$AY$1118,18,FALSE) -> 0.0553256705 | J8: =VLOOKUP($B8,'TA SRA LH'!$X$6:$AY$1118,19,FALSE) -> 0 | K8: =VLOOKUP($B8,'TA SRA LH'!$X$6:$AY$1118,20,FALSE) -> 0 | L8: =VLOOKUP($B8,'TA SRA LH'!$X$6:$AY$1118,21,FALSE) -> 0.8563766479 | M8: =VLOOKUP($B8,'TA SRA LH'!$X$6:$AY$1118,22,FALSE) -> 0.8655476153 | N8: =VLOOKUP($B8,'TA SRA LH'!$X$6:$AY$1118,23,FALSE) -> 0.9284164722 | O8: =VLOOKUP($B8,'TA SRA LH'!$X$6:$AY$1118,24,FALSE) -> 0.7625920848 | P8: =VLOOKUP($B8,'TA SRA LH'!$X$6:$AY$1118,25,FALSE) -> 1622.75 | Q8: =VLOOKUP($B8,'TA SRA LH'!$X$6:$AY$1118,26,FALSE) -> 0.2652771392 | R8: =DATA!$C$9 -> 0.89
B9: =A1 -> 39 | E9: =VLOOKUP($B9,'TA SRA LH'!$X$6:$AY$1118,14,FALSE) ->  | F9: =VLOOKUP($B9,'TA SRA LH'!$X$6:$AY$1118,15,FALSE) ->  | G9: =VLOOKUP($B9,'TA SRA LH'!$X$6:$AY$1118,16,FALSE) -> - | H9: =VLOOKUP($B9,'TA SRA LH'!$X$6:$AY$1118,17,FALSE) -> 0 | I9: =VLOOKUP($B9,'TA SRA LH'!$X$6:$AY$1118,18,FALSE) -> - | J9: =VLOOKUP($B9,'TA SRA LH'!$X$6:$AY$1118,19,FALSE) -> 0 | K9: =VLOOKUP($B9,'TA SRA LH'!$X$6:$AY$1118,20,FALSE) -> - | L9: =VLOOKUP($B9,'TA SRA LH'!$X$6:$AY$1118,21,FALSE) -> 0 | M9: =VLOOKUP($B9,'TA SRA LH'!$X$6:$AY$1118,22,FALSE) ->  | N9: =VLOOKUP($B9,'TA SRA LH'!$X$6:$AY$1118,23,FALSE) ->  | O9: =VLOOKUP($B9,'TA SRA LH'!$X$6:$AY$1118,24,FALSE) ->  | P9: =VLOOKUP($B9,'TA SRA LH'!$X$6:$AY$1118,25,FALSE) -> - | Q9: =VLOOKUP($B9,'TA SRA LH'!$X$6:$AY$1118,26,FALSE) -> - | R9: =DATA!$C$9 -> 0.89
B10: =B9+1 -> 40 | E10: =VLOOKUP($B10,'TA SRA LH'!$X$6:$AY$1118,14,FALSE) ->  | F10: =VLOOKUP($B10,'TA SRA LH'!$X$6:$AY$1118,15,FALSE) ->  | G10: =VLOOKUP($B10,'TA SRA LH'!$X$6:$AY$1118,16,FALSE) -> - | H10: =VLOOKUP($B10,'TA SRA LH'!$X$6:$AY$1118,17,FALSE) -> 0 | I10: =VLOOKUP($B10,'TA SRA LH'!$X$6:$AY$1118,18,FALSE) -> - | J10: =VLOOKUP($B10,'TA SRA LH'!$X$6:$AY$1118,19,FALSE) -> 0 | K10: =VLOOKUP($B10,'TA SRA LH'!$X$6:$AY$1118,20,FALSE) -> - | L10: =VLOOKUP($B10,'TA SRA LH'!$X$6:$AY$1118,21,FALSE) -> - | M10: =VLOOKUP($B10,'TA SRA LH'!$X$6:$AY$1118,22,FALSE) ->  | N10: =VLOOKUP($B10,'TA SRA LH'!$X$6:$AY$1118,23,FALSE) ->  | O10: =VLOOKUP($B10,'TA SRA LH'!$X$6:$AY$1118,24,FALSE) ->  | P10: =VLOOKUP($B10,'TA SRA LH'!$X$6:$AY$1118,25,FALSE) -> - | Q10: =VLOOKUP($B10,'TA SRA LH'!$X$6:$AY$1118,26,FALSE) -> - | R10: =DATA!$C$9 -> 0.89
B12: =$B$3 -> 33 | E12: =VLOOKUP($B12,'TA SRA RH'!$X$6:$AY$1118,14,FALSE) -> 6117.1875 | F12: =VLOOKUP($B12,'TA SRA RH'!$X$6:$AY$1118,15,FALSE) -> 3954 | G12: =VLOOKUP($B12,'TA SRA RH'!$X$6:$AY$1118,16,FALSE) -> 0.6463754789 | H12: =VLOOKUP($B12,'TA SRA RH'!$X$6:$AY$1118,17,FALSE) -> 463.125 | I12: =VLOOKUP($B12,'TA SRA RH'!$X$6:$AY$1118,18,FALSE) -> 0.07570881226 | J12: =VLOOKUP($B12,'TA SRA RH'!$X$6:$AY$1118,19,FALSE) -> 0 | K12: =VLOOKUP($B12,'TA SRA RH'!$X$6:$AY$1118,20,FALSE) -> 0 | L12: =VLOOKUP($B12,'TA SRA RH'!$X$6:$AY$1118,21,FALSE) -> 0.9636571911 | M12: =VLOOKUP($B12,'TA SRA RH'!$X$6:$AY$1118,22,FALSE) -> 0.991125421 | N12: =VLOOKUP($B12,'TA SRA RH'!$X$6:$AY$1118,23,FALSE) -> 0.9436321391 | O12: =VLOOKUP($B12,'TA SRA RH'!$X$6:$AY$1118,24,FALSE) -> 0.9593594817 | P12: =VLOOKUP($B12,'TA SRA RH'!$X$6:$AY$1118,25,FALSE) -> 1700.0625 | Q12: =VLOOKUP($B12,'TA SRA RH'!$X$6:$AY$1118,26,FALSE) -> 0.2779157088 | R12: =DATA!$C$9 -> 0.89 | S12: SRI RH
B13: =$B$4 -> 34 | E13: =VLOOKUP($B13,'TA SRA RH'!$X$6:$AY$1118,14,FALSE) -> 6117.1875 | F13: =VLOOKUP($B13,'TA SRA RH'!$X$6:$AY$1118,15,FALSE) -> 4440 | G13: =VLOOKUP($B13,'TA SRA RH'!$X$6:$AY$1118,16,FALSE) -> 0.7258237548 | H13: =VLOOKUP($B13,'TA SRA RH'!$X$6:$AY$1118,17,FALSE) -> 352.5 | I13: =VLOOKUP($B13,'TA SRA RH'!$X$6:$AY$1118,18,FALSE) -> 0.05762452107 | J13: =VLOOKUP($B13,'TA SRA RH'!$X$6:$AY$1118,19,FALSE) -> 0 | K13: =VLOOKUP($B13,'TA SRA RH'!$X$6:$AY$1118,20,FALSE) -> 0 | L13: =VLOOKUP($B13,'TA SRA RH'!$X$6:$AY$1118,21,FALSE) -> 0.9687633653 | M13: =VLOOKUP($B13,'TA SRA RH'!$X$6:$AY$1118,22,FALSE) -> 0.9899555416 | N13: =VLOOKUP($B13,'TA SRA RH'!$X$6:$AY$1118,23,FALSE) -> 0.9712603917 | O13: =VLOOKUP($B13,'TA SRA RH'!$X$6:$AY$1118,24,FALSE) -> 0.9450741626 | P13: =VLOOKUP($B13,'TA SRA RH'!$X$6:$AY$1118,25,FALSE) -> 1324.6875 | Q13: =VLOOKUP($B13,'TA SRA RH'!$X$6:$AY$1118,26,FALSE) -> 0.2165517241 | R13: =DATA!$C$9 -> 0.89
B14: =$B$5 -> 35 | E14: =VLOOKUP($B14,'TA SRA RH'!$X$6:$AY$1118,14,FALSE) -> 5709.375 | F14: =VLOOKUP($B14,'TA SRA RH'!$X$6:$AY$1118,15,FALSE) -> 4273 | G14: =VLOOKUP($B14,'TA SRA RH'!$X$6:$AY$1118,16,FALSE) -> 0.7484181719 | H14: =VLOOKUP($B14,'TA SRA RH'!$X$6:$AY$1118,17,FALSE) -> 280.3125 | I14: =VLOOKUP($B14,'TA SRA RH'!$X$6:$AY$1118,18,FALSE) -> 0.04909688013 | J14: =VLOOKUP($B14,'TA SRA RH'!$X$6:$AY$1118,19,FALSE) -> 0 | K14: =VLOOKUP($B14,'TA SRA RH'!$X$6:$AY$1118,20,FALSE) -> 0 | L14: =VLOOKUP($B14,'TA SRA RH'!$X$6:$AY$1118,21,FALSE) -> 0.9589608953 | M14: =VLOOKUP($B14,'TA SRA RH'!$X$6:$AY$1118,22,FALSE) -> 0.9861514928 | N14: =VLOOKUP($B14,'TA SRA RH'!$X$6:$AY$1118,23,FALSE) -> 0.9748262635 | O14: =VLOOKUP($B14,'TA SRA RH'!$X$6:$AY$1118,24,FALSE) -> 0.921343049 | P14: =VLOOKUP($B14,'TA SRA RH'!$X$6:$AY$1118,25,FALSE) -> 1156.0625 | Q14: =VLOOKUP($B14,'TA SRA RH'!$X$6:$AY$1118,26,FALSE) -> 0.202484948 | R14: =DATA!$C$9 -> 0.89
B15: =$B$6 -> 36 | E15: =VLOOKUP($B15,'TA SRA RH'!$X$6:$AY$1118,14,FALSE) -> 6117.1875 | F15: =VLOOKUP($B15,'TA SRA RH'!$X$6:$AY$1118,15,FALSE) -> 4137 | G15: =VLOOKUP($B15,'TA SRA RH'!$X$6:$AY$1118,16,FALSE) -> 0.6762911877 | H15: =VLOOKUP($B15,'TA SRA RH'!$X$6:$AY$1118,17,FALSE) -> 284.0625 | I15: =VLOOKUP($B15,'TA SRA RH'!$X$6:$AY$1118,18,FALSE) -> 0.04643678161 | J15: =VLOOKUP($B15,'TA SRA RH'!$X$6:$AY$1118,19,FALSE) -> 0 | K15: =VLOOKUP($B15,'TA SRA RH'!$X$6:$AY$1118,20,FALSE) -> 0 | L15: =VLOOKUP($B15,'TA SRA RH'!$X$6:$AY$1118,21,FALSE) -> 0.9654001697 | M15: =VLOOKUP($B15,'TA SRA RH'!$X$6:$AY$1118,22,FALSE) -> 0.9701371464 | N15: =VLOOKUP($B15,'TA SRA RH'!$X$6:$AY$1118,23,FALSE) -> 0.957483345 | O15: =VLOOKUP($B15,'TA SRA RH'!$X$6:$AY$1118,24,FALSE) -> 0.9685800176 | P15: =VLOOKUP($B15,'TA SRA RH'!$X$6:$AY$1118,25,FALSE) -> 1696.125 | Q15: =VLOOKUP($B15,'TA SRA RH'!$X$6:$AY$1118,26,FALSE) -> 0.2772720307 | R15: =DATA!$C$9 -> 0.89
B16: =$B$7 -> 37 | E16: =VLOOKUP($B16,'TA SRA RH'!$X$6:$AY$1118,14,FALSE) -> 6117.1875 | F16: =VLOOKUP($B16,'TA SRA RH'!$X$6:$AY$1118,15,FALSE) -> 4511 | G16: =VLOOKUP($B16,'TA SRA RH'!$X$6:$AY$1118,16,FALSE) -> 0.7374303959 | H16: =VLOOKUP($B16,'TA SRA RH'!$X$6:$AY$1118,17,FALSE) -> 313.125 | I16: =VLOOKUP($B16,'TA SRA RH'!$X$6:$AY$1118,18,FALSE) -> 0.05118773946 | J16: =VLOOKUP($B16,'TA SRA RH'!$X$6:$AY$1118,19,FALSE) -> 0 | K16: =VLOOKUP($B16,'TA SRA RH'!$X$6:$AY$1118,20,FALSE) -> 0 | L16: =VLOOKUP($B16,'TA SRA RH'!$X$6:$AY$1118,21,FALSE) -> 0.9742509326 | M16: =VLOOKUP($B16,'TA SRA RH'!$X$6:$AY$1118,22,FALSE) -> 0.9791473238 | N16: =VLOOKUP($B16,'TA SRA RH'!$X$6:$AY$1118,23,FALSE) -> 0.9588743155 | O16: =VLOOKUP($B16,'TA SRA RH'!$X$6:$AY$1118,24,FALSE) -> 0.9847311585 | P16: =VLOOKUP($B16,'TA SRA RH'!$X$6:$AY$1118,25,FALSE) -> 1293.0625 | Q16: =VLOOKUP($B16,'TA SRA RH'!$X$6:$AY$1118,26,FALSE) -> 0.2113818646 | R16: =DATA!$C$9 -> 0.89
B17: =$B$8 -> 38 | E17: =VLOOKUP($B17,'TA SRA RH'!$X$6:$AY$1118,14,FALSE) -> 6117.1875 | F17: =VLOOKUP($B17,'TA SRA RH'!$X$6:$AY$1118,15,FALSE) -> 4310 | G17: =VLOOKUP($B17,'TA SRA RH'!$X$6:$AY$1118,16,FALSE) -> 0.7045721584 | H17: =VLOOKUP($B17,'TA SRA RH'!$X$6:$AY$1118,17,FALSE) -> 239.0625 | I17: =VLOOKUP($B17,'TA SRA RH'!$X$6:$AY$1118,18,FALSE) -> 0.03908045977 | J17: =VLOOKUP($B17,'TA SRA RH'!$X$6:$AY$1118,19,FALSE) -> 0 | K17: =VLOOKUP($B17,'TA SRA RH'!$X$6:$AY$1118,20,FALSE) -> 0 | L17: =VLOOKUP($B17,'TA SRA RH'!$X$6:$AY$1118,21,FALSE) -> 0.9329971582 | M17: =VLOOKUP($B17,'TA SRA RH'!$X$6:$AY$1118,22,FALSE) -> 0.9156700941 | N17: =VLOOKUP($B17,'TA SRA RH'!$X$6:$AY$1118,23,FALSE) -> 0.9486400109 | O17: =VLOOKUP($B17,'TA SRA RH'!$X$6:$AY$1118,24,FALSE) -> 0.9280873862 | P17: =VLOOKUP($B17,'TA SRA RH'!$X$6:$AY$1118,25,FALSE) -> 1568.125 | Q17: =VLOOKUP($B17,'TA SRA RH'!$X$6:$AY$1118,26,FALSE) -> 0.2563473819 | R17: =DATA!$C$9 -> 0.89
B18: =$B$9 -> 39 | E18: =VLOOKUP($B18,'TA SRA RH'!$X$6:$AY$1118,14,FALSE) ->  | F18: =VLOOKUP($B18,'TA SRA RH'!$X$6:$AY$1118,15,FALSE) ->  | G18: =VLOOKUP($B18,'TA SRA RH'!$X$6:$AY$1118,16,FALSE) -> - | H18: =VLOOKUP($B18,'TA SRA RH'!$X$6:$AY$1118,17,FALSE) -> 0 | I18: =VLOOKUP($B18,'TA SRA RH'!$X$6:$AY$1118,18,FALSE) -> - | J18: =VLOOKUP($B18,'TA SRA RH'!$X$6:$AY$1118,19,FALSE) -> 0 | K18: =VLOOKUP($B18,'TA SRA RH'!$X$6:$AY$1118,20,FALSE) -> - | L18: =VLOOKUP($B18,'TA SRA RH'!$X$6:$AY$1118,21,FALSE) -> 0 | M18: =VLOOKUP($B18,'TA SRA RH'!$X$6:$AY$1118,22,FALSE) ->  | N18: =VLOOKUP($B18,'TA SRA RH'!$X$6:$AY$1118,23,FALSE) ->  | O18: =VLOOKUP($B18,'TA SRA RH'!$X$6:$AY$1118,24,FALSE) ->  | P18: =VLOOKUP($B18,'TA SRA RH'!$X$6:$AY$1118,25,FALSE) -> - | Q18: =VLOOKUP($B18,'TA SRA RH'!$X$6:$AY$1118,26,FALSE) -> - | R18: =DATA!$C$9 -> 0.89
B19: =$B$10 -> 40 | E19: =VLOOKUP($B19,'TA SRA RH'!$X$6:$AY$1118,14,FALSE) ->  | F19: =VLOOKUP($B19,'TA SRA RH'!$X$6:$AY$1118,15,FALSE) ->  | G19: =VLOOKUP($B19,'TA SRA RH'!$X$6:$AY$1118,16,FALSE) -> - | H19: =VLOOKUP($B19,'TA SRA RH'!$X$6:$AY$1118,17,FALSE) -> 0 | I19: =VLOOKUP($B19,'TA SRA RH'!$X$6:$AY$1118,18,FALSE) -> - | J19: =VLOOKUP($B19,'TA SRA RH'!$X$6:$AY$1118,19,FALSE) -> 0 | K19: =VLOOKUP($B19,'TA SRA RH'!$X$6:$AY$1118,20,FALSE) -> - | L19: =VLOOKUP($B19,'TA SRA RH'!$X$6:$AY$1118,21,FALSE) -> - | M19: =VLOOKUP($B19,'TA SRA RH'!$X$6:$AY$1118,22,FALSE) ->  | N19: =VLOOKUP($B19,'TA SRA RH'!$X$6:$AY$1118,23,FALSE) ->  | O19: =VLOOKUP($B19,'TA SRA RH'!$X$6:$AY$1118,24,FALSE) ->  | P19: =VLOOKUP($B19,'TA SRA RH'!$X$6:$AY$1118,25,FALSE) -> - | Q19: =VLOOKUP($B19,'TA SRA RH'!$X$6:$AY$1118,26,FALSE) -> - | R19: =DATA!$C$9 -> 0.89
B21: Week | C21: ="Technical Downtime SAP "&DATA!C15 -> Technical Downtime SAP SRA LH | L21: ="Technical Downtime SAP "&DATA!C16 -> Technical Downtime SAP SRA RH
C22: F48 [min] | D22: Freq | E22: Running [min] | F22: Freq | G22: Totaal | H22: Feq | L22: F48 [min] | M22: Freq | N22: Running [min] | O22: Freq | P22: Totaal | Q22: Feq
B23: =$B$3 -> 33 | C23: =VLOOKUP($B23,[1]SRA!$A$4:$P$55,2,0) -> 24 | D23: =VLOOKUP($B23,[1]SRA!$A$4:$P$55,3,0) -> 5 | E23: =VLOOKUP($B23,[1]SRA!$A$4:$P$55,4,0) -> 333 | F23: =VLOOKUP($B23,[1]SRA!$A$4:$P$55,5,0) -> 41 | G23: =VLOOKUP($B23,[1]SRA!$A$4:$P$55,6,0) -> 357 | H23: =VLOOKUP($B23,[1]SRA!$A$4:$P$55,7,0) -> 46 | L23: =VLOOKUP($B23,[1]SRA!$A$4:$P$55,11,0) -> 31 | M23: =VLOOKUP($B23,[1]SRA!$A$4:$P$55,12,0) -> 3 | N23: =VLOOKUP($B23,[1]SRA!$A$4:$P$55,13,0) -> 143 | O23: =VLOOKUP($B23,[1]SRA!$A$4:$P$55,14,0) -> 20 | P23: =VLOOKUP($B23,[1]SRA!$A$4:$P$55,15,0) -> 174 | Q23: =VLOOKUP($B23,[1]SRA!$A$4:$P$55,16,0) -> 23
B24: =$B$4 -> 34 | C24: =VLOOKUP($B24,[1]SRA!$A$4:$P$55,2,0) -> 26 | D24: =VLOOKUP($B24,[1]SRA!$A$4:$P$55,3,0) -> 3 | E24: =VLOOKUP($B24,[1]SRA!$A$4:$P$55,4,0) -> 233 | F24: =VLOOKUP($B24,[1]SRA!$A$4:$P$55,5,0) -> 31 | G24: =VLOOKUP($B24,[1]SRA!$A$4:$P$55,6,0) -> 259 | H24: =VLOOKUP($B24,[1]SRA!$A$4:$P$55,7,0) -> 34 | L24: =VLOOKUP($B24,[1]SRA!$A$4:$P$55,11,0) -> 31 | M24: =VLOOKUP($B24,[1]SRA!$A$4:$P$55,12,0) -> 4 | N24: =VLOOKUP($B24,[1]SRA!$A$4:$P$55,13,0) -> 134 | O24: =VLOOKUP($B24,[1]SRA!$A$4:$P$55,14,0) -> 23 | P24: =VLOOKUP($B24,[1]SRA!$A$4:$P$55,15,0) -> 165 | Q24: =VLOOKUP($B24,[1]SRA!$A$4:$P$55,16,0) -> 27
B25: =$B$5 -> 35 | C25: =VLOOKUP($B25,[1]SRA!$A$4:$P$55,2,0) -> 88 | D25: =VLOOKUP($B25,[1]SRA!$A$4:$P$55,3,0) -> 10 | E25: =VLOOKUP($B25,[1]SRA!$A$4:$P$55,4,0) -> 184 | F25: =VLOOKUP($B25,[1]SRA!$A$4:$P$55,5,0) -> 32 | G25: =VLOOKUP($B25,[1]SRA!$A$4:$P$55,6,0) -> 272 | H25: =VLOOKUP($B25,[1]SRA!$A$4:$P$55,7,0) -> 42 | L25: =VLOOKUP($B25,[1]SRA!$A$4:$P$55,11,0) -> 51 | M25: =VLOOKUP($B25,[1]SRA!$A$4:$P$55,12,0) -> 5 | N25: =VLOOKUP($B25,[1]SRA!$A$4:$P$55,13,0) -> 153 | O25: =VLOOKUP($B25,[1]SRA!$A$4:$P$55,14,0) -> 23 | P25: =VLOOKUP($B25,[1]SRA!$A$4:$P$55,15,0) -> 204 | Q25: =VLOOKUP($B25,[1]SRA!$A$4:$P$55,16,0) -> 28
B26: =$B$6 -> 36 | C26: =VLOOKUP($B26,[1]SRA!$A$4:$P$55,2,0) -> 115 | D26: =VLOOKUP($B26,[1]SRA!$A$4:$P$55,3,0) -> 11 | E26: =VLOOKUP($B26,[1]SRA!$A$4:$P$55,4,0) -> 230 | F26: =VLOOKUP($B26,[1]SRA!$A$4:$P$55,5,0) -> 32 | G26: =VLOOKUP($B26,[1]SRA!$A$4:$P$55,6,0) -> 345 | H26: =VLOOKUP($B26,[1]SRA!$A$4:$P$55,7,0) -> 43 | L26: =VLOOKUP($B26,[1]SRA!$A$4:$P$55,11,0) -> 64 | M26: =VLOOKUP($B26,[1]SRA!$A$4:$P$55,12,0) -> 4 | N26: =VLOOKUP($B26,[1]SRA!$A$4:$P$55,13,0) -> 100 | O26: =VLOOKUP($B26,[1]SRA!$A$4:$P$55,14,0) -> 20 | P26: =VLOOKUP($B26,[1]SRA!$A$4:$P$55,15,0) -> 164 | Q26: =VLOOKUP($B26,[1]SRA!$A$4:$P$55,16,0) -> 24
B27: =$B$7 -> 37 | C27: =VLOOKUP($B27,[1]SRA!$A$4:$P$55,2,0) -> 46 | D27: =VLOOKUP($B27,[1]SRA!$A$4:$P$55,3,0) -> 9 | E27: =VLOOKUP($B27,[1]SRA!$A$4:$P$55,4,0) -> 167 | F27: =VLOOKUP($B27,[1]SRA!$A$4:$P$55,5,0) -> 34 | G27: =VLOOKUP($B27,[1]SRA!$A$4:$P$55,6,0) -> 213 | H27: =VLOOKUP($B27,[1]SRA!$A$4:$P$55,7,0) -> 43 | L27: =VLOOKUP($B27,[1]SRA!$A$4:$P$55,11,0) -> 43 | M27: =VLOOKUP($B27,[1]SRA!$A$4:$P$55,12,0) -> 5 | N27: =VLOOKUP($B27,[1]SRA!$A$4:$P$55,13,0) -> 157 | O27: =VLOOKUP($B27,[1]SRA!$A$4:$P$55,14,0) -> 25 | P27: =VLOOKUP($B27,[1]SRA!$A$4:$P$55,15,0) -> 200 | Q27: =VLOOKUP($B27,[1]SRA!$A$4:$P$55,16,0) -> 30
B28: =$B$8 -> 38 | C28: =VLOOKUP($B28,[1]SRA!$A$4:$P$55,2,0) -> 172 | D28: =VLOOKUP($B28,[1]SRA!$A$4:$P$55,3,0) -> 14 | E28: =VLOOKUP($B28,[1]SRA!$A$4:$P$55,4,0) -> 689 | F28: =VLOOKUP($B28,[1]SRA!$A$4:$P$55,5,0) -> 74 | G28: =VLOOKUP($B28,[1]SRA!$A$4:$P$55,6,0) -> 861 | H28: =VLOOKUP($B28,[1]SRA!$A$4:$P$55,7,0) -> 88 | L28: =VLOOKUP($B28,[1]SRA!$A$4:$P$55,11,0) -> 82 | M28: =VLOOKUP($B28,[1]SRA!$A$4:$P$55,12,0) -> 9 | N28: =VLOOKUP($B28,[1]SRA!$A$4:$P$55,13,0) -> 284 | O28: =VLOOKUP($B28,[1]SRA!$A$4:$P$55,14,0) -> 33 | P28: =VLOOKUP($B28,[1]SRA!$A$4:$P$55,15,0) -> 366 | Q28: =VLOOKUP($B28,[1]SRA!$A$4:$P$55,16,0) -> 42
B29: =$B$9 -> 39 | C29: =VLOOKUP($B29,[1]SRA!$A$4:$P$55,2,0) -> 30 | D29: =VLOOKUP($B29,[1]SRA!$A$4:$P$55,3,0) -> 6 | E29: =VLOOKUP($B29,[1]SRA!$A$4:$P$55,4,0) -> 179 | F29: =VLOOKUP($B29,[1]SRA!$A$4:$P$55,5,0) -> 46 | G29: =VLOOKUP($B29,[1]SRA!$A$4:$P$55,6,0) -> 209 | H29: =VLOOKUP($B29,[1]SRA!$A$4:$P$55,7,0) -> 52 | L29: =VLOOKUP($B29,[1]SRA!$A$4:$P$55,11,0) -> 39 | M29: =VLOOKUP($B29,[1]SRA!$A$4:$P$55,12,0) -> 7 | N29: =VLOOKUP($B29,[1]SRA!$A$4:$P$55,13,0) -> 223 | O29: =VLOOKUP($B29,[1]SRA!$A$4:$P$55,14,0) -> 41 | P29: =VLOOKUP($B29,[1]SRA!$A$4:$P$55,15,0) -> 262 | Q29: =VLOOKUP($B29,[1]SRA!$A$4:$P$55,16,0) -> 48
B30: =$B$10 -> 40 | C30: =VLOOKUP($B30,[1]SRA!$A$4:$P$55,2,0) -> 0 | D30: =VLOOKUP($B30,[1]SRA!$A$4:$P$55,3,0) -> 0 | E30: =VLOOKUP($B30,[1]SRA!$A$4:$P$55,4,0) -> 0 | F30: =VLOOKUP($B30,[1]SRA!$A$4:$P$55,5,0) -> 0 | G30: =VLOOKUP($B30,[1]SRA!$A$4:$P$55,6,0) -> 0 | H30: =VLOOKUP($B30,[1]SRA!$A$4:$P$55,7,0) -> 0 | L30: =VLOOKUP($B30,[1]SRA!$A$4:$P$55,11,0) -> 0 | M30: =VLOOKUP($B30,[1]SRA!$A$4:$P$55,12,0) -> 0 | N30: =VLOOKUP($B30,[1]SRA!$A$4:$P$55,13,0) -> 0 | O30: =VLOOKUP($B30,[1]SRA!$A$4:$P$55,14,0) -> 0 | P30: =VLOOKUP($B30,[1]SRA!$A$4:$P$55,15,0) -> 0 | Q30: =VLOOKUP($B30,[1]SRA!$A$4:$P$55,16,0) -> 0
C33: =$B$36&$C$34&C35 -> 39MaDD | D33: =$B$36&$C$34&D35 -> 39MaMD | E33: =$B$36&$C$34&E35 -> 39MaND | F33: =$B$36&$F$34&F35 -> 39DiDD | G33: =$B$36&$F$34&G35 -> 39DiMD | H33: =$B$36&$F$34&H35 -> 39DiND | I33: =$B$36&$I$34&I35 -> 39WoDD | J33: =$B$36&$I$34&J35 -> 39WoMD | K33: =$B$36&$I$34&K35 -> 39WoND | L33: =$B$36&$L$34&L35 -> 39DoDD | M33: =$B$36&$L$34&M35 -> 39DoMD | N33: =$B$36&$L$34&N35 -> 39DoND | O33: =$B$36&$O$34&O35 -> 39VrDD | P33: =$B$36&$O$34&P35 -> 39VrMD | Q33: =$B$36&$O$34&Q35 -> 39VrND | R33: =$B$36&$R$34&R35 -> 39ZaDD | S33: =$B$36&$R$34&S35 -> 39ZaMD | T33: =$B$36&$R$34&T35 -> 39ZaND | U33: =$B$36&$U$34&U35 -> 39ZaDD | V33: =$B$36&$U$34&V35 -> 39ZaMD | W33: =$B$36&$U$34&W35 -> 39ZaND
B34: Week | C34: Ma | F34: Di | I34: Wo | L34: Do | O34: Vr | R34: Za | U34: Za
C35: DD | D35: MD | E35: ND | F35: DD | G35: MD | H35: ND | I35: DD | J35: MD | K35: ND | L35: DD | M35: MD | N35: ND | O35: DD | P35: MD | Q35: ND | R35: DD | S35: MD | T35: ND | U35: DD | V35: MD | W35: ND
A36: ="TA SRA LH Week "&B36 -> TA SRA LH Week 39 | B36: =Grafieken!AB10 -> 39 | C36: =VLOOKUP(C$33,'TA SRA LH'!$A$6:$AJ$1120,36,0) -> 0 | D36: =VLOOKUP(D$33,'TA SRA LH'!$A$6:$AJ$1120,36,0) -> 0 | E36: =VLOOKUP(E$33,'TA SRA LH'!$A$6:$AJ$1120,36,0) -> 0 | F36: =VLOOKUP(F$33,'TA SRA LH'!$A$6:$AJ$1120,36,0) -> 0 | G36: =VLOOKUP(G$33,'TA SRA LH'!$A$6:$AJ$1120,36,0) -> 0 | H36: =VLOOKUP(H$33,'TA SRA LH'!$A$6:$AJ$1120,36,0) -> 0 | I36: =VLOOKUP(I$33,'TA SRA LH'!$A$6:$AJ$1120,36,0) -> 0 | J36: =VLOOKUP(J$33,'TA SRA LH'!$A$6:$AJ$1120,36,0) -> 0 | K36: =VLOOKUP(K$33,'TA SRA LH'!$A$6:$AJ$1120,36,0) -> 0 | L36: =VLOOKUP(L$33,'TA SRA LH'!$A$6:$AJ$1120,36,0) -> 0 | M36: =VLOOKUP(M$33,'TA SRA LH'!$A$6:$AJ$1120,36,0) -> 0 | N36: =VLOOKUP(N$33,'TA SRA LH'!$A$6:$AJ$1120,36,0) -> 0 | O36: =VLOOKUP(O$33,'TA SRA LH'!$A$6:$AJ$1120,36,0) ->  | P36: =VLOOKUP(P$33,'TA SRA LH'!$A$6:$AJ$1120,36,0) ->  | Q36: =VLOOKUP(Q$33,'TA SRA LH'!$A$6:$AJ$1120,36,0) ->  | R36: =VLOOKUP(R$33,'TA SRA LH'!$A$6:$AJ$1120,36,0) ->  | S36: =VLOOKUP(S$33,'TA SRA LH'!$A$6:$AJ$1120,36,0) ->  | T36: =VLOOKUP(T$33,'TA SRA LH'!$A$6:$AJ$1120,36,0) ->  | U36: =VLOOKUP(U$33,'TA SRA LH'!$A$6:$AJ$1120,36,0) ->  | V36: =VLOOKUP(V$33,'TA SRA LH'!$A$6:$AJ$1120,36,0) ->  | W36: =VLOOKUP(W$33,'TA SRA LH'!$A$6:$AJ$1120,36,0) -> 
A37: ="TA SRA RH Week "&B37 -> TA SRA RH Week 39 | B37: =Grafieken!AB10 -> 39 | C37: =VLOOKUP(C$33,'TA SRA RH'!$A$6:$AJ$1120,36,0) -> 0 | D37: =VLOOKUP(D$33,'TA SRA RH'!$A$6:$AJ$1120,36,0) -> 0 | E37: =VLOOKUP(E$33,'TA SRA RH'!$A$6:$AJ$1120,36,0) -> 0 | F37: =VLOOKUP(F$33,'TA SRA RH'!$A$6:$AJ$1120,36,0) -> 0 | G37: =VLOOKUP(G$33,'TA SRA RH'!$A$6:$AJ$1120,36,0) -> 0 | H37: =VLOOKUP(H$33,'TA SRA RH'!$A$6:$AJ$1120,36,0) -> 0 | I37: =VLOOKUP(I$33,'TA SRA RH'!$A$6:$AJ$1120,36,0) -> 0 | J37: =VLOOKUP(J$33,'TA SRA RH'!$A$6:$AJ$1120,36,0) -> 0 | K37: =VLOOKUP(K$33,'TA SRA RH'!$A$6:$AJ$1120,36,0) -> 0 | L37: =VLOOKUP(L$33,'TA SRA RH'!$A$6:$AJ$1120,36,0) -> 0 | M37: =VLOOKUP(M$33,'TA SRA RH'!$A$6:$AJ$1120,36,0) -> 0 | N37: =VLOOKUP(N$33,'TA SRA RH'!$A$6:$AJ$1120,36,0) -> 0 | O37: =VLOOKUP(O$33,'TA SRA RH'!$A$6:$AJ$1120,36,0) ->  | P37: =VLOOKUP(P$33,'TA SRA RH'!$A$6:$AJ$1120,36,0) ->  | Q37: =VLOOKUP(Q$33,'TA SRA RH'!$A$6:$AJ$1120,36,0) ->  | R37: =VLOOKUP(R$33,'TA SRA RH'!$A$6:$AJ$1120,36,0) ->  | S37: =VLOOKUP(S$33,'TA SRA RH'!$A$6:$AJ$1120,36,0) ->  | T37: =VLOOKUP(T$33,'TA SRA RH'!$A$6:$AJ$1120,36,0) ->  | U37: =VLOOKUP(U$33,'TA SRA RH'!$A$6:$AJ$1120,36,0) ->  | V37: =VLOOKUP(V$33,'TA SRA RH'!$A$6:$AJ$1120,36,0) ->  | W37: =VLOOKUP(W$33,'TA SRA RH'!$A$6:$AJ$1120,36,0) -> 
A38: Target [%] | C38: =DATA!$C$9 -> 0.89 | D38: =DATA!$C$9 -> 0.89 | E38: =DATA!$C$9 -> 0.89 | F38: =DATA!$C$9 -> 0.89 | G38: =DATA!$C$9 -> 0.89 | H38: =DATA!$C$9 -> 0.89 | I38: =DATA!$C$9 -> 0.89 | J38: =DATA!$C$9 -> 0.89 | K38: =DATA!$C$9 -> 0.89 | L38: =DATA!$C$9 -> 0.89 | M38: =DATA!$C$9 -> 0.89 | N38: =DATA!$C$9 -> 0.89 | O38: =DATA!$C$9 -> 0.89 | P38: =DATA!$C$9 -> 0.89 | Q38: =DATA!$C$9 -> 0.89 | R38: =DATA!$C$9 -> 0.89 | S38: =DATA!$C$9 -> 0.89 | T38: =DATA!$C$9 -> 0.89 | U38: =DATA!$C$9 -> 0.89 | V38: =DATA!$C$9 -> 0.89 | W38: =DATA!$C$9 -> 0.89
E42: ="Major Items "&DATA!C15&" Week "&$B36&" "&J63&" min" -> Major Items SRA LH Week 39 15 min | J42: Downtime | N42: ="Major Items "&DATA!C16&" Week "&$B36&" "&S63&" min" -> Major Items SRA RH Week 39 30 min | S42: Downtime
C43: =$B$36&"M"&DATA!$C$15&DATA!$C27 -> 39MSRA LH1 | E43: =IFERROR(VLOOKUP($C43,'[1]Downtime SAP'!$V$2:$Z$20001,2,0),"") -> 63FX01 stop | J43: =IFERROR(VLOOKUP($C43,'[1]Downtime SAP'!$V$2:$Z$20001,3,0),"") -> 15 | L43: =$B$36&"M"&DATA!$C$16&DATA!$C27 -> 39MSRA RH1 | N43: =IFERROR(VLOOKUP($L43,'[1]Downtime SAP'!$V$2:$Z$20001,2,0),"") -> cytec vervangen | S43: =IFERROR(VLOOKUP($L43,'[1]Downtime SAP'!$V$2:$Z$20001,3,0),"") -> 30
C44: =$B$36&"M"&DATA!$C$15&DATA!$C28 -> 39MSRA LH2 | E44: =IFERROR(VLOOKUP($C44,'[1]Downtime SAP'!$V$2:$Z$20001,2,0),"") ->  | J44: =IFERROR(VLOOKUP($C44,'[1]Downtime SAP'!$V$2:$Z$20001,3,0),"") ->  | L44: =$B$36&"M"&DATA!$C$16&DATA!$C28 -> 39MSRA RH2 | N44: =IFERROR(VLOOKUP($L44,'[1]Downtime SAP'!$V$2:$Z$20001,2,0),"") ->  | S44: =IFERROR(VLOOKUP($L44,'[1]Downtime SAP'!$V$2:$Z$20001,3,0),"") -> 
C45: =$B$36&"M"&DATA!$C$15&DATA!$C29 -> 39MSRA LH3 | E45: =IFERROR(VLOOKUP($C45,'[1]Downtime SAP'!$V$2:$Z$20001,2,0),"") ->  | J45: =IFERROR(VLOOKUP($C45,'[1]Downtime SAP'!$V$2:$Z$20001,3,0),"") ->  | L45: =$B$36&"M"&DATA!$C$16&DATA!$C29 -> 39MSRA RH3 | N45: =IFERROR(VLOOKUP($L45,'[1]Downtime SAP'!$V$2:$Z$20001,2,0),"") ->  | S45: =IFERROR(VLOOKUP($L45,'[1]Downtime SAP'!$V$2:$Z$20001,3,0),"") -> 
C46: =$B$36&"M"&DATA!$C$15&DATA!$C30 -> 39MSRA LH4 | E46: =IFERROR(VLOOKUP($C46,'[1]Downtime SAP'!$V$2:$Z$20001,2,0),"") ->  | J46: =IFERROR(VLOOKUP($C46,'[1]Downtime SAP'!$V$2:$Z$20001,3,0),"") ->  | L46: =$B$36&"M"&DATA!$C$16&DATA!$C30 -> 39MSRA RH4 | N46: =IFERROR(VLOOKUP($L46,'[1]Downtime SAP'!$V$2:$Z$20001,2,0),"") ->  | S46: =IFERROR(VLOOKUP($L46,'[1]Downtime SAP'!$V$2:$Z$20001,3,0),"") -> 
C47: =$B$36&"M"&DATA!$C$15&DATA!$C31 -> 39MSRA LH5 | E47: =IFERROR(VLOOKUP($C47,'[1]Downtime SAP'!$V$2:$Z$20001,2,0),"") ->  | J47: =IFERROR(VLOOKUP($C47,'[1]Downtime SAP'!$V$2:$Z$20001,3,0),"") ->  | L47: =$B$36&"M"&DATA!$C$16&DATA!$C31 -> 39MSRA RH5 | N47: =IFERROR(VLOOKUP($L47,'[1]Downtime SAP'!$V$2:$Z$20001,2,0),"") ->  | S47: =IFERROR(VLOOKUP($L47,'[1]Downtime SAP'!$V$2:$Z$20001,3,0),"") -> 
C48: =$B$36&"M"&DATA!$C$15&DATA!$C32 -> 39MSRA LH6 | E48: =IFERROR(VLOOKUP($C48,'[1]Downtime SAP'!$V$2:$Z$20001,2,0),"") ->  | J48: =IFERROR(VLOOKUP($C48,'[1]Downtime SAP'!$V$2:$Z$20001,3,0),"") ->  | L48: =$B$36&"M"&DATA!$C$16&DATA!$C32 -> 39MSRA RH6 | N48: =IFERROR(VLOOKUP($L48,'[1]Downtime SAP'!$V$2:$Z$20001,2,0),"") ->  | S48: =IFERROR(VLOOKUP($L48,'[1]Downtime SAP'!$V$2:$Z$20001,3,0),"") -> 
C49: =$B$36&"M"&DATA!$C$15&DATA!$C33 -> 39MSRA LH7 | E49: =IFERROR(VLOOKUP($C49,'[1]Downtime SAP'!$V$2:$Z$20001,2,0),"") ->  | J49: =IFERROR(VLOOKUP($C49,'[1]Downtime SAP'!$V$2:$Z$20001,3,0),"") ->  | L49: =$B$36&"M"&DATA!$C$16&DATA!$C33 -> 39MSRA RH7 | N49: =IFERROR(VLOOKUP($L49,'[1]Downtime SAP'!$V$2:$Z$20001,2,0),"") ->  | S49: =IFERROR(VLOOKUP($L49,'[1]Downtime SAP'!$V$2:$Z$20001,3,0),"") -> 
C50: =$B$36&"M"&DATA!$C$15&DATA!$C34 -> 39MSRA LH8 | E50: =IFERROR(VLOOKUP($C50,'[1]Downtime SAP'!$V$2:$Z$20001,2,0),"") ->  | J50: =IFERROR(VLOOKUP($C50,'[1]Downtime SAP'!$V$2:$Z$20001,3,0),"") ->  | L50: =$B$36&"M"&DATA!$C$16&DATA!$C34 -> 39MSRA RH8 | N50: =IFERROR(VLOOKUP($L50,'[1]Downtime SAP'!$V$2:$Z$20001,2,0),"") ->  | S50: =IFERROR(VLOOKUP($L50,'[1]Downtime SAP'!$V$2:$Z$20001,3,0),"") -> 
C51: =$B$36&"M"&DATA!$C$15&DATA!$C35 -> 39MSRA LH9 | E51: =IFERROR(VLOOKUP($C51,'[1]Downtime SAP'!$V$2:$Z$20001,2,0),"") ->  | J51: =IFERROR(VLOOKUP($C51,'[1]Downtime SAP'!$V$2:$Z$20001,3,0),"") ->  | L51: =$B$36&"M"&DATA!$C$16&DATA!$C35 -> 39MSRA RH9 | N51: =IFERROR(VLOOKUP($L51,'[1]Downtime SAP'!$V$2:$Z$20001,2,0),"") ->  | S51: =IFERROR(VLOOKUP($L51,'[1]Downtime SAP'!$V$2:$Z$20001,3,0),"") -> 
C52: =$B$36&"M"&DATA!$C$15&DATA!$C36 -> 39MSRA LH10 | E52: =IFERROR(VLOOKUP($C52,'[1]Downtime SAP'!$V$2:$Z$20001,2,0),"") ->  | J52: =IFERROR(VLOOKUP($C52,'[1]Downtime SAP'!$V$2:$Z$20001,3,0),"") ->  | L52: =$B$36&"M"&DATA!$C$16&DATA!$C36 -> 39MSRA RH10 | N52: =IFERROR(VLOOKUP($L52,'[1]Downtime SAP'!$V$2:$Z$20001,2,0),"") ->  | S52: =IFERROR(VLOOKUP($L52,'[1]Downtime SAP'!$V$2:$Z$20001,3,0),"") -> 
C53: =$B$36&"M"&DATA!$C$15&DATA!$C37 -> 39MSRA LH11 | E53: =IFERROR(VLOOKUP($C53,'[1]Downtime SAP'!$V$2:$Z$20001,2,0),"") ->  | J53: =IFERROR(VLOOKUP($C53,'[1]Downtime SAP'!$V$2:$Z$20001,3,0),"") ->  | L53: =$B$36&"M"&DATA!$C$16&DATA!$C37 -> 39MSRA RH11 | N53: =IFERROR(VLOOKUP($L53,'[1]Downtime SAP'!$V$2:$Z$20001,2,0),"") ->  | S53: =IFERROR(VLOOKUP($L53,'[1]Downtime SAP'!$V$2:$Z$20001,3,0),"") -> 
C54: =$B$36&"M"&DATA!$C$15&DATA!$C38 -> 39MSRA LH12 | E54: =IFERROR(VLOOKUP($C54,'[1]Downtime SAP'!$V$2:$Z$20001,2,0),"") ->  | J54: =IFERROR(VLOOKUP($C54,'[1]Downtime SAP'!$V$2:$Z$20001,3,0),"") ->  | L54: =$B$36&"M"&DATA!$C$16&DATA!$C38 -> 39MSRA RH12 | N54: =IFERROR(VLOOKUP($L54,'[1]Downtime SAP'!$V$2:$Z$20001,2,0),"") ->  | S54: =IFERROR(VLOOKUP($L54,'[1]Downtime SAP'!$V$2:$Z$20001,3,0),"") -> 
C55: =$B$36&"M"&DATA!$C$15&DATA!$C39 -> 39MSRA LH13 | E55: =IFERROR(VLOOKUP($C55,'[1]Downtime SAP'!$V$2:$Z$20001,2,0),"") ->  | J55: =IFERROR(VLOOKUP($C55,'[1]Downtime SAP'!$V$2:$Z$20001,3,0),"") ->  | L55: =$B$36&"M"&DATA!$C$16&DATA!$C39 -> 39MSRA RH13 | N55: =IFERROR(VLOOKUP($L55,'[1]Downtime SAP'!$V$2:$Z$20001,2,0),"") ->  | S55: =IFERROR(VLOOKUP($L55,'[1]Downtime SAP'!$V$2:$Z$20001,3,0),"") -> 
C56: =$B$36&"M"&DATA!$C$15&DATA!$C40 -> 39MSRA LH14 | E56: =IFERROR(VLOOKUP($C56,'[1]Downtime SAP'!$V$2:$Z$20001,2,0),"") ->  | J56: =IFERROR(VLOOKUP($C56,'[1]Downtime SAP'!$V$2:$Z$20001,3,0),"") ->  | L56: =$B$36&"M"&DATA!$C$16&DATA!$C40 -> 39MSRA RH14 | N56: =IFERROR(VLOOKUP($L56,'[1]Downtime SAP'!$V$2:$Z$20001,2,0),"") ->  | S56: =IFERROR(VLOOKUP($L56,'[1]Downtime SAP'!$V$2:$Z$20001,3,0),"") -> 
C57: =$B$36&"M"&DATA!$C$15&DATA!$C41 -> 39MSRA LH15 | E57: =IFERROR(VLOOKUP($C57,'[1]Downtime SAP'!$V$2:$Z$20001,2,0),"") ->  | J57: =IFERROR(VLOOKUP($C57,'[1]Downtime SAP'!$V$2:$Z$20001,3,0),"") ->  | L57: =$B$36&"M"&DATA!$C$16&DATA!$C41 -> 39MSRA RH15 | N57: =IFERROR(VLOOKUP($L57,'[1]Downtime SAP'!$V$2:$Z$20001,2,0),"") ->  | S57: =IFERROR(VLOOKUP($L57,'[1]Downtime SAP'!$V$2:$Z$20001,3,0),"") -> 
C58: =$B$36&"M"&DATA!$C$15&DATA!$C42 -> 39MSRA LH16 | E58: =IFERROR(VLOOKUP($C58,'[1]Downtime SAP'!$V$2:$Z$20001,2,0),"") ->  | J58: =IFERROR(VLOOKUP($C58,'[1]Downtime SAP'!$V$2:$Z$20001,3,0),"") ->  | L58: =$B$36&"M"&DATA!$C$16&DATA!$C42 -> 39MSRA RH16 | N58: =IFERROR(VLOOKUP($L58,'[1]Downtime SAP'!$V$2:$Z$20001,2,0),"") ->  | S58: =IFERROR(VLOOKUP($L58,'[1]Downtime SAP'!$V$2:$Z$20001,3,0),"") -> 
C59: =$B$36&"M"&DATA!$C$15&DATA!$C43 -> 39MSRA LH17 | E59: =IFERROR(VLOOKUP($C59,'[1]Downtime SAP'!$V$2:$Z$20001,2,0),"") ->  | J59: =IFERROR(VLOOKUP($C59,'[1]Downtime SAP'!$V$2:$Z$20001,3,0),"") ->  | L59: =$B$36&"M"&DATA!$C$16&DATA!$C43 -> 39MSRA RH17 | N59: =IFERROR(VLOOKUP($L59,'[1]Downtime SAP'!$V$2:$Z$20001,2,0),"") ->  | S59: =IFERROR(VLOOKUP($L59,'[1]Downtime SAP'!$V$2:$Z$20001,3,0),"") -> 
C60: =$B$36&"M"&DATA!$C$15&DATA!$C44 -> 39MSRA LH18 | E60: =IFERROR(VLOOKUP($C60,'[1]Downtime SAP'!$V$2:$Z$20001,2,0),"") ->  | J60: =IFERROR(VLOOKUP($C60,'[1]Downtime SAP'!$V$2:$Z$20001,3,0),"") ->  | L60: =$B$36&"M"&DATA!$C$16&DATA!$C44 -> 39MSRA RH18 | N60: =IFERROR(VLOOKUP($L60,'[1]Downtime SAP'!$V$2:$Z$20001,2,0),"") ->  | S60: =IFERROR(VLOOKUP($L60,'[1]Downtime SAP'!$V$2:$Z$20001,3,0),"") -> 
C61: =$B$36&"M"&DATA!$C$15&DATA!$C45 -> 39MSRA LH19 | E61: =IFERROR(VLOOKUP($C61,'[1]Downtime SAP'!$V$2:$Z$20001,2,0),"") ->  | J61: =IFERROR(VLOOKUP($C61,'[1]Downtime SAP'!$V$2:$Z$20001,3,0),"") ->  | L61: =$B$36&"M"&DATA!$C$16&DATA!$C45 -> 39MSRA RH19 | N61: =IFERROR(VLOOKUP($L61,'[1]Downtime SAP'!$V$2:$Z$20001,2,0),"") ->  | S61: =IFERROR(VLOOKUP($L61,'[1]Downtime SAP'!$V$2:$Z$20001,3,0),"") -> 
C62: =$B$36&"M"&DATA!$C$15&DATA!$C46 -> 39MSRA LH20 | E62: =IFERROR(VLOOKUP($C62,'[1]Downtime SAP'!$V$2:$Z$20001,2,0),"") ->  | J62: =IFERROR(VLOOKUP($C62,'[1]Downtime SAP'!$V$2:$Z$20001,3,0),"") ->  | L62: =$B$36&"M"&DATA!$C$16&DATA!$C46 -> 39MSRA RH20 | N62: =IFERROR(VLOOKUP($L62,'[1]Downtime SAP'!$V$2:$Z$20001,2,0),"") ->  | S62: =IFERROR(VLOOKUP($L62,'[1]Downtime SAP'!$V$2:$Z$20001,3,0),"") -> 
I63: Totaal | J63: =SUM(J43:J62) -> 15 | R63: Totaal | S63: =SUM(S43:S62) -> 30

Sheet DATA (hidden)
C2: Werktijden | E2: Breaktimes
B3: DD | C3: 06:30:00 | D3: 14:30:00 | E3: 00:45:00
B4: MD | C4: 14:30:00 | D4: 22:30:00 | E4: 00:45:00
B5: ND | C5: 22:30:00 | D5: 06:30:00 | E5: 00:45:00
B6: ZND
B9: Target SRI | C9: 0.89
B10: Cycle Time | C10: 64
C12: KS
C13: X
C14: R
C15: SRA LH
C16: SRA RH
C20: ="UPTIME "&C15 -> UPTIME SRA LH
C21: ="UPTIME "&C16 -> UPTIME SRA RH
C22: ="TA "&C15&" TREND" -> TA SRA LH TREND
C23: ="TA "&C16&" TREND" -> TA SRA RH TREND
C24: ="DOWNTIME SAP "&C15 -> DOWNTIME SAP SRA LH
C25: ="DOWNTIME SAP "&C16 -> DOWNTIME SAP SRA RH
C27: 1
C28: 2
C29: 3
C30: 4
C31: 5
C32: 6
C33: 7
C34: 8
C35: 9
C36: 10
C37: 11
C38: 12
C39: 13
C40: 14
C41: 15
C42: 16
C43: 17
C44: 18
C45: 19
C46: 20
